Workbook

Sheet Introduction
B5: Local Area Migration
B22: The main worksheets are:
B24: Information on Indicators and Data Sources | E24: gives information on the different data sources used for the indicators
B25: Comparing Indicators | E25: allows you to compare up to three indicators for one selected area
B26: Comparing Areas | E26: allows you to compare up to three council areas for one selected indicator
B27: Comparing NHS Board Areas | E27: allows you to compare up to three NHS Board areas for one selected indicator
B43: Additional data and information is available which cannot be accessed from the main worksheets:
B44: Worker Registration Scheme - quarterly data
B45: NHS Registrations from Overseas
B46: NHS Registrations from Overseas - quarterly data
B47: Births to non-UK born mothers as percentage of total births
B48: Nationalities of NINo allocations to overseas nationals in 2014
B49: Mid-year population estimates
B50: Further sources of data informing on migration
B52: Background data and information on the data source is also available:
B54: Total net migration | F54: Information | G54: Data
B55: Total net migration for ages 0-15 | F55: Information | G55: Data
B56: Total net migration for ages 16 - 64 | F56: Information | G56: Data
B57: Total net migration for people aged 65+ | F57: Information | G57: Data
B58: Total in-migration | F58: Information | G58: Data
B59: Total out-migration | F59: Information | G59: Data
B60: Within Scotland net migration | F60: Information | G60: Data
B61: Within Scotland in-migration | F61: Information | G61: Data
B62: Within Scotland out-migration | F62: Information | G62: Data
B63: Rest of UK net migration | F63: Information | G63: Data
B64: Rest of UK in-migration | F64: Information | G64: Data
B65: Rest of UK out-migration | F65: Information | G65: Data
B66: Overseas net migration | F66: Information | G66: Data
B67: Overseas in-migration | F67: Information | G67: Data
B68: Overseas out-migration | F68: Information | G68: Data
B69: Worker Registration Scheme | F69: Information | G69: Data
B70: National Insurance Number (NINo) allocations to adult overseas nationals entering the UK | F70: Information | G70: Data
B71: Births to non-UK mothers | F71: Information | G71: Data
B72: Pupils from a minority ethnic group | F72: Information | G72: Data
B73: Pupils with English as an additional language | F73: Information | G73: Data
B74: Estimate of resident population born outside the UK | F74: Information | G74: Data
A76: © Crown Copyright 2016

Sheet Information
C5: Information on Indicators and Data Sources
C7: This page contains information on the strengths and weaknesses of each indicator. Similar information is provided for some key data sources of migration data. Links are also provided for further information.
C9: Click on the title to view information on the indicator:
C11: Total net migration
C12: Total net migration for ages 0-15
C13: Total net migration for ages 16 - 64
C14: Total net migration for people aged 65+
C15: Total in-migration
C16: Total out-migration
C17: Within Scotland net migration
C18: Within Scotland in-migration
C19: Within Scotland out-migration
C20: Rest of UK net migration
C21: Rest of UK in-migration
C22: Rest of UK out-migration
C23: Overseas net migration
C24: Overseas in-migration
C25: Overseas out-migration
C26: Worker Registration Scheme
C27: National Insurance Number (NINo) allocations to adult overseas nationals entering the UK
C28: Births to non-UK mothers
C29: Pupils from a minority ethnic group
C30: Pupils with English as an additional language
C31: Estimate of resident population born outside the UK
C32: NHS registrations from overseas
C34: Additional key data sources used for the indicators:
C35: Census
C36: Community Health Index (CHI)
C37: International Passenger Survey (IPS)
C38: National Health Service Central Register (NHSCR)
C39: NRS mid-year population and migration estimates
C41: Total net migration
C42: Indicator of: | D42: Difference between in and out migration from overseas, the rest of the UK and within Scotland.
C43: Information: | D43: These figures are the National Records of Scotland (NRS) National Statistics for total net migration. They include asylum seekers and rounding adjustments. More information on the methodology for the NRS migration estimates can be found in the Migration section of this website.
C44: Strengths: | D44: Provides an estimate of all long-term migrants (that is those that stay for 12 months or more) at council and NHS Board area level.
D45: These estimates are National Statistics.
C46: Weaknesses: | D46: Estimates are only produced annually, about 10 months after the period to which they refer, and rely on administrative and survey data rather than a comprehensive count of people moving.
C47: Source: | D47: Total Migration To and From an Area section of the NRS website
C49: Total net migration for ages 0-15
C50: Indicator of: | D50: Difference between in and out migration from overseas, the rest of the UK and within Scotland of people aged 15 and under.
C51: Information: | D51: These figures include asylum seekers and rounding adjustments. More information on the methodology for the NRS migration estimates can be found in the Migration section of this website.
C52: Strengths: | D52: Provides an estimate of all long-term migrants (that is those that stay for 12 months or more) within this age group at council and NHS Board area level.
D53: These estimates are National Statistics.
C54: Weaknesses: | D54: Estimates are only produced annually, about 10 months after the period to which they refer, and rely on administrative and survey data rather than a comprehensive count of people moving.
C55: Source: | D55: Total Migration To and From an Area section of the NRS website
C57: Total net migration for ages 16-64
C58: Indicator of: | D58: Difference between in and out migration from overseas, the rest of the UK and within Scotland of people aged between 16 and 64.
C59: Information: | D59: These figures include asylum seekers and rounding adjustments. More information on the methodology for the NRS migration estimates can be found in the Migration section of this website.
C60: Strengths: | D60: Provides an estimate of all long-term migrants (that is those that stay for 12 months or more) within this age group at council and NHS Board area level.
D61: These estimates are National Statistics.
C62: Weaknesses: | D62: Estimates are only produced annually, about 10 months after the period to which they refer, and rely on administrative and survey data rather than a comprehensive count of people moving.
C63: Source: | D63: Total Migration To and From an Area section of the NRS website
C65: Total net migration for ages 65+
C66: Indicator of: | D66: Difference between in and out migration from overseas, the rest of the UK and within Scotland of people aged 65 and over.
C67: Information: | D67: These figures include asylum seekers and rounding adjustments. More information on the methodology for the NRS migration estimates can be found in the Migration section of this website.
C68: Strengths: | D68: Provides an estimate of all long-term migrants (that is those that stay for 12 months or more) within this age group at Council and NHS Board area level.
D69: These estimates are National Statistics.
C70: Weaknesses: | D70: Estimates are only produced annually, about 10 months after the period to which they refer, and rely on administrative and survey data rather than a comprehensive count of people moving.
C71: Source: | D71: Total Migration To and From an Area section of the NRS website
C73: Total in-migration
C74: Indicator of: | D74: Flow of people to administrative areas in Scotland from overseas, the rest of the UK and other areas within Scotland
C75: Information: | D75: These figures are the NRS National Statistics for total in-migration. Figures include asylum seekers. Scotland level estimates cannot be derived by adding together the estimates for individual council areas or NHS Board areas because administrative area estimates include moves within Scotland. It would not, therefore, be appropriate to compare total in-migration for Scotland with total in-migration for an administrative area. More information on the methodology for the NRS migration estimates can be found in the Migration section of this website.
C76: Strengths: | D76: These estimates are National Statistics.
C77: Weaknesses: | D77: Estimates are only produced annually, about 10 months after the period to which they refer, and rely on administrative and survey data rather than a comprehensive count of people moving.
C78: Source: | D78: Total Migration To and From an Area section of the NRS website
C80: Total out-migration
C81: Indicator of: | D81: Flow of people from administrative areas in Scotland to overseas, the rest of the UK and other areas within Scotland
C82: Information: | D82: These figures are the NRS National Statistics for total in-migration. Figures include asylum seekers. Scotland level estimates cannot be derived by adding together the estimates for individual council areas or NHS Board areas because administrative area estimates include moves within Scotland. It would not, therefore, be appropriate to compare total in-migration for Scotland with total in-migration for an administrative area. More information on the methodology for the NRS migration estimates can be found in the Migration section of this website.
C83: Strengths: | D83: These estimates are National Statistics.
C84: Weaknesses: | D84: Estimates are only produced annually, about 10 months after the period to which they refer, and rely on administrative and survey data rather than a comprehensive count of people moving.
C85: Source: | D85: Total Migration To and From an Area section of the NRS website
C87: Within Scotland net migration
C88: Indicator of: | D88: Net migration between administrative areas within Scotland
C89: Information: | D89: Moves within Scotland at council area level are derived from a combination of the National Health Service Central Register (NHSCR) and the Community Health Index (CHI), and from the NHSCR for NHS Board areas. More information on the methodology for the NRS migration estimates can be found in the Migration section of this website.
C90: Strengths: | D90: These estimates are National Statistics.
C91: Weaknesses: | D91: Estimates are only produced annually, about 10 months after the period to which they refer, and rely on administrative and survey data rather than a comprehensive count of people moving.
C92: Source: | D92: Migration within Scotland section of the NRS website
C94: Within Scotland in-migration
C95: Indicator of: | D95: Flow of people to administrative areas in Scotland from other areas within Scotland
C96: Information: | D96: Moves within Scotland at council area level are derived from a combination of the National Health Service Central Register (NHSCR) and the Community Health Index (CHI), and from the NHSCR for NHS Board areas. More information on the methodology for the NRS migration estimates can be found in the Migration section of this website.
C97: Strengths: | D97: These estimates are National Statistics.
C98: Weaknesses: | D98: Estimates are only produced annually, about 10 months after the period to which they refer, and rely on administrative and survey data rather than a comprehensive count of people moving.
C99: Source: | D99: Migration within Scotland section of the NRS website
C101: Within Scotland out-migration
C102: Indicator of: | D102: Flow of people from administrative areas in Scotland to other areas within Scotland
C103: Information: | D103: Moves within Scotland at council area level are derived from a combination of the National Health Service Central Register (NHSCR) and the Community Health Index (CHI), and from the NHSCR for NHS Board areas. More information on the methodology for the NRS migration estimates can be found in the Migration section of this website.
C104: Strengths: | D104: These estimates are National Statistics.
C105: Weaknesses: | D105: Estimates are only produced annually, about 10 months after the period to which they refer, and rely on administrative and survey data rather than a comprehensive count of people moving.
C106: Source: | D106: Migration within Scotland section of the NRS website
C108: Rest of UK net migration
C109: Indicator of: | D109: Net migration between administrative areas in Scotland and the rest of the UK
C110: Information: | D110: These are the NRS National Statistics for rest of UK migration. Moves between Scottish administrative areas and the rest of the UK are derived from the National Health Service Central Register (NHSCR) and Community Health Index (CHI). Moves between Scotland and the rest of the UK used here do not include movements to/from the armed forces. More information on the methodology for the NRS migration estimates can be found in the Migration section of this website.
C111: Strengths: | D111: These estimates are National Statistics.
C112: Weaknesses: | D112: Estimates are only produced annually at Scottish administrative area level, about 10 months after the period to which they refer, and rely on administrative and survey data rather than a comprehensive count of people moving.
C114: Source: | D114: Migration between Scotland and the Rest of the UK section of the NRS website
C116: Rest of UK in-migration
C117: Indicator of: | D117: Flow of people to administrative areas in Scotland from the rest of the UK
C118: Information: | D118: These are the NRS National Statistics for rest of UK migration. Moves between Scottish administrative areas and the rest of the UK are derived from the National Health Service Central Register (NHSCR) and Community Health Index (CHI). Moves between Scotland and the rest of the UK used here do not include movements to/from the armed forces. More information on the methodology for the NRS migration estimates can be found in the Migration section of this website.
C119: Strengths: | D119: These estimates are National Statistics.
C120: Weaknesses: | D120: Estimates are only produced annually at Scottish administrative area level, about 10 months after the period to which they refer, and rely on administrative and survey data rather than a comprehensive count of people moving.
C122: Source: | D122: Migration between Scotland and the Rest of the UK section of the NRS website
C124: Rest of UK out-migration
C125: Indicator of: | D125: Flow of people from administrative areas in Scotland to the rest of the UK
C126: Information: | D126: These are the NRS National Statistics for rest of UK migration. Moves between Scottish administrative areas and the rest of the UK are derived from the National Health Service Central Register (NHSCR) and Community Health Index (CHI). Moves between Scotland and the rest of the UK used here do not include movements to/from the armed forces. More information on the methodology for the NRS migration estimates can be found in the Migration section of this website.
C127: Strengths: | D127: These estimates are National Statistics.
C128: Weaknesses: | D128: Estimates are only produced annually at Scottish administrative area level, about 10 months after the period to which they refer, and rely on administrative and survey data rather than a comprehensive count of people moving.
C130: Source: | D130: Migration between Scotland and the Rest of the UK section of the NRS website
C132: Overseas net migration
C133: Indicator of: | D133: Net migration to/from overseas
C134: Information: | D134: These are the NRS National Statistics for overseas net migration. There is not a single, all-inclusive system in place to measure all movements of the population into and out of the UK. Therefore, data from the International Passenger Survey (IPS), the Home Office, and the Labour Force Survey (LFS) is combined to compile the National Statistics estimates of international migration into Scotland. Data from the National Health Service Central Register (NHSCR) and the Community Health Index (CHI) is also used for this process. More information on the methodology for the NRS migration estimates can be found in the Migration section of this website.
C135: Strengths: | D135: These estimates are National Statistics.
C136: Weaknesses: | D136: The IPS sample size for Scotland is small, making the estimates less reliable.
D137: Estimates are only produced annually, about 10 months after the period to which they refer.
C138: Source: | D138: Migration between Scotland and Overseas section of the NRS website
C140: Overseas in-migration
C141: Indicator of: | D141: Flow of people to administrative areas in Scotland from overseas
C142: Information: | D142: These are the NRS National Statistics for overseas in-migration. There is not a single, all-inclusive system in place to measure all movements of the population into and out of the UK. Therefore, data from the International Passenger Survey (IPS), the Home Office, and the Labour Force Survey (LFS) is combined to compile the National Statistics estimates of international migration into Scotland. Data from the National Health Service Central Register (NHSCR) and the Community Health Index (CHI) is also used for this process. More information on the methodology for the NRS migration estimates can be found in the Migration section of this website.
C143: Strengths: | D143: These estimates are National Statistics.
C144: Weaknesses: | D144: The IPS sample size for Scotland is small, making the estimates less reliable.
D145: Estimates are only produced annually, about 10 months after the period to which they refer.
C146: Source: | D146: Migration between Scotland and Overseas section of the NRS website
C148: Overseas out-migration
C149: Indicator of: | D149: Flow of persons from administrative areas in Scotland to overseas
C150: Information: | D150: These are the NRS National Statistics for overseas out-migration. There is not a single, all-inclusive system in place to measure all movements of the population into and out of the UK. Therefore, data from the International Passenger Survey (IPS), the Home Office, and the Labour Force Survey (LFS) is combined to compile the National Statistics estimates of international migration into Scotland. Data from the National Health Service Central Register (NHSCR) and the Community Health Index (CHI) is also used for this process. Figures for 2003/04 to 2010/11 have been revised from the previous release to include improvements in estimating international out-migration. More information on the methodology for the NRS migration estimates can be found in the Migration section of this website.
C151: Strengths: | D151: These estimates are National Statistics.
C152: Weaknesses: | D152: The IPS sample size for Scotland is small, making the estimates less reliable.
D153: Estimates are only produced annually, about 10 months after the period to which they refer.
C154: Source: | D154: Migration between Scotland and Overseas section of the NRS website
C156: Worker Registration Scheme (WRS)
C157: Indicator of: | D157: Employees from A8 countries
C158: Information: | D158: The Worker Registration Scheme started in May 2004 and was discontinued on 1 May 2011. Nationals of the A8 countries (Czech Republic, Estonia, Hungary, Latvia, Lithuania, Poland, Slovakia, and Slovenia) who wished to take up employment in the UK for a period of at least a month were generally required to register with the WRS. The data used for the WRS indicator at Scotland level was taken from the Home Office 'Accession Monitoring Report' series, which was published quarterly. Council level data is no longer available online, but can be requested from the Local Government Association (LGA) - info@local.gov.uk.
C159: Strengths: | D159: In addition to total numbers registered, information on gender, age, industry, nationality and hourly rate is also available. (Detailed breakdowns are not shown here.)
D160: Provides council area data.
C161: Weaknesses: | D161: Excludes the self-employed; those not working; those not from A8 countries; people working for an employer who is not established in this country; those who hold dual citizenship of the UK, another country within the European Economic Area (EEA), or Switzerland.
D162: Does not provide any indication of out-migration.
D163: Only provides an indication of in-flow, not stock as it is not necessary to deregister.
D164: Dates relate to the date the application is approved, not date of entry to UK.
D165: Location data relates to that of the employer, not where the individual lives, and migrants may move to a different location after their first registration.
D166: Dependents of those registering are recorded and so may be double counted.
C167: Source: | D167: Local Government Association, Worker Registration Scheme Data Archive (no longer available online)
C169: National Insurance Number (NINo) allocations to adult overseas nationals entering the UK
C170: Indicator of: | D170: Inflow of overseas nationals
C171: Information: | D171: These data have been obtained using the Stat-Xplore tool on the DWP website, which has annual council area data. Data used here is on a calendar year basis.
C172: Strengths: | D172: Includes any overseas national looking to work or claim benefits/tax credits in the UK, self-employed or students working part-time.
D173: Provides council area level data.
D174: Location data relates to the residence of individual, not their employer.
C175: Weaknesses: | D175: Based on the date of registration not the date of arrival, and the lag between the two can often be a year or even longer. Random adjustments have been applied to the data to avoid the disclosure of confidential information.
D176: Excludes those not working, or planning to work or claim benefits, so children and students that don't work are not included.
D177: Excludes returning UK nationals.
D178: Does not provide any outflow information or overall stock.
D179: Includes migrants staying less than one month as there is no minimum stay for registration.
D180: Data reflects the migrant's first destination or location at registration, not where migrants settle nor does it reflect the stock of migrants nationally.
C181: Source: | D181: Department for Work and Pensions - Stat-Xplore
C183: Births to non-UK mothers
C184: Indicator of: | D184: Population born to non-UK mothers
C185: Information: | D185: This data comes from the NRS Vital Events branch and is collected when the birth is registered. This data is published annually on a calendar year basis. Data is available back to 1996.
C186: Strengths: | D186: Gives an indication of migrants choosing to settle in an area.
C187: Weaknesses: | D187: Only gives information on a very specific group of migrants (that is mothers having children).
C188: Source: | D188: Births section of the Vital Events Reference Tables on the NRS website
C190: Pupils from a minority ethnic group
C191: Indicator of: | D191: Migrants with school aged children
C192: Information: | D192: These figures come from the Pupil Census which is collected by the Scottish Government through the ScotXed programme, and are available annually from 2003. The Pupil Census covers all publicly funded schools in Scotland (local authority and grant-aided). It is conducted in September and the data is published in December on the Scottish Government website.
C193: Strengths: | D193: Data is reasonably current.
D194: Can provide an indication of where migrant families with school aged children live, rather than work.
C195: Weaknesses: | D195: Provides no information about migrants without school aged children.
D196: Although over 97.5 per cent of pupils disclosed their ethnic background, some pupils' ethnicity was in the 'unknown' category.
D197: No specific nationality data.
D198: Only includes children in publicly funded schools.
D199: Non migrants may be from a minority ethnic group.
C200: Source: | D200: Pupil Census, Scottish Government
C202: Pupils with English as an additional language
C203: Indicator of: | D203: Migrants from non-English speaking countries with school aged children
C204: Information: | D204: These figures come from the Pupil Census which is collected by the Scottish Government through the ScotXed programme, and are available annually from 2003. The Pupil Census covers all publicly funded schools in Scotland (local authority and grant-aided). It is conducted in September and the data is published in December on the Scottish Government website.
C205: Strengths: | D205: Data is reasonably current.
D206: Can provide an indication of where migrant families with school aged children live, rather than work.
C207: Weaknesses: | D207: Provides no information about migrants without school aged children.
D208: No specific nationality data.
D209: Only includes children in publicly funded schools.
D210: Excludes migrants from English speaking countries and those fluent in English.
D211: Includes non-recent migrants still speaking a different home language if pupils have English as an additional language.
C212: Source: | D212: Pupil Census, Scottish Government
C214: Estimate of resident population born outside the UK
C215: Indicator of: | D215: Migrant stocks
C216: Information: | D216: The country of birth data from the Annual Population Survey is used for this indicator. This information gives an estimate of the number of people living in Scotland who were born outside the UK. The data is available from 2004, on a calendar year basis. The APS comprises of data from the Labour Force Survey, plus data from the Annual Local (Area) Labour Force Survey Boosts for England, Scotland and Wales. It is updated quarterly and is published about 8 months after the time period to which it refers. Data is available at council area level although some data is suppressed. Suppressed estimates are indicated with a '*'.
C217: Strengths: | D217: Gives a more robust estimate of change over time than looking at nationality as an individual's nationality can change.
D218: Provides more current information on migrant stocks (that is migrants currently living in Scotland) than the Census.
C219: Weaknesses: | D219: LFS excludes most communal establishments and foreign students living in halls of residence, and so the number of foreign born migrants is likely to be under-reported.
D220: For some council areas an estimate cannot be made from the APS as the number of people born outside the UK is too small for the estimate to be reliable.
D221: Some people born outside the UK may have lived in the UK for a long time and are therefore not regarded as migrants.
C222: Source: | D222: Population by Country of Birth and Nationality section of the NRS website
C224: NHS registrations from overseas
C225: Indicator of: | D225: Recent migrants from overseas to areas within Scotland.
C226: Information: | D226: The data shows overseas migrants who have registered with a GP. A lag is assumed between arrival in the UK and the migrant appearing on the National Health Service Central Register (NHSCR). This data is used to produce age and sex distributions of international in-migrants in the NRS mid-year estimates.
C227: Strengths: | D227: Most comprehensive administrative data source available.
D228: Data is reasonably current.
C229: Weaknesses: | D229: Data source shows limited information on out-migration.
D230: Only shows those migrants who have registered with a GP, and registration patterns tend to differ by sex and age which affects the completeness of this data.
D231: Data does not show the exact time of migration as there is a difference between the move date and the date at which the change of GP is processed. This lag is not consistent.
D232: Captures short-term migrants (that is those staying for less than 12 months), and these cannot be distinguished from long-term migrants.
D233: Does not capture returning migrants.
... 32 more rows

Sheet Info lookup (hidden)
C2: Indicator of: | D2: Information: | E2: Strengths: | F2: Weaknesses: | G2: Source:
A3: 1 | B3: Not specified | C3: ~ | D3: ~ | E3: ~ | F3: ~ | G3: ~
A4: 2 | B4: Total net migration | C4: =Information!D42 -> Difference between in and out migration from overseas, the rest of the UK and within Scotland. | D4: =Information!D43 -> These figures are the National Records of Scotland (NRS) National Statistics for total net migration. They include asylum seekers and rounding adjustments. More information on the methodology for the NRS migration estimates can be found in the Migration section of this website. | E4: =Information!D44 -> Provides an estimate of all long-term migrants (that is those that stay for 12 months or more) at council and NHS Board area level. | F4: =CONCATENATE(Information!D46) -> Estimates are only produced annually, about 10 months after the period to which they refer, and rely on administrative and survey data rather than a comprehensive count of people moving. | G4: =Information!D47 -> Total Migration To and From an Area section of the NRS website
A5: 3 | B5: Total net migration for ages 0-15 | C5: =Information!D50 -> Difference between in and out migration from overseas, the rest of the UK and within Scotland of people aged 15 and under. | D5: =Information!D51 -> These figures include asylum seekers and rounding adjustments. More information on the methodology for the NRS migration estimates can be found in the Migration section of this website. | E5: =CONCATENATE(Information!D52,Information!D53) -> Provides an estimate of all long-term migrants (that is those that stay for 12 months or more) within this age group at council and NHS Board area level.These estimates are National Statistics. | F5: =CONCATENATE(Information!D54) -> Estimates are only produced annually, about 10 months after the period to which they refer, and rely on administrative and survey data rather than a comprehensive count of people moving. | G5: =Information!D55 -> Total Migration To and From an Area section of the NRS website
A6: 4 | B6: Total net migration for ages 16 - 64 | C6: =Information!D58 -> Difference between in and out migration from overseas, the rest of the UK and within Scotland of people aged between 16 and 64. | D6: =Information!D59 -> These figures include asylum seekers and rounding adjustments. More information on the methodology for the NRS migration estimates can be found in the Migration section of this website. | E6: =CONCATENATE(Information!D60,Information!D61) -> Provides an estimate of all long-term migrants (that is those that stay for 12 months or more) within this age group at council and NHS Board area level.These estimates are National Statistics. | F6: =CONCATENATE(Information!D62) -> Estimates are only produced annually, about 10 months after the period to which they refer, and rely on administrative and survey data rather than a comprehensive count of people moving. | G6: =Information!D63 -> Total Migration To and From an Area section of the NRS website
A7: 5 | B7: Total net migration for people aged 65+ | C7: =Information!D66 -> Difference between in and out migration from overseas, the rest of the UK and within Scotland of people aged 65 and over. | D7: =Information!D67 -> These figures include asylum seekers and rounding adjustments. More information on the methodology for the NRS migration estimates can be found in the Migration section of this website. | E7: =CONCATENATE(Information!D68,Information!D69) -> Provides an estimate of all long-term migrants (that is those that stay for 12 months or more) within this age group at Council and NHS Board area level.These estimates are National Statistics. | F7: =CONCATENATE(Information!D70) -> Estimates are only produced annually, about 10 months after the period to which they refer, and rely on administrative and survey data rather than a comprehensive count of people moving. | G7: =Information!D71 -> Total Migration To and From an Area section of the NRS website
A8: 6 | B8: Total in-migration | C8: =Information!D74 -> Flow of people to administrative areas in Scotland from overseas, the rest of the UK and other areas within Scotland | D8: =Information!D75 -> These figures are the NRS National Statistics for total in-migration. Figures include asylum seekers. Scotland level estimates cannot be derived by adding together the estimates for individual council areas or NHS Board areas because administrative area estimates include moves within Scotland. It would not, therefore, be appropriate to compare total in-migration for Scotland with total in-migration for an administrative area. More information on the methodology for the NRS migration estimates can be found in the Migration section of this website. | E8: =Information!D76 -> These estimates are National Statistics. | F8: =Information!D77 -> Estimates are only produced annually, about 10 months after the period to which they refer, and rely on administrative and survey data rather than a comprehensive count of people moving. | G8: =Information!D78 -> Total Migration To and From an Area section of the NRS website
A9: 7 | B9: Total out-migration | C9: =Information!D81 -> Flow of people from administrative areas in Scotland to overseas, the rest of the UK and other areas within Scotland | D9: =Information!D82 -> These figures are the NRS National Statistics for total in-migration. Figures include asylum seekers. Scotland level estimates cannot be derived by adding together the estimates for individual council areas or NHS Board areas because administrative area estimates include moves within Scotland. It would not, therefore, be appropriate to compare total in-migration for Scotland with total in-migration for an administrative area. More information on the methodology for the NRS migration estimates can be found in the Migration section of this website. | E9: =Information!D83 -> These estimates are National Statistics. | F9: =Information!D84 -> Estimates are only produced annually, about 10 months after the period to which they refer, and rely on administrative and survey data rather than a comprehensive count of people moving. | G9: =Information!D85 -> Total Migration To and From an Area section of the NRS website
A10: 8 | B10: Within Scotland net migration | C10: =Information!D88 -> Net migration between administrative areas within Scotland | D10: =Information!D89 -> Moves within Scotland at council area level are derived from a combination of the National Health Service Central Register (NHSCR) and the Community Health Index (CHI), and from the NHSCR for NHS Board areas. More information on the methodology for the NRS migration estimates can be found in the Migration section of this website. | E10: =Information!D90 -> These estimates are National Statistics. | F10: =Information!D91 -> Estimates are only produced annually, about 10 months after the period to which they refer, and rely on administrative and survey data rather than a comprehensive count of people moving. | G10: =Information!D92 -> Migration within Scotland section of the NRS website
A11: 9 | B11: Within Scotland in-migration | C11: =Information!D95 -> Flow of people to administrative areas in Scotland from other areas within Scotland | D11: =Information!D96 -> Moves within Scotland at council area level are derived from a combination of the National Health Service Central Register (NHSCR) and the Community Health Index (CHI), and from the NHSCR for NHS Board areas. More information on the methodology for the NRS migration estimates can be found in the Migration section of this website. | E11: =Information!D97 -> These estimates are National Statistics. | F11: =Information!D98 -> Estimates are only produced annually, about 10 months after the period to which they refer, and rely on administrative and survey data rather than a comprehensive count of people moving. | G11: =Information!D99 -> Migration within Scotland section of the NRS website
A12: 10 | B12: Within Scotland out-migration | C12: =Information!D102 -> Flow of people from administrative areas in Scotland to other areas within Scotland | D12: =Information!D103 -> Moves within Scotland at council area level are derived from a combination of the National Health Service Central Register (NHSCR) and the Community Health Index (CHI), and from the NHSCR for NHS Board areas. More information on the methodology for the NRS migration estimates can be found in the Migration section of this website. | E12: =Information!D104 -> These estimates are National Statistics. | F12: =Information!D105 -> Estimates are only produced annually, about 10 months after the period to which they refer, and rely on administrative and survey data rather than a comprehensive count of people moving. | G12: =Information!D106 -> Migration within Scotland section of the NRS website
A13: 11 | B13: Rest of UK net migration | C13: =Information!D109 -> Net migration between administrative areas in Scotland and the rest of the UK | D13: =Information!D110 -> These are the NRS National Statistics for rest of UK migration. Moves between Scottish administrative areas and the rest of the UK are derived from the National Health Service Central Register (NHSCR) and Community Health Index (CHI). Moves between Scotland and the rest of the UK used here do not include movements to/from the armed forces. More information on the methodology for the NRS migration estimates can be found in the Migration section of this website. | E13: =Information!D111 -> These estimates are National Statistics. | F13: =CONCATENATE(Information!D112,Information!D113) -> Estimates are only produced annually at Scottish administrative area level, about 10 months after the period to which they refer, and rely on administrative and survey data rather than a comprehensive count of people moving. | G13: =Information!D114 -> Migration between Scotland and the Rest of the UK section of the NRS website
A14: 12 | B14: Rest of UK in-migration | C14: =Information!D117 -> Flow of people to administrative areas in Scotland from the rest of the UK | D14: =Information!D118 -> These are the NRS National Statistics for rest of UK migration. Moves between Scottish administrative areas and the rest of the UK are derived from the National Health Service Central Register (NHSCR) and Community Health Index (CHI). Moves between Scotland and the rest of the UK used here do not include movements to/from the armed forces. More information on the methodology for the NRS migration estimates can be found in the Migration section of this website. | E14: =Information!D119 -> These estimates are National Statistics. | F14: =CONCATENATE(Information!D120,Information!D121) -> Estimates are only produced annually at Scottish administrative area level, about 10 months after the period to which they refer, and rely on administrative and survey data rather than a comprehensive count of people moving. | G14: =Information!D122 -> Migration between Scotland and the Rest of the UK section of the NRS website
A15: 13 | B15: Rest of UK out-migration | C15: =Information!D125 -> Flow of people from administrative areas in Scotland to the rest of the UK | D15: =Information!D126 -> These are the NRS National Statistics for rest of UK migration. Moves between Scottish administrative areas and the rest of the UK are derived from the National Health Service Central Register (NHSCR) and Community Health Index (CHI). Moves between Scotland and the rest of the UK used here do not include movements to/from the armed forces. More information on the methodology for the NRS migration estimates can be found in the Migration section of this website. | E15: =Information!D127 -> These estimates are National Statistics. | F15: =CONCATENATE(Information!D128,Information!D129) -> Estimates are only produced annually at Scottish administrative area level, about 10 months after the period to which they refer, and rely on administrative and survey data rather than a comprehensive count of people moving. | G15: =Information!D130 -> Migration between Scotland and the Rest of the UK section of the NRS website
A16: 14 | B16: Overseas net migration | C16: =Information!D133 -> Net migration to/from overseas | D16: =Information!D134 -> These are the NRS National Statistics for overseas net migration. There is not a single, all-inclusive system in place to measure all movements of the population into and out of the UK. Therefore, data from the International Passenger Survey (IPS), the Home Office, and the Labour Force Survey (LFS) is combined to compile the National Statistics estimates of international migration into Scotland. Data from the National Health Service Central Register (NHSCR) and the Community Health Index (CHI) is also used for this process. More information on the methodology for the NRS migration estimates can be found in the Migration section of this website. | E16: =Information!D135 -> These estimates are National Statistics. | F16: =CONCATENATE(Information!D136,Information!D137) -> The IPS sample size for Scotland is small, making the estimates less reliable. Estimates are only produced annually, about 10 months after the period to which they refer. | G16: =Information!D138 -> Migration between Scotland and Overseas section of the NRS website
A17: 15 | B17: Overseas in-migration | C17: =Information!D141 -> Flow of people to administrative areas in Scotland from overseas | D17: =Information!D142 -> These are the NRS National Statistics for overseas in-migration. There is not a single, all-inclusive system in place to measure all movements of the population into and out of the UK. Therefore, data from the International Passenger Survey (IPS), the Home Office, and the Labour Force Survey (LFS) is combined to compile the National Statistics estimates of international migration into Scotland. Data from the National Health Service Central Register (NHSCR) and the Community Health Index (CHI) is also used for this process. More information on the methodology for the NRS migration estimates can be found in the Migration section of this website. | E17: =Information!D143 -> These estimates are National Statistics. | F17: =CONCATENATE(Information!D144,Information!D145) -> The IPS sample size for Scotland is small, making the estimates less reliable. Estimates are only produced annually, about 10 months after the period to which they refer. | G17: =Information!D146 -> Migration between Scotland and Overseas section of the NRS website
A18: 16 | B18: Overseas out-migration | C18: =Information!D149 -> Flow of persons from administrative areas in Scotland to overseas | D18: =Information!D150 -> These are the NRS National Statistics for overseas out-migration. There is not a single, all-inclusive system in place to measure all movements of the population into and out of the UK. Therefore, data from the International Passenger Survey (IPS), the Home Office, and the Labour Force Survey (LFS) is combined to compile the National Statistics estimates of international migration into Scotland. Data from the National Health Service Central Register (NHSCR) and the Community Health Index (CHI) is also used for this process. Figures for 2003/04 to 2010/11 have been revised from the previous release to include improvements in estimating international out-migration. More information on the methodology for the NRS migration estimates can be found in the Migration section of this website. | E18: =Information!D151 -> These estimates are National Statistics. | F18: =CONCATENATE(Information!D152,Information!D153) -> The IPS sample size for Scotland is small, making the estimates less reliable. Estimates are only produced annually, about 10 months after the period to which they refer. | G18: =Information!D154 -> Migration between Scotland and Overseas section of the NRS website
A19: 17 | B19: Worker Registration Scheme (WRS) | C19: =Information!D157 -> Employees from A8 countries | D19: =Information!D158 -> The Worker Registration Scheme started in May 2004 and was discontinued on 1 May 2011. Nationals of the A8 countries (Czech Republic, Estonia, Hungary, Latvia, Lithuania, Poland, Slovakia, and Slovenia) who wished to take up employment in the UK for a period of at least a month were generally required to register with the WRS. The data used for the WRS indicator at Scotland level was taken from the Home Office 'Accession Monitoring Report' series, which was published quarterly. Council level data is no longer available online, but can be requested from the Local Government Association (LGA) - info@local.gov.uk. | E19: =CONCATENATE(Information!D159,Information!D160) -> In addition to total numbers registered, information on gender, age, industry, nationality and hourly rate is also available. (Detailed breakdowns are not shown here.)Provides council area data. | F19: =CONCATENATE(Information!D161,Information!D162,Information!D163,Information!D164,Information!D165,Information!D166) -> Excludes the self-employed; those not working; those not from A8 countries; people working for an employer who is not established in this country; those who hold dual citizenship of the UK, another country within the European Economic Area (EEA), or Switzerland. Does not provide any indication of out-migration. Only provides an indication of in-flow, not stock as it is not necessary to deregister. Dates relate to the date the application is approved, not date of entry to UK. Location data relates to that of the employer, not where the individual lives, and migrants may move to a different location after their first registration. Dependents of those registering are recorded and so may be double counted. | G19: =Information!D167 -> Local Government Association, Worker Registration Scheme Data Archive (no longer available online)
A20: 18 | B20: National Insurance Number (NINo) allocations to adult overseas nationals entering the UK | C20: =Information!D170 -> Inflow of overseas nationals | D20: =Information!D171 -> These data have been obtained using the Stat-Xplore tool on the DWP website, which has annual council area data. Data used here is on a calendar year basis. | E20: =CONCATENATE(Information!D172,Information!D173,Information!D174) -> Includes any overseas national looking to work or claim benefits/tax credits in the UK, self-employed or students working part-time. Provides council area level data. Location data relates to the residence of individual, not their employer. | F20: =CONCATENATE(Information!D175,Information!D176,Information!D177,Information!D178,Information!D179,Information!D180) -> Based on the date of registration not the date of arrival, and the lag between the two can often be a year or even longer. Random adjustments have been applied to the data to avoid the disclosure of confidential information. Excludes those not working, or planning to work or claim benefits, so children and students that don't work are not included. Excludes returning UK nationals. Does not provide any outflow information or overall stock. Includes migrants staying less than one month as there is no minimum stay for registration. Data reflects the migrant's first destination or location at registration, not where migrants settle nor does it reflect the stock of migrants nationally. | G20: =Information!D181 -> Department for Work and Pensions - Stat-Xplore
A21: 19 | B21: Births to non-UK mothers | C21: =Information!D184 -> Population born to non-UK mothers | D21: =Information!D185 -> This data comes from the NRS Vital Events branch and is collected when the birth is registered. This data is published annually on a calendar year basis. Data is available back to 1996. | E21: =Information!D186 -> Gives an indication of migrants choosing to settle in an area. | F21: =Information!D187 -> Only gives information on a very specific group of migrants (that is mothers having children). | G21: =Information!D188 -> Births section of the Vital Events Reference Tables on the NRS website
A22: 20 | B22: Pupils from a minority ethnic group | C22: =Information!D191 -> Migrants with school aged children | D22: =Information!D192 -> These figures come from the Pupil Census which is collected by the Scottish Government through the ScotXed programme, and are available annually from 2003. The Pupil Census covers all publicly funded schools in Scotland (local authority and grant-aided). It is conducted in September and the data is published in December on the Scottish Government website. | E22: =CONCATENATE(Information!D193,Information!D194) -> Data is reasonably current. Can provide an indication of where migrant families with school aged children live, rather than work. | F22: =CONCATENATE(Information!D195,Information!D196,Information!D197,Information!D198,Information!D199) -> Provides no information about migrants without school aged children. Although over 97.5 per cent of pupils disclosed their ethnic background, some pupils' ethnicity was in the 'unknown' category. No specific nationality data. Only includes children in publicly funded schools. Non migrants may be from a minority ethnic group. | G22: =Information!D200 -> Pupil Census, Scottish Government
A23: 21 | B23: Pupils with English as an additional language | C23: =Information!D203 -> Migrants from non-English speaking countries with school aged children | D23: =Information!D204 -> These figures come from the Pupil Census which is collected by the Scottish Government through the ScotXed programme, and are available annually from 2003. The Pupil Census covers all publicly funded schools in Scotland (local authority and grant-aided). It is conducted in September and the data is published in December on the Scottish Government website. | E23: =CONCATENATE(Information!D205,Information!D206) -> Data is reasonably current. Can provide an indication of where migrant families with school aged children live, rather than work. | F23: =CONCATENATE(Information!D207,Information!D208,Information!D209,Information!D210,Information!D211) -> Provides no information about migrants without school aged children. No specific nationality data. Only includes children in publicly funded schools. Excludes migrants from English speaking countries and those fluent in English. Includes non-recent migrants still speaking a different home language if pupils have English as an additional language. | G23: =Information!D212 -> Pupil Census, Scottish Government
A24: 22 | B24: Estimate of resident population born outside the UK | C24: =Information!D215 -> Migrant stocks | D24: =Information!D216 -> The country of birth data from the Annual Population Survey is used for this indicator. This information gives an estimate of the number of people living in Scotland who were born outside the UK. The data is available from 2004, on a calendar year basis. The APS comprises of data from the Labour Force Survey, plus data from the Annual Local (Area) Labour Force Survey Boosts for England, Scotland and Wales. It is updated quarterly and is published about 8 months after the time period to which it refers. Data is available at council area level although some data is suppressed. Suppressed estimates are indicated with a '*'. | E24: =CONCATENATE(Information!D217,Information!D218) -> Gives a more robust estimate of change over time than looking at nationality as an individual's nationality can change. Provides more current information on migrant stocks (that is migrants currently living in Scotland) than the Census. | F24: =CONCATENATE(Information!D219,Information!D220,Information!D221) -> LFS excludes most communal establishments and foreign students living in halls of residence, and so the number of foreign born migrants is likely to be under-reported. For some council areas an estimate cannot be made from the APS as the number of people born outside the UK is too small for the estimate to be reliable. Some people born outside the UK may have lived in the UK for a long time and are therefore not regarded as migrants. | G24: =Information!D222 -> Population by Country of Birth and Nationality section of the NRS website
A25: 23 | B25: NHS registrations from overseas | C25: =Information!D225 -> Recent migrants from overseas to areas within Scotland. | D25: =Information!D226 -> The data shows overseas migrants who have registered with a GP. A lag is assumed between arrival in the UK and the migrant appearing on the National Health Service Central Register (NHSCR). This data is used to produce age and sex distributions of international in-migrants in the NRS mid-year estimates. | E25: =CONCATENATE(Information!D227,Information!D228) -> Most comprehensive administrative data source available. Data is reasonably current. | F25: =CONCATENATE(Information!D229,Information!D230,Information!D231,Information!D232,Information!D233) -> Data source shows limited information on out-migration.Only shows those migrants who have registered with a GP, and registration patterns tend to differ by sex and age which affects the completeness of this data. Data does not show the exact time of migration as there is a difference between the move date and the date at which the change of GP is processed. This lag is not consistent. Captures short-term migrants (that is those staying for less than 12 months), and these cannot be distinguished from long-term migrants. Does not capture returning migrants. | G25: =Information!D234 -> Migration - Methodology section of the NRS website

Sheet Comparing Indicators
S1: Geography | U1: Indicator | V1: Timing | Y1: Value | AA1: Timing of Indicator data
R2: Code - Geography | S2: 1 | T2: Ind1 | U2: 1 | X2: Code - count/rate | Y2: 1 | AB2: =I15 -> 2009 | AC2: =J15 -> 2010 | AD2: 2011 | AE2: 2012 | AF2: 2013 | AG2: 2014 | AH2: 2015
R3: 1 | S3: Not specified | T3: Ind2 | U3: 1 | V3: 1 | W3: Mid-year | AA3: =VLOOKUP($E$16,$U$7:$V$29,2,FALSE) -> 0 | AB3: =IF((VLOOKUP($S$2,INDIRECT("Data"&AB2),$U$2+2,FALSE))="",NA(),(VLOOKUP($S$2,INDIRECT("Data"&AB2),$U$2+2,FALSE))) ->  | AC3: =IF((VLOOKUP($S$2,INDIRECT("Data"&AC2),$U$2+2,FALSE))="",NA(),(VLOOKUP($S$2,INDIRECT("Data"&AC2),$U$2+2,FALSE))) ->  | AH3: =IF((VLOOKUP($S$2,INDIRECT("Data"&AH2),$U$2+2,FALSE))="",NA(),(VLOOKUP($S$2,INDIRECT("Data"&AH2),$U$2+2,FALSE))) -> 
R4: 2 | S4: SCOTLAND | T4: Ind3 | U4: 1 | V4: 2 | W4: Calendar year
R5: 3 | S5: Aberdeen City | AA5: =VLOOKUP($E$18,$U$7:$V$29,2,FALSE) -> 0 | AB5: =IF((VLOOKUP($S$2,INDIRECT("Data"&AB2),$U$3+2,FALSE))="",NA(),(VLOOKUP($S$2,INDIRECT("Data"&AB2),$U$3+2,FALSE))) ->  | AC5: =IF((VLOOKUP($S$2,INDIRECT("Data"&AC2),$U$3+2,FALSE))="",NA(),(VLOOKUP($S$2,INDIRECT("Data"&AC2),$U$3+2,FALSE))) -> 
R6: 4 | S6: Aberdeenshire
C7: Comparing Indicators | R7: 5 | S7: Angus | T7: 1 | U7: Not specified | X7: 1 | Y7: Count | AA7: =VLOOKUP($E$20,$U$7:$V$29,2,FALSE) -> 0 | AB7: =IF((VLOOKUP($S$2,INDIRECT("Data"&AB2),$U$4+2,FALSE))="",NA(),(VLOOKUP($S$2,INDIRECT("Data"&AB2),$U$4+2,FALSE))) ->  | AC7: =IF((VLOOKUP($S$2,INDIRECT("Data"&AC2),$U$4+2,FALSE))="",NA(),(VLOOKUP($S$2,INDIRECT("Data"&AC2),$U$4+2,FALSE))) -> 
R8: 6 | S8: Argyll & Bute | T8: 2 | U8: Total net migration | V8: 1 | X8: 2 | Y8: Rate per 1000
R9: 7 | S9: Clackmannanshire | T9: 3 | U9: Total net migration for ages 0-15 | V9: 1
R10: 8 | S10: Dumfries & Galloway | T10: 4 | U10: Total net migration for ages 16-64 | V10: 1
C11: Geography | E11: =VLOOKUP($S$2,$R$3:$S$36,2) -> Not specified | R11: 9 | S11: Dundee City | T11: 5 | U11: Total net migration for people aged 65+ | V11: 1
R12: 10 | S12: East Ayrshire | T12: 6 | U12: Total in-migration | V12: 1
C13: Value | E13: =VLOOKUP($Y$2,$X$7:$Y$8,2) -> Count | R13: 11 | S13: East Dunbartonshire | T13: 7 | U13: Total out-migration | V13: 1 | AB13: =I15 -> 2009 | AC13: 2010 | AD13: 2011 | AE13: 2012 | AF13: 2013 | AG13: 2014 | AH13: 2015
R14: 12 | S14: East Lothian | T14: 8 | U14: Within Scotland net migration | V14: 1 | AB14: =IF((VLOOKUP($S$2,INDIRECT("Rate"&AB13),$U$2+2,FALSE))="",NA(),(VLOOKUP($S$2,INDIRECT("Rate"&AB13),$U$2+2,FALSE))) ->  | AC14: =IF((VLOOKUP($S$2,INDIRECT("Rate"&AC13),$U$2+2,FALSE))="",NA(),(VLOOKUP($S$2,INDIRECT("Rate"&AC13),$U$2+2,FALSE))) -> 
G15: Timing of data | I15: 2009 | J15: 2010 | K15: 2011 | L15: 2012 | M15: 2013 | N15: 2014 | O15: 2015 | R15: 13 | S15: East Renfrewshire | T15: 9 | U15: Within Scotland in-migration | V15: 1
C16: Indicator | E16: =VLOOKUP($U$2,$T$7:$U$28,2) -> Not specified | G16: =VLOOKUP(AA3,$V$3:$W$4,2) ->  | I16: =IF($Y$2=1,AB3,AB14) ->  | O16: =IF($Y$2=1,AH3,AH14) ->  | R16: 14 | S16: Edinburgh, City of | T16: 10 | U16: Within Scotland out-migration | V16: 1 | AB16: =IF((VLOOKUP($S$2,INDIRECT("Rate"&AB13),$U$3+2,FALSE))="",NA(),(VLOOKUP($S$2,INDIRECT("Rate"&AB13),$U$3+2,FALSE))) ->  | AC16: =IF((VLOOKUP($S$2,INDIRECT("Rate"&AC2),$U$3+2,FALSE))="",NA(),(VLOOKUP($S$2,INDIRECT("Rate"&AC2),$U$3+2,FALSE))) -> 
R17: 15 | S17: Eilean Siar | T17: 11 | U17: Rest of UK net migration | V17: 1
C18: Indicator | E18: =VLOOKUP($U$3,$T$7:$U$28,2) -> Not specified | G18: =VLOOKUP(AA5,$V$2:$W$4,2) ->  | I18: =IF($Y$2=1,AB5,AB16) ->  | O18: =IF($Y$2=1,AH5,AH16) ->  | R18: 16 | S18: Falkirk | T18: 12 | U18: Rest of UK in-migration | V18: 1 | AB18: =IF((VLOOKUP($S$2,INDIRECT("Rate"&AB13),$U$4+2,FALSE))="",NA(),(VLOOKUP($S$2,INDIRECT("Rate"&AB13),$U$4+2,FALSE))) ->  | AC18: =IF((VLOOKUP($S$2,INDIRECT("Rate"&AC2),$U$4+2,FALSE))="",NA(),(VLOOKUP($S$2,INDIRECT("Rate"&AC2),$U$4+2,FALSE))) -> 
R19: 17 | S19: Fife | T19: 13 | U19: Rest of UK out-migration | V19: 1
C20: Indicator | E20: =VLOOKUP($U$4,$T$7:$U$28,2) -> Not specified | G20: =VLOOKUP($AA$7,$V$3:$W$4,2) ->  | I20: =IF($Y$2=1,AB7,AB18) ->  | O20: =IF($Y$2=1,AH7,AH18) ->  | R20: 18 | S20: Glasgow City | T20: 14 | U20: Overseas net migration | V20: 1
R21: 19 | S21: Highland | T21: 15 | U21: Overseas in-migration | V21: 1
R22: 20 | S22: Inverclyde | T22: 16 | U22: Overseas out-migration | V22: 1
R23: 21 | S23: Midlothian | T23: 17 | U23: Worker Registration Scheme | V23: 2
R24: 22 | S24: Moray | T24: 18 | U24: NINo Allocation | V24: 2
R25: 23 | S25: North Ayrshire | T25: 19 | U25: Births to non-UK mothers | V25: 2
R26: 24 | S26: North Lanarkshire | T26: 20 | U26: Pupils from a minority ethnic group | V26: 2
R27: 25 | S27: Orkney Islands | T27: 21 | U27: Pupils with English as an additional language | V27: 2
R28: 26 | S28: Perth & Kinross | T28: 22 | U28: Estimate of resident population born outside the UK | V28: 2
R29: 27 | S29: Renfrewshire
R30: 28 | S30: Scottish Borders
R31: 29 | S31: Shetland Islands
R32: 30 | S32: South Ayrshire
R33: 31 | S33: South Lanarkshire
R34: 32 | S34: Stirling
R35: 33 | S35: West Dunbartonshire
R36: 34 | S36: West Lothian
B43: Information on Indicators
B45: =VLOOKUP($U$2,'Info lookup'!$A$3:$B$25,2) -> Not specified
B46: Indicator of: | D46: =VLOOKUP($U$2,'Info lookup'!$A$2:$F$25,3) -> ~
B47: Information: | D47: =VLOOKUP($U$2,'Info lookup'!$A$2:$F$25,4) -> ~
B48: Strengths: | D48: =VLOOKUP($U$2,'Info lookup'!$A$2:$F$25,5) -> ~
B49: Weaknesses: | D49: =VLOOKUP($U$2,'Info lookup'!$A$2:$F$25,6) -> ~
B50: Source: | D50: =VLOOKUP($U$2,'Info lookup'!$A$2:$G$25,7) -> ~
B52: =VLOOKUP($U$3,'Info lookup'!$A$3:$F$25,2) -> Not specified
B53: Indicator of: | D53: =VLOOKUP($U$3,'Info lookup'!$A$2:$F$25,3) -> ~
B54: Information: | D54: =VLOOKUP($U$3,'Info lookup'!$A$2:$F$25,4) -> ~
B55: Strengths: | D55: =VLOOKUP($U$3,'Info lookup'!$A$2:$F$25,5) -> ~
B56: Weaknesses: | D56: =VLOOKUP($U$3,'Info lookup'!$A$2:$F$25,6) -> ~
B57: Source: | D57: =VLOOKUP($U$3,'Info lookup'!$A$2:$G$25,7) -> ~
B59: =VLOOKUP($U$4,'Info lookup'!$A$3:$F$25,2) -> Not specified
B60: Indicator of: | D60: =VLOOKUP($U$4,'Info lookup'!$A$2:$F$25,3) -> ~
B61: Information: | D61: =VLOOKUP($U$4,'Info lookup'!$A$2:$F$25,4) -> ~
B62: Strengths: | D62: =VLOOKUP($U$4,'Info lookup'!$A$2:$F$25,5) -> ~
B63: Weaknesses: | D63: =VLOOKUP($U$4,'Info lookup'!$A$2:$F$25,6) -> ~
B64: Source: | D64: =VLOOKUP($U$4,'Info lookup'!$A$2:$G$25,7) -> ~
B66: © Crown Copyright 2016

Sheet Comparing Areas
S1: Geography | U1: Indicator | V1: Timing | X1: Value
R2: Code - Geography 1 | S2: 1 | T2: Code - indicator | U2: 1 | V2: Code | W2: 1 | X2: Code - count/rate | Y2: 1
R3: Code - Geography 2 | S3: 1 | V3: 1 | W3: Mid-year | X3: 1 | Y3: Count
R4: Code - Geography 3 | S4: 1 | V4: 2 | W4: Calendar year | X4: 2 | Y4: Rate per 1000 | Z4: Count
Z5: =I15 -> 2009 | AA5: 2010 | AB5: 2011 | AC5: 2012 | AD5: 2013 | AE5: 2014 | AF5: 2015
Z6: =IF((VLOOKUP($S$2,INDIRECT("Data"&Z5),$U$2+2,FALSE))="",NA(),(VLOOKUP($S$2,INDIRECT("Data"&Z5),$U$2+2,FALSE))) ->  | AA6: =IF((VLOOKUP($S$2,INDIRECT("Data"&AA5),$U$2+2,FALSE))="",NA(),(VLOOKUP($S$2,INDIRECT("Data"&AA5),$U$2+2,FALSE))) -> 
B7: Comparing Areas | Z7: =IF((VLOOKUP($S$3,INDIRECT("Data"&Z5),$U$2+2,FALSE))="",NA(),(VLOOKUP($S$3,INDIRECT("Data"&Z5),$U$2+2,FALSE))) ->  | AA7: =IF((VLOOKUP($S$3,INDIRECT("Data"&AA5),$U$2+2,FALSE))="",NA(),(VLOOKUP($S$3,INDIRECT("Data"&AA5),$U$2+2,FALSE))) -> 
Z8: =IF((VLOOKUP($S$4,INDIRECT("Data"&Z5),$U$2+2,FALSE))="",NA(),(VLOOKUP($S$4,INDIRECT("Data"&Z5),$U$2+2,FALSE))) ->  | AA8: =IF((VLOOKUP($S$4,INDIRECT("Data"&AA5),$U$2+2,FALSE))="",NA(),(VLOOKUP($S$4,INDIRECT("Data"&AA5),$U$2+2,FALSE))) -> 
Z10: Rate
C11: Indicator | E11: =VLOOKUP($U$2,$T$14:$U$35,2) -> Not specified | U11: Calendar/mid-year code | V11: =VLOOKUP(U2,T14:V35,3) -> 1 | Z11: =I15 -> 2009 | AA11: 2010 | AB11: 2011 | AC11: 2012 | AD11: 2013 | AE11: 2014 | AF11: 2015
Z12: =IF((VLOOKUP($S$2,INDIRECT("Rate"&Z11),$U$2+2,FALSE))="",NA(),(VLOOKUP($S$2,INDIRECT("Rate"&Z11),$U$2+2,FALSE))) ->  | AA12: =IF((VLOOKUP($S$2,INDIRECT("Rate"&AA11),$U$2+2,FALSE))="",NA(),(VLOOKUP($S$2,INDIRECT("Rate"&AA11),$U$2+2,FALSE))) -> 
C13: Value | E13: =VLOOKUP($Y$2,$X$3:$Y$4,2) -> Count | K13: =VLOOKUP($V$11,$V$3:$W$4,2) -> Mid-year | Z13: =IF((VLOOKUP($S$3,INDIRECT("Rate"&Z11),$U$2+2,FALSE))="",NA(),(VLOOKUP($S$3,INDIRECT("Rate"&Z11),$U$2+2,FALSE))) ->  | AA13: =IF((VLOOKUP($S$3,INDIRECT("Rate"&AA11),$U$2+2,FALSE))="",NA(),(VLOOKUP($S$3,INDIRECT("Rate"&AA11),$U$2+2,FALSE))) -> 
R14: 1 | S14: Not specified | T14: 1 | U14: Not specified | V14: 1 | Z14: =IF((VLOOKUP($S$4,INDIRECT("Rate"&Z11),$U$2+2,FALSE))="",NA(),(VLOOKUP($S$4,INDIRECT("Rate"&Z11),$U$2+2,FALSE))) -> 
I15: 2009 | J15: 2010 | K15: 2011 | L15: 2012 | M15: 2013 | N15: 2014 | O15: 2015 | R15: 2 | S15: SCOTLAND | T15: 2 | U15: ='Comparing Indicators'!U8 -> Total net migration | V15: 1
C16: Geography | E16: =VLOOKUP($S$2,$R$14:$S$47,2) -> Not specified | I16: =IF($Y$2=1,Z6,Z12) ->  | R16: 3 | S16: Aberdeen City | T16: 3 | U16: ='Comparing Indicators'!U9 -> Total net migration for ages 0-15 | V16: 1
R17: 4 | S17: Aberdeenshire | T17: 4 | U17: ='Comparing Indicators'!U10 -> Total net migration for ages 16-64 | V17: 1
C18: Geography | E18: =VLOOKUP($S$3,$R$14:$S$47,2) -> Not specified | I18: =IF($Y$2=1,Z7,Z13) ->  | R18: 5 | S18: Angus | T18: 5 | U18: ='Comparing Indicators'!U11 -> Total net migration for people aged 65+ | V18: 1
R19: 6 | S19: Argyll & Bute | T19: 6 | U19: ='Comparing Indicators'!U12 -> Total in-migration | V19: 1
C20: Geography | E20: =VLOOKUP($S$4,$R$14:$S$47,2) -> Not specified | I20: =IF($Y$2=1,Z8,Z14) ->  | R20: 7 | S20: Clackmannanshire | T20: 7 | U20: ='Comparing Indicators'!U13 -> Total out-migration | V20: 1
R21: 8 | S21: Dumfries & Galloway | T21: 8 | U21: ='Comparing Indicators'!U14 -> Within Scotland net migration | V21: 1
R22: 9 | S22: Dundee City | T22: 9 | U22: ='Comparing Indicators'!U15 -> Within Scotland in-migration | V22: 1
R23: 10 | S23: East Ayrshire | T23: 10 | U23: ='Comparing Indicators'!U16 -> Within Scotland out-migration | V23: 1
R24: 11 | S24: East Dunbartonshire | T24: 11 | U24: ='Comparing Indicators'!U17 -> Rest of UK net migration | V24: 1
R25: 12 | S25: East Lothian | T25: 12 | U25: ='Comparing Indicators'!U18 -> Rest of UK in-migration | V25: 1
R26: 13 | S26: East Renfrewshire | T26: 13 | U26: ='Comparing Indicators'!U19 -> Rest of UK out-migration | V26: 1
R27: 14 | S27: Edinburgh, City of | T27: 14 | U27: ='Comparing Indicators'!U20 -> Overseas net migration | V27: 1
R28: 15 | S28: Eilean Siar | T28: 15 | U28: ='Comparing Indicators'!U21 -> Overseas in-migration | V28: 1
R29: 16 | S29: Falkirk | T29: 16 | U29: ='Comparing Indicators'!U22 -> Overseas out-migration | V29: 1
R30: 17 | S30: Fife | T30: 17 | U30: ='Comparing Indicators'!U23 -> Worker Registration Scheme | V30: 2
R31: 18 | S31: Glasgow City | T31: 18 | U31: ='Comparing Indicators'!U24 -> NINo Allocation | V31: 2
R32: 19 | S32: Highland | T32: 19 | U32: ='Comparing Indicators'!U25 -> Births to non-UK mothers | V32: 2
R33: 20 | S33: Inverclyde | T33: 20 | U33: ='Comparing Indicators'!U26 -> Pupils from a minority ethnic group | V33: 2
R34: 21 | S34: Midlothian | T34: 21 | U34: ='Comparing Indicators'!U27 -> Pupils with English as an additional language | V34: 2
R35: 22 | S35: Moray | T35: 22 | U35: ='Comparing Indicators'!U28 -> Estimate of resident population born outside the UK | V35: 2
R36: 23 | S36: North Ayrshire
R37: 24 | S37: North Lanarkshire | U37: (Set code in column V to 1 if data is at mid-year, 2 if data is for calendar year.)
R38: 25 | S38: Orkney Islands
R39: 26 | S39: Perth & Kinross
R40: 27 | S40: Renfrewshire
R41: 28 | S41: Scottish Borders
R42: 29 | S42: Shetland Islands
B43: =VLOOKUP($U$2,'Info lookup'!$A$3:$F$25,2) -> Not specified | R43: 30 | S43: South Ayrshire
B44: Indicator of: | D44: =VLOOKUP($U$2,'Info lookup'!$A$4:$F$25,3) ->  | R44: 31 | S44: South Lanarkshire
B45: Information: | D45: =VLOOKUP($U$2,'Info lookup'!$A$4:$F$25,4) ->  | R45: 32 | S45: Stirling
B46: Strengths: | D46: =VLOOKUP($U$2,'Info lookup'!$A$4:$F$25,5) ->  | R46: 33 | S46: West Dunbartonshire
B47: Weaknesses: | D47: =VLOOKUP($U$2,'Info lookup'!$A$4:$F$25,6) ->  | R47: 34 | S47: West Lothian
B48: Source: | D48: =VLOOKUP($U$2,'Info lookup'!$A$4:$G$25,7) -> 
B50: © Crown Copyright 2016

Sheet Comparing NHS Board Areas
S1: Health Board Areas | W1: Indicator
S2: HB area 1 | T2: 1 | V2: Ind | W2: 1
S3: HB area 2 | T3: 1
S4: HB area 3 | T4: 1
Y6: Timing | AB6: Value | AF6: Count
B7: Comparing NHS Board Areas | T7: 1 | V7: 1 | W7: 1 | Y7: Code | Z7: =VLOOKUP($W$2,$V$11:$X$27,3) -> 0 | AD7: 1 | AF7: =I15 -> 2009 | AG7: 2010 | AH7: 2011 | AI7: 2012 | AJ7: 2013 | AK7: 2014 | AL7: 2015
T8: 1 | AF8: =IF((VLOOKUP(($T$2+34),INDIRECT("Data"&AF7),$W$2+2,FALSE))="",NA(),(VLOOKUP($T$2+34,INDIRECT("Data"&AF7),$W$2+2,FALSE))) -> 
T9: 1 | AF9: =IF((VLOOKUP(($T$3+34),INDIRECT("Data"&AF7),$W$2+2,FALSE))="",NA(),(VLOOKUP($T$3+34,INDIRECT("Data"&AF7),$W$2+2,FALSE))) -> 
X10: Timing codes | AF10: =IF((VLOOKUP(($T$4+34),INDIRECT("Data"&AF7),$W$2+2,FALSE))="",NA(),(VLOOKUP($T$4+34,INDIRECT("Data"&AF7),$W$2+2,FALSE))) -> 
C11: Indicator | E11: =VLOOKUP($W$2,HBIndicatorCode,2) -> Not specified | S11: 1 | T11: Not specified | V11: 1 | W11: Not specified | Y11: 1 | Z11: Mid-year | AB11: 1 | AC11: Count
S12: 2 | T12: SCOTLAND | V12: 2 | W12: Total net migration | X12: 1 | Y12: 2 | Z12: Calendar year | AB12: 2 | AC12: Rate per 1000 | AF12: Rate
C13: Value | E13: =VLOOKUP($AD$7,$AB$11:$AC$12,2) -> Count | K13: =VLOOKUP($Z$7,TimingCode,2) ->  | S13: 3 | T13: Ayrshire & Arran | V13: 3 | W13: Total net migration for ages 0-15 | X13: 1 | AF13: =I15 -> 2009 | AG13: 2010 | AH13: 2011 | AI13: 2012 | AJ13: 2013 | AK13: 2014 | AL13: 2015
S14: 4 | T14: Borders | V14: 4 | W14: Total net migration for ages 16-64 | X14: 1 | AF14: =IF((VLOOKUP(($T$2+34),INDIRECT("Rate"&AF13),$W$2+2,FALSE))="",NA(),(VLOOKUP($T$2+34,INDIRECT("Rate"&AF13),$W$2+2,FALSE))) -> 
I15: 2009 | J15: 2010 | K15: 2011 | L15: 2012 | M15: 2013 | N15: 2014 | O15: 2015 | S15: 5 | T15: Dumfries & Galloway | V15: 5 | W15: Total net migration for people aged 65+ | X15: 1 | AF15: =IF((VLOOKUP(($T$3+34),INDIRECT("Rate"&AF13),$W$2+2,FALSE))="",NA(),(VLOOKUP($T$3+34,INDIRECT("Rate"&AF13),$W$2+2,FALSE))) -> 
C16: Geography | E16: =VLOOKUP($T$2,HBCode,2) -> Not specified | I16: =IF($AD$7=1,AF8,AF14) ->  | S16: 6 | T16: Fife | V16: 6 | W16: Total in-migration | X16: 1 | AF16: =IF((VLOOKUP(($T$4+34),INDIRECT("Rate"&AF13),$W$2+2,FALSE))="",NA(),(VLOOKUP($T$4+34,INDIRECT("Rate"&AF13),$W$2+2,FALSE))) -> 
S17: 7 | T17: Forth Valley | V17: 7 | W17: Total out-migration | X17: 1
C18: Geography | E18: =VLOOKUP($T$3,HBCode,2) -> Not specified | I18: =IF($AD$7=1,AF9,AF15) ->  | S18: 8 | T18: Grampian | V18: 8 | W18: Within Scotland net migration | X18: 1
S19: 9 | T19: Greater Glasgow and Clyde | V19: 9 | W19: Within Scotland in-migration | X19: 1
C20: Geography | E20: =VLOOKUP($T$4,HBCode,2) -> Not specified | I20: =IF($AD$7=1,AF10,AF16) ->  | S20: 10 | T20: Highland | V20: 10 | W20: Within Scotland out-migration | X20: 1
S21: 11 | T21: Lanarkshire | V21: 11 | W21: Rest of UK net migration | X21: 1
S22: 12 | T22: Lothian | V22: 12 | W22: Rest of UK in-migration | X22: 1
S23: 13 | T23: Orkney | V23: 13 | W23: Rest of UK out-migration | X23: 1
S24: 14 | T24: Shetland | V24: 14 | W24: Overseas net migration | X24: 1
S25: 15 | T25: Tayside | V25: 15 | W25: Overseas in-migration | X25: 1
S26: 16 | T26: Western Isles | V26: 16 | W26: Overseas out-migration | X26: 1
V27: 19 | W27: Births to non-UK mothers | X27: 2
W29: (Set code in column X to 1 if data is at mid-year, 2 if data is for calendar year.)
B43: =VLOOKUP('Comparing NHS Board Areas'!$W$2,'Info lookup'!$A$3:$F$25,2) -> Not specified
B44: Indicator of: | D44: =VLOOKUP($W$2,'Info lookup'!$A$4:$F$25,3) -> 
B45: Information: | D45: =VLOOKUP($W$2,'Info lookup'!$A$4:$F$25,4) -> 
B46: Strengths: | D46: =VLOOKUP($W$2,'Info lookup'!$A$4:$F$25,5) -> 
B47: Weaknesses: | D47: =VLOOKUP($W$2,'Info lookup'!$A$4:$F$25,6) -> 
B48: Source: | D48: =VLOOKUP($W$2,'Info lookup'!$A$4:$G$25,7) -> 
B50: Note
B51: 1) The NHS Board areas used for estimates between 2003/04 and 2010/11 are those that existed between 2006 and 2014. The 2011/12 estimates onwards use the NHS Board areas that came into force in April 2014.
B53: © Crown Copyright 2016

Sheet Total net migration
A1: Total net migration | K1: Return to front page
A3: Council Area | B3: 2003/04 | C3: 2004/05 | D3: 2005/06 | E3: 2006/07 | F3: 2007/08 | G3: 2008/09 | H3: 2009/10 | I3: 2010/11 | J3: 2011/12 | K3: 2012/13 | L3: 2013/14 | M3: 2014/15
A4: SCOTLAND | B4: 18622 | C4: 25307 | D4: 18822 | E4: 33049 | F4: 26409 | G4: 24422 | H4: 26075 | I4: 30209 | J4: 12738 | K4: 9962 | L4: 17585 | M4: 27968
A5: Aberdeen City | B5: -1191 | C5: 1110 | D5: 1143 | E5: 2953 | F5: 1646 | G5: 2974 | H5: 2754 | I5: 3078 | J5: 1847 | K5: 1664 | L5: 1412 | M5: 1085
A6: Aberdeenshire | B6: 3230 | C6: 2780 | D6: 3067 | E6: 2683 | F6: 1881 | G6: 1507 | H6: 1693 | I6: 1384 | J6: 1386 | K6: 1664 | L6: 2041 | M6: 986
A7: Angus | B7: 1342 | C7: 1073 | D7: 954 | E7: 756 | F7: 653 | G7: 148 | H7: 355 | I7: 115 | J7: 258 | K7: 113 | L7: 645 | M7: 537
A8: Argyll & Bute | B8: 926 | C8: 437 | D8: 200 | E8: 378 | F8: -39 | G8: -27 | H8: 291 | I8: 304 | J8: -233 | K8: -23 | L8: -275 | M8: -233
A9: Clackmannanshire | B9: 551 | C9: 572 | D9: 297 | E9: 741 | F9: 397 | G9: 39 | H9: -75 | I9: -8 | J9: -256 | K9: -59 | L9: -82 | M9: 142
A10: Dumfries & Galloway | B10: 1183 | C10: 1191 | D10: 469 | E10: 712 | F10: 810 | G10: 304 | H10: 119 | I10: 377 | J10: -128 | K10: -6 | L10: 334 | M10: 330
A11: Dundee City | B11: -740 | C11: 572 | D11: -109 | E11: 265 | F11: 608 | G11: 919 | H11: 981 | I11: 1427 | J11: 492 | K11: 309 | L11: -12 | M11: 209
A12: East Ayrshire | B12: 367 | C12: 36 | D12: 91 | E12: 325 | F12: 549 | G12: 383 | H12: 30 | I12: 30 | J12: -76 | K12: -120 | L12: -90 | M12: 62
A13: East Dunbartonshire | B13: -457 | C13: -482 | D13: -449 | E13: -289 | F13: -180 | G13: -79 | H13: -71 | I13: -105 | J13: 260 | K13: 92 | L13: 909 | M13: 549
A14: East Lothian | B14: 430 | C14: 497 | D14: 925 | E14: 1559 | F14: 1635 | G14: 705 | H14: 595 | I14: 445 | J14: 787 | K14: 521 | L14: 712 | M14: 961
A15: East Renfrewshire | B15: -97 | C15: -17 | D15: -213 | E15: 45 | F15: -72 | G15: 72 | H15: 369 | I15: 270 | J15: 189 | K15: 539 | L15: 890 | M15: 627
A16: Edinburgh, City of | B16: 2234 | C16: 5317 | D16: 3412 | E16: 4919 | F16: 3356 | G16: 5861 | H16: 8069 | I16: 8044 | J16: 3966 | K16: 2998 | L16: 3296 | M16: 6261
A17: Eilean Siar | B17: 246 | C17: 274 | D17: 129 | E17: 73 | F17: 23 | G17: 71 | H17: 169 | I17: 23 | J17: 13 | K17: -19 | L17: -88 | M17: -5
A18: Falkirk | B18: 1510 | C18: 1642 | D18: 941 | E18: 935 | F18: 663 | G18: 565 | H18: 458 | I18: 1021 | J18: 356 | K18: 375 | L18: 415 | M18: 734
A19: Fife | B19: 2348 | C19: 2657 | D19: 1560 | E19: 1893 | F19: 1627 | G19: 1550 | H19: 1806 | I19: 2076 | J19: 623 | K19: 304 | L19: 650 | M19: 1228
A20: Glasgow City | B20: -3418 | C20: -1558 | D20: -1988 | E20: 2303 | F20: 2929 | G20: 3989 | H20: 3050 | I20: 5370 | J20: 1146 | K20: 439 | L20: 2047 | M20: 5840
A21: Highland | B21: 2850 | C21: 2862 | D21: 2054 | E21: 2677 | F21: 2111 | G21: 990 | H21: 990 | I21: 898 | J21: 118 | K21: 93 | L21: 239 | M21: 1115
A22: Inverclyde | B22: -599 | C22: -130 | D22: -353 | E22: -318 | F22: -203 | G22: -359 | H22: -226 | I22: -289 | J22: -305 | K22: -160 | L22: -270 | M22: -136
A23: Midlothian | B23: -263 | C23: -321 | D23: -261 | E23: 109 | F23: 427 | G23: 467 | H23: 237 | I23: 522 | J23: 559 | K23: 576 | L23: 1020 | M23: 987
A24: Moray | B24: 980 | C24: 693 | D24: 458 | E24: 525 | F24: 330 | G24: 404 | H24: -9 | I24: -162 | J24: 327 | K24: 596 | L24: 467 | M24: 410
A25: North Ayrshire | B25: 206 | C25: 95 | D25: -21 | E25: 428 | F25: 333 | G25: -117 | H25: -165 | I25: 136 | J25: -401 | K25: -308 | L25: -137 | M25: 60
A26: North Lanarkshire | B26: 228 | C26: 330 | D26: 302 | E26: 849 | F26: 534 | G26: 88 | H26: -422 | I26: -58 | J26: -271 | K26: -385 | L26: -86 | M26: 140
A27: Orkney Islands | B27: 261 | C27: 135 | D27: 200 | E27: 143 | F27: 95 | G27: 88 | H27: 163 | I27: 99 | J27: 106 | K27: 80 | L27: 67 | M27: 100
A28: Perth & Kinross | B28: 1665 | C28: 2063 | D28: 2023 | E28: 2440 | F28: 2400 | G28: 1800 | H28: 1861 | I28: 1826 | J28: 980 | K28: 377 | L28: 1407 | M28: 1263
A29: Renfrewshire | B29: -268 | C29: -286 | D29: -344 | E29: 269 | F29: 398 | G29: 156 | H29: 443 | I29: 589 | J29: -395 | K29: -343 | L29: 372 | M29: 591
A30: Scottish Borders | B30: 1385 | C30: 1003 | D30: 835 | E30: 1492 | F30: 1302 | G30: 421 | H30: 286 | I30: 488 | J30: 45 | K30: 308 | L30: 280 | M30: 435
A31: Shetland Islands | B31: 72 | C31: 88 | D31: -112 | E31: 46 | F31: 26 | G31: 203 | H31: 155 | I31: 59 | J31: -68 | K31: -89 | L31: -5 | M31: -36
A32: South Ayrshire | B32: 684 | C32: 425 | D32: 366 | E32: 578 | F32: 400 | G32: 173 | H32: 443 | I32: 596 | J32: 357 | K32: 405 | L32: 103 | M32: 311
A33: South Lanarkshire | B33: 2127 | C33: 1079 | D33: 1334 | E33: 1651 | F33: 735 | G33: 640 | H33: 808 | I33: 587 | J33: 408 | K33: 579 | L33: 511 | M33: 1034
A34: Stirling | B34: -10 | C34: 658 | D34: 701 | E34: 477 | F34: 244 | G34: 310 | H34: 1006 | I34: 1021 | J34: 774 | K34: 253 | L34: 467 | M34: 1412
A35: West Dunbartonshire | B35: -374 | C35: -332 | D35: -108 | E35: -32 | F35: -205 | G35: -56 | H35: -291 | I35: -173 | J35: -280 | K35: -424 | L35: -98 | M35: 79
A36: West Lothian | B36: 1214 | C36: 844 | D36: 1319 | E36: 1464 | F36: 996 | G36: 233 | H36: 203 | I36: 219 | J36: 154 | K36: -387 | L36: 444 | M36: 890
A38: NHS Board Areas
A39: SCOTLAND | B39: 18622 | C39: 25307 | D39: 18822 | E39: 33049 | F39: 26409 | G39: 24422 | H39: 26075 | I39: 30209 | J39: 12738 | K39: 9962 | L39: 17585 | M39: 27968
A40: Ayrshire & Arran | B40: 1257 | C40: 556 | D40: 436 | E40: 1331 | F40: 1282 | G40: 439 | H40: 308 | I40: 762 | J40: -120 | K40: -23 | L40: -124 | M40: 433
A41: Borders | B41: 1385 | C41: 1003 | D41: 835 | E41: 1492 | F41: 1302 | G41: 421 | H41: 286 | I41: 488 | J41: 45 | K41: 308 | L41: 280 | M41: 435
A42: Dumfries & Galloway | B42: 1183 | C42: 1191 | D42: 469 | E42: 712 | F42: 810 | G42: 304 | H42: 119 | I42: 377 | J42: -128 | K42: -6 | L42: 334 | M42: 330
A43: Fife | B43: 2348 | C43: 2657 | D43: 1563 | E43: 1891 | F43: 1620 | G43: 1548 | H43: 1809 | I43: 2071 | J43: 623 | K43: 304 | L43: 650 | M43: 1228
A44: Forth Valley | B44: 2051 | C44: 2872 | D44: 1939 | E44: 2153 | F44: 1304 | G44: 914 | H44: 1389 | I44: 2034 | J44: 874 | K44: 569 | L44: 800 | M44: 2288
A45: Grampian | B45: 3019 | C45: 4583 | D45: 4668 | E45: 6161 | F45: 3857 | G45: 4885 | H45: 4438 | I45: 4300 | J45: 3560 | K45: 3924 | L45: 3920 | M45: 2481
A46: Greater Glasgow & Clyde | B46: -4559 | C46: -2419 | D46: -2796 | E46: 2705 | F46: 2885 | G46: 4124 | H46: 3862 | I46: 5775 | J46: 615 | K46: 143 | L46: 3850 | M46: 7550
A47: Highland | B47: 3776 | C47: 3299 | D47: 2254 | E47: 3055 | F47: 2072 | G47: 963 | H47: 1281 | I47: 1202 | J47: -115 | K47: 70 | L47: -36 | M47: 882
A48: Lanarkshire | B48: 1701 | C48: 1023 | D48: 977 | E48: 1773 | F48: 1051 | G48: 327 | H48: -202 | I48: 416 | J48: 137 | K48: 194 | L48: 425 | M48: 1174
A49: Lothian | B49: 3615 | C49: 6337 | D49: 5395 | E49: 8051 | F49: 6414 | G49: 7266 | H49: 9104 | I49: 9230 | J49: 5466 | K49: 3708 | L49: 5472 | M49: 9099
A50: Orkney | B50: 261 | C50: 135 | D50: 200 | E50: 143 | F50: 95 | G50: 88 | H50: 163 | I50: 99 | J50: 106 | K50: 80 | L50: 67 | M50: 100
A51: Shetland | B51: 72 | C51: 88 | D51: -112 | E51: 46 | F51: 26 | G51: 203 | H51: 155 | I51: 59 | J51: -68 | K51: -89 | L51: -5 | M51: -36
A52: Tayside | B52: 2267 | C52: 3708 | D52: 2865 | E52: 3463 | F52: 3668 | G52: 2869 | H52: 3194 | I52: 3373 | J52: 1730 | K52: 799 | L52: 2040 | M52: 2009
A53: Western Isles | B53: 246 | C53: 274 | D53: 129 | E53: 73 | F53: 23 | G53: 71 | H53: 169 | I53: 23 | J53: 13 | K53: -19 | L53: -88 | M53: -5
A55: Notes
A56: 1) Figures include asylum seekers.
A57: 2) Movements to/from the armed forces were included in these figures in previous releases of this spreadsheet but are no longer treated as migration. Armed forces movements are included in the mid-year population estimates under another category.
A58: 3) Source for data: 'In, out and net migration between administrative areas and overseas, 2001/02 to latest from the Migration between Scotland and Overseas section of the National Records of Scotland (NRS) website
A59: 4) The NHS Board areas used for estimates between 2003/04 and 2010/11 are those that existed between 2006 and 2014. The 2011/12 estimates onwards use the NHS Board areas that came into force in April 2014.
A61: © Crown Copyright 2016

Sheet Total net migration 0-15
A1: Total net migration for ages 0-15 | K1: Return to front page
A3: Council Area | B3: 2003/04 | C3: 2004/05 | D3: 2005/06 | E3: 2006/07 | F3: 2007/08 | G3: 2008/09 | H3: 2009/10 | I3: 2010/11 | J3: 2011/12 | K3: 2012/13 | L3: 2013/14 | M3: 2014/15
A4: SCOTLAND | B4: 3430 | C4: 4434 | D4: 2416 | E4: 5380 | F4: 4287 | G4: 3522 | H4: 2883 | I4: 3490 | J4: 1637 | K4: 1877 | L4: 3092 | M4: 4093
A5: Aberdeen City | B5: -347 | C5: 212 | D5: -6 | E5: 333 | F5: 180 | G5: 42 | H5: 162 | I5: 307 | J5: 40 | K5: -296 | L5: -303 | M5: -337
A6: Aberdeenshire | B6: 991 | C6: 831 | D6: 828 | E6: 692 | F6: 569 | G6: 579 | H6: 496 | I6: 453 | J6: 557 | K6: 745 | L6: 835 | M6: 463
A7: Angus | B7: 337 | C7: 348 | D7: 276 | E7: 166 | F7: 170 | G7: 116 | H7: 165 | I7: 93 | J7: 33 | K7: 67 | L7: 181 | M7: 194
A8: Argyll & Bute | B8: 150 | C8: 129 | D8: 41 | E8: 123 | F8: -28 | G8: 56 | H8: 110 | I8: 135 | J8: -37 | K8: 99 | L8: 55 | M8: 26
A9: Clackmannanshire | B9: 97 | C9: 156 | D9: 97 | E9: 224 | F9: 139 | G9: -21 | H9: 10 | I9: 1 | J9: -102 | K9: 45 | L9: -24 | M9: 8
A10: Dumfries & Galloway | B10: 258 | C10: 276 | D10: 100 | E10: 195 | F10: 165 | G10: 170 | H10: 4 | I10: 113 | J10: -17 | K10: 9 | L10: 169 | M10: 74
A11: Dundee City | B11: -294 | C11: 45 | D11: -142 | E11: -16 | F11: 65 | G11: -11 | H11: -111 | I11: -91 | J11: -131 | K11: -37 | L11: -79 | M11: -145
A12: East Ayrshire | B12: 204 | C12: 59 | D12: 37 | E12: 80 | F12: 165 | G12: 63 | H12: 33 | I12: 25 | J12: 33 | K12: -4 | L12: 16 | M12: 71
A13: East Dunbartonshire | B13: 260 | C13: 225 | D13: 266 | E13: 206 | F13: 238 | G13: 220 | H13: 270 | I13: 234 | J13: 407 | K13: 251 | L13: 496 | M13: 513
A14: East Lothian | B14: 170 | C14: 143 | D14: 229 | E14: 346 | F14: 233 | G14: 232 | H14: 131 | I14: 191 | J14: 213 | K14: 154 | L14: 249 | M14: 222
A15: East Renfrewshire | B15: 201 | C15: 274 | D15: 244 | E15: 180 | F15: 255 | G15: 281 | H15: 325 | I15: 418 | J15: 315 | K15: 584 | L15: 635 | M15: 567
A16: Edinburgh, City of | B16: -782 | C16: -65 | D16: -280 | E16: -86 | F16: -124 | G16: 208 | H16: 200 | I16: 239 | J16: -63 | K16: -151 | L16: -364 | M16: -258
A17: Eilean Siar | B17: 87 | C17: 104 | D17: 41 | E17: 11 | F17: 40 | G17: 48 | H17: 45 | I17: 9 | J17: 26 | K17: -11 | L17: 0 | M17: 22
A18: Falkirk | B18: 271 | C18: 201 | D18: 90 | E18: 108 | F18: 59 | G18: 10 | H18: 50 | I18: 92 | J18: -31 | K18: 70 | L18: 82 | M18: 129
A19: Fife | B19: 453 | C19: 429 | D19: 196 | E19: 368 | F19: 278 | G19: 282 | H19: 256 | I19: 330 | J19: 62 | K19: 169 | L19: 101 | M19: 279
A20: Glasgow City | B20: -1535 | C20: -1394 | D20: -1413 | E20: -550 | F20: -648 | G20: -406 | H20: -871 | I20: -488 | J20: -1069 | K20: -923 | L20: -1001 | M20: -698
A21: Highland | B21: 743 | C21: 596 | D21: 418 | E21: 499 | F21: 451 | G21: 271 | H21: 242 | I21: 170 | J21: -28 | K21: 166 | L21: 111 | M21: 339
A22: Inverclyde | B22: -69 | C22: -4 | D22: -74 | E22: -49 | F22: -7 | G22: -3 | H22: -16 | I22: -34 | J22: -24 | K22: 36 | L22: -3 | M22: 6
A23: Midlothian | B23: -55 | C23: -33 | D23: -66 | E23: 32 | F23: 121 | G23: 161 | H23: 62 | I23: 174 | J23: 192 | K23: 147 | L23: 275 | M23: 250
A24: Moray | B24: 150 | C24: 39 | D24: -25 | E24: 86 | F24: 77 | G24: 142 | H24: -4 | I24: -76 | J24: 180 | K24: 163 | L24: 162 | M24: 126
A25: North Ayrshire | B25: 137 | C25: 49 | D25: 45 | E25: 103 | F25: 127 | G25: 58 | H25: 1 | I25: 64 | J25: 63 | K25: -13 | L25: 91 | M25: 101
A26: North Lanarkshire | B26: 18 | C26: 137 | D26: 21 | E26: 377 | F26: 218 | G26: 79 | H26: -46 | I26: 39 | J26: 79 | K26: 109 | L26: 81 | M26: 107
A27: Orkney Islands | B27: 96 | C27: 63 | D27: 32 | E27: 40 | F27: 45 | G27: 41 | H27: 37 | I27: 5 | J27: 40 | K27: 35 | L27: 44 | M27: 35
A28: Perth & Kinross | B28: 526 | C28: 373 | D28: 369 | E28: 436 | F28: 391 | G28: 341 | H28: 417 | I28: 390 | J28: 306 | K28: 244 | L28: 424 | M28: 500
A29: Renfrewshire | B29: -14 | C29: 105 | D29: -1 | E29: 131 | F29: 114 | G29: -51 | H29: 41 | I29: 108 | J29: -66 | K29: -25 | L29: 52 | M29: 98
A30: Scottish Borders | B30: 332 | C30: 339 | D30: 179 | E30: 322 | F30: 305 | G30: 117 | H30: 119 | I30: 141 | J30: 58 | K30: 101 | L30: 172 | M30: 130
A31: Shetland Islands | B31: 63 | C31: 95 | D31: -48 | E31: 23 | F31: 16 | G31: 45 | H31: 46 | I31: -15 | J31: -27 | K31: -43 | L31: 4 | M31: -7
A32: South Ayrshire | B32: 90 | C32: 217 | D32: 177 | E32: 220 | F32: 218 | G32: 28 | H32: 148 | I32: 159 | J32: 104 | K32: 128 | L32: 86 | M32: 183
A33: South Lanarkshire | B33: 473 | C33: 307 | D33: 391 | E33: 430 | F33: 199 | G33: 263 | H33: 219 | I33: 91 | J33: 250 | K33: 97 | L33: 146 | M33: 388
A34: Stirling | B34: 341 | C34: 208 | D34: 234 | E34: 118 | F34: 156 | G34: 90 | H34: 324 | I34: 220 | J34: 276 | K34: 116 | L34: 230 | M34: 357
A35: West Dunbartonshire | B35: -151 | C35: -141 | D35: -58 | E35: 13 | F35: -17 | G35: 44 | H35: -93 | I35: -63 | J35: -39 | K35: -118 | L35: -27 | M35: 60
A36: West Lothian | B36: 229 | C36: 111 | D36: 218 | E36: 219 | F36: 117 | G36: 27 | H36: 111 | I36: 56 | J36: 37 | K36: -37 | L36: 196 | M36: 290
A38: NHS Board Areas
A39: SCOTLAND | B39: 3430 | C39: 4434 | D39: 2416 | E39: 5380 | F39: 4287 | G39: 3522 | H39: 2883 | I39: 3490 | J39: 1637 | K39: 1877 | L39: 3092 | M39: 4093
A40: Ayrshire & Arran | B40: 431 | C40: 325 | D40: 259 | E40: 403 | F40: 510 | G40: 149 | H40: 182 | I40: 248 | J40: 200 | K40: 111 | L40: 193 | M40: 355
A41: Borders | B41: 332 | C41: 339 | D41: 179 | E41: 322 | F41: 305 | G41: 117 | H41: 119 | I41: 141 | J41: 58 | K41: 101 | L41: 172 | M41: 130
A42: Dumfries & Galloway | B42: 258 | C42: 276 | D42: 100 | E42: 195 | F42: 165 | G42: 170 | H42: 4 | I42: 113 | J42: -17 | K42: 9 | L42: 169 | M42: 74
A43: Fife | B43: 453 | C43: 429 | D43: 196 | E43: 369 | F43: 277 | G43: 281 | H43: 257 | I43: 330 | J43: 62 | K43: 169 | L43: 101 | M43: 279
A44: Forth Valley | B44: 709 | C44: 565 | D44: 421 | E44: 450 | F44: 354 | G44: 79 | H44: 384 | I44: 313 | J44: 143 | K44: 231 | L44: 288 | M44: 494
A45: Grampian | B45: 794 | C45: 1082 | D45: 797 | E45: 1111 | F45: 826 | G45: 763 | H45: 654 | I45: 684 | J45: 777 | K45: 612 | L45: 694 | M45: 252
A46: Greater Glasgow & Clyde | B46: -1291 | C46: -789 | D46: -887 | E46: 69 | F46: -103 | G46: 138 | H46: -231 | I46: 186 | J46: -476 | K46: -195 | L46: 152 | M46: 546
A47: Highland | B47: 893 | C47: 725 | D47: 459 | E47: 622 | F47: 423 | G47: 327 | H47: 352 | I47: 305 | J47: -65 | K47: 265 | L47: 166 | M47: 365
A48: Lanarkshire | B48: 474 | C48: 298 | D48: 263 | E48: 669 | F48: 455 | G48: 289 | H48: 60 | I48: 119 | J48: 329 | K48: 206 | L48: 227 | M48: 495
A49: Lothian | B49: -438 | C49: 156 | D49: 101 | E49: 511 | F49: 347 | G49: 628 | H49: 504 | I49: 660 | J49: 379 | K49: 113 | L49: 356 | M49: 504
A50: Orkney | B50: 96 | C50: 63 | D50: 32 | E50: 40 | F50: 45 | G50: 41 | H50: 37 | I50: 5 | J50: 40 | K50: 35 | L50: 44 | M50: 35
A51: Shetland | B51: 63 | C51: 95 | D51: -48 | E51: 23 | F51: 16 | G51: 45 | H51: 46 | I51: -15 | J51: -27 | K51: -43 | L51: 4 | M51: -7
A52: Tayside | B52: 569 | C52: 766 | D52: 503 | E52: 585 | F52: 627 | G52: 447 | H52: 470 | I52: 392 | J52: 208 | K52: 274 | L52: 526 | M52: 549
A53: Western Isles | B53: 87 | C53: 104 | D53: 41 | E53: 11 | F53: 40 | G53: 48 | H53: 45 | I53: 9 | J53: 26 | K53: -11 | L53: 0 | M53: 22
A55: Notes
A56: 1) Figures include asylum seekers.
A57: 2) Movements to/from the armed forces were included in these figures in previous releases of this spreadsheet but are no longer treated as migration. Armed forces movements are included in the mid-year population estimates under another category.
A58: 3) These figures may not match figures published elsewhere due to small adjustments made for differences in administrative boundaries.
A59: 4) Source: Uses the data underlying the Total Migration To or From an Area tables.
A60: 5) The NHS Board areas used for estimates between 2003/04 and 2010/11 are those that existed between 2006 and 2014. The 2011/12 estimates onwards use the NHS Board areas that came into force in April 2014.
A62: © Crown Copyright 2016

Sheet Total net migration 16-64
A1: Total net migration for ages 16-64 | K1: Return to front page
A3: Council Area | B3: 2003/04 | C3: 2004/05 | D3: 2005/06 | E3: 2006/07 | F3: 2007/08 | G3: 2008/09 | H3: 2009/10 | I3: 2010/11 | J3: 2011/12 | K3: 2012/13 | L3: 2013/14 | M3: 2014/15
A4: SCOTLAND | B4: 13595 | C4: 19931 | D4: 16044 | E4: 26935 | F4: 21574 | G4: 20601 | H4: 22931 | I4: 26224 | J4: 11462 | K4: 8267 | L4: 14470 | M4: 23858
A5: Aberdeen City | B5: -708 | C5: 963 | D5: 1306 | E5: 2776 | F5: 1641 | G5: 3043 | H5: 2709 | I5: 2859 | J5: 1987 | K5: 2079 | L5: 1928 | M5: 1625
A6: Aberdeenshire | B6: 1815 | C6: 1667 | D6: 1962 | E6: 1758 | F6: 1177 | G6: 884 | H6: 1193 | I6: 975 | J6: 924 | K6: 1039 | L6: 1374 | M6: 719
A7: Angus | B7: 796 | C7: 594 | D7: 576 | E7: 494 | F7: 342 | G7: -13 | H7: 174 | I7: -35 | J7: 137 | K7: -36 | L7: 394 | M7: 307
A8: Argyll & Bute | B8: 718 | C8: 307 | D8: 136 | E8: 225 | F8: 12 | G8: -28 | H8: 224 | I8: 181 | J8: -128 | K8: -76 | L8: -269 | M8: -198
A9: Clackmannanshire | B9: 413 | C9: 408 | D9: 223 | E9: 503 | F9: 288 | G9: 82 | H9: -76 | I9: -18 | J9: -198 | K9: -119 | L9: -73 | M9: 51
A10: Dumfries & Galloway | B10: 723 | C10: 726 | D10: 318 | E10: 404 | F10: 523 | G10: 111 | H10: 91 | I10: 230 | J10: -75 | K10: 19 | L10: 105 | M10: 206
A11: Dundee City | B11: -357 | C11: 634 | D11: 113 | E11: 320 | F11: 608 | G11: 1036 | H11: 1133 | I11: 1603 | J11: 730 | K11: 395 | L11: 154 | M11: 410
A12: East Ayrshire | B12: 181 | C12: -27 | D12: 14 | E12: 276 | F12: 388 | G12: 326 | H12: -17 | I12: 15 | J12: -93 | K12: -132 | L12: -76 | M12: 10
A13: East Dunbartonshire | B13: -613 | C13: -644 | D13: -613 | E13: -435 | F13: -362 | G13: -218 | H13: -294 | I13: -312 | J13: -157 | K13: -177 | L13: 339 | M13: 60
A14: East Lothian | B14: 179 | C14: 267 | D14: 561 | E14: 1167 | F14: 1318 | G14: 421 | H14: 397 | I14: 199 | J14: 511 | K14: 313 | L14: 374 | M14: 606
A15: East Renfrewshire | B15: -348 | C15: -326 | D15: -494 | E15: -118 | F15: -327 | G15: -280 | H15: 11 | I15: -117 | J15: -100 | K15: -24 | L15: 230 | M15: -74
A16: Edinburgh, City of | B16: 3398 | C16: 5731 | D16: 3946 | E16: 5148 | F16: 3653 | G16: 5710 | H16: 7905 | I16: 7825 | J16: 4018 | K16: 3149 | L16: 3621 | M16: 6593
A17: Eilean Siar | B17: 126 | C17: 125 | D17: 60 | E17: 45 | F17: -59 | G17: 2 | H17: 86 | I17: 12 | J17: -26 | K17: -20 | L17: -90 | M17: -18
A18: Falkirk | B18: 1168 | C18: 1392 | D18: 792 | E18: 820 | F18: 532 | G18: 477 | H18: 315 | I18: 889 | J18: 346 | K18: 226 | L18: 318 | M18: 571
A19: Fife | B19: 1734 | C19: 1997 | D19: 1292 | E19: 1394 | F19: 1248 | G19: 1146 | H19: 1453 | I19: 1618 | J19: 474 | K19: 121 | L19: 363 | M19: 901
A20: Glasgow City | B20: -1170 | C20: 531 | D20: 19 | E20: 3295 | F20: 3976 | G20: 4706 | H20: 4271 | I20: 6127 | J20: 2536 | K20: 1679 | L20: 3303 | M20: 6790
A21: Highland | B21: 1818 | C21: 2040 | D21: 1506 | E21: 2010 | F21: 1495 | G21: 667 | H21: 736 | I21: 667 | J21: 187 | K21: -30 | L21: 172 | M21: 819
A22: Inverclyde | B22: -485 | C22: -145 | D22: -289 | E22: -259 | F22: -160 | G22: -334 | H22: -220 | I22: -265 | J22: -305 | K22: -195 | L22: -236 | M22: -148
A23: Midlothian | B23: -173 | C23: -273 | D23: -206 | E23: 99 | F23: 270 | G23: 291 | H23: 133 | I23: 302 | J23: 343 | K23: 443 | L23: 753 | M23: 689
A24: Moray | B24: 697 | C24: 549 | D24: 455 | E24: 347 | F24: 155 | G24: 251 | H24: -51 | I24: -114 | J24: 103 | K24: 402 | L24: 198 | M24: 249
A25: North Ayrshire | B25: -72 | C25: -22 | D25: -124 | E25: 242 | F25: 120 | G25: -252 | H25: -218 | I25: 11 | J25: -476 | K25: -333 | L25: -271 | M25: -41
A26: North Lanarkshire | B26: 184 | C26: 151 | D26: 268 | E26: 589 | F26: 379 | G26: 7 | H26: -358 | I26: -81 | J26: -279 | K26: -407 | L26: -138 | M26: -29
A27: Orkney Islands | B27: 135 | C27: 67 | D27: 142 | E27: 80 | F27: 30 | G27: 36 | H27: 98 | I27: 85 | J27: 70 | K27: 39 | L27: 14 | M27: 63
A28: Perth & Kinross | B28: 910 | C28: 1488 | D28: 1520 | E28: 1865 | F28: 1895 | G28: 1396 | H28: 1363 | I28: 1255 | J28: 644 | K28: 81 | L28: 945 | M28: 649
A29: Renfrewshire | B29: -192 | C29: -401 | D29: -312 | E29: 127 | F29: 241 | G29: 189 | H29: 364 | I29: 408 | J29: -323 | K29: -321 | L29: 254 | M29: 459
A30: Scottish Borders | B30: 849 | C30: 605 | D30: 649 | E30: 1031 | F30: 950 | G30: 189 | H30: 146 | I30: 370 | J30: 13 | K30: 175 | L30: 173 | M30: 282
A31: Shetland Islands | B31: -11 | C31: -11 | D31: -69 | E31: 15 | F31: 4 | G31: 135 | H31: 114 | I31: 64 | J31: -59 | K31: -23 | L31: -1 | M31: 4
A32: South Ayrshire | B32: 376 | C32: 78 | D32: 99 | E32: 287 | F32: 141 | G32: 73 | H32: 267 | I32: 324 | J32: 155 | K32: 148 | L32: -86 | M32: 28
A33: South Lanarkshire | B33: 1272 | C33: 562 | D33: 763 | E33: 1014 | F33: 401 | G33: 269 | H33: 470 | I33: 335 | J33: 49 | K33: 304 | L33: 318 | M33: 616
A34: Stirling | B34: -407 | C34: 441 | D34: 443 | E34: 317 | F34: 52 | G34: 198 | H34: 684 | I34: 817 | J34: 530 | K34: 226 | L34: 235 | M34: 1092
A35: West Dunbartonshire | B35: -196 | C35: -165 | D35: -35 | E35: -21 | F35: -137 | G35: -83 | H35: -208 | I35: -123 | J35: -164 | K35: -257 | L35: -51 | M35: 30
A36: West Lothian | B36: 835 | C36: 622 | D36: 1023 | E36: 1120 | F36: 780 | G36: 164 | H36: 36 | I36: 118 | J36: 88 | K36: -421 | L36: 196 | M36: 537
A38: NHS Board Areas
A39: SCOTLAND | B39: 13595 | C39: 19931 | D39: 16044 | E39: 26935 | F39: 21574 | G39: 20601 | H39: 22931 | I39: 26224 | J39: 11462 | K39: 8267 | L39: 14470 | M39: 23858
A40: Ayrshire & Arran | B40: 485 | C40: 29 | D40: -11 | E40: 805 | F40: 649 | G40: 147 | H40: 32 | I40: 350 | J40: -414 | K40: -317 | L40: -433 | M40: -3
A41: Borders | B41: 849 | C41: 605 | D41: 649 | E41: 1031 | F41: 950 | G41: 189 | H41: 146 | I41: 370 | J41: 13 | K41: 175 | L41: 173 | M41: 282
A42: Dumfries & Galloway | B42: 723 | C42: 726 | D42: 318 | E42: 404 | F42: 523 | G42: 111 | H42: 91 | I42: 230 | J42: -75 | K42: 19 | L42: 105 | M42: 206
A43: Fife | B43: 1734 | C43: 1997 | D43: 1293 | E43: 1391 | F43: 1242 | G43: 1145 | H43: 1455 | I43: 1614 | J43: 474 | K43: 121 | L43: 363 | M43: 901
A44: Forth Valley | B44: 1174 | C44: 2241 | D44: 1458 | E44: 1640 | F44: 872 | G44: 757 | H44: 923 | I44: 1688 | J44: 678 | K44: 333 | L44: 480 | M44: 1714
A45: Grampian | B45: 1804 | C45: 3179 | D45: 3723 | E45: 4881 | F45: 2973 | G45: 4178 | H45: 3851 | I45: 3720 | J45: 3014 | K45: 3520 | L45: 3500 | M45: 2593
A46: Greater Glasgow & Clyde | B46: -2385 | C46: -877 | D46: -1172 | E46: 3247 | F46: 3555 | G46: 4397 | H46: 4428 | I46: 5781 | J46: 1487 | K46: 705 | L46: 3839 | M46: 7117
A47: Highland | B47: 2536 | C47: 2347 | D47: 1642 | E47: 2235 | F47: 1507 | G47: 639 | H47: 960 | I47: 848 | J47: 59 | K47: -106 | L47: -97 | M47: 621
A48: Lanarkshire | B48: 837 | C48: 440 | D48: 479 | E48: 945 | F48: 456 | G48: -141 | H48: -392 | I48: 191 | J48: -230 | K48: -103 | L48: 180 | M48: 587
A49: Lothian | B49: 4239 | C49: 6347 | D49: 5324 | E49: 7534 | F49: 6021 | G49: 6586 | H49: 8471 | I49: 8444 | J49: 4960 | K49: 3484 | L49: 4944 | M49: 8425
A50: Orkney | B50: 135 | C50: 67 | D50: 142 | E50: 80 | F50: 30 | G50: 36 | H50: 98 | I50: 85 | J50: 70 | K50: 39 | L50: 14 | M50: 63
A51: Shetland | B51: -11 | C51: -11 | D51: -69 | E51: 15 | F51: 4 | G51: 135 | H51: 114 | I51: 64 | J51: -59 | K51: -23 | L51: -1 | M51: 4
A52: Tayside | B52: 1349 | C52: 2716 | D52: 2208 | E52: 2682 | F52: 2851 | G52: 2420 | H52: 2668 | I52: 2827 | J52: 1511 | K52: 440 | L52: 1493 | M52: 1366
A53: Western Isles | B53: 126 | C53: 125 | D53: 60 | E53: 45 | F53: -59 | G53: 2 | H53: 86 | I53: 12 | J53: -26 | K53: -20 | L53: -90 | M53: -18
A55: Notes
A56: 1) Figures include asylum seekers.
A57: 2) Movements to/from the armed forces were included in these figures in previous releases of this spreadsheet but are no longer treated as migration. Armed forces movements are included in the mid-year population estimates under another category.
A58: 3) These figures may not match figures published elsewhere due to small adjustments made for differences in administrative boundaries.
A59: 4) Source: Uses the data underlying the Total Migration To or From an Area tables.
A60: 5) The NHS Board areas used for estimates between 2003/04 and 2010/11 are those that existed between 2006 and 2014. The 2011/12 estimates onwards use the NHS Board areas that came into force in April 2014.
A62: © Crown Copyright 2016

Sheet Total net migration 65+
A1: Total net migration for ages 65+ | K1: Return to front page
A3: Council Area | B3: 2003/04 | C3: 2004/05 | D3: 2005/06 | E3: 2006/07 | F3: 2007/08 | G3: 2008/09 | H3: 2009/10 | I3: 2010/11 | J3: 2011/12 | K3: 2012/13 | L3: 2013/14 | M3: 2014/15
A4: SCOTLAND | B4: 1597 | C4: 942 | D4: 362 | E4: 734 | F4: 548 | G4: 299 | H4: 261 | I4: 495 | J4: -361 | K4: -182 | L4: 23 | M4: 17
A5: Aberdeen City | B5: -136 | C5: -65 | D5: -157 | E5: -156 | F5: -175 | G5: -111 | H5: -117 | I5: -88 | J5: -180 | K5: -119 | L5: -213 | M5: -203
A6: Aberdeenshire | B6: 424 | C6: 282 | D6: 277 | E6: 233 | F6: 135 | G6: 44 | H6: 4 | I6: -44 | J6: -95 | K6: -120 | L6: -168 | M6: -196
A7: Angus | B7: 209 | C7: 131 | D7: 102 | E7: 96 | F7: 141 | G7: 45 | H7: 16 | I7: 57 | J7: 88 | K7: 82 | L7: 70 | M7: 36
A8: Argyll & Bute | B8: 58 | C8: 1 | D8: 23 | E8: 30 | F8: -23 | G8: -55 | H8: -43 | I8: -12 | J8: -68 | K8: -46 | L8: -61 | M8: -61
A9: Clackmannanshire | B9: 41 | C9: 8 | D9: -23 | E9: 14 | F9: -30 | G9: -22 | H9: -9 | I9: 9 | J9: 44 | K9: 15 | L9: 15 | M9: 83
A10: Dumfries & Galloway | B10: 202 | C10: 189 | D10: 51 | E10: 113 | F10: 122 | G10: 23 | H10: 24 | I10: 34 | J10: -36 | K10: -34 | L10: 60 | M10: 50
A11: Dundee City | B11: -89 | C11: -107 | D11: -80 | E11: -39 | F11: -65 | G11: -106 | H11: -41 | I11: -85 | J11: -107 | K11: -49 | L11: -87 | M11: -56
A12: East Ayrshire | B12: -18 | C12: 4 | D12: 40 | E12: -31 | F12: -4 | G12: -6 | H12: 14 | I12: -10 | J12: -16 | K12: 16 | L12: -30 | M12: -19
A13: East Dunbartonshire | B13: -104 | C13: -63 | D13: -102 | E13: -60 | F13: -56 | G13: -81 | H13: -47 | I13: -27 | J13: 10 | K13: 18 | L13: 74 | M13: -24
A14: East Lothian | B14: 81 | C14: 87 | D14: 135 | E14: 46 | F14: 84 | G14: 52 | H14: 67 | I14: 55 | J14: 63 | K14: 54 | L14: 89 | M14: 133
A15: East Renfrewshire | B15: 50 | C15: 35 | D15: 37 | E15: -17 | F15: 0 | G15: 71 | H15: 33 | I15: -31 | J15: -26 | K15: -21 | L15: 25 | M15: 134
A16: Edinburgh, City of | B16: -382 | C16: -349 | D16: -254 | E16: -143 | F16: -173 | G16: -57 | H16: -36 | I16: -20 | J16: 11 | K16: 0 | L16: 39 | M16: -74
A17: Eilean Siar | B17: 33 | C17: 45 | D17: 28 | E17: 17 | F17: 42 | G17: 21 | H17: 38 | I17: 2 | J17: 13 | K17: 12 | L17: 2 | M17: -9
A18: Falkirk | B18: 71 | C18: 49 | D18: 59 | E18: 7 | F18: 72 | G18: 78 | H18: 93 | I18: 40 | J18: 41 | K18: 79 | L18: 15 | M18: 34
A19: Fife | B19: 161 | C19: 231 | D19: 72 | E19: 131 | F19: 101 | G19: 122 | H19: 97 | I19: 128 | J19: 87 | K19: 14 | L19: 186 | M19: 48
A20: Glasgow City | B20: -713 | C20: -695 | D20: -594 | E20: -442 | F20: -399 | G20: -311 | H20: -350 | I20: -269 | J20: -321 | K20: -317 | L20: -255 | M20: -252
A21: Highland | B21: 289 | C21: 226 | D21: 130 | E21: 168 | F21: 165 | G21: 52 | H21: 12 | I21: 61 | J21: -41 | K21: -43 | L21: -44 | M21: -43
A22: Inverclyde | B22: -45 | C22: 19 | D22: 10 | E22: -10 | F22: -36 | G22: -22 | H22: 10 | I22: 10 | J22: 24 | K22: -1 | L22: -31 | M22: 6
A23: Midlothian | B23: -35 | C23: -15 | D23: 11 | E23: -22 | F23: 36 | G23: 15 | H23: 42 | I23: 46 | J23: 24 | K23: -14 | L23: -8 | M23: 48
A24: Moray | B24: 133 | C24: 105 | D24: 28 | E24: 92 | F24: 98 | G24: 11 | H24: 46 | I24: 28 | J24: 44 | K24: 31 | L24: 107 | M24: 35
A25: North Ayrshire | B25: 141 | C25: 68 | D25: 58 | E25: 83 | F25: 86 | G25: 77 | H25: 52 | I25: 61 | J25: 12 | K25: 38 | L25: 43 | M25: 0
A26: North Lanarkshire | B26: 26 | C26: 42 | D26: 13 | E26: -117 | F26: -63 | G26: 2 | H26: -18 | I26: -16 | J26: -71 | K26: -87 | L26: -29 | M26: 62
A27: Orkney Islands | B27: 30 | C27: 5 | D27: 26 | E27: 23 | F27: 20 | G27: 11 | H27: 28 | I27: 9 | J27: -4 | K27: 6 | L27: 9 | M27: 2
A28: Perth & Kinross | B28: 229 | C28: 202 | D28: 134 | E28: 139 | F28: 114 | G28: 63 | H28: 81 | I28: 181 | J28: 30 | K28: 52 | L28: 38 | M28: 114
A29: Renfrewshire | B29: -62 | C29: 10 | D29: -31 | E29: 11 | F29: 43 | G29: 18 | H29: 38 | I29: 73 | J29: -6 | K29: 3 | L29: 66 | M29: 34
A30: Scottish Borders | B30: 204 | C30: 59 | D30: 7 | E30: 139 | F30: 47 | G30: 115 | H30: 21 | I30: -23 | J30: -26 | K30: 32 | L30: -65 | M30: 23
A31: Shetland Islands | B31: 20 | C31: 4 | D31: 5 | E31: 8 | F31: 6 | G31: 23 | H31: -5 | I31: 10 | J31: 18 | K31: -23 | L31: -8 | M31: -33
A32: South Ayrshire | B32: 218 | C32: 130 | D32: 90 | E32: 71 | F32: 41 | G32: 72 | H32: 28 | I32: 113 | J32: 98 | K32: 129 | L32: 103 | M32: 100
A33: South Lanarkshire | B33: 382 | C33: 210 | D33: 180 | E33: 207 | F33: 135 | G33: 108 | H33: 119 | I33: 161 | J33: 109 | K33: 178 | L33: 47 | M33: 30
A34: Stirling | B34: 56 | C34: 9 | D34: 24 | E34: 42 | F34: 36 | G34: 22 | H34: -2 | I34: -16 | J34: -32 | K34: -89 | L34: 2 | M34: -37
A35: West Dunbartonshire | B35: -27 | C35: -26 | D35: -15 | E35: -24 | F35: -51 | G35: -17 | H35: 10 | I35: 13 | J35: -77 | K35: -49 | L35: -20 | M35: -11
A36: West Lothian | B36: 150 | C36: 111 | D36: 78 | E36: 125 | F36: 99 | G36: 42 | H36: 56 | I36: 45 | J36: 29 | K36: 71 | L36: 52 | M36: 63
A38: NHS Board Areas
A39: SCOTLAND | B39: 1597 | C39: 942 | D39: 362 | E39: 734 | F39: 548 | G39: 299 | H39: 261 | I39: 495 | J39: -361 | K39: -182 | L39: 23 | M39: 17
A40: Ayrshire & Arran | B40: 341 | C40: 202 | D40: 188 | E40: 123 | F40: 123 | G40: 143 | H40: 94 | I40: 164 | J40: 94 | K40: 183 | L40: 116 | M40: 81
A41: Borders | B41: 204 | C41: 59 | D41: 7 | E41: 139 | F41: 47 | G41: 115 | H41: 21 | I41: -23 | J41: -26 | K41: 32 | L41: -65 | M41: 23
A42: Dumfries & Galloway | B42: 202 | C42: 189 | D42: 51 | E42: 113 | F42: 122 | G42: 23 | H42: 24 | I42: 34 | J42: -36 | K42: -34 | L42: 60 | M42: 50
A43: Fife | B43: 161 | C43: 231 | D43: 74 | E43: 131 | F43: 101 | G43: 122 | H43: 97 | I43: 127 | J43: 87 | K43: 14 | L43: 186 | M43: 48
A44: Forth Valley | B44: 168 | C44: 66 | D44: 60 | E44: 63 | F44: 78 | G44: 78 | H44: 82 | I44: 33 | J44: 53 | K44: 5 | L44: 32 | M44: 80
A45: Grampian | B45: 421 | C45: 322 | D45: 148 | E45: 169 | F45: 58 | G45: -56 | H45: -67 | I45: -104 | J45: -231 | K45: -208 | L45: -274 | M45: -364
A46: Greater Glasgow & Clyde | B46: -883 | C46: -753 | D46: -737 | E46: -611 | F46: -567 | G46: -411 | H46: -335 | I46: -192 | J46: -396 | K46: -367 | L46: -141 | M46: -113
A47: Highland | B47: 347 | C47: 227 | D47: 153 | E47: 198 | F47: 142 | G47: -3 | H47: -31 | I47: 49 | J47: -109 | K47: -89 | L47: -105 | M47: -104
A48: Lanarkshire | B48: 390 | C48: 285 | D48: 235 | E48: 159 | F48: 140 | G48: 179 | H48: 130 | I48: 106 | J48: 38 | K48: 91 | L48: 18 | M48: 92
A49: Lothian | B49: -186 | C49: -166 | D49: -30 | E49: 6 | F49: 46 | G49: 52 | H49: 129 | I49: 126 | J49: 127 | K49: 111 | L49: 172 | M49: 170
A50: Orkney | B50: 30 | C50: 5 | D50: 26 | E50: 23 | F50: 20 | G50: 11 | H50: 28 | I50: 9 | J50: -4 | K50: 6 | L50: 9 | M50: 2
A51: Shetland | B51: 20 | C51: 4 | D51: 5 | E51: 8 | F51: 6 | G51: 23 | H51: -5 | I51: 10 | J51: 18 | K51: -23 | L51: -8 | M51: -33
A52: Tayside | B52: 349 | C52: 226 | D52: 154 | E52: 196 | F52: 190 | G52: 2 | H52: 56 | I52: 154 | J52: 11 | K52: 85 | L52: 21 | M52: 94
A53: Western Isles | B53: 33 | C53: 45 | D53: 28 | E53: 17 | F53: 42 | G53: 21 | H53: 38 | I53: 2 | J53: 13 | K53: 12 | L53: 2 | M53: -9
A55: Notes
A56: 1) Figures include asylum seekers.
A57: 2) Movements to/from the armed forces were included in these figures in previous releases of this spreadsheet but are no longer treated as migration. Armed forces movements are included in the mid-year population estimates under another category.
A59: 3) These figures may not match figures published elsewhere due to small adjustments made for differences in administrative boundaries.
A60: 4) Source: Uses the data underlying the Total Migration To or From an Area tables.
A61: 5) The NHS Board areas used for estimates between 2003/04 and 2010/11 are those that existed between 2006 and 2014. The 2011/12 estimates onwards use the NHS Board areas that came into force in April 2014.
A63: © Crown Copyright 2016

Sheet Total in-migration
A1: Total in-migration | K1: Return to front page
A3: Council Area | B3: 2003/04 | C3: 2004/05 | D3: 2005/06 | E3: 2006/07 | F3: 2007/08 | G3: 2008/09 | H3: 2009/10 | I3: 2010/11 | J3: 2011/12 | K3: 2012/13 | L3: 2013/14 | M3: 2014/15
A4: SCOTLAND | B4: 90379 | C4: 99142 | D4: 94635 | E4: 96646 | F4: 98527 | G4: 90507 | H4: 92407 | I4: 87886 | J4: 81016 | K4: 75885 | L4: 82442 | M4: 84954
A5: Aberdeen City | B5: 10654 | C5: 12400 | D5: 12747 | E5: 13511 | F5: 13628 | G5: 14163 | H5: 13971 | I5: 13582 | J5: 13652 | K5: 14041 | L5: 14206 | M5: 14060
A6: Aberdeenshire | B6: 10272 | C6: 10292 | D6: 10285 | E6: 9934 | F6: 9778 | G6: 8826 | H6: 8980 | I6: 8836 | J6: 9062 | K6: 9553 | L6: 10342 | M6: 9488
A7: Angus | B7: 4759 | C7: 4560 | D7: 4444 | E7: 4180 | F7: 4282 | G7: 3385 | H7: 3664 | I7: 3604 | J7: 3930 | K7: 3945 | L7: 4230 | M7: 4306
A8: Argyll & Bute | B8: 4897 | C8: 4755 | D8: 4435 | E8: 4309 | F8: 4081 | G8: 3860 | H8: 3949 | I8: 3735 | J8: 3821 | K8: 3931 | L8: 3785 | M8: 3913
A9: Clackmannanshire | B9: 2084 | C9: 2132 | D9: 2005 | E9: 2268 | F9: 2133 | G9: 1679 | H9: 1583 | I9: 1525 | J9: 1482 | K9: 1602 | L9: 1733 | M9: 1860
A10: Dumfries & Galloway | B10: 5278 | C10: 5481 | D10: 4740 | E10: 4672 | F10: 4931 | G10: 4186 | H10: 3945 | I10: 4002 | J10: 3835 | K10: 3981 | L10: 4047 | M10: 3928
A11: Dundee City | B11: 5831 | C11: 6852 | D11: 6482 | E11: 6672 | F11: 7296 | G11: 6862 | H11: 7131 | I11: 7389 | J11: 6953 | K11: 7071 | L11: 6857 | M11: 7019
A12: East Ayrshire | B12: 3661 | C12: 3445 | D12: 3403 | E12: 3672 | F12: 3790 | G12: 3373 | H12: 3078 | I12: 3108 | J12: 3079 | K12: 3108 | L12: 3249 | M12: 3352
A13: East Dunbartonshire | B13: 3622 | C13: 3673 | D13: 3489 | E13: 3493 | F13: 3425 | G13: 3229 | H13: 3072 | I13: 3053 | J13: 3432 | K13: 3512 | L13: 4047 | M13: 4197
A14: East Lothian | B14: 3675 | C14: 3646 | D14: 3940 | E14: 4402 | F14: 4813 | G14: 3648 | H14: 3722 | I14: 3653 | J14: 4019 | K14: 3775 | L14: 4135 | M14: 4337
A15: East Renfrewshire | B15: 3400 | C15: 3410 | D15: 3326 | E15: 3286 | F15: 3287 | G15: 2945 | H15: 3100 | I15: 3136 | J15: 3292 | K15: 3665 | L15: 3823 | M15: 3943
A16: Edinburgh, City of | B16: 28525 | C16: 31868 | D16: 30273 | E16: 29702 | F16: 29672 | G16: 29507 | H16: 31281 | I16: 29900 | J16: 28837 | K16: 27834 | L16: 29439 | M16: 31436
A17: Eilean Siar | B17: 1233 | C17: 1219 | D17: 1091 | E17: 1034 | F17: 1028 | G17: 966 | H17: 974 | I17: 908 | J17: 866 | K17: 861 | L17: 818 | M17: 881
A18: Falkirk | B18: 4723 | C18: 5163 | D18: 4536 | E18: 4577 | F18: 4314 | G18: 3774 | H18: 3564 | I18: 4198 | J18: 3842 | K18: 4076 | L18: 4173 | M18: 4478
A19: Fife | B19: 12574 | C19: 13207 | D19: 12154 | E19: 11939 | F19: 12083 | G19: 11195 | H19: 11337 | I19: 11174 | J19: 10741 | K19: 10459 | L19: 10894 | M19: 11289
A20: Glasgow City | B20: 26611 | C20: 28421 | D20: 27497 | E20: 29034 | F20: 31107 | G20: 29919 | H20: 29101 | I20: 29318 | J20: 28362 | K20: 28008 | L20: 30312 | M20: 33301
A21: Highland | B21: 9793 | C21: 10164 | D21: 9584 | E21: 9633 | F21: 9621 | G21: 8045 | H21: 7859 | I21: 7509 | J21: 7151 | K21: 7078 | L21: 7243 | M21: 7722
A22: Inverclyde | B22: 1748 | C22: 1963 | D22: 1658 | E22: 1618 | F22: 1658 | G22: 1329 | H22: 1398 | I22: 1258 | J22: 1325 | K22: 1403 | L22: 1376 | M22: 1456
A23: Midlothian | B23: 2607 | C23: 2563 | D23: 2560 | E23: 2953 | F23: 2986 | G23: 2783 | H23: 2633 | I23: 2720 | J23: 2852 | K23: 2988 | L23: 3527 | M23: 3645
A24: Moray | B24: 4056 | C24: 3939 | D24: 3861 | E24: 3453 | F24: 3479 | G24: 3171 | H24: 3081 | I24: 3040 | J24: 3412 | K24: 3528 | L24: 3479 | M24: 3680
A25: North Ayrshire | B25: 4450 | C25: 4332 | D25: 4127 | E25: 4340 | F25: 4193 | G25: 3544 | H25: 3479 | I25: 3528 | J25: 3497 | K25: 3495 | L25: 3550 | M25: 3725
A26: North Lanarkshire | B26: 7878 | C26: 7891 | D26: 7841 | E26: 8239 | F26: 8007 | G26: 7123 | H26: 6225 | I26: 6540 | J26: 6706 | K26: 6642 | L26: 6920 | M26: 7581
A27: Orkney Islands | B27: 897 | C27: 801 | D27: 779 | E27: 739 | F27: 745 | G27: 708 | H27: 805 | I27: 666 | J27: 735 | K27: 761 | L27: 747 | M27: 711
A28: Perth & Kinross | B28: 6919 | C28: 7387 | D28: 7299 | E28: 7526 | F28: 7845 | G28: 6980 | H28: 6980 | I28: 6459 | J28: 6392 | K28: 5977 | L28: 6759 | M28: 6512
A29: Renfrewshire | B29: 4839 | C29: 5027 | D29: 4829 | E29: 5245 | F29: 5066 | G29: 4687 | H29: 4872 | I29: 4781 | J29: 4343 | K29: 4407 | L29: 5028 | M29: 5410
A30: Scottish Borders | B30: 5416 | C30: 4961 | D30: 4760 | E30: 5150 | F30: 5304 | G30: 4311 | H30: 4142 | I30: 4091 | J30: 3992 | K30: 3973 | L30: 4196 | M30: 4130
A31: Shetland Islands | B31: 815 | C31: 823 | D31: 724 | E31: 781 | F31: 750 | G31: 811 | H31: 758 | I31: 708 | J31: 666 | K31: 647 | L31: 674 | M31: 705
A32: South Ayrshire | B32: 4044 | C32: 4000 | D32: 3742 | E32: 3918 | F32: 3832 | G32: 3505 | H32: 3512 | I32: 3481 | J32: 3595 | K32: 3726 | L32: 3431 | M32: 3749
A33: South Lanarkshire | B33: 10040 | C33: 9254 | D33: 9274 | E33: 9270 | F33: 8788 | G33: 8056 | H33: 7910 | I33: 7623 | J33: 8171 | K33: 8207 | L33: 8294 | M33: 9169
A34: Stirling | B34: 4755 | C34: 5532 | D34: 5292 | E34: 5145 | F34: 4991 | G34: 4747 | H34: 5187 | I34: 5161 | J34: 5208 | K34: 5033 | L34: 5133 | M34: 5938
A35: West Dunbartonshire | B35: 2444 | C35: 2353 | D35: 2439 | E35: 2458 | F35: 2434 | G35: 2247 | H35: 2075 | I35: 2085 | J35: 2143 | K35: 2170 | L35: 2256 | M35: 2551
A36: West Lothian | B36: 6211 | C36: 5977 | D36: 6197 | E36: 6712 | F36: 6349 | G36: 5064 | H36: 4830 | I36: 4817 | J36: 4906 | K36: 4587 | L36: 5233 | M36: 5724
A38: NHS Board Areas
A39: SCOTLAND | B39: 90379 | C39: 99142 | D39: 94635 | E39: 96646 | F39: 98527 | G39: 90507 | H39: 92407 | I39: 87886 | J39: 81016 | K39: 75885 | L39: 82442 | M39: 84954
A40: Ayrshire & Arran | B40: 9497 | C40: 9193 | D40: 8673 | E40: 9104 | F40: 9062 | G40: 7962 | H40: 7716 | I40: 7761 | J40: 7686 | K40: 7816 | L40: 7778 | M40: 8024
A41: Borders | B41: 5416 | C41: 4961 | D41: 4760 | E41: 5150 | F41: 5304 | G41: 4311 | H41: 4142 | I41: 4091 | J41: 3992 | K41: 3973 | L41: 4196 | M41: 4130
A42: Dumfries & Galloway | B42: 5278 | C42: 5481 | D42: 4740 | E42: 4672 | F42: 4931 | G42: 4186 | H42: 3945 | I42: 4002 | J42: 3835 | K42: 3981 | L42: 4047 | M42: 3928
A43: Fife | B43: 12574 | C43: 13207 | D43: 12154 | E43: 11935 | F43: 12076 | G43: 11192 | H43: 11335 | I43: 11172 | J43: 10741 | K43: 10459 | L43: 10894 | M43: 11289
A44: Forth Valley | B44: 9966 | C44: 11261 | D44: 10253 | E44: 10256 | F44: 9834 | G44: 8836 | H44: 8925 | I44: 9434 | J44: 9110 | K44: 9188 | L44: 9446 | M44: 10572
A45: Grampian | B45: 18090 | C45: 19967 | D45: 20186 | E45: 20237 | F45: 19916 | G45: 19892 | H45: 19461 | I45: 18794 | J45: 19260 | K45: 19500 | L45: 20218 | M45: 19204
A46: Greater Glasgow & Clyde | B46: 35516 | C46: 37775 | D46: 36530 | E46: 38261 | F46: 40069 | G46: 38430 | H46: 38147 | I46: 37787 | J46: 32117 | K46: 31621 | L46: 34840 | M46: 37643
A47: Highland | B47: 14338 | C47: 14615 | D47: 13678 | E47: 13615 | F47: 13351 | G47: 11596 | H47: 11487 | I47: 10945 | J47: 10646 | K47: 10658 | L47: 10686 | M47: 11308
A48: Lanarkshire | B48: 13004 | C48: 12548 | D48: 12516 | E48: 12635 | F48: 12418 | G48: 11176 | H48: 10327 | I48: 10448 | J48: 12718 | K48: 12520 | L48: 12932 | M48: 14153
A49: Lothian | B49: 32276 | C49: 35920 | D49: 34812 | E49: 34655 | F49: 35301 | G49: 33842 | H49: 35429 | I49: 33811 | J49: 33359 | K49: 31516 | L49: 33965 | M49: 35907
A50: Orkney | B50: 897 | C50: 801 | D50: 779 | E50: 739 | F50: 745 | G50: 708 | H50: 805 | I50: 666 | J50: 735 | K50: 761 | L50: 747 | M50: 711
A51: Shetland | B51: 815 | C51: 823 | D51: 724 | E51: 781 | F51: 750 | G51: 811 | H51: 758 | I51: 708 | J51: 666 | K51: 647 | L51: 674 | M51: 705
A52: Tayside | B52: 13651 | C52: 15422 | D52: 14657 | E52: 14789 | F52: 15732 | G52: 14377 | H52: 14796 | I52: 14387 | J52: 14011 | K52: 13469 | L52: 14433 | M52: 14314
A53: Western Isles | B53: 1233 | C53: 1219 | D53: 1091 | E53: 1034 | F53: 1028 | G53: 966 | H53: 974 | I53: 908 | J53: 866 | K53: 861 | L53: 818 | M53: 881
A55: Notes
A56: 1) Figures include asylum seekers and rounding adjustments.
A57: 2) Movements to/from the armed forces were included in these figures in previous releases of this spreadsheet but are no longer treated as migration. Armed forces movements are included in the mid-year population estimates under another category.
A58: 3) Scotland level estimates cannot be derived by adding together the estimates for individual council areas or NHS Board areas. This is because administrative area estimates include moves within Scotland. Therefore it would not be appropriate to compare total in-migration for Scotland with total in-migration for an administrative area.
A59: 4) Source for data: 'In, out and net migration between administrative areas and overseas, 2001/02 to latest' from the Migration between Scotland and Overseas section of the NRS website.
A60: 5) The NHS Board areas used for estimates between 2003/04 and 2010/11 are those that existed between 2006 and 2014. The 2011/12 estimates onwards use the NHS Board areas that came into force in April 2014.
A62: © Crown Copyright 2016

Sheet Total out-migration
A1: Total out-migration | K1: Return to front page
A3: Council Area | B3: 2003/04 | C3: 2004/05 | D3: 2005/06 | E3: 2006/07 | F3: 2007/08 | G3: 2008/09 | H3: 2009/10 | I3: 2010/11 | J3: 2011/12 | K3: 2012/13 | L3: 2013/14 | M3: 2014/15
A4: SCOTLAND | B4: 71757 | C4: 73835 | D4: 75813 | E4: 63597 | F4: 72118 | G4: 66085 | H4: 66332 | I4: 57677 | J4: 68278 | K4: 65923 | L4: 64857 | M4: 56986
A5: Aberdeen City | B5: 11845 | C5: 11290 | D5: 11604 | E5: 10558 | F5: 11982 | G5: 11189 | H5: 11217 | I5: 10504 | J5: 11805 | K5: 12377 | L5: 12794 | M5: 12975
A6: Aberdeenshire | B6: 7042 | C6: 7512 | D6: 7218 | E6: 7251 | F6: 7897 | G6: 7319 | H6: 7287 | I6: 7452 | J6: 7676 | K6: 7889 | L6: 8301 | M6: 8502
A7: Angus | B7: 3417 | C7: 3487 | D7: 3490 | E7: 3424 | F7: 3629 | G7: 3237 | H7: 3309 | I7: 3489 | J7: 3672 | K7: 3832 | L7: 3585 | M7: 3769
A8: Argyll & Bute | B8: 3971 | C8: 4318 | D8: 4235 | E8: 3931 | F8: 4120 | G8: 3887 | H8: 3658 | I8: 3431 | J8: 4054 | K8: 3954 | L8: 4060 | M8: 4146
A9: Clackmannanshire | B9: 1533 | C9: 1560 | D9: 1708 | E9: 1527 | F9: 1736 | G9: 1640 | H9: 1658 | I9: 1533 | J9: 1738 | K9: 1661 | L9: 1815 | M9: 1718
A10: Dumfries & Galloway | B10: 4095 | C10: 4290 | D10: 4271 | E10: 3960 | F10: 4121 | G10: 3882 | H10: 3826 | I10: 3625 | J10: 3963 | K10: 3987 | L10: 3713 | M10: 3598
A11: Dundee City | B11: 6571 | C11: 6280 | D11: 6591 | E11: 6407 | F11: 6688 | G11: 5943 | H11: 6150 | I11: 5962 | J11: 6461 | K11: 6762 | L11: 6869 | M11: 6810
A12: East Ayrshire | B12: 3294 | C12: 3409 | D12: 3312 | E12: 3347 | F12: 3241 | G12: 2990 | H12: 3048 | I12: 3078 | J12: 3155 | K12: 3228 | L12: 3339 | M12: 3290
A13: East Dunbartonshire | B13: 4079 | C13: 4155 | D13: 3938 | E13: 3782 | F13: 3605 | G13: 3308 | H13: 3143 | I13: 3158 | J13: 3172 | K13: 3420 | L13: 3138 | M13: 3648
A14: East Lothian | B14: 3245 | C14: 3149 | D14: 3015 | E14: 2843 | F14: 3178 | G14: 2943 | H14: 3127 | I14: 3208 | J14: 3232 | K14: 3254 | L14: 3423 | M14: 3376
A15: East Renfrewshire | B15: 3497 | C15: 3427 | D15: 3539 | E15: 3241 | F15: 3359 | G15: 2873 | H15: 2731 | I15: 2866 | J15: 3103 | K15: 3126 | L15: 2933 | M15: 3316
A16: Edinburgh, City of | B16: 26291 | C16: 26551 | D16: 26861 | E16: 24783 | F16: 26316 | G16: 23646 | H16: 23212 | I16: 21856 | J16: 24871 | K16: 24836 | L16: 26143 | M16: 25175
A17: Eilean Siar | B17: 987 | C17: 945 | D17: 962 | E17: 961 | F17: 1005 | G17: 895 | H17: 805 | I17: 885 | J17: 853 | K17: 880 | L17: 906 | M17: 886
A18: Falkirk | B18: 3213 | C18: 3521 | D18: 3595 | E18: 3642 | F18: 3651 | G18: 3209 | H18: 3106 | I18: 3177 | J18: 3486 | K18: 3701 | L18: 3758 | M18: 3744
A19: Fife | B19: 10226 | C19: 10550 | D19: 10594 | E19: 10046 | F19: 10456 | G19: 9645 | H19: 9531 | I19: 9098 | J19: 10118 | K19: 10155 | L19: 10244 | M19: 10061
A20: Glasgow City | B20: 30029 | C20: 29979 | D20: 29485 | E20: 26731 | F20: 28178 | G20: 25930 | H20: 26051 | I20: 23948 | J20: 27216 | K20: 27569 | L20: 28265 | M20: 27461
A21: Highland | B21: 6943 | C21: 7302 | D21: 7530 | E21: 6956 | F21: 7510 | G21: 7055 | H21: 6869 | I21: 6611 | J21: 7033 | K21: 6985 | L21: 7004 | M21: 6607
A22: Inverclyde | B22: 2347 | C22: 2093 | D22: 2011 | E22: 1936 | F22: 1861 | G22: 1688 | H22: 1624 | I22: 1547 | J22: 1630 | K22: 1563 | L22: 1646 | M22: 1592
A23: Midlothian | B23: 2870 | C23: 2884 | D23: 2821 | E23: 2844 | F23: 2559 | G23: 2316 | H23: 2396 | I23: 2198 | J23: 2293 | K23: 2412 | L23: 2507 | M23: 2658
A24: Moray | B24: 3076 | C24: 3246 | D24: 3403 | E24: 2928 | F24: 3149 | G24: 2767 | H24: 3090 | I24: 3202 | J24: 3085 | K24: 2932 | L24: 3012 | M24: 3270
A25: North Ayrshire | B25: 4244 | C25: 4237 | D25: 4148 | E25: 3912 | F25: 3860 | G25: 3661 | H25: 3644 | I25: 3392 | J25: 3898 | K25: 3803 | L25: 3687 | M25: 3665
A26: North Lanarkshire | B26: 7650 | C26: 7561 | D26: 7539 | E26: 7390 | F26: 7473 | G26: 7035 | H26: 6647 | I26: 6598 | J26: 6977 | K26: 7027 | L26: 7006 | M26: 7441
A27: Orkney Islands | B27: 636 | C27: 666 | D27: 579 | E27: 596 | F27: 650 | G27: 620 | H27: 642 | I27: 567 | J27: 629 | K27: 681 | L27: 680 | M27: 611
A28: Perth & Kinross | B28: 5254 | C28: 5324 | D28: 5276 | E28: 5086 | F28: 5445 | G28: 5180 | H28: 5119 | I28: 4633 | J28: 5412 | K28: 5600 | L28: 5352 | M28: 5249
A29: Renfrewshire | B29: 5107 | C29: 5313 | D29: 5173 | E29: 4976 | F29: 4668 | G29: 4531 | H29: 4429 | I29: 4192 | J29: 4738 | K29: 4750 | L29: 4656 | M29: 4819
A30: Scottish Borders | B30: 4031 | C30: 3958 | D30: 3925 | E30: 3658 | F30: 4002 | G30: 3890 | H30: 3856 | I30: 3603 | J30: 3947 | K30: 3665 | L30: 3916 | M30: 3695
A31: Shetland Islands | B31: 743 | C31: 735 | D31: 836 | E31: 735 | F31: 724 | G31: 608 | H31: 603 | I31: 649 | J31: 734 | K31: 736 | L31: 679 | M31: 741
A32: South Ayrshire | B32: 3360 | C32: 3575 | D32: 3376 | E32: 3340 | F32: 3432 | G32: 3332 | H32: 3069 | I32: 2885 | J32: 3238 | K32: 3321 | L32: 3328 | M32: 3438
A33: South Lanarkshire | B33: 7913 | C33: 8175 | D33: 7940 | E33: 7619 | F33: 8053 | G33: 7416 | H33: 7102 | I33: 7036 | J33: 7763 | K33: 7628 | L33: 7783 | M33: 8135
A34: Stirling | B34: 4765 | C34: 4874 | D34: 4591 | E34: 4668 | F34: 4747 | G34: 4437 | H34: 4181 | I34: 4140 | J34: 4434 | K34: 4780 | L34: 4666 | M34: 4526
A35: West Dunbartonshire | B35: 2818 | C35: 2685 | D35: 2547 | E35: 2490 | F35: 2639 | G35: 2303 | H35: 2366 | I35: 2258 | J35: 2423 | K35: 2594 | L35: 2354 | M35: 2472
A36: West Lothian | B36: 4997 | C36: 5133 | D36: 4878 | E36: 5248 | F36: 5353 | G36: 4831 | H36: 4627 | I36: 4598 | J36: 4752 | K36: 4974 | L36: 4789 | M36: 4834
A38: NHS Board Areas
A39: SCOTLAND | B39: 71757 | C39: 73835 | D39: 75813 | E39: 63597 | F39: 72118 | G39: 66085 | H39: 66332 | I39: 57677 | J39: 68278 | K39: 65923 | L39: 64857 | M39: 56986
A40: Ayrshire & Arran | B40: 8240 | C40: 8637 | D40: 8237 | E40: 7773 | F40: 7780 | G40: 7523 | H40: 7408 | I40: 6999 | J40: 7806 | K40: 7839 | L40: 7902 | M40: 7591
A41: Borders | B41: 4031 | C41: 3958 | D41: 3925 | E41: 3658 | F41: 4002 | G41: 3890 | H41: 3856 | I41: 3603 | J41: 3947 | K41: 3665 | L41: 3916 | M41: 3695
A42: Dumfries & Galloway | B42: 4095 | C42: 4290 | D42: 4271 | E42: 3960 | F42: 4121 | G42: 3882 | H42: 3826 | I42: 3625 | J42: 3963 | K42: 3987 | L42: 3713 | M42: 3598
A43: Fife | B43: 10226 | C43: 10550 | D43: 10591 | E43: 10044 | F43: 10456 | G43: 9644 | H43: 9526 | I43: 9101 | J43: 10118 | K43: 10155 | L43: 10244 | M43: 10061
A44: Forth Valley | B44: 7915 | C44: 8389 | D44: 8314 | E44: 8103 | F44: 8530 | G44: 7922 | H44: 7536 | I44: 7400 | J44: 8236 | K44: 8619 | L44: 8646 | M44: 8284
A45: Grampian | B45: 15071 | C45: 15384 | D45: 15518 | E45: 14076 | F45: 16059 | G45: 15007 | H45: 15023 | I45: 14494 | J45: 15700 | K45: 15576 | L45: 16298 | M45: 16723
A46: Greater Glasgow & Clyde | B46: 40075 | C46: 40194 | D46: 39326 | E46: 35556 | F46: 37184 | G46: 34306 | H46: 34285 | I46: 32012 | J46: 31502 | K46: 31478 | L46: 30990 | M46: 30093
A47: Highland | B47: 10562 | C47: 11316 | D47: 11424 | E47: 10560 | F47: 11279 | G47: 10633 | H47: 10206 | I47: 9743 | J47: 10761 | K47: 10588 | L47: 10722 | M47: 10426
A48: Lanarkshire | B48: 11303 | C48: 11525 | D48: 11539 | E48: 10862 | F48: 11367 | G48: 10849 | H48: 10529 | I48: 10032 | J48: 12581 | K48: 12326 | L48: 12507 | M48: 12979
A49: Lothian | B49: 28661 | C49: 29583 | D49: 29417 | E49: 26604 | F49: 28887 | G49: 26576 | H49: 26325 | I49: 24581 | J49: 27893 | K49: 27808 | L49: 28493 | M49: 26808
A50: Orkney | B50: 636 | C50: 666 | D50: 579 | E50: 596 | F50: 650 | G50: 620 | H50: 642 | I50: 567 | J50: 629 | K50: 681 | L50: 680 | M50: 611
A51: Shetland | B51: 743 | C51: 735 | D51: 836 | E51: 735 | F51: 724 | G51: 608 | H51: 603 | I51: 649 | J51: 734 | K51: 736 | L51: 679 | M51: 741
A52: Tayside | B52: 11384 | C52: 11714 | D52: 11792 | E52: 11326 | F52: 12064 | G52: 11508 | H52: 11602 | I52: 11014 | J52: 12281 | K52: 12670 | L52: 12393 | M52: 12305
A53: Western Isles | B53: 987 | C53: 945 | D53: 962 | E53: 961 | F53: 1005 | G53: 895 | H53: 805 | I53: 885 | J53: 853 | K53: 880 | L53: 906 | M53: 886
A55: Notes
A56: 1) Figures include asylum seekers and rounding adjustments.
A57: 2) Movements to/from the armed forces were included in these figures in previous releases of this spreadsheet but are no longer treated as migration. Armed forces movements are included in the mid-year population estimates under another category.
A58: 3) Scotland level estimates cannot be derived by adding together the estimates for individual council areas or NHS Board areas. This is because administrative area estimates include moves within Scotland. Therefore it would not be appropriate to compare total in-migration for Scotland with total in-migration for an administrative area.
A59: 4) Source for data: 'In, out and net migration between administrative areas and overseas, 2001/02 to latest' from the Migration between Scotland and Overseas section of the NRS website.
A60: 5) The NHS Board areas used for estimates between 2003/04 and 2010/11 are those that existed between 2006 and 2014. The 2011/12 estimates onwards use the NHS Board areas that came into force in April 2014.
A62: © Crown Copyright 2016

Sheet Within Scotland net migration
A1: Within Scotland net migration | K1: Return to front page
A3: Council Area | B3: 2003/04 | C3: 2004/05 | D3: 2005/06 | E3: 2006/07 | F3: 2007/08 | G3: 2008/09 | H3: 2009/10 | I3: 2010/11 | J3: 2011/12 | K3: 2012/13 | L3: 2013/14 | M3: 2014/15
A4: SCOTLAND | B4: n/a | C4: n/a | D4: n/a | E4: n/a | F4: n/a | G4: n/a | H4: n/a | I4: n/a | J4: n/a | K4: n/a | L4: n/a | M4: n/a
A5: Aberdeen City | B5: -1678 | C5: -1086 | D5: -1135 | E5: -1116 | F5: -1657 | G5: -976 | H5: -1307 | I5: -1055 | J5: -356 | K5: -195 | L5: -1140 | M5: -2221
A6: Aberdeenshire | B6: 1238 | C6: 869 | D6: 1342 | E6: 1097 | F6: 878 | G6: 685 | H6: 1077 | I6: 793 | J6: 1075 | K6: 1183 | L6: 1642 | M6: 951
A7: Angus | B7: 996 | C7: 506 | D7: 687 | E7: 392 | F7: 380 | G7: -24 | H7: 117 | I7: -34 | J7: 198 | K7: 162 | L7: 426 | M7: 441
A8: Argyll & Bute | B8: 203 | C8: -31 | D8: -238 | E8: -231 | F8: -211 | G8: -285 | H8: -147 | I8: -121 | J8: -333 | K8: -196 | L8: -444 | M8: -444
A9: Clackmannanshire | B9: 340 | C9: 294 | D9: 144 | E9: 394 | F9: 291 | G9: 5 | H9: -105 | I9: -7 | J9: -248 | K9: -85 | L9: -57 | M9: 67
A10: Dumfries & Galloway | B10: -56 | C10: -118 | D10: -261 | E10: -56 | F10: 54 | G10: -84 | H10: -101 | I10: -87 | J10: -170 | K10: -194 | L10: -110 | M10: -103
A11: Dundee City | B11: -689 | C11: -347 | D11: -647 | E11: -528 | F11: -392 | G11: -103 | H11: -277 | I11: -9 | J11: -128 | K11: -249 | L11: -308 | M11: -515
A12: East Ayrshire | B12: 283 | C12: -28 | D12: 174 | E12: 246 | F12: 359 | G12: 401 | H12: 73 | I12: 13 | J12: -67 | K12: -37 | L12: 43 | M12: -15
A13: East Dunbartonshire | B13: -158 | C13: -260 | D13: -130 | E13: -170 | F13: -102 | G13: -13 | H13: 163 | I13: 22 | J13: 370 | K13: 287 | L13: 1063 | M13: 607
A14: East Lothian | B14: 355 | C14: 484 | D14: 879 | E14: 1093 | F14: 991 | G14: 422 | H14: 352 | I14: 211 | J14: 474 | K14: 496 | L14: 559 | M14: 684
A15: East Renfrewshire | B15: 194 | C15: 132 | D15: 73 | E15: 247 | F15: 158 | G15: 119 | H15: 382 | I15: 275 | J15: 468 | K15: 698 | L15: 938 | M15: 708
A16: Edinburgh, City of | B16: -2856 | C16: -1553 | D16: -2614 | E16: -1953 | F16: -1978 | G16: -768 | H16: -364 | I16: -394 | J16: -251 | K16: -614 | L16: -1711 | M16: -1927
A17: Eilean Siar | B17: -41 | C17: 35 | D17: -48 | E17: -52 | F17: -80 | G17: -31 | H17: 27 | I17: -33 | J17: -30 | K17: -73 | L17: -60 | M17: -46
A18: Falkirk | B18: 1049 | C18: 1155 | D18: 772 | E18: 580 | F18: 440 | G18: 431 | H18: 282 | I18: 609 | J18: 365 | K18: 396 | L18: 172 | M18: 391
A19: Fife | B19: 1302 | C19: 940 | D19: 635 | E19: 266 | F19: 731 | G19: 252 | H19: 531 | I19: 449 | J19: 198 | K19: -120 | L19: -88 | M19: -68
A20: Glasgow City | B20: -4552 | C20: -3302 | D20: -2651 | E20: -2762 | F20: -2169 | G20: -1521 | H20: -1862 | I20: -1231 | J20: -2103 | K20: -1801 | L20: -2681 | M20: -2417
A21: Highland | B21: 23 | C21: 89 | D21: 131 | E21: 62 | F21: 431 | G21: 77 | H21: -73 | I21: -169 | J21: -87 | K21: -428 | L21: -410 | M21: -28
A22: Inverclyde | B22: -300 | C22: -255 | D22: -312 | E22: -271 | F22: -203 | G22: -311 | H22: -165 | I22: -246 | J22: -196 | K22: -153 | L22: -287 | M22: -253
A23: Midlothian | B23: -238 | C23: -226 | D23: -217 | E23: -1 | F23: 331 | G23: 489 | H23: 253 | I23: 375 | J23: 509 | K23: 565 | L23: 947 | M23: 1034
A24: Moray | B24: 193 | C24: -70 | D24: 6 | E24: -168 | F24: -64 | G24: 52 | H24: -100 | I24: 64 | J24: -116 | K24: 127 | L24: 184 | M24: 274
A25: North Ayrshire | B25: 247 | C25: 212 | D25: 147 | E25: 351 | F25: 139 | G25: -174 | H25: -154 | I25: 22 | J25: -184 | K25: -197 | L25: -210 | M25: -74
A26: North Lanarkshire | B26: 412 | C26: 332 | D26: 342 | E26: 267 | F26: 219 | G26: 55 | H26: -247 | I26: -202 | J26: -106 | K26: -182 | L26: -181 | M26: -152
A27: Orkney Islands | B27: -45 | C27: -15 | D27: 79 | E27: -17 | F27: -51 | G27: -63 | H27: 15 | I27: 8 | J27: 44 | K27: 20 | L27: -41 | M27: -35
A28: Perth & Kinross | B28: 532 | C28: 382 | D28: 603 | E28: 473 | F28: 491 | G28: 369 | H28: 457 | I28: 342 | J28: 309 | K28: 179 | L28: 613 | M28: 468
A29: Renfrewshire | B29: -311 | C29: -402 | D29: -208 | E29: -224 | F29: 153 | G29: 126 | H29: 128 | I29: 173 | J29: -269 | K29: -143 | L29: 381 | M29: 203
A30: Scottish Borders | B30: 387 | C30: 326 | D30: 272 | E30: 547 | F30: 360 | G30: 158 | H30: 144 | I30: 134 | J30: -79 | K30: -8 | L30: 67 | M30: 91
A31: Shetland Islands | B31: -85 | C31: -101 | D31: -84 | E31: -102 | F31: -103 | G31: 9 | H31: -39 | I31: 10 | J31: -104 | K31: -85 | L31: -30 | M31: -99
A32: South Ayrshire | B32: 516 | C32: 178 | D32: 255 | E32: 294 | F32: 222 | G32: 127 | H32: 144 | I32: 226 | J32: 297 | K32: 333 | L32: 100 | M32: 112
A33: South Lanarkshire | B33: 2019 | C33: 1026 | D33: 1239 | E33: 1302 | F33: 695 | G33: 746 | H33: 909 | I33: 482 | J33: 661 | K33: 948 | L33: 536 | M33: 1228
A34: Stirling | B34: -403 | C34: 404 | D34: 222 | E34: -356 | F34: -334 | G34: -148 | H34: 309 | I34: -110 | J34: 212 | K34: 107 | L34: 61 | M34: 413
A35: West Dunbartonshire | B35: -204 | C35: -151 | D35: 28 | E35: -108 | F35: -150 | G35: 14 | H35: -256 | I35: -191 | J35: -252 | K35: -370 | L35: -133 | M35: 92
A36: West Lothian | B36: 1327 | C36: 581 | D36: 515 | E36: 504 | F36: 171 | G36: -36 | H36: -166 | I36: -319 | J36: -101 | K36: -371 | L36: 159 | M36: 633
A38: NHS Board Areas
A39: SCOTLAND | B39: n/a | C39: n/a | D39: n/a | E39: n/a | F39: n/a | G39: n/a | H39: n/a | I39: n/a | J39: n/a | K39: n/a | L39: n/a | M39: n/a
A40: Ayrshire & Arran | B40: 1046 | C40: 362 | D40: 576 | E40: 891 | F40: 720 | G40: 354 | H40: 63 | I40: 261 | J40: 46 | K40: 99 | L40: -67 | M40: 23
A41: Borders | B41: 387 | C41: 326 | D41: 272 | E41: 547 | F41: 360 | G41: 158 | H41: 144 | I41: 134 | J41: -79 | K41: -8 | L41: 67 | M41: 91
A42: Dumfries & Galloway | B42: -56 | C42: -118 | D42: -261 | E42: -56 | F42: 54 | G42: -84 | H42: -101 | I42: -87 | J42: -170 | K42: -194 | L42: -110 | M42: -103
A43: Fife | B43: 1302 | C43: 940 | D43: 638 | E43: 264 | F43: 730 | G43: 250 | H43: 532 | I43: 444 | J43: 198 | K43: -120 | L43: -88 | M43: -68
A44: Forth Valley | B44: 986 | C44: 1853 | D44: 1138 | E44: 618 | F44: 397 | G44: 288 | H44: 486 | I44: 492 | J44: 329 | K44: 418 | L44: 176 | M44: 871
A45: Grampian | B45: -247 | C45: -287 | D45: 213 | E45: -187 | F45: -843 | G45: -239 | H45: -330 | I45: -198 | J45: 603 | K45: 1115 | L45: 686 | M45: -996
A46: Greater Glasgow & Clyde | B46: -4565 | C46: -3804 | D46: -2552 | E46: -2564 | F46: -2083 | G46: -1104 | H46: -1029 | I46: -1052 | J46: -1982 | K46: -1482 | L46: -719 | M46: -1060
A47: Highland | B47: 226 | C47: 58 | D47: -107 | E47: -169 | F47: 220 | G47: -208 | H47: -220 | I47: -290 | J47: -420 | K47: -624 | L47: -854 | M47: -472
A48: Lanarkshire | B48: 1665 | C48: 924 | D48: 933 | E48: 845 | F48: 684 | G48: 319 | H48: 81 | I48: 134 | J48: 555 | K48: 766 | L48: 355 | M48: 1076
A49: Lothian | B49: -1412 | C49: -714 | D49: -1437 | E49: -357 | F49: -485 | G49: 107 | H49: 75 | I49: -127 | J49: 631 | K49: 76 | L49: -46 | M49: 424
A50: Orkney | B50: -45 | C50: -15 | D50: 79 | E50: -17 | F50: -51 | G50: -63 | H50: 15 | I50: 8 | J50: 44 | K50: 20 | L50: -41 | M50: -35
A51: Shetland | B51: -85 | C51: -101 | D51: -84 | E51: -102 | F51: -103 | G51: 9 | H51: -39 | I51: 10 | J51: -104 | K51: -85 | L51: -30 | M51: -99
A52: Tayside | B52: 839 | C52: 541 | D52: 640 | E52: 339 | F52: 480 | G52: 244 | H52: 296 | I52: 304 | J52: 379 | K52: 92 | L52: 731 | M52: 394
A53: Western Isles | B53: -41 | C53: 35 | D53: -48 | E53: -52 | F53: -80 | G53: -31 | H53: 27 | I53: -33 | J53: -30 | K53: -73 | L53: -60 | M53: -46
A55: Notes
A56: 1) Movements to/from the armed forces were included in these figures in previous releases of this spreadsheet but are no longer treated as migration. Armed forces movements are included in the mid-year population estimates under another category.
A57: 2) Scotland level estimates cannot be derived by adding together the estimates for individual council areas or NHS Board areas. This is because administrative area estimates include moves within Scotland. Therefore it would not be appropriate to compare total in-migration for Scotland with total in-migration for an administrative area.
A58: 3) Source for data: 'In, out and net migration between administrative areas and overseas, 2001/02 to latest' from the Migration between Scotland and Overseas section of the NRS website.
A60: © Crown Copyright 2016

Sheet Within Scotland in-migration
A1: Within Scotland in-migration | K1: Return to front page
A3: Council Area | B3: 2003/04 | C3: 2004/05 | D3: 2005/06 | E3: 2006/07 | F3: 2007/08 | G3: 2008/09 | H3: 2009/10 | I3: 2010/11 | J3: 2011/12 | K3: 2012/13 | L3: 2013/14 | M3: 2014/15
A4: SCOTLAND | B4: n/a | C4: n/a | D4: n/a | E4: n/a | F4: n/a | G4: n/a | H4: n/a | I4: n/a | J4: n/a | K4: n/a | L4: n/a | M4: n/a
A5: Aberdeen City | B5: 5544 | C5: 5827 | D5: 5796 | E5: 5631 | F5: 5634 | G5: 5740 | H5: 5518 | I5: 5957 | J5: 6712 | K5: 7418 | L5: 7043 | M5: 6807
A6: Aberdeenshire | B6: 5988 | C6: 5918 | D6: 6057 | E6: 5939 | F6: 6013 | G6: 5527 | H6: 5785 | I6: 5789 | J6: 6195 | K6: 6667 | L6: 7233 | M6: 6869
A7: Angus | B7: 3412 | C7: 3076 | D7: 3066 | E7: 2933 | F7: 2934 | G7: 2285 | H7: 2486 | I7: 2567 | J7: 2813 | K7: 2931 | L7: 3133 | M7: 3282
A8: Argyll & Bute | B8: 2619 | C8: 2439 | D8: 2254 | E8: 2201 | F8: 2212 | G8: 2091 | H8: 2144 | I8: 2046 | J8: 2208 | K8: 2313 | L8: 2165 | M8: 2273
A9: Clackmannanshire | B9: 1451 | C9: 1428 | D9: 1328 | E9: 1573 | F9: 1511 | G9: 1191 | H9: 1120 | I9: 1129 | J9: 1030 | K9: 1182 | L9: 1278 | M9: 1459
A10: Dumfries & Galloway | B10: 1783 | C10: 1835 | D10: 1663 | E10: 1728 | F10: 1790 | G10: 1713 | H10: 1621 | I10: 1652 | J10: 1719 | K10: 1734 | L10: 1725 | M10: 1734
A11: Dundee City | B11: 3518 | C11: 3571 | D11: 3502 | E11: 3598 | F11: 3776 | G11: 3599 | H11: 3509 | I11: 3770 | J11: 3898 | K11: 4170 | L11: 4199 | M11: 4252
A12: East Ayrshire | B12: 2568 | C12: 2392 | D12: 2465 | E12: 2722 | F12: 2686 | G12: 2540 | H12: 2267 | I12: 2301 | J12: 2266 | K12: 2366 | L12: 2486 | M12: 2605
A13: East Dunbartonshire | B13: 2936 | C13: 2888 | D13: 2808 | E13: 2873 | F13: 2828 | G13: 2594 | H13: 2527 | I13: 2459 | J13: 2859 | K13: 2984 | L13: 3490 | M13: 3615
A14: East Lothian | B14: 2695 | C14: 2729 | D14: 2919 | E14: 3186 | F14: 3246 | G14: 2514 | H14: 2571 | I14: 2531 | J14: 2746 | K14: 2820 | L14: 3057 | M14: 3231
A15: East Renfrewshire | B15: 2868 | C15: 2780 | D15: 2765 | E15: 2850 | F15: 2829 | G15: 2442 | H15: 2539 | I15: 2575 | J15: 2827 | K15: 3156 | L15: 3291 | M15: 3416
A16: Edinburgh, City of | B16: 10813 | C16: 11328 | D16: 10338 | E16: 11202 | F16: 10744 | G16: 10798 | H16: 10794 | I16: 10814 | J16: 11513 | K16: 11500 | L16: 11533 | M16: 12285
A17: Eilean Siar | B17: 647 | C17: 676 | D17: 613 | E17: 588 | F17: 616 | G17: 598 | H17: 601 | I17: 576 | J17: 553 | K17: 499 | L17: 557 | M17: 604
A18: Falkirk | B18: 3258 | C18: 3507 | D18: 3152 | E18: 3164 | F18: 2997 | G18: 2658 | H18: 2502 | I18: 2988 | J18: 2855 | K18: 3170 | L18: 3055 | M18: 3367
A19: Fife | B19: 6965 | C19: 6842 | D19: 6375 | E19: 6103 | F19: 6397 | G19: 5675 | H19: 5753 | I19: 5852 | J19: 5926 | K19: 5733 | L19: 6036 | M19: 6390
A20: Glasgow City | B20: 13112 | C20: 13788 | D20: 13809 | E20: 13905 | F20: 14583 | G20: 13898 | H20: 13338 | I20: 13663 | J20: 14155 | K20: 14999 | L20: 14980 | M20: 16288
A21: Highland | B21: 4292 | C21: 4472 | D21: 4445 | E21: 4164 | F21: 4531 | G21: 4134 | H21: 3911 | I21: 3965 | J21: 3993 | K21: 3974 | L21: 4058 | M21: 4330
A22: Inverclyde | B22: 1043 | C22: 1073 | D22: 976 | E22: 1038 | F22: 1045 | G22: 853 | H22: 896 | I22: 869 | J22: 890 | K22: 983 | L22: 939 | M22: 1003
A23: Midlothian | B23: 2056 | C23: 1984 | D23: 1947 | E23: 2331 | F23: 2338 | G23: 2194 | H23: 2022 | I23: 2157 | J23: 2278 | K23: 2461 | L23: 2866 | M23: 3073
A24: Moray | B24: 1861 | C24: 1712 | D24: 1707 | E24: 1549 | F24: 1643 | G24: 1679 | H24: 1551 | I24: 1711 | J24: 1627 | K24: 1820 | L24: 1901 | M24: 2091
A25: North Ayrshire | B25: 3117 | C25: 3067 | D25: 2878 | E25: 3109 | F25: 2901 | G25: 2486 | H25: 2430 | I25: 2461 | J25: 2566 | K25: 2573 | L25: 2537 | M25: 2816
A26: North Lanarkshire | B26: 5827 | C26: 5706 | D26: 5665 | E26: 5791 | F26: 5578 | G26: 5037 | H26: 4438 | I26: 4741 | J26: 5024 | K26: 5112 | L26: 5184 | M26: 5780
A27: Orkney Islands | B27: 384 | C27: 381 | D27: 420 | E27: 363 | F27: 368 | G27: 352 | H27: 430 | I27: 345 | J27: 414 | K27: 429 | L27: 378 | M27: 389
A28: Perth & Kinross | B28: 4048 | C28: 3808 | D28: 3940 | E28: 3749 | F28: 3905 | G28: 3453 | H28: 3471 | I28: 3448 | J28: 3683 | K28: 3904 | L28: 4138 | M28: 4209
A29: Renfrewshire | B29: 3268 | C29: 3428 | D29: 3270 | E29: 3488 | F29: 3536 | G29: 3301 | H29: 3267 | I29: 3331 | J29: 3219 | K29: 3331 | L29: 3895 | M29: 4075
A30: Scottish Borders | B30: 2611 | C30: 2574 | D30: 2350 | E30: 2591 | F30: 2496 | G30: 2282 | H30: 2235 | I30: 2207 | J30: 2109 | K30: 2151 | L30: 2315 | M30: 2286
A31: Shetland Islands | B31: 367 | C31: 380 | D31: 394 | E31: 365 | F31: 330 | G31: 384 | H31: 300 | I31: 382 | J31: 321 | K31: 351 | L31: 357 | M31: 390
A32: South Ayrshire | B32: 2706 | C32: 2529 | D32: 2436 | E32: 2601 | F32: 2507 | G32: 2328 | H32: 2228 | I32: 2307 | J32: 2515 | K32: 2681 | L32: 2477 | M32: 2684
A33: South Lanarkshire | B33: 7379 | C33: 6605 | D33: 6778 | E33: 6809 | F33: 6527 | G33: 5987 | H33: 5870 | I33: 5667 | J33: 6301 | K33: 6550 | L33: 6411 | M33: 7455
A34: Stirling | B34: 2693 | C34: 3659 | D34: 3239 | E34: 2981 | F34: 2884 | G34: 2797 | H34: 3068 | I34: 2838 | J34: 3151 | K34: 3336 | L34: 3315 | M34: 3793
A35: West Dunbartonshire | B35: 1809 | C35: 1726 | D35: 1834 | E35: 1782 | F35: 1874 | G35: 1726 | H35: 1524 | I35: 1531 | J35: 1654 | K35: 1653 | L35: 1759 | M35: 2083
A36: West Lothian | B36: 4694 | C36: 4221 | D36: 3989 | E36: 4312 | F36: 3910 | G36: 3265 | H36: 3075 | I36: 3073 | J36: 3263 | K36: 3208 | L36: 3703 | M36: 4308
A38: NHS Board Areas
A39: SCOTLAND | B39: n/a | C39: n/a | D39: n/a | E39: n/a | F39: n/a | G39: n/a | H39: n/a | I39: n/a | J39: n/a | K39: n/a | L39: n/a | M39: n/a
A40: Ayrshire & Arran | B40: 5733 | C40: 5404 | D40: 5180 | E40: 5606 | F40: 5341 | G40: 4894 | H40: 4572 | I40: 4713 | J40: 4862 | K40: 5107 | L40: 5048 | M40: 5303
A41: Borders | B41: 2611 | C41: 2574 | D41: 2350 | E41: 2591 | F41: 2496 | G41: 2282 | H41: 2235 | I41: 2207 | J41: 2109 | K41: 2151 | L41: 2315 | M41: 2286
A42: Dumfries & Galloway | B42: 1783 | C42: 1835 | D42: 1663 | E42: 1728 | F42: 1790 | G42: 1713 | H42: 1621 | I42: 1652 | J42: 1719 | K42: 1734 | L42: 1725 | M42: 1734
A43: Fife | B43: 6965 | C43: 6842 | D43: 6375 | E43: 6099 | F43: 6396 | G43: 5673 | H43: 5751 | I43: 5850 | J43: 5926 | K43: 5733 | L43: 6036 | M43: 6390
A44: Forth Valley | B44: 5806 | C44: 7028 | D44: 6139 | E44: 5984 | F44: 5788 | G44: 5282 | H44: 5281 | I44: 5505 | J44: 5614 | K44: 6165 | L44: 6055 | M44: 6915
A45: Grampian | B45: 6501 | C45: 6793 | D45: 6853 | E45: 6458 | F45: 6321 | G45: 6678 | H45: 6283 | I45: 6793 | J45: 7668 | K45: 8283 | L45: 8368 | M45: 7743
A46: Greater Glasgow & Clyde | B46: 17447 | C46: 18095 | D46: 18307 | E46: 18605 | F46: 19385 | G46: 18513 | H46: 18196 | I46: 18152 | J46: 14824 | K46: 15562 | L46: 16352 | M46: 17265
A47: Highland | B47: 6559 | C47: 6607 | D47: 6358 | E47: 6038 | F47: 6392 | G47: 5916 | H47: 5734 | I47: 5712 | J47: 5875 | K47: 5936 | L47: 5881 | M47: 6276
A48: Lanarkshire | B48: 8733 | C48: 8230 | D48: 8291 | E48: 8184 | F48: 8130 | G48: 7396 | H48: 6924 | I48: 7125 | J48: 9166 | K48: 9333 | L48: 9313 | M48: 10638
A49: Lothian | B49: 11516 | C49: 12128 | D49: 11035 | E49: 11917 | F49: 11719 | G49: 11611 | H49: 11425 | I49: 11296 | J49: 12545 | K49: 12321 | L49: 12790 | M49: 13662
A50: Orkney | B50: 384 | C50: 381 | D50: 420 | E50: 363 | F50: 368 | G50: 352 | H50: 430 | I50: 345 | J50: 414 | K50: 429 | L50: 378 | M50: 389
A51: Shetland | B51: 367 | C51: 380 | D51: 394 | E51: 365 | F51: 330 | G51: 384 | H51: 300 | I51: 382 | J51: 321 | K51: 351 | L51: 357 | M51: 390
A52: Tayside | B52: 7120 | C52: 7078 | D52: 6940 | E52: 6691 | F52: 6918 | G52: 6486 | H52: 6487 | I52: 6720 | J52: 7130 | K52: 7481 | L52: 8057 | M52: 8220
A53: Western Isles | B53: 647 | C53: 676 | D53: 613 | E53: 588 | F53: 616 | G53: 598 | H53: 601 | I53: 576 | J53: 553 | K53: 499 | L53: 557 | M53: 604
A55: Notes
A56: 1) Movements to/from the armed forces were included in these figures in previous releases of this spreadsheet but are no longer treated as migration. Armed forces movements are included in the mid-year population estimates under another category.
A57: 2) Scotland level estimates cannot be derived by adding together the estimates for individual council areas or NHS Board areas. This is because administrative area estimates include moves within Scotland. Therefore it would not be appropriate to compare total in-migration for Scotland with total in-migration for an administrative area.
A58: 4) Source for data: 'In, out and net migration between administrative areas and overseas, 2001/02 to latest' from the Migration between Scotland and Overseas section of the NRS website.
A60: © Crown Copyright 2016

Sheet Within Scotland out-migration
A1: Within Scotland out-migration | K1: Return to front page
A3: Council Area | B3: 2003/04 | C3: 2004/05 | D3: 2005/06 | E3: 2006/07 | F3: 2007/08 | G3: 2008/09 | H3: 2009/10 | I3: 2010/11 | J3: 2011/12 | K3: 2012/13 | L3: 2013/14 | M3: 2014/15
A4: SCOTLAND | B4: n/a | C4: n/a | D4: n/a | E4: n/a | F4: n/a | G4: n/a | H4: n/a | I4: n/a | J4: n/a | K4: n/a | L4: n/a | M4: n/a
A5: Aberdeen City | B5: 7222 | C5: 6913 | D5: 6931 | E5: 6747 | F5: 7291 | G5: 6716 | H5: 6825 | I5: 7012 | J5: 7068 | K5: 7613 | L5: 8183 | M5: 9028
A6: Aberdeenshire | B6: 4750 | C6: 5049 | D6: 4715 | E6: 4842 | F6: 5135 | G6: 4842 | H6: 4708 | I6: 4996 | J6: 5120 | K6: 5484 | L6: 5591 | M6: 5918
A7: Angus | B7: 2416 | C7: 2570 | D7: 2379 | E7: 2541 | F7: 2554 | G7: 2309 | H7: 2369 | I7: 2601 | J7: 2615 | K7: 2769 | L7: 2707 | M7: 2841
A8: Argyll & Bute | B8: 2416 | C8: 2470 | D8: 2492 | E8: 2432 | F8: 2423 | G8: 2376 | H8: 2291 | I8: 2167 | J8: 2541 | K8: 2509 | L8: 2609 | M8: 2717
A9: Clackmannanshire | B9: 1111 | C9: 1134 | D9: 1184 | E9: 1179 | F9: 1220 | G9: 1186 | H9: 1225 | I9: 1136 | J9: 1278 | K9: 1267 | L9: 1335 | M9: 1392
A10: Dumfries & Galloway | B10: 1839 | C10: 1953 | D10: 1924 | E10: 1784 | F10: 1736 | G10: 1797 | H10: 1722 | I10: 1739 | J10: 1889 | K10: 1928 | L10: 1835 | M10: 1837
A11: Dundee City | B11: 4207 | C11: 3918 | D11: 4149 | E11: 4126 | F11: 4168 | G11: 3702 | H11: 3786 | I11: 3779 | J11: 4026 | K11: 4419 | L11: 4507 | M11: 4767
A12: East Ayrshire | B12: 2285 | C12: 2420 | D12: 2291 | E12: 2476 | F12: 2327 | G12: 2139 | H12: 2194 | I12: 2288 | J12: 2333 | K12: 2403 | L12: 2443 | M12: 2620
A13: East Dunbartonshire | B13: 3094 | C13: 3148 | D13: 2938 | E13: 3043 | F13: 2930 | G13: 2607 | H13: 2364 | I13: 2437 | J13: 2489 | K13: 2697 | L13: 2427 | M13: 3008
A14: East Lothian | B14: 2340 | C14: 2245 | D14: 2040 | E14: 2093 | F14: 2255 | G14: 2092 | H14: 2219 | I14: 2320 | J14: 2272 | K14: 2324 | L14: 2498 | M14: 2547
A15: East Renfrewshire | B15: 2674 | C15: 2648 | D15: 2692 | E15: 2603 | F15: 2671 | G15: 2323 | H15: 2157 | I15: 2300 | J15: 2359 | K15: 2458 | L15: 2353 | M15: 2708
A16: Edinburgh, City of | B16: 13669 | C16: 12881 | D16: 12952 | E16: 13155 | F16: 12722 | G16: 11566 | H16: 11158 | I16: 11208 | J16: 11764 | K16: 12114 | L16: 13244 | M16: 14212
A17: Eilean Siar | B17: 688 | C17: 641 | D17: 661 | E17: 640 | F17: 696 | G17: 629 | H17: 574 | I17: 609 | J17: 583 | K17: 572 | L17: 617 | M17: 650
A18: Falkirk | B18: 2209 | C18: 2352 | D18: 2380 | E18: 2584 | F18: 2557 | G18: 2227 | H18: 2220 | I18: 2379 | J18: 2490 | K18: 2774 | L18: 2883 | M18: 2976
A19: Fife | B19: 5663 | C19: 5902 | D19: 5740 | E19: 5837 | F19: 5666 | G19: 5423 | H19: 5222 | I19: 5403 | J19: 5728 | K19: 5853 | L19: 6124 | M19: 6458
A20: Glasgow City | B20: 17664 | C20: 17090 | D20: 16460 | E20: 16667 | F20: 16752 | G20: 15419 | H20: 15200 | I20: 14894 | J20: 16258 | K20: 16800 | L20: 17661 | M20: 18705
A21: Highland | B21: 4269 | C21: 4383 | D21: 4314 | E21: 4102 | F21: 4100 | G21: 4057 | H21: 3984 | I21: 4134 | J21: 4080 | K21: 4402 | L21: 4468 | M21: 4358
A22: Inverclyde | B22: 1343 | C22: 1328 | D22: 1288 | E22: 1309 | F22: 1248 | G22: 1164 | H22: 1061 | I22: 1115 | J22: 1086 | K22: 1136 | L22: 1226 | M22: 1256
A23: Midlothian | B23: 2294 | C23: 2210 | D23: 2164 | E23: 2332 | F23: 2007 | G23: 1705 | H23: 1769 | I23: 1782 | J23: 1769 | K23: 1896 | L23: 1919 | M23: 2039
A24: Moray | B24: 1668 | C24: 1782 | D24: 1701 | E24: 1717 | F24: 1707 | G24: 1627 | H24: 1651 | I24: 1647 | J24: 1743 | K24: 1693 | L24: 1717 | M24: 1817
A25: North Ayrshire | B25: 2870 | C25: 2855 | D25: 2731 | E25: 2758 | F25: 2762 | G25: 2660 | H25: 2584 | I25: 2439 | J25: 2750 | K25: 2770 | L25: 2747 | M25: 2890
A26: North Lanarkshire | B26: 5415 | C26: 5374 | D26: 5323 | E26: 5524 | F26: 5359 | G26: 4982 | H26: 4685 | I26: 4943 | J26: 5130 | K26: 5294 | L26: 5365 | M26: 5932
A27: Orkney Islands | B27: 429 | C27: 396 | D27: 341 | E27: 380 | F27: 419 | G27: 415 | H27: 415 | I27: 337 | J27: 370 | K27: 409 | L27: 419 | M27: 424
A28: Perth & Kinross | B28: 3516 | C28: 3426 | D28: 3337 | E28: 3276 | F28: 3414 | G28: 3084 | H28: 3014 | I28: 3106 | J28: 3374 | K28: 3725 | L28: 3525 | M28: 3741
A29: Renfrewshire | B29: 3579 | C29: 3830 | D29: 3478 | E29: 3712 | F29: 3383 | G29: 3175 | H29: 3139 | I29: 3158 | J29: 3488 | K29: 3474 | L29: 3514 | M29: 3872
A30: Scottish Borders | B30: 2224 | C30: 2248 | D30: 2078 | E30: 2044 | F30: 2136 | G30: 2124 | H30: 2091 | I30: 2073 | J30: 2188 | K30: 2159 | L30: 2248 | M30: 2195
A31: Shetland Islands | B31: 452 | C31: 481 | D31: 478 | E31: 467 | F31: 433 | G31: 375 | H31: 339 | I31: 372 | J31: 425 | K31: 436 | L31: 387 | M31: 489
A32: South Ayrshire | B32: 2190 | C32: 2351 | D32: 2181 | E32: 2307 | F32: 2285 | G32: 2201 | H32: 2084 | I32: 2081 | J32: 2218 | K32: 2348 | L32: 2377 | M32: 2572
A33: South Lanarkshire | B33: 5360 | C33: 5579 | D33: 5539 | E33: 5507 | F33: 5832 | G33: 5241 | H33: 4961 | I33: 5185 | J33: 5640 | K33: 5602 | L33: 5875 | M33: 6227
A34: Stirling | B34: 3096 | C34: 3255 | D34: 3017 | E34: 3337 | F34: 3218 | G34: 2945 | H34: 2759 | I34: 2948 | J34: 2939 | K34: 3229 | L34: 3254 | M34: 3380
A35: West Dunbartonshire | B35: 2013 | C35: 1877 | D35: 1806 | E35: 1890 | F35: 2024 | G35: 1712 | H35: 1780 | I35: 1722 | J35: 1906 | K35: 2023 | L35: 1892 | M35: 1991
A36: West Lothian | B36: 3367 | C36: 3640 | D36: 3474 | E36: 3808 | F36: 3739 | G36: 3301 | H36: 3241 | I36: 3392 | J36: 3364 | K36: 3579 | L36: 3544 | M36: 3675
A38: NHS Board Areas
A39: SCOTLAND | B39: n/a | C39: n/a | D39: n/a | E39: n/a | F39: n/a | G39: n/a | H39: n/a | I39: n/a | J39: n/a | K39: n/a | L39: n/a | M39: n/a
A40: Ayrshire & Arran | B40: 4687 | C40: 5042 | D40: 4604 | E40: 4715 | F40: 4621 | G40: 4540 | H40: 4509 | I40: 4452 | J40: 4816 | K40: 5008 | L40: 5115 | M40: 5280
A41: Borders | B41: 2224 | C41: 2248 | D41: 2078 | E41: 2044 | F41: 2136 | G41: 2124 | H41: 2091 | I41: 2073 | J41: 2188 | K41: 2159 | L41: 2248 | M41: 2195
A42: Dumfries & Galloway | B42: 1839 | C42: 1953 | D42: 1924 | E42: 1784 | F42: 1736 | G42: 1797 | H42: 1722 | I42: 1739 | J42: 1889 | K42: 1928 | L42: 1835 | M42: 1837
A43: Fife | B43: 5663 | C43: 5902 | D43: 5737 | E43: 5835 | F43: 5666 | G43: 5423 | H43: 5219 | I43: 5406 | J43: 5728 | K43: 5853 | L43: 6124 | M43: 6458
A44: Forth Valley | B44: 4820 | C44: 5175 | D44: 5001 | E44: 5366 | F44: 5391 | G44: 4994 | H44: 4795 | I44: 5013 | J44: 5285 | K44: 5747 | L44: 5879 | M44: 6044
A45: Grampian | B45: 6748 | C45: 7080 | D45: 6640 | E45: 6645 | F45: 7164 | G45: 6917 | H45: 6613 | I45: 6991 | J45: 7065 | K45: 7168 | L45: 7682 | M45: 8739
A46: Greater Glasgow & Clyde | B46: 22012 | C46: 21899 | D46: 20859 | E46: 21169 | F46: 21468 | G46: 19617 | H46: 19225 | I46: 19204 | J46: 16806 | K46: 17044 | L46: 17071 | M46: 18325
A47: Highland | B47: 6333 | C47: 6549 | D47: 6465 | E47: 6207 | F47: 6172 | G47: 6124 | H47: 5954 | I47: 6002 | J47: 6295 | K47: 6560 | L47: 6735 | M47: 6748
A48: Lanarkshire | B48: 7068 | C48: 7306 | D48: 7358 | E48: 7339 | F48: 7446 | G48: 7077 | H48: 6843 | I48: 6991 | J48: 8611 | K48: 8567 | L48: 8958 | M48: 9562
A49: Lothian | B49: 12928 | C49: 12842 | D49: 12472 | E49: 12274 | F49: 12204 | G49: 11504 | H49: 11350 | I49: 11423 | J49: 11914 | K49: 12245 | L49: 12836 | M49: 13238
A50: Orkney | B50: 429 | C50: 396 | D50: 341 | E50: 380 | F50: 419 | G50: 415 | H50: 415 | I50: 337 | J50: 370 | K50: 409 | L50: 419 | M50: 424
A51: Shetland | B51: 452 | C51: 481 | D51: 478 | E51: 467 | F51: 433 | G51: 375 | H51: 339 | I51: 372 | J51: 425 | K51: 436 | L51: 387 | M51: 489
A52: Tayside | B52: 6281 | C52: 6537 | D52: 6300 | E52: 6352 | F52: 6438 | G52: 6242 | H52: 6191 | I52: 6416 | J52: 6751 | K52: 7389 | L52: 7326 | M52: 7826
A53: Western Isles | B53: 688 | C53: 641 | D53: 661 | E53: 640 | F53: 696 | G53: 629 | H53: 574 | I53: 609 | J53: 583 | K53: 572 | L53: 617 | M53: 650
A55: Notes
A56: 1) Movements to/from the armed forces were included in these figures in previous releases of this spreadsheet but are no longer treated as migration. Armed forces movements are included in the mid-year population estimates under another category.
A57: 2) Scotland level estimates cannot be derived by adding together the estimates for individual council areas or NHS Board areas. This is because administrative area estimates include moves within Scotland. Therefore it would not be appropriate to compare total in-migration for Scotland with total in-migration for an administrative area.
A58: 4) Source for data: 'In, out and net migration between administrative areas and overseas, 2001/02 to latest' from the Migration between Scotland and Overseas section of the NRS website.
A60: © Crown Copyright 2016

Sheet Rest of UK net migration
A1: Rest of UK net migration | K1: Return to front page
A3: Council Area | B3: 2003/04 | C3: 2004/05 | D3: 2005/06 | E3: 2006/07 | F3: 2007/08 | G3: 2008/09 | H3: 2009/10 | I3: 2010/11 | J3: 2011/12 | K3: 2012/13 | L3: 2013/14 | M3: 2014/15
A4: SCOTLAND | B4: 15522 | C4: 12507 | D4: 8922 | E4: 8849 | F4: 11509 | G4: 4122 | H4: 3275 | I4: 2909 | J4: 3038 | K4: 7862 | L4: 9585 | M4: 8368
A5: Aberdeen City | B5: -387 | C5: 46 | D5: 140 | E5: 317 | F5: 273 | G5: 281 | H5: 319 | I5: 3 | J5: 101 | K5: 557 | L5: 587 | M5: 117
A6: Aberdeenshire | B6: 1865 | C6: 1288 | D6: 1070 | E6: 750 | F6: 598 | G6: 217 | H6: -103 | I6: -132 | J6: 102 | K6: 365 | L6: 275 | M6: -221
A7: Angus | B7: 452 | C7: 439 | D7: 130 | E7: 158 | F7: 166 | G7: 27 | H7: 23 | I7: -86 | J7: 49 | K7: 38 | L7: 192 | M7: 107
A8: Argyll & Bute | B8: 827 | C8: 568 | D8: 549 | E8: 472 | F8: 398 | G8: 309 | H8: 352 | I8: 370 | J8: 271 | K8: 384 | L8: 403 | M8: 296
A9: Clackmannanshire | B9: 260 | C9: 270 | D9: 141 | E9: 189 | F9: 118 | G9: 1 | H9: 29 | I9: -7 | J9: 41 | K9: 60 | L9: 1 | M9: 79
A10: Dumfries & Galloway | B10: 1494 | C10: 1393 | D10: 846 | E10: 736 | F10: 931 | G10: 559 | H10: 382 | I10: 449 | J10: 322 | K10: 523 | L10: 711 | M10: 505
A11: Dundee City | B11: -156 | C11: 201 | D11: -149 | E11: -270 | F11: 50 | G11: -12 | H11: 0 | I11: -140 | J11: 55 | K11: 238 | L11: 41 | M11: 53
A12: East Ayrshire | B12: 216 | C12: 151 | D12: 111 | E12: 146 | F12: 283 | G12: 122 | H12: 54 | I12: 83 | J12: 124 | K12: 78 | L12: 41 | M12: 168
A13: East Dunbartonshire | B13: -109 | C13: -178 | D13: -128 | E13: -128 | F13: 43 | G13: -37 | H13: -165 | I13: -54 | J13: -19 | K13: -73 | L13: -46 | M13: 55
A14: East Lothian | B14: 122 | C14: 10 | D14: 9 | E14: 278 | F14: 391 | G14: 67 | H14: 98 | I14: 68 | J14: 197 | K14: 77 | L14: 122 | M14: 120
A15: East Renfrewshire | B15: -148 | C15: -72 | D15: -161 | E15: -194 | F15: -131 | G15: -28 | H15: -51 | I15: 22 | J15: -121 | K15: -51 | L15: 5 | M15: 2
A16: Edinburgh, City of | B16: 2050 | C16: 1650 | D16: 1917 | E16: 751 | F16: 1349 | G16: 358 | H16: 1132 | I16: 361 | J16: 159 | K16: 1659 | L16: 1733 | M16: 2139
A17: Eilean Siar | B17: 323 | C17: 245 | D17: 188 | E17: 99 | F17: 130 | G17: 115 | H17: 147 | I17: 53 | J17: 80 | K17: 113 | L17: 20 | M17: 39
A18: Falkirk | B18: 394 | C18: 241 | D18: 100 | E18: 38 | F18: 114 | G18: 10 | H18: 18 | I18: 134 | J18: 20 | K18: 107 | L18: 228 | M18: 216
A19: Fife | B19: 959 | C19: 930 | D19: 653 | E19: 614 | F19: 512 | G19: 239 | H19: 24 | I19: 327 | J19: 66 | K19: 478 | L19: 629 | M19: 468
A20: Glasgow City | B20: 35 | C20: 250 | D20: -402 | E20: 325 | F20: 850 | G20: 62 | H20: -471 | I20: -459 | J20: -291 | K20: 175 | L20: 732 | M20: 1180
A21: Highland | B21: 2821 | C21: 2150 | D21: 1464 | E21: 1643 | F21: 1368 | G21: 728 | H21: 705 | I21: 643 | J21: 380 | K21: 764 | L21: 737 | M21: 814
A22: Inverclyde | B22: -124 | C22: 3 | D22: -41 | E22: -64 | F22: 52 | G22: -43 | H22: -86 | I22: -18 | J22: -10 | K22: 50 | L22: 80 | M22: 103
A23: Midlothian | B23: -3 | C23: -74 | D23: -43 | E23: 17 | F23: 89 | G23: -43 | H23: -56 | I23: 74 | J23: 26 | K23: 56 | L23: 113 | M23: -27
A24: Moray | B24: 866 | C24: 695 | D24: 428 | E24: 456 | F24: 403 | G24: 310 | H24: 41 | I24: -131 | J24: 542 | K24: 615 | L24: 325 | M24: 258
A25: North Ayrshire | B25: 100 | C25: 75 | D25: 110 | E25: 124 | F25: 340 | G25: 145 | H25: 80 | I25: 82 | J25: 10 | K25: 127 | L25: 241 | M25: 176
A26: North Lanarkshire | B26: 150 | C26: 18 | D26: -7 | E26: 9 | F26: 218 | G26: 14 | H26: -152 | I26: 28 | J26: 39 | K26: 139 | L26: 260 | M26: 127
A27: Orkney Islands | B27: 324 | C27: 175 | D27: 148 | E27: 157 | F27: 172 | G27: 166 | H27: 145 | I27: 68 | J27: 95 | K27: 88 | L27: 124 | M27: 132
A28: Perth & Kinross | B28: 1026 | C28: 615 | D28: 450 | E28: 575 | F28: 529 | G28: 262 | H28: 237 | I28: 367 | J28: 219 | K28: 208 | L28: 327 | M28: 332
A29: Renfrewshire | B29: -144 | C29: -45 | D29: -215 | E29: -8 | F29: 113 | G29: -69 | H29: -29 | I29: -40 | J29: -42 | K29: 6 | L29: -1 | M29: 110
A30: Scottish Borders | B30: 1059 | C30: 570 | D30: 552 | E30: 686 | F30: 852 | G30: 248 | H30: 245 | I30: 288 | J30: 190 | K30: 489 | L30: 386 | M30: 394
A31: Shetland Islands | B31: 177 | C31: 193 | D31: 14 | E31: 134 | F31: 126 | G31: 116 | H31: 170 | I31: 14 | J31: 34 | K31: 28 | L31: 64 | M31: 31
A32: South Ayrshire | B32: 364 | C32: 292 | D32: 196 | E32: 219 | F32: 254 | G32: 152 | H32: 325 | I32: 290 | J32: 160 | K32: 265 | L32: 169 | M32: 185
A33: South Lanarkshire | B33: 476 | C33: 306 | D33: 296 | E33: 276 | F33: 223 | G33: -58 | H33: -45 | I33: 106 | J33: 68 | K33: 55 | L33: 348 | M33: -33
A34: Stirling | B34: 323 | C34: 113 | D34: 301 | E34: 269 | F34: 319 | G34: 103 | H34: 34 | I34: 146 | J34: 147 | K34: 199 | L34: 450 | M34: 362
A35: West Dunbartonshire | B35: -72 | C35: -99 | D35: -27 | E35: 8 | F35: 19 | G35: -40 | H35: -86 | I35: 7 | J35: 30 | K35: 43 | L35: 66 | M35: 20
A36: West Lothian | B36: -18 | C36: 88 | D36: 282 | E36: 67 | F36: 357 | G36: -159 | H36: -41 | I36: -7 | J36: -6 | K36: 2 | L36: 222 | M36: 61
A38: NHS Board Areas
A39: SCOTLAND | B39: 15522 | C39: 12507 | D39: 8922 | E39: 8849 | F39: 11509 | G39: 4122 | H39: 3275 | I39: 2909 | J39: 3038 | K39: 7862 | L39: 9585 | M39: 8368
A40: Ayrshire & Arran | B40: 680 | C40: 518 | D40: 417 | E40: 489 | F40: 877 | G40: 419 | H40: 459 | I40: 455 | J40: 294 | K40: 470 | L40: 451 | M40: 529
A41: Borders | B41: 1059 | C41: 570 | D41: 552 | E41: 686 | F41: 852 | G41: 248 | H41: 245 | I41: 288 | J41: 190 | K41: 489 | L41: 386 | M41: 394
A42: Dumfries & Galloway | B42: 1494 | C42: 1393 | D42: 846 | E42: 736 | F42: 931 | G42: 559 | H42: 382 | I42: 449 | J42: 322 | K42: 523 | L42: 711 | M42: 505
A43: Fife | B43: 959 | C43: 930 | D43: 653 | E43: 614 | F43: 506 | G43: 240 | H43: 26 | I43: 327 | J43: 66 | K43: 478 | L43: 629 | M43: 468
A44: Forth Valley | B44: 977 | C44: 624 | D44: 542 | E44: 496 | F44: 551 | G44: 114 | H44: 81 | I44: 273 | J44: 208 | K44: 366 | L44: 679 | M44: 657
A45: Grampian | B45: 2344 | C45: 2029 | D45: 1638 | E45: 1523 | F45: 1274 | G45: 808 | H45: 257 | I45: -260 | J45: 745 | K45: 1537 | L45: 1187 | M45: 154
A46: Greater Glasgow & Clyde | B46: -610 | C46: -129 | D46: -912 | E46: -70 | F46: 964 | G46: -209 | H46: -879 | I46: -556 | J46: -453 | K46: 150 | L46: 836 | M46: 1470
A47: Highland | B47: 3648 | C47: 2718 | D47: 2013 | E47: 2115 | F47: 1766 | G47: 1037 | H47: 1057 | I47: 1013 | J47: 651 | K47: 1148 | L47: 1140 | M47: 1110
A48: Lanarkshire | B48: 674 | C48: 312 | D48: 227 | E48: 294 | F48: 423 | G48: 10 | H48: -206 | I48: 148 | J48: 107 | K48: 194 | L48: 608 | M48: 94
A49: Lothian | B49: 2151 | C49: 1674 | D49: 2165 | E49: 1113 | F49: 2186 | G49: 223 | H49: 1133 | I49: 496 | J49: 376 | K49: 1794 | L49: 2190 | M49: 2293
A50: Orkney | B50: 324 | C50: 175 | D50: 148 | E50: 157 | F50: 172 | G50: 166 | H50: 145 | I50: 68 | J50: 95 | K50: 88 | L50: 124 | M50: 132
A51: Shetland | B51: 177 | C51: 193 | D51: 14 | E51: 134 | F51: 126 | G51: 116 | H51: 170 | I51: 14 | J51: 34 | K51: 28 | L51: 64 | M51: 31
A52: Tayside | B52: 1322 | C52: 1255 | D52: 431 | E52: 463 | F52: 751 | G52: 276 | H52: 258 | I52: 141 | J52: 323 | K52: 484 | L52: 560 | M52: 492
A53: Western Isles | B53: 323 | C53: 245 | D53: 188 | E53: 99 | F53: 130 | G53: 115 | H53: 147 | I53: 53 | J53: 80 | K53: 113 | L53: 20 | M53: 39
A55: Notes
A56: 1) Figures for 2003/04 to 2010/11 have been revised to include information from the 2011 Census.
A57: 2) Movements to/from the armed forces were included in these figures in previous releases of this spreadsheet but are no longer treated as migration. Armed forces movements are included in the mid-year population estimates under another category.
A58: 4) Source for data: 'In, out and net migration between administrative areas and overseas, 2001/02 to latest' from the Migration between Scotland and Overseas section of the NRS website.
A59: 4) The NHS Board areas used for estimates between 2003/04 and 2010/11 are those that existed between 2006 and 2014. The 2011/12 estimates onwards use the NHS Board areas that came into force in April 2014.
A61: © Crown Copyright 2016

Sheet Rest of UK in-migration
A1: Rest of UK in-migration | K1: Return to front page
A3: Council Area | B3: 2003/04 | C3: 2004/05 | D3: 2005/06 | E3: 2006/07 | F3: 2007/08 | G3: 2008/09 | H3: 2009/10 | I3: 2010/11 | J3: 2011/12 | K3: 2012/13 | L3: 2013/14 | M3: 2014/15
A4: SCOTLAND | B4: 61879 | C4: 57342 | D4: 53335 | E4: 51546 | F4: 53327 | G4: 45407 | H4: 45007 | I4: 43686 | J4: 45116 | K4: 47685 | L4: 49242 | M4: 47154
A5: Aberdeen City | B5: 2217 | C5: 2251 | D5: 2492 | E5: 2530 | F5: 2585 | G5: 2559 | H5: 2602 | I5: 2341 | J5: 2526 | K5: 2987 | L5: 2961 | M5: 2663
A6: Aberdeenshire | B6: 3506 | C6: 2987 | D6: 2671 | E6: 2484 | F6: 2251 | G6: 1786 | H6: 1637 | I6: 1609 | J6: 1805 | K6: 1908 | L6: 2047 | M6: 1539
A7: Angus | B7: 1211 | C7: 1110 | D7: 932 | E7: 823 | F7: 832 | G7: 642 | H7: 624 | I7: 524 | J7: 748 | K7: 735 | L7: 757 | M7: 734
A8: Argyll & Bute | B8: 1978 | C8: 1851 | D8: 1721 | E8: 1567 | F8: 1455 | G8: 1337 | H8: 1330 | I8: 1329 | J8: 1309 | K8: 1383 | L8: 1381 | M8: 1341
A9: Clackmannanshire | B9: 548 | C9: 552 | D9: 504 | E9: 447 | F9: 433 | G9: 310 | H9: 313 | I9: 292 | J9: 336 | K9: 346 | L9: 327 | M9: 303
A10: Dumfries & Galloway | B10: 3252 | C10: 3144 | D10: 2556 | E10: 2451 | F10: 2617 | G10: 2085 | H10: 1949 | I10: 1992 | J10: 1872 | K10: 2047 | L10: 2110 | M10: 1913
A11: Dundee City | B11: 1501 | C11: 1554 | D11: 1350 | E11: 1229 | F11: 1448 | G11: 1339 | H11: 1426 | I11: 1369 | J11: 1472 | K11: 1527 | L11: 1382 | M11: 1379
A12: East Ayrshire | B12: 962 | C12: 858 | D12: 818 | E12: 787 | F12: 882 | G12: 715 | H12: 661 | I12: 691 | J12: 700 | K12: 664 | L12: 669 | M12: 657
A13: East Dunbartonshire | B13: 499 | C13: 489 | D13: 469 | E13: 400 | F13: 461 | G13: 455 | H13: 391 | I13: 434 | J13: 462 | K13: 451 | L13: 455 | M13: 477
A14: East Lothian | B14: 771 | C14: 662 | D14: 666 | E14: 834 | F14: 1019 | G14: 685 | H14: 725 | I14: 694 | J14: 866 | K14: 703 | L14: 737 | M14: 694
A15: East Renfrewshire | B15: 393 | C15: 455 | D15: 400 | E15: 293 | F15: 321 | G15: 348 | H15: 368 | I15: 427 | J15: 389 | K15: 421 | L15: 407 | M15: 400
A16: Edinburgh, City of | B16: 9900 | C16: 9529 | D16: 9476 | E16: 8315 | F16: 8938 | G16: 8055 | H16: 8650 | I16: 7867 | J16: 8018 | K16: 9083 | L16: 9444 | M16: 9501
A17: Eilean Siar | B17: 540 | C17: 463 | D17: 391 | E17: 347 | F17: 334 | G17: 292 | H17: 304 | I17: 272 | J17: 269 | K17: 334 | L17: 229 | M17: 222
A18: Falkirk | B18: 1073 | C18: 988 | D18: 816 | E18: 751 | F18: 753 | G18: 611 | H18: 606 | I18: 708 | J18: 675 | K18: 671 | L18: 791 | M18: 734
A19: Fife | B19: 3972 | C19: 3873 | D19: 3610 | E19: 3545 | F19: 3477 | G19: 3117 | H19: 2906 | I19: 3024 | J19: 2853 | K19: 3216 | L19: 3229 | M19: 2981
A20: Glasgow City | B20: 6300 | C20: 6216 | D20: 5698 | E20: 6010 | F20: 6755 | G20: 5999 | H20: 5598 | I20: 5399 | J20: 5657 | K20: 5921 | L20: 6435 | M20: 6604
A21: Highland | B21: 4761 | C21: 4197 | D21: 3609 | E21: 3696 | F21: 3531 | G21: 2619 | H21: 2639 | I21: 2521 | J21: 2397 | K21: 2485 | L21: 2466 | M21: 2474
A22: Inverclyde | B22: 499 | C22: 459 | D22: 416 | E22: 363 | F22: 426 | G22: 297 | H22: 302 | I22: 290 | J22: 358 | K22: 349 | L22: 367 | M22: 353
A23: Midlothian | B23: 423 | C23: 413 | D23: 413 | E23: 410 | F23: 450 | G23: 409 | H23: 404 | I23: 384 | J23: 400 | K23: 439 | L23: 512 | M23: 401
A24: Moray | B24: 1955 | C24: 1721 | D24: 1624 | E24: 1388 | F24: 1336 | G24: 1104 | H24: 1079 | I24: 922 | J24: 1470 | K24: 1481 | L24: 1296 | M24: 1257
A25: North Ayrshire | B25: 1101 | C25: 1006 | D25: 1028 | E25: 971 | F25: 1031 | G25: 832 | H25: 814 | I25: 845 | J25: 782 | K25: 812 | L25: 877 | M25: 751
A26: North Lanarkshire | B26: 1635 | C26: 1452 | D26: 1332 | E26: 1267 | F26: 1350 | G26: 1187 | H26: 1006 | I26: 1166 | J26: 1154 | K26: 1120 | L26: 1246 | M26: 1178
A27: Orkney Islands | B27: 474 | C27: 370 | D27: 309 | E27: 322 | F27: 329 | G27: 309 | H27: 312 | I27: 255 | J27: 283 | K27: 283 | L27: 317 | M27: 269
A28: Perth & Kinross | B28: 2218 | C28: 1941 | D28: 1626 | E28: 1734 | F28: 1597 | G28: 1367 | H28: 1379 | I28: 1383 | J28: 1325 | K28: 1232 | L28: 1380 | M28: 1355
A29: Renfrewshire | B29: 917 | C29: 901 | D29: 748 | E29: 846 | F29: 840 | G29: 724 | H29: 758 | I29: 721 | J29: 696 | K29: 745 | L29: 702 | M29: 787
A30: Scottish Borders | B30: 2441 | C30: 1833 | D30: 1828 | E30: 1919 | F30: 2123 | G30: 1509 | H30: 1513 | I30: 1511 | J30: 1500 | K30: 1572 | L30: 1598 | M30: 1580
A31: Shetland Islands | B31: 389 | C31: 371 | D31: 265 | E31: 340 | F31: 326 | G31: 279 | H31: 356 | I31: 225 | J31: 254 | K31: 236 | L31: 266 | M31: 222
A32: South Ayrshire | B32: 1181 | C32: 1126 | D32: 980 | E32: 984 | F32: 995 | G32: 902 | H32: 957 | I32: 868 | J32: 839 | K32: 878 | L32: 788 | M32: 811
A33: South Lanarkshire | B33: 2232 | C33: 1882 | D33: 1761 | E33: 1741 | F33: 1553 | G33: 1352 | H33: 1352 | I33: 1396 | J33: 1421 | K33: 1349 | L33: 1512 | M33: 1260
A34: Stirling | B34: 1370 | C34: 1058 | D34: 1165 | E34: 1155 | F34: 1180 | G34: 991 | H34: 870 | I34: 960 | J34: 1003 | K34: 1012 | L34: 1204 | M34: 1112
A35: West Dunbartonshire | B35: 471 | C35: 431 | D35: 420 | E35: 445 | F35: 404 | G35: 349 | H35: 351 | I35: 394 | J35: 377 | K35: 416 | L35: 381 | M35: 347
A36: West Lothian | B36: 1189 | C36: 1199 | D36: 1241 | E36: 1152 | F36: 1295 | G36: 842 | H36: 825 | I36: 873 | J36: 900 | K36: 879 | L36: 969 | M36: 855
A38: NHS Board Areas
A39: SCOTLAND | B39: 61879 | C39: 57342 | D39: 53335 | E39: 51546 | F39: 53327 | G39: 45407 | H39: 45007 | I39: 43686 | J39: 45116 | K39: 47685 | L39: 49242 | M39: 47154
A40: Ayrshire & Arran | B40: 3244 | C40: 2990 | D40: 2826 | E40: 2742 | F40: 2908 | G40: 2449 | H40: 2432 | I40: 2404 | J40: 2321 | K40: 2354 | L40: 2334 | M40: 2219
A41: Borders | B41: 2441 | C41: 1833 | D41: 1828 | E41: 1919 | F41: 2123 | G41: 1509 | H41: 1513 | I41: 1511 | J41: 1500 | K41: 1572 | L41: 1598 | M41: 1580
A42: Dumfries & Galloway | B42: 3252 | C42: 3144 | D42: 2556 | E42: 2451 | F42: 2617 | G42: 2085 | H42: 1949 | I42: 1992 | J42: 1872 | K42: 2047 | L42: 2110 | M42: 1913
A43: Fife | B43: 3972 | C43: 3873 | D43: 3610 | E43: 3545 | F43: 3471 | G43: 3117 | H43: 2906 | I43: 3024 | J43: 2853 | K43: 3216 | L43: 3229 | M43: 2981
A44: Forth Valley | B44: 2991 | C44: 2598 | D44: 2485 | E44: 2353 | F44: 2366 | G44: 1912 | H44: 1789 | I44: 1960 | J44: 2014 | K44: 2029 | L44: 2322 | M44: 2149
A45: Grampian | B45: 7678 | C45: 6959 | D45: 6787 | E45: 6402 | F45: 6172 | G45: 5449 | H45: 5318 | I45: 4872 | J45: 5801 | K45: 6376 | L45: 6304 | M45: 5459
A46: Greater Glasgow & Clyde | B46: 9397 | C46: 9270 | D46: 8471 | E46: 8675 | F46: 9485 | G46: 8433 | H46: 8067 | I46: 7967 | J46: 7939 | K46: 8303 | L46: 8747 | M46: 8968
A47: Highland | B47: 6739 | C47: 6048 | D47: 5330 | E47: 5263 | F47: 4986 | G47: 3956 | H47: 3969 | I47: 3850 | J47: 3706 | K47: 3868 | L47: 3847 | M47: 3815
A48: Lanarkshire | B48: 3549 | C48: 3015 | D48: 2773 | E48: 2690 | F48: 2625 | G48: 2278 | H48: 2059 | I48: 2260 | J48: 2575 | K48: 2469 | L48: 2758 | M48: 2438
A49: Lothian | B49: 12283 | C49: 11803 | D49: 11796 | E49: 10711 | F49: 11702 | G49: 9991 | H49: 10604 | I49: 9818 | J49: 10184 | K49: 11104 | L49: 11662 | M49: 11451
A50: Orkney | B50: 474 | C50: 370 | D50: 309 | E50: 322 | F50: 329 | G50: 309 | H50: 312 | I50: 255 | J50: 283 | K50: 283 | L50: 317 | M50: 269
A51: Shetland | B51: 389 | C51: 371 | D51: 265 | E51: 340 | F51: 326 | G51: 279 | H51: 356 | I51: 225 | J51: 254 | K51: 236 | L51: 266 | M51: 222
A52: Tayside | B52: 4930 | C52: 4605 | D52: 3908 | E52: 3786 | F52: 3883 | G52: 3348 | H52: 3429 | I52: 3276 | J52: 3545 | K52: 3494 | L52: 3519 | M52: 3468
A53: Western Isles | B53: 540 | C53: 463 | D53: 391 | E53: 347 | F53: 334 | G53: 292 | H53: 304 | I53: 272 | J53: 269 | K53: 334 | L53: 229 | M53: 222
A55: Notes
A56: 1) Figures for 2003/04 to 2010/11 have been revised to include information from the 2011 Census.
A57: 2) Movements to/from the armed forces were included in these figures in previous releases of this spreadsheet but are no longer treated as migration. Armed forces movements are included in the mid-year population estimates under another category.
A58: 4) Source for data: 'In, out and net migration between administrative areas and overseas, 2001/02 to latest' from the Migration between Scotland and Overseas section of the NRS website.
A59: 4) The NHS Board areas used for estimates between 2003/04 and 2010/11 are those that existed between 2006 and 2014. The 2011/12 estimates onwards use the NHS Board areas that came into force in April 2014.
A61: © Crown Copyright 2016

Sheet Rest of UK out-migration
A1: Rest of UK out-migration | K1: Return to front page
A3: Council Area | B3: 2003/04 | C3: 2004/05 | D3: 2005/06 | E3: 2006/07 | F3: 2007/08 | G3: 2008/09 | H3: 2009/10 | I3: 2010/11 | J3: 2011/12 | K3: 2012/13 | L3: 2013/14 | M3: 2014/15
A4: SCOTLAND | B4: 46357 | C4: 44835 | D4: 44413 | E4: 42697 | F4: 41818 | G4: 41285 | H4: 41732 | I4: 40777 | J4: 42078 | K4: 39823 | L4: 39657 | M4: 38786
A5: Aberdeen City | B5: 2604 | C5: 2205 | D5: 2352 | E5: 2213 | F5: 2312 | G5: 2278 | H5: 2283 | I5: 2338 | J5: 2425 | K5: 2430 | L5: 2374 | M5: 2546
A6: Aberdeenshire | B6: 1641 | C6: 1699 | D6: 1601 | E6: 1734 | F6: 1653 | G6: 1569 | H6: 1740 | I6: 1741 | J6: 1703 | K6: 1543 | L6: 1772 | M6: 1760
A7: Angus | B7: 759 | C7: 671 | D7: 802 | E7: 665 | F7: 666 | G7: 615 | H7: 601 | I7: 610 | J7: 699 | K7: 697 | L7: 565 | M7: 627
A8: Argyll & Bute | B8: 1151 | C8: 1283 | D8: 1172 | E8: 1095 | F8: 1057 | G8: 1028 | H8: 978 | I8: 959 | J8: 1038 | K8: 999 | L8: 978 | M8: 1045
A9: Clackmannanshire | B9: 288 | C9: 282 | D9: 363 | E9: 258 | F9: 315 | G9: 309 | H9: 284 | I9: 299 | J9: 295 | K9: 286 | L9: 326 | M9: 224
A10: Dumfries & Galloway | B10: 1758 | C10: 1751 | D10: 1710 | E10: 1715 | F10: 1686 | G10: 1526 | H10: 1567 | I10: 1543 | J10: 1550 | K10: 1524 | L10: 1399 | M10: 1408
A11: Dundee City | B11: 1657 | C11: 1353 | D11: 1499 | E11: 1499 | F11: 1398 | G11: 1351 | H11: 1426 | I11: 1509 | J11: 1417 | K11: 1289 | L11: 1341 | M11: 1326
A12: East Ayrshire | B12: 746 | C12: 707 | D12: 707 | E12: 641 | F12: 599 | G12: 593 | H12: 607 | I12: 608 | J12: 576 | K12: 586 | L12: 628 | M12: 489
A13: East Dunbartonshire | B13: 608 | C13: 667 | D13: 597 | E13: 528 | F13: 418 | G13: 492 | H13: 556 | I13: 488 | J13: 481 | K13: 524 | L13: 501 | M13: 422
A14: East Lothian | B14: 649 | C14: 652 | D14: 657 | E14: 556 | F14: 628 | G14: 618 | H14: 627 | I14: 626 | J14: 669 | K14: 626 | L14: 615 | M14: 574
A15: East Renfrewshire | B15: 541 | C15: 527 | D15: 561 | E15: 487 | F15: 452 | G15: 376 | H15: 419 | I15: 405 | J15: 510 | K15: 472 | L15: 402 | M15: 398
A16: Edinburgh, City of | B16: 7850 | C16: 7879 | D16: 7559 | E16: 7564 | F16: 7589 | G16: 7697 | H16: 7518 | I16: 7506 | J16: 7859 | K16: 7424 | L16: 7711 | M16: 7362
A17: Eilean Siar | B17: 217 | C17: 218 | D17: 203 | E17: 248 | F17: 204 | G17: 177 | H17: 157 | I17: 219 | J17: 189 | K17: 221 | L17: 209 | M17: 183
A18: Falkirk | B18: 679 | C18: 747 | D18: 716 | E18: 713 | F18: 639 | G18: 601 | H18: 588 | I18: 574 | J18: 655 | K18: 564 | L18: 563 | M18: 518
A19: Fife | B19: 3013 | C19: 2943 | D19: 2957 | E19: 2931 | F19: 2965 | G19: 2878 | H19: 2882 | I19: 2697 | J19: 2787 | K19: 2738 | L19: 2600 | M19: 2513
A20: Glasgow City | B20: 6265 | C20: 5966 | D20: 6100 | E20: 5685 | F20: 5905 | G20: 5937 | H20: 6069 | I20: 5858 | J20: 5948 | K20: 5746 | L20: 5703 | M20: 5424
A21: Highland | B21: 1940 | C21: 2047 | D21: 2145 | E21: 2053 | F21: 2163 | G21: 1891 | H21: 1934 | I21: 1878 | J21: 2017 | K21: 1721 | L21: 1729 | M21: 1660
A22: Inverclyde | B22: 623 | C22: 456 | D22: 457 | E22: 427 | F22: 374 | G22: 340 | H22: 388 | I22: 308 | J22: 368 | K22: 299 | L22: 287 | M22: 250
A23: Midlothian | B23: 426 | C23: 487 | D23: 456 | E23: 393 | F23: 361 | G23: 452 | H23: 460 | I23: 310 | J23: 374 | K23: 383 | L23: 399 | M23: 428
A24: Moray | B24: 1089 | C24: 1026 | D24: 1196 | E24: 932 | F24: 933 | G24: 794 | H24: 1038 | I24: 1053 | J24: 928 | K24: 866 | L24: 971 | M24: 999
A25: North Ayrshire | B25: 1001 | C25: 931 | D25: 918 | E25: 847 | F25: 691 | G25: 687 | H25: 734 | I25: 763 | J25: 772 | K25: 685 | L25: 636 | M25: 575
A26: North Lanarkshire | B26: 1485 | C26: 1434 | D26: 1339 | E26: 1258 | F26: 1132 | G26: 1173 | H26: 1158 | I26: 1138 | J26: 1115 | K26: 981 | L26: 986 | M26: 1051
A27: Orkney Islands | B27: 150 | C27: 195 | D27: 161 | E27: 165 | F27: 157 | G27: 143 | H27: 167 | I27: 187 | J27: 188 | K27: 195 | L27: 193 | M27: 137
A28: Perth & Kinross | B28: 1192 | C28: 1326 | D28: 1176 | E28: 1159 | F28: 1068 | G28: 1105 | H28: 1142 | I28: 1016 | J28: 1106 | K28: 1024 | L28: 1053 | M28: 1023
A29: Renfrewshire | B29: 1061 | C29: 946 | D29: 963 | E29: 854 | F29: 727 | G29: 793 | H29: 787 | I29: 761 | J29: 738 | K29: 739 | L29: 703 | M29: 677
A30: Scottish Borders | B30: 1382 | C30: 1263 | D30: 1276 | E30: 1233 | F30: 1271 | G30: 1261 | H30: 1268 | I30: 1223 | J30: 1310 | K30: 1083 | L30: 1212 | M30: 1186
A31: Shetland Islands | B31: 212 | C31: 178 | D31: 251 | E31: 206 | F31: 200 | G31: 163 | H31: 186 | I31: 211 | J31: 220 | K31: 208 | L31: 202 | M31: 191
A32: South Ayrshire | B32: 817 | C32: 834 | D32: 784 | E32: 765 | F32: 741 | G32: 750 | H32: 632 | I32: 578 | J32: 679 | K32: 613 | L32: 619 | M32: 626
A33: South Lanarkshire | B33: 1756 | C33: 1576 | D33: 1465 | E33: 1465 | F33: 1330 | G33: 1410 | H33: 1397 | I33: 1290 | J33: 1353 | K33: 1294 | L33: 1164 | M33: 1293
A34: Stirling | B34: 1047 | C34: 945 | D34: 864 | E34: 886 | F34: 861 | G34: 888 | H34: 836 | I34: 814 | J34: 856 | K34: 813 | L34: 754 | M34: 750
A35: West Dunbartonshire | B35: 543 | C35: 530 | D35: 447 | E35: 437 | F35: 385 | G35: 389 | H35: 437 | I35: 387 | J35: 347 | K35: 373 | L35: 315 | M35: 327
A36: West Lothian | B36: 1207 | C36: 1111 | D36: 959 | E36: 1085 | F36: 938 | G36: 1001 | H36: 866 | I36: 880 | J36: 906 | K36: 877 | L36: 747 | M36: 794
A38: NHS Board Areas
A39: SCOTLAND | B39: 46357 | C39: 44835 | D39: 44413 | E39: 42697 | F39: 41818 | G39: 41285 | H39: 41732 | I39: 40777 | J39: 42078 | K39: 39823 | L39: 39657 | M39: 38786
A40: Ayrshire & Arran | B40: 2564 | C40: 2472 | D40: 2409 | E40: 2253 | F40: 2031 | G40: 2030 | H40: 1973 | I40: 1949 | J40: 2027 | K40: 1884 | L40: 1883 | M40: 1690
A41: Borders | B41: 1382 | C41: 1263 | D41: 1276 | E41: 1233 | F41: 1271 | G41: 1261 | H41: 1268 | I41: 1223 | J41: 1310 | K41: 1083 | L41: 1212 | M41: 1186
A42: Dumfries & Galloway | B42: 1758 | C42: 1751 | D42: 1710 | E42: 1715 | F42: 1686 | G42: 1526 | H42: 1567 | I42: 1543 | J42: 1550 | K42: 1524 | L42: 1399 | M42: 1408
A43: Fife | B43: 3013 | C43: 2943 | D43: 2957 | E43: 2931 | F43: 2965 | G43: 2877 | H43: 2880 | I43: 2697 | J43: 2787 | K43: 2738 | L43: 2600 | M43: 2513
A44: Forth Valley | B44: 2014 | C44: 1974 | D44: 1943 | E44: 1857 | F44: 1815 | G44: 1798 | H44: 1708 | I44: 1687 | J44: 1806 | K44: 1663 | L44: 1643 | M44: 1492
A45: Grampian | B45: 5334 | C45: 4930 | D45: 5149 | E45: 4879 | F45: 4898 | G45: 4641 | H45: 5061 | I45: 5132 | J45: 5056 | K45: 4839 | L45: 5117 | M45: 5305
A46: Greater Glasgow & Clyde | B46: 10007 | C46: 9399 | D46: 9383 | E46: 8745 | F46: 8521 | G46: 8642 | H46: 8946 | I46: 8523 | J46: 8392 | K46: 8153 | L46: 7911 | M46: 7498
A47: Highland | B47: 3091 | C47: 3330 | D47: 3317 | E47: 3148 | F47: 3220 | G47: 2919 | H47: 2912 | I47: 2837 | J47: 3055 | K47: 2720 | L47: 2707 | M47: 2705
A48: Lanarkshire | B48: 2875 | C48: 2703 | D48: 2546 | E48: 2396 | F48: 2202 | G48: 2268 | H48: 2265 | I48: 2112 | J48: 2468 | K48: 2275 | L48: 2150 | M48: 2344
A49: Lothian | B49: 10132 | C49: 10129 | D49: 9631 | E49: 9598 | F49: 9516 | G49: 9768 | H49: 9471 | I49: 9322 | J49: 9808 | K49: 9310 | L49: 9472 | M49: 9158
A50: Orkney | B50: 150 | C50: 195 | D50: 161 | E50: 165 | F50: 157 | G50: 143 | H50: 167 | I50: 187 | J50: 188 | K50: 195 | L50: 193 | M50: 137
A51: Shetland | B51: 212 | C51: 178 | D51: 251 | E51: 206 | F51: 200 | G51: 163 | H51: 186 | I51: 211 | J51: 220 | K51: 208 | L51: 202 | M51: 191
A52: Tayside | B52: 3608 | C52: 3350 | D52: 3477 | E52: 3323 | F52: 3132 | G52: 3072 | H52: 3171 | I52: 3135 | J52: 3222 | K52: 3010 | L52: 2959 | M52: 2976
A53: Western Isles | B53: 217 | C53: 218 | D53: 203 | E53: 248 | F53: 204 | G53: 177 | H53: 157 | I53: 219 | J53: 189 | K53: 221 | L53: 209 | M53: 183
A55: Notes
A56: 1) Figures for 2003/04 to 2010/11 have been revised to include information from the 2011 Census.
A57: 2) Movements to/from the armed forces were included in these figures in previous releases of this spreadsheet but are no longer treated as migration. Armed forces movements are included in the mid-year population estimates under another category.
A58: 4) Source for data: 'In, out and net migration between administrative areas and overseas, 2001/02 to latest' from the Migration between Scotland and Overseas section of the NRS website.
A59: 4) The NHS Board areas used for estimates between 2003/04 and 2010/11 are those that existed between 2006 and 2014. The 2011/12 estimates onwards use the NHS Board areas that came into force in April 2014.
A61: © Crown Copyright 2016

Sheet Overseas net migration
A1: Overseas net migration | K1: Return to front page
A3: Council Area | B3: 2003/04 | C3: 2004/05 | D3: 2005/06 | E3: 2006/07 | F3: 2007/08 | G3: 2008/09 | H3: 2009/10 | I3: 2010/11 | J3: 2011/12 | K3: 2012/13 | L3: 2013/14 | M3: 2014/15
A4: SCOTLAND | B4: 3100 | C4: 12800 | D4: 9900 | E4: 24200 | F4: 14900 | G4: 20300 | H4: 22800 | I4: 27300 | J4: 9700 | K4: 2100 | L4: 8000 | M4: 19600
A5: Aberdeen City | B5: 874 | C5: 2150 | D5: 2138 | E5: 3752 | F5: 3030 | G5: 3669 | H5: 3742 | I5: 4130 | J5: 2102 | K5: 1302 | L5: 1965 | M5: 3189
A6: Aberdeenshire | B6: 127 | C6: 623 | D6: 655 | E6: 836 | F6: 405 | G6: 605 | H6: 719 | I6: 723 | J6: 209 | K6: 116 | L6: 124 | M6: 256
A7: Angus | B7: -106 | C7: 128 | D7: 137 | E7: 206 | F7: 107 | G7: 145 | H7: 215 | I7: 235 | J7: 11 | K7: -87 | L7: 27 | M7: -11
A8: Argyll & Bute | B8: -104 | C8: -100 | D8: -111 | E8: 137 | F8: -226 | G8: -51 | H8: 86 | I8: 55 | J8: -171 | K8: -211 | L8: -234 | M8: -85
A9: Clackmannanshire | B9: -49 | C9: 8 | D9: 12 | E9: 158 | F9: -12 | G9: 33 | H9: 1 | I9: 6 | J9: -49 | K9: -34 | L9: -26 | M9: -4
A10: Dumfries & Galloway | B10: -255 | C10: -84 | D10: -116 | E10: 32 | F10: -175 | G10: -171 | H10: -162 | I10: 15 | J10: -280 | K10: -335 | L10: -267 | M10: -72
A11: Dundee City | B11: 105 | C11: 718 | D11: 687 | E11: 1063 | F11: 950 | G11: 1034 | H11: 1258 | I11: 1576 | J11: 565 | K11: 320 | L11: 255 | M11: 671
A12: East Ayrshire | B12: -132 | C12: -87 | D12: -194 | E12: -67 | F12: -93 | G12: -140 | H12: -97 | I12: -66 | J12: -133 | K12: -161 | L12: -174 | M12: -91
A13: East Dunbartonshire | B13: -190 | C13: -44 | D13: -191 | E13: 9 | F13: -121 | G13: -29 | H13: -69 | I13: -73 | J13: -91 | K13: -122 | L13: -108 | M13: -113
A14: East Lothian | B14: -47 | C14: 3 | D14: 37 | E14: 188 | F14: 253 | G14: 216 | H14: 145 | I14: 166 | J14: 116 | K14: -52 | L14: 31 | M14: 157
A15: East Renfrewshire | B15: -143 | C15: -77 | D15: -125 | E15: -8 | F15: -99 | G15: -19 | H15: 38 | I15: -27 | J15: -158 | K15: -108 | L15: -53 | M15: -83
A16: Edinburgh, City of | B16: 3040 | C16: 5220 | D16: 4109 | E16: 6121 | F16: 3985 | G16: 6271 | H16: 7301 | I16: 8077 | J16: 4058 | K16: 1953 | L16: 3274 | M16: 6049
A17: Eilean Siar | B17: -36 | C17: -6 | D17: -11 | E17: 26 | F17: -27 | G17: -13 | H17: -5 | I17: 3 | J17: -37 | K17: -59 | L17: -48 | M17: 2
A18: Falkirk | B18: 67 | C18: 246 | D18: 69 | E18: 317 | F18: 109 | G18: 124 | H18: 158 | I18: 278 | J18: -29 | K18: -128 | L18: 15 | M18: 127
A19: Fife | B19: 87 | C19: 787 | D19: 272 | E19: 1013 | F19: 384 | G19: 1059 | H19: 1251 | I19: 1300 | J19: 359 | K19: -54 | L19: 109 | M19: 828
A20: Glasgow City | B20: 1099 | C20: 1494 | D20: 1065 | E20: 4740 | F20: 4248 | G20: 5448 | H20: 5383 | I20: 7060 | J20: 3540 | K20: 2065 | L20: 3996 | M20: 7077
A21: Highland | B21: 6 | C21: 623 | D21: 459 | E21: 972 | F21: 312 | G21: 185 | H21: 358 | I21: 424 | J21: -175 | K21: -243 | L21: -88 | M21: 329
A22: Inverclyde | B22: -175 | C22: 122 | D22: 0 | E22: 17 | F22: -52 | G22: -5 | H22: 25 | I22: -25 | J22: -99 | K22: -57 | L22: -63 | M22: 14
A23: Midlothian | B23: -22 | C23: -21 | D23: -1 | E23: 93 | F23: 7 | G23: 21 | H23: 40 | I23: 73 | J23: 24 | K23: -45 | L23: -40 | M23: -20
A24: Moray | B24: -79 | C24: 68 | D24: 24 | E24: 237 | F24: -9 | G24: 42 | H24: 50 | I24: -95 | J24: -99 | K24: -146 | L24: -42 | M24: -122
A25: North Ayrshire | B25: -141 | C25: -192 | D25: -278 | E25: -47 | F25: -146 | G25: -88 | H25: -91 | I25: 32 | J25: -227 | K25: -238 | L25: -168 | M25: -42
A26: North Lanarkshire | B26: -334 | C26: -20 | D26: -33 | E26: 573 | F26: 97 | G26: 19 | H26: -23 | I26: 116 | J26: -204 | K26: -342 | L26: -165 | M26: 165
A27: Orkney Islands | B27: -18 | C27: -25 | D27: -27 | E27: 3 | F27: -26 | G27: -15 | H27: 3 | I27: 23 | J27: -33 | K27: -28 | L27: -16 | M27: 3
A28: Perth & Kinross | B28: 107 | C28: 1066 | D28: 970 | E28: 1392 | F28: 1380 | G28: 1169 | H28: 1167 | I28: 1117 | J28: 452 | K28: -10 | L28: 467 | M28: 463
A29: Renfrewshire | B29: 187 | C29: 161 | D29: 79 | E29: 501 | F29: 132 | G29: 99 | H29: 344 | I29: 456 | J29: -84 | K29: -206 | L29: -8 | M29: 278
A30: Scottish Borders | B30: -61 | C30: 107 | D30: 11 | E30: 259 | F30: 90 | G30: 15 | H30: -103 | I30: 66 | J30: -66 | K30: -173 | L30: -173 | M30: -50
A31: Shetland Islands | B31: -20 | C31: -4 | D31: -42 | E31: 14 | F31: 3 | G31: 78 | H31: 24 | I31: 35 | J31: 2 | K31: -32 | L31: -39 | M31: 32
A32: South Ayrshire | B32: -196 | C32: -45 | D32: -85 | E32: 65 | F32: -76 | G32: -106 | H32: -26 | I32: 80 | J32: -100 | K32: -193 | L32: -166 | M32: 14
A33: South Lanarkshire | B33: -368 | C33: -253 | D33: -201 | E33: 73 | F33: -183 | G33: -48 | H33: -56 | I33: -1 | J33: -321 | K33: -424 | L33: -373 | M33: -161
A34: Stirling | B34: 70 | C34: 141 | D34: 178 | E34: 564 | F34: 259 | G34: 355 | H34: 663 | I34: 985 | J34: 415 | K34: -53 | L34: -44 | M34: 637
A35: West Dunbartonshire | B35: -98 | C35: -82 | D35: -109 | E35: 68 | F35: -74 | G35: -30 | H35: 51 | I35: 11 | J35: -58 | K35: -97 | L35: -31 | M35: -33
A36: West Lothian | B36: -95 | C36: 175 | D36: 522 | E36: 893 | F36: 468 | G36: 428 | H36: 410 | I36: 545 | J36: 261 | K36: -18 | L36: 63 | M36: 196
A38: NHS Board Areas
A39: SCOTLAND | B39: 3100 | C39: 12800 | D39: 9900 | E39: 24200 | F39: 14900 | G39: 20300 | H39: 22800 | I39: 27300 | J39: 9700 | K39: 2100 | L39: 8000 | M39: 19600
A40: Ayrshire & Arran | B40: -469 | C40: -324 | D40: -557 | E40: -49 | F40: -315 | G40: -334 | H40: -214 | I40: 46 | J40: -460 | K40: -592 | L40: -508 | M40: -119
A41: Borders | B41: -61 | C41: 107 | D41: 11 | E41: 259 | F41: 90 | G41: 15 | H41: -103 | I41: 66 | J41: -66 | K41: -173 | L41: -173 | M41: -50
A42: Dumfries & Galloway | B42: -255 | C42: -84 | D42: -116 | E42: 32 | F42: -175 | G42: -171 | H42: -162 | I42: 15 | J42: -280 | K42: -335 | L42: -267 | M42: -72
A43: Fife | B43: 87 | C43: 787 | D43: 272 | E43: 1013 | F43: 384 | G43: 1058 | H43: 1251 | I43: 1300 | J43: 359 | K43: -54 | L43: 109 | M43: 828
A44: Forth Valley | B44: 88 | C44: 395 | D44: 259 | E44: 1039 | F44: 356 | G44: 512 | H44: 822 | I44: 1269 | J44: 337 | K44: -215 | L44: -55 | M44: 760
A45: Grampian | B45: 922 | C45: 2841 | D45: 2817 | E45: 4825 | F45: 3426 | G45: 4316 | H45: 4511 | I45: 4758 | J45: 2212 | K45: 1272 | L45: 2047 | M45: 3323
A46: Greater Glasgow & Clyde | B46: 616 | C46: 1514 | D46: 668 | E46: 5339 | F46: 4004 | G46: 5437 | H46: 5770 | I46: 7383 | J46: 3050 | K46: 1475 | L46: 3733 | M46: 7140
A47: Highland | B47: -98 | C47: 523 | D47: 348 | E47: 1109 | F47: 86 | G47: 134 | H47: 444 | I47: 479 | J47: -346 | K47: -454 | L47: -322 | M47: 244
A48: Lanarkshire | B48: -638 | C48: -213 | D48: -183 | E48: 634 | F48: -56 | G48: -2 | H48: -77 | I48: 134 | J48: -525 | K48: -766 | L48: -538 | M48: 4
A49: Lothian | B49: 2876 | C49: 5377 | D49: 4667 | E49: 7295 | F49: 4713 | G49: 6936 | H49: 7896 | I49: 8861 | J49: 4459 | K49: 1838 | L49: 3328 | M49: 6382
A50: Orkney | B50: -18 | C50: -25 | D50: -27 | E50: 3 | F50: -26 | G50: -15 | H50: 3 | I50: 23 | J50: -33 | K50: -28 | L50: -16 | M50: 3
A51: Shetland | B51: -20 | C51: -4 | D51: -42 | E51: 14 | F51: 3 | G51: 78 | H51: 24 | I51: 35 | J51: 2 | K51: -32 | L51: -39 | M51: 32
A52: Tayside | B52: 106 | C52: 1912 | D52: 1794 | E52: 2661 | F52: 2437 | G52: 2349 | H52: 2640 | I52: 2928 | J52: 1028 | K52: 223 | L52: 749 | M52: 1123
A53: Western Isles | B53: -36 | C53: -6 | D53: -11 | E53: 26 | F53: -27 | G53: -13 | H53: -5 | I53: 3 | J53: -37 | K53: -59 | L53: -48 | M53: 2
A55: Notes
A56: 1) Figures for 2003/04 to 2010/11 have been revised to include information from the 2011 Census.
A57: 2) Figures include asylum seekers and rounding adjustments.
A58: 4) Source for data: 'In, out and net migration between administrative areas and overseas, 2001/02 to latest' from the Migration between Scotland and Overseas section of the NRS website.
A59: 4) The NHS Board areas used for estimates between 2003/04 and 2010/11 are those that existed between 2006 and 2014. The 2011/12 estimates onwards use the NHS Board areas that came into force in April 2014.
A61: © Crown Copyright 2016

Sheet Overseas in-migration
A1: Overseas in-migration | K1: Return to front page
A3: Council Area | B3: 2003/04 | C3: 2004/05 | D3: 2005/06 | E3: 2006/07 | F3: 2007/08 | G3: 2008/09 | H3: 2009/10 | I3: 2010/11 | J3: 2011/12 | K3: 2012/13 | L3: 2013/14 | M3: 2014/15
A4: SCOTLAND | B4: 28500 | C4: 41800 | D4: 41300 | E4: 45100 | F4: 45200 | G4: 45100 | H4: 47400 | I4: 44200 | J4: 35900 | K4: 28200 | L4: 33200 | M4: 37800
A5: Aberdeen City | B5: 2893 | C5: 4322 | D5: 4459 | E5: 5350 | F5: 5409 | G5: 5864 | H5: 5851 | I5: 5284 | J5: 4414 | K5: 3636 | L5: 4202 | M5: 4590
A6: Aberdeenshire | B6: 778 | C6: 1387 | D6: 1557 | E6: 1511 | F6: 1514 | G6: 1513 | H6: 1558 | I6: 1438 | J6: 1062 | K6: 978 | L6: 1062 | M6: 1080
A7: Angus | B7: 136 | C7: 374 | D7: 446 | E7: 424 | F7: 516 | G7: 458 | H7: 554 | I7: 513 | J7: 369 | K7: 279 | L7: 340 | M7: 290
A8: Argyll & Bute | B8: 300 | C8: 465 | D8: 460 | E8: 541 | F8: 414 | G8: 432 | H8: 475 | I8: 360 | J8: 304 | K8: 235 | L8: 239 | M8: 299
A9: Clackmannanshire | B9: 85 | C9: 152 | D9: 173 | E9: 248 | F9: 189 | G9: 178 | H9: 150 | I9: 104 | J9: 116 | K9: 74 | L9: 128 | M9: 98
A10: Dumfries & Galloway | B10: 243 | C10: 502 | D10: 521 | E10: 493 | F10: 524 | G10: 388 | H10: 375 | I10: 358 | J10: 244 | K10: 200 | L10: 212 | M10: 281
A11: Dundee City | B11: 812 | C11: 1727 | D11: 1630 | E11: 1845 | F11: 2072 | G11: 1924 | H11: 2196 | I11: 2250 | J11: 1583 | K11: 1374 | L11: 1276 | M11: 1388
A12: East Ayrshire | B12: 131 | C12: 195 | D12: 120 | E12: 163 | F12: 222 | G12: 118 | H12: 150 | I12: 116 | J12: 113 | K12: 78 | L12: 94 | M12: 90
A13: East Dunbartonshire | B13: 187 | C13: 296 | D13: 212 | E13: 220 | F13: 136 | G13: 180 | H13: 154 | I13: 160 | J13: 111 | K13: 77 | L13: 102 | M13: 105
A14: East Lothian | B14: 209 | C14: 255 | D14: 355 | E14: 382 | F14: 548 | G14: 449 | H14: 426 | I14: 428 | J14: 407 | K14: 252 | L14: 341 | M14: 412
A15: East Renfrewshire | B15: 139 | C15: 175 | D15: 161 | E15: 143 | F15: 137 | G15: 155 | H15: 193 | I15: 134 | J15: 76 | K15: 88 | L15: 125 | M15: 127
A16: Edinburgh, City of | B16: 7812 | C16: 11011 | D16: 10459 | E16: 10185 | F16: 9990 | G16: 10654 | H16: 11837 | I16: 11219 | J16: 9306 | K16: 7251 | L16: 8462 | M16: 9650
A17: Eilean Siar | B17: 46 | C17: 80 | D17: 87 | E17: 99 | F17: 78 | G17: 76 | H17: 69 | I17: 60 | J17: 44 | K17: 28 | L17: 32 | M17: 55
A18: Falkirk | B18: 392 | C18: 668 | D18: 568 | E18: 662 | F18: 564 | G18: 505 | H18: 456 | I18: 502 | J18: 312 | K18: 235 | L18: 327 | M18: 377
A19: Fife | B19: 1637 | C19: 2492 | D19: 2169 | E19: 2291 | F19: 2209 | G19: 2403 | H19: 2678 | I19: 2298 | J19: 1962 | K19: 1510 | L19: 1629 | M19: 1918
A20: Glasgow City | B20: 7199 | C20: 8417 | D20: 7990 | E20: 9119 | F20: 9769 | G20: 10022 | H20: 10165 | I20: 10256 | J20: 8550 | K20: 7088 | L20: 8897 | M20: 10409
A21: Highland | B21: 740 | C21: 1495 | D21: 1530 | E21: 1773 | F21: 1559 | G21: 1292 | H21: 1309 | I21: 1023 | J21: 761 | K21: 619 | L21: 719 | M21: 918
A22: Inverclyde | B22: 206 | C22: 431 | D22: 266 | E22: 217 | F22: 187 | G22: 179 | H22: 200 | I22: 99 | J22: 77 | K22: 71 | L22: 70 | M22: 100
A23: Midlothian | B23: 128 | C23: 166 | D23: 200 | E23: 212 | F23: 198 | G23: 180 | H23: 207 | I23: 179 | J23: 174 | K23: 88 | L23: 149 | M23: 171
A24: Moray | B24: 240 | C24: 506 | D24: 530 | E24: 516 | F24: 500 | G24: 388 | H24: 451 | I24: 407 | J24: 315 | K24: 227 | L24: 282 | M24: 332
A25: North Ayrshire | B25: 232 | C25: 259 | D25: 221 | E25: 260 | F25: 261 | G25: 226 | H25: 235 | I25: 222 | J25: 149 | K25: 110 | L25: 136 | M25: 158
A26: North Lanarkshire | B26: 416 | C26: 733 | D26: 844 | E26: 1181 | F26: 1079 | G26: 899 | H26: 781 | I26: 633 | J26: 528 | K26: 410 | L26: 490 | M26: 623
A27: Orkney Islands | B27: 39 | C27: 50 | D27: 50 | E27: 54 | F27: 48 | G27: 47 | H27: 63 | I27: 66 | J27: 38 | K27: 49 | L27: 52 | M27: 53
A28: Perth & Kinross | B28: 653 | C28: 1638 | D28: 1733 | E28: 2043 | F28: 2343 | G28: 2160 | H28: 2130 | I28: 1628 | J28: 1384 | K28: 841 | L28: 1241 | M28: 948
A29: Renfrewshire | B29: 654 | C29: 698 | D29: 811 | E29: 911 | F29: 690 | G29: 662 | H29: 847 | I29: 729 | J29: 428 | K29: 331 | L29: 431 | M29: 548
A30: Scottish Borders | B30: 364 | C30: 554 | D30: 582 | E30: 640 | F30: 685 | G30: 520 | H30: 394 | I30: 373 | J30: 383 | K30: 250 | L30: 283 | M30: 264
A31: Shetland Islands | B31: 59 | C31: 72 | D31: 65 | E31: 76 | F31: 94 | G31: 148 | H31: 102 | I31: 101 | J31: 91 | K31: 60 | L31: 51 | M31: 93
A32: South Ayrshire | B32: 157 | C32: 345 | D32: 326 | E32: 333 | F32: 330 | G32: 275 | H32: 327 | I32: 306 | J32: 241 | K32: 167 | L32: 166 | M32: 254
A33: South Lanarkshire | B33: 429 | C33: 767 | D33: 735 | E33: 720 | F33: 708 | G33: 717 | H33: 688 | I33: 560 | J33: 449 | K33: 308 | L33: 371 | M33: 454
A34: Stirling | B34: 692 | C34: 815 | D34: 888 | E34: 1009 | F34: 927 | G34: 959 | H34: 1249 | I34: 1363 | J34: 1054 | K34: 685 | L34: 614 | M34: 1033
A35: West Dunbartonshire | B35: 164 | C35: 196 | D35: 185 | E35: 231 | F35: 156 | G35: 172 | H35: 200 | I35: 160 | J35: 112 | K35: 101 | L35: 116 | M35: 121
A36: West Lothian | B36: 328 | C36: 557 | D36: 967 | E36: 1248 | F36: 1144 | G36: 957 | H36: 930 | I36: 871 | J36: 743 | K36: 500 | L36: 561 | M36: 561
A38: NHS Board Areas
A39: SCOTLAND | B39: 28500 | C39: 41800 | D39: 41300 | E39: 45100 | F39: 45200 | G39: 45100 | H39: 47400 | I39: 44200 | J39: 35900 | K39: 28200 | L39: 33200 | M39: 37800
A40: Ayrshire & Arran | B40: 520 | C40: 799 | D40: 667 | E40: 756 | F40: 813 | G40: 619 | H40: 712 | I40: 644 | J40: 503 | K40: 355 | L40: 396 | M40: 502
A41: Borders | B41: 364 | C41: 554 | D41: 582 | E41: 640 | F41: 685 | G41: 520 | H41: 394 | I41: 373 | J41: 383 | K41: 250 | L41: 283 | M41: 264
A42: Dumfries & Galloway | B42: 243 | C42: 502 | D42: 521 | E42: 493 | F42: 524 | G42: 388 | H42: 375 | I42: 358 | J42: 244 | K42: 200 | L42: 212 | M42: 281
A43: Fife | B43: 1637 | C43: 2492 | D43: 2169 | E43: 2291 | F43: 2209 | G43: 2402 | H43: 2678 | I43: 2298 | J43: 1962 | K43: 1510 | L43: 1629 | M43: 1918
A44: Forth Valley | B44: 1169 | C44: 1635 | D44: 1629 | E44: 1919 | F44: 1680 | G44: 1642 | H44: 1855 | I44: 1969 | J44: 1482 | K44: 994 | L44: 1069 | M44: 1508
A45: Grampian | B45: 3911 | C45: 6215 | D45: 6546 | E45: 7377 | F45: 7423 | G45: 7765 | H45: 7860 | I45: 7129 | J45: 5791 | K45: 4841 | L45: 5546 | M45: 6002
A46: Greater Glasgow & Clyde | B46: 8672 | C46: 10410 | D46: 9752 | E46: 10981 | F46: 11199 | G46: 11484 | H46: 11884 | I46: 11668 | J46: 9354 | K46: 7756 | L46: 9741 | M46: 11410
A47: Highland | B47: 1040 | C47: 1960 | D47: 1990 | E47: 2314 | F47: 1973 | G47: 1724 | H47: 1784 | I47: 1383 | J47: 1065 | K47: 854 | L47: 958 | M47: 1217
A48: Lanarkshire | B48: 722 | C48: 1303 | D48: 1452 | E48: 1761 | F48: 1663 | G48: 1502 | H48: 1344 | I48: 1063 | J48: 977 | K48: 718 | L48: 861 | M48: 1077
A49: Lothian | B49: 8477 | C49: 11989 | D49: 11981 | E49: 12027 | F49: 11880 | G49: 12240 | H49: 13400 | I49: 12697 | J49: 10630 | K49: 8091 | L49: 9513 | M49: 10794
A50: Orkney | B50: 39 | C50: 50 | D50: 50 | E50: 54 | F50: 48 | G50: 47 | H50: 63 | I50: 66 | J50: 38 | K50: 49 | L50: 52 | M50: 53
A51: Shetland | B51: 59 | C51: 72 | D51: 65 | E51: 76 | F51: 94 | G51: 148 | H51: 102 | I51: 101 | J51: 91 | K51: 60 | L51: 51 | M51: 93
A52: Tayside | B52: 1601 | C52: 3739 | D52: 3809 | E52: 4312 | F52: 4931 | G52: 4543 | H52: 4880 | I52: 4391 | J52: 3336 | K52: 2494 | L52: 2857 | M52: 2626
A53: Western Isles | B53: 46 | C53: 80 | D53: 87 | E53: 99 | F53: 78 | G53: 76 | H53: 69 | I53: 60 | J53: 44 | K53: 28 | L53: 32 | M53: 55
A55: Notes
A56: 1) Figures for 2003/04 to 2010/11 have been revised to include information from the 2011 Census.
A57: 2) Figures include asylum seekers and rounding adjustments.
A58: 4) Source for data: 'In, out and net migration between administrative areas and overseas, 2001/02 to latest' from the Migration between Scotland and Overseas section of the NRS website.
A59: 4) The NHS Board areas used for estimates between 2003/04 and 2010/11 are those that existed between 2006 and 2014. The 2011/12 estimates onwards use the NHS Board areas that came into force in April 2014.
A61: © Crown Copyright 2016

Sheet Overseas out-migration
A1: Overseas out-migration | K1: Return to front page
A3: Council Area | B3: 2003/04 | C3: 2004/05 | D3: 2005/06 | E3: 2006/07 | F3: 2007/08 | G3: 2008/09 | H3: 2009/10 | I3: 2010/11 | J3: 2011/12 | K3: 2012/13 | L3: 2013/14 | M3: 2014/15
A4: SCOTLAND | B4: 25400 | C4: 29000 | D4: 31400 | E4: 20900 | F4: 30300 | G4: 24800 | H4: 24600 | I4: 16900 | J4: 26200 | K4: 26100 | L4: 25200 | M4: 18200
A5: Aberdeen City | B5: 2019 | C5: 2172 | D5: 2321 | E5: 1598 | F5: 2379 | G5: 2195 | H5: 2109 | I5: 1154 | J5: 2312 | K5: 2334 | L5: 2237 | M5: 1401
A6: Aberdeenshire | B6: 651 | C6: 764 | D6: 902 | E6: 675 | F6: 1109 | G6: 908 | H6: 839 | I6: 715 | J6: 853 | K6: 862 | L6: 938 | M6: 824
A7: Angus | B7: 242 | C7: 246 | D7: 309 | E7: 218 | F7: 409 | G7: 313 | H7: 339 | I7: 278 | J7: 358 | K7: 366 | L7: 313 | M7: 301
A8: Argyll & Bute | B8: 404 | C8: 565 | D8: 571 | E8: 404 | F8: 640 | G8: 483 | H8: 389 | I8: 305 | J8: 475 | K8: 446 | L8: 473 | M8: 384
A9: Clackmannanshire | B9: 134 | C9: 144 | D9: 161 | E9: 90 | F9: 201 | G9: 145 | H9: 149 | I9: 98 | J9: 165 | K9: 108 | L9: 154 | M9: 102
A10: Dumfries & Galloway | B10: 498 | C10: 586 | D10: 637 | E10: 461 | F10: 699 | G10: 559 | H10: 537 | I10: 343 | J10: 524 | K10: 535 | L10: 479 | M10: 353
A11: Dundee City | B11: 707 | C11: 1009 | D11: 943 | E11: 782 | F11: 1122 | G11: 890 | H11: 938 | I11: 674 | J11: 1018 | K11: 1054 | L11: 1021 | M11: 717
A12: East Ayrshire | B12: 263 | C12: 282 | D12: 314 | E12: 230 | F12: 315 | G12: 258 | H12: 247 | I12: 182 | J12: 246 | K12: 239 | L12: 268 | M12: 181
A13: East Dunbartonshire | B13: 377 | C13: 340 | D13: 403 | E13: 211 | F13: 257 | G13: 209 | H13: 223 | I13: 233 | J13: 202 | K13: 199 | L13: 210 | M13: 218
A14: East Lothian | B14: 256 | C14: 252 | D14: 318 | E14: 194 | F14: 295 | G14: 233 | H14: 281 | I14: 262 | J14: 291 | K14: 304 | L14: 310 | M14: 255
A15: East Renfrewshire | B15: 282 | C15: 252 | D15: 286 | E15: 151 | F15: 236 | G15: 174 | H15: 155 | I15: 161 | J15: 234 | K15: 196 | L15: 178 | M15: 210
A16: Edinburgh, City of | B16: 4772 | C16: 5791 | D16: 6350 | E16: 4064 | F16: 6005 | G16: 4383 | H16: 4536 | I16: 3142 | J16: 5248 | K16: 5298 | L16: 5188 | M16: 3601
A17: Eilean Siar | B17: 82 | C17: 86 | D17: 98 | E17: 73 | F17: 105 | G17: 89 | H17: 74 | I17: 57 | J17: 81 | K17: 87 | L17: 80 | M17: 53
A18: Falkirk | B18: 325 | C18: 422 | D18: 499 | E18: 345 | F18: 455 | G18: 381 | H18: 298 | I18: 224 | J18: 341 | K18: 363 | L18: 312 | M18: 250
A19: Fife | B19: 1550 | C19: 1705 | D19: 1897 | E19: 1278 | F19: 1825 | G19: 1344 | H19: 1427 | I19: 998 | J19: 1603 | K19: 1564 | L19: 1520 | M19: 1090
A20: Glasgow City | B20: 6100 | C20: 6923 | D20: 6925 | E20: 4379 | F20: 5521 | G20: 4574 | H20: 4782 | I20: 3196 | J20: 5010 | K20: 5023 | L20: 4901 | M20: 3332
A21: Highland | B21: 734 | C21: 872 | D21: 1071 | E21: 801 | F21: 1247 | G21: 1107 | H21: 951 | I21: 599 | J21: 936 | K21: 862 | L21: 807 | M21: 589
A22: Inverclyde | B22: 381 | C22: 309 | D22: 266 | E22: 200 | F22: 239 | G22: 184 | H22: 175 | I22: 124 | J22: 176 | K22: 128 | L22: 133 | M22: 86
A23: Midlothian | B23: 150 | C23: 187 | D23: 201 | E23: 119 | F23: 191 | G23: 159 | H23: 167 | I23: 106 | J23: 150 | K23: 133 | L23: 189 | M23: 191
A24: Moray | B24: 319 | C24: 438 | D24: 506 | E24: 279 | F24: 509 | G24: 346 | H24: 401 | I24: 502 | J24: 414 | K24: 373 | L24: 324 | M24: 454
A25: North Ayrshire | B25: 373 | C25: 451 | D25: 499 | E25: 307 | F25: 407 | G25: 314 | H25: 326 | I25: 190 | J25: 376 | K25: 348 | L25: 304 | M25: 200
A26: North Lanarkshire | B26: 750 | C26: 753 | D26: 877 | E26: 608 | F26: 982 | G26: 880 | H26: 804 | I26: 517 | J26: 732 | K26: 752 | L26: 655 | M26: 458
A27: Orkney Islands | B27: 57 | C27: 75 | D27: 77 | E27: 51 | F27: 74 | G27: 62 | H27: 60 | I27: 43 | J27: 71 | K27: 77 | L27: 68 | M27: 50
A28: Perth & Kinross | B28: 546 | C28: 572 | D28: 763 | E28: 651 | F28: 963 | G28: 991 | H28: 963 | I28: 511 | J28: 932 | K28: 851 | L28: 774 | M28: 485
A29: Renfrewshire | B29: 467 | C29: 537 | D29: 732 | E29: 410 | F29: 558 | G29: 563 | H29: 503 | I29: 273 | J29: 512 | K29: 537 | L29: 439 | M29: 270
A30: Scottish Borders | B30: 425 | C30: 447 | D30: 571 | E30: 381 | F30: 595 | G30: 505 | H30: 497 | I30: 307 | J30: 449 | K30: 423 | L30: 456 | M30: 314
A31: Shetland Islands | B31: 79 | C31: 76 | D31: 107 | E31: 62 | F31: 91 | G31: 70 | H31: 78 | I31: 66 | J31: 89 | K31: 92 | L31: 90 | M31: 61
A32: South Ayrshire | B32: 353 | C32: 390 | D32: 411 | E32: 268 | F32: 406 | G32: 381 | H32: 353 | I32: 226 | J32: 341 | K32: 360 | L32: 332 | M32: 240
A33: South Lanarkshire | B33: 797 | C33: 1020 | D33: 936 | E33: 647 | F33: 891 | G33: 765 | H33: 744 | I33: 561 | J33: 770 | K33: 732 | L33: 744 | M33: 615
A34: Stirling | B34: 622 | C34: 674 | D34: 710 | E34: 445 | F34: 668 | G34: 604 | H34: 586 | I34: 378 | J34: 639 | K34: 738 | L34: 658 | M34: 396
A35: West Dunbartonshire | B35: 262 | C35: 278 | D35: 294 | E35: 163 | F35: 230 | G35: 202 | H35: 149 | I35: 149 | J35: 170 | K35: 198 | L35: 147 | M35: 154
A36: West Lothian | B36: 423 | C36: 382 | D36: 445 | E36: 355 | F36: 676 | G36: 529 | H36: 520 | I36: 326 | J36: 482 | K36: 518 | L36: 498 | M36: 365
A38: NHS Board Areas
A39: SCOTLAND | B39: 25400 | C39: 29000 | D39: 31400 | E39: 20900 | F39: 30300 | G39: 24800 | H39: 24600 | I39: 16900 | J39: 26200 | K39: 26100 | L39: 25200 | M39: 18200
A40: Ayrshire & Arran | B40: 989 | C40: 1123 | D40: 1224 | E40: 805 | F40: 1128 | G40: 953 | H40: 926 | I40: 598 | J40: 963 | K40: 947 | L40: 904 | M40: 621
A41: Borders | B41: 425 | C41: 447 | D41: 571 | E41: 381 | F41: 595 | G41: 505 | H41: 497 | I41: 307 | J41: 449 | K41: 423 | L41: 456 | M41: 314
A42: Dumfries & Galloway | B42: 498 | C42: 586 | D42: 637 | E42: 461 | F42: 699 | G42: 559 | H42: 537 | I42: 343 | J42: 524 | K42: 535 | L42: 479 | M42: 353
A43: Fife | B43: 1550 | C43: 1705 | D43: 1897 | E43: 1278 | F43: 1825 | G43: 1344 | H43: 1427 | I43: 998 | J43: 1603 | K43: 1564 | L43: 1520 | M43: 1090
A44: Forth Valley | B44: 1081 | C44: 1240 | D44: 1370 | E44: 880 | F44: 1324 | G44: 1130 | H44: 1033 | I44: 700 | J44: 1145 | K44: 1209 | L44: 1124 | M44: 748
A45: Grampian | B45: 2989 | C45: 3374 | D45: 3729 | E45: 2552 | F45: 3997 | G45: 3449 | H45: 3349 | I45: 2371 | J45: 3579 | K45: 3569 | L45: 3499 | M45: 2679
A46: Greater Glasgow & Clyde | B46: 8056 | C46: 8896 | D46: 9084 | E46: 5642 | F46: 7195 | G46: 6047 | H46: 6114 | I46: 4285 | J46: 6304 | K46: 6281 | L46: 6008 | M46: 4270
A47: Highland | B47: 1138 | C47: 1437 | D47: 1642 | E47: 1205 | F47: 1887 | G47: 1590 | H47: 1340 | I47: 904 | J47: 1411 | K47: 1308 | L47: 1280 | M47: 973
A48: Lanarkshire | B48: 1360 | C48: 1516 | D48: 1635 | E48: 1127 | F48: 1719 | G48: 1504 | H48: 1421 | I48: 929 | J48: 1502 | K48: 1484 | L48: 1399 | M48: 1073
A49: Lothian | B49: 5601 | C49: 6612 | D49: 7314 | E49: 4732 | F49: 7167 | G49: 5304 | H49: 5504 | I49: 3836 | J49: 6171 | K49: 6253 | L49: 6185 | M49: 4412
A50: Orkney | B50: 57 | C50: 75 | D50: 77 | E50: 51 | F50: 74 | G50: 62 | H50: 60 | I50: 43 | J50: 71 | K50: 77 | L50: 68 | M50: 50
A51: Shetland | B51: 79 | C51: 76 | D51: 107 | E51: 62 | F51: 91 | G51: 70 | H51: 78 | I51: 66 | J51: 89 | K51: 92 | L51: 90 | M51: 61
A52: Tayside | B52: 1495 | C52: 1827 | D52: 2015 | E52: 1651 | F52: 2494 | G52: 2194 | H52: 2240 | I52: 1463 | J52: 2308 | K52: 2271 | L52: 2108 | M52: 1503
A53: Western Isles | B53: 82 | C53: 86 | D53: 98 | E53: 73 | F53: 105 | G53: 89 | H53: 74 | I53: 57 | J53: 81 | K53: 87 | L53: 80 | M53: 53
A55: Notes
A56: 1) Figures for 2003/04 to 2010/11 have been revised to include information from the 2011 Census.
A57: 2) Figures include asylum seekers and rounding adjustments.
A58: 4) Source for data: 'In, out and net migration between administrative areas and overseas, 2001/02 to latest' from the Migration between Scotland and Overseas section of the NRS website.
A59: 4) The NHS Board areas used for estimates between 2003/04 and 2010/11 are those that existed between 2006 and 2014. The 2011/12 estimates onwards use the NHS Board areas that came into force in April 2014.
A61: © Crown Copyright 2016

Sheet WRS
A1: Worker Registration Scheme (WRS) | I1: Return to front page
B3: Worker Registrations
A4: Council Area | B4: May 2004 - Dec 2004 | C4: Jan 2005 - Dec 2005 | D4: Jan 2006 - Dec 2006 | E4: Jan 2007 - Dec 2007 | F4: Jan 2008 - Dec 2008 | G4: Jan 2009 - Dec 2009 | H4: Jan 2010 - Dec 2010 | I4: Jan 2011 - Dec 2011
A5: SCOTLAND | B5: 7180 | C5: 14445 | D5: 18035 | E5: 19630 | F5: 14180 | G5: 10315 | H5: 8880 | I5: -
A6: Aberdeen City | B6: 215 | C6: 590 | D6: 1135 | E6: 1240 | F6: 890 | G6: 880 | H6: 735 | I6: -
A7: Aberdeenshire | B7: 610 | C7: 1135 | D7: 1320 | E7: 1275 | F7: 1020 | G7: 1060 | H7: 880 | I7: -
A8: Angus | B8: 635 | C8: 955 | D8: 775 | E8: 1010 | F8: 770 | G8: 330 | H8: 425 | I8: -
A9: Argyll & Bute | B9: 170 | C9: 325 | D9: 400 | E9: 290 | F9: 250 | G9: 195 | H9: 215 | I9: -
A10: Clackmannanshire | B10: 15 | C10: 45 | D10: 30 | E10: 45 | F10: 35 | G10: 40 | H10: 15 | I10: -
A11: Dumfries & Galloway | B11: 50 | C11: 250 | D11: 375 | E11: 280 | F11: 185 | G11: 130 | H11: 110 | I11: -
A12: Dundee City | B12: 115 | C12: 225 | D12: 435 | E12: 425 | F12: 315 | G12: 290 | H12: 280 | I12: -
A13: East Ayrshire | B13: 10 | C13: 60 | D13: 165 | E13: 195 | F13: 125 | G13: 60 | H13: 30 | I13: -
A14: East Dunbartonshire | B14: 10 | C14: 30 | D14: 85 | E14: 75 | F14: 35 | G14: 15 | H14: 25 | I14: -
A15: East Lothian | B15: 135 | C15: 160 | D15: 180 | E15: 185 | F15: 125 | G15: 115 | H15: 65 | I15: -
A16: East Renfrewshire | B16: - | C16: 20 | D16: 65 | E16: 75 | F16: 35 | G16: 30 | H16: 20 | I16: -
A17: Edinburgh, City of | B17: 1200 | C17: 2235 | D17: 2460 | E17: 2325 | F17: 1565 | G17: 1245 | H17: 1275 | I17: -
A18: Eilean Siar | B18: 35 | C18: 80 | D18: 65 | E18: 60 | F18: 40 | G18: 20 | H18: 10 | I18: -
A19: Falkirk | B19: 25 | C19: 270 | D19: 330 | E19: 295 | F19: 160 | G19: 115 | H19: 125 | I19: -
A20: Fife | B20: 480 | C20: 1030 | D20: 1165 | E20: 1285 | F20: 1015 | G20: 675 | H20: 485 | I20: -
A21: Glasgow City | B21: 625 | C21: 1480 | D21: 2200 | E21: 2690 | F21: 1690 | G21: 1130 | H21: 925 | I21: -
A22: Highland | B22: 865 | C22: 1330 | D22: 1475 | E22: 1630 | F22: 1260 | G22: 710 | H22: 605 | I22: -
A23: Inverclyde | B23: 5 | C23: 75 | D23: 35 | E23: 35 | F23: 10 | G23: 20 | H23: 5 | I23: -
A24: Midlothian | B24: 70 | C24: 200 | D24: 235 | E24: 195 | F24: 115 | G24: 60 | H24: 50 | I24: -
A25: Moray | B25: 70 | C25: 285 | D25: 255 | E25: 300 | F25: 205 | G25: 100 | H25: 90 | I25: -
A26: North Ayrshire | B26: 30 | C26: 65 | D26: 70 | E26: 80 | F26: 60 | G26: 25 | H26: 35 | I26: -
A27: North Lanarkshire | B27: 125 | C27: 420 | D27: 645 | E27: 855 | F27: 545 | G27: 220 | H27: 245 | I27: -
A28: Orkney Islands | B28: - | C28: 5 | D28: 20 | E28: 50 | F28: 20 | G28: 15 | H28: 15 | I28: -
A29: Perth & Kinross | B29: 1080 | C29: 1420 | D29: 1765 | E29: 1850 | F29: 1695 | G29: 1255 | H29: 1110 | I29: -
A30: Renfrewshire | B30: 60 | C30: 185 | D30: 325 | E30: 440 | F30: 245 | G30: 210 | H30: 195 | I30: -
A31: Scottish Borders | B31: 155 | C31: 515 | D31: 475 | E31: 475 | F31: 300 | G31: 220 | H31: 165 | I31: -
A32: Shetland Islands | B32: 55 | C32: 35 | D32: 75 | E32: 85 | F32: 80 | G32: 80 | H32: 60 | I32: -
A33: South Ayrshire | B33: 15 | C33: 25 | D33: 125 | E33: 110 | F33: 75 | G33: 40 | H33: 15 | I33: -
A34: South Lanarkshire | B34: 65 | C34: 320 | D34: 530 | E34: 560 | F34: 325 | G34: 175 | H34: 115 | I34: -
A35: Stirling | B35: 120 | C35: 210 | D35: 280 | E35: 295 | F35: 325 | G35: 245 | H35: 155 | I35: -
A36: West Dunbartonshire | B36: 5 | C36: 20 | D36: 45 | E36: 35 | F36: 20 | G36: 10 | H36: 0 | I36: -
A37: West Lothian | B37: 120 | C37: 445 | D37: 510 | E37: 900 | F37: 650 | G37: 630 | H37: 400 | I37: -
A39: Footnotes
A40: 1) This data is based on Management Information, is provisional and may be subject to change. The data are not National Statistics. This table shows registered workers rather than the number of applications made. The figures are for initial applications only (not multiple applications, where an individual is doing more than one job simultaneously, nor re-registrations, where an individual has changed employers). Currently 99.3 per cent of approved applications have an accurate employer postcode. Figures based on Employer's address and the date the application is approved. Figures are rounded to nearest 5 Because of rounding, figures may not add up to totals shown.
A41: 2) Source: Local Government Association, Worker Registration Scheme Data Archive (no longer available online).
A42: 3) The Worker Registration Scheme was discontinued on 1 May 2011.
A44: © Crown Copyright 2016

Sheet NINo
A1: National Insurance Number (NINo) allocations to adult overseas nationals entering the UK | K1: Return to front page
B3: Registrations
A4: Calendar Year | B4: 2004 | C4: 2005 | D4: 2006 | E4: 2007 | F4: 2008 | G4: 2009 | H4: 2010 | I4: 2011 | J4: 2012 | K4: 2013 | L4: 2014 | M4: 2015
A5: SCOTLAND | B5: 19080 | C5: 39410 | D5: 45490 | E5: 57080 | F5: 46110 | G5: 41610 | H5: 39420 | I5: 39500 | J5: 34850 | K5: 39470 | L5: 43600 | M5: 46570
A6: Aberdeen City | B6: 1900 | C6: 3580 | D6: 4960 | E6: 6360 | F6: 5020 | G6: 4830 | H6: 4230 | I6: 4600 | J6: 4110 | K6: 4930 | L6: 5460 | M6: 5210
A7: Aberdeenshire | B7: 740 | C7: 1610 | D7: 1600 | E7: 2000 | F7: 1690 | G7: 1680 | H7: 1620 | I7: 1500 | J7: 1290 | K7: 1610 | L7: 1680 | M7: 1730
A8: Angus | B8: 370 | C8: 790 | D8: 660 | E8: 920 | F8: 1260 | G8: 1350 | H8: 1570 | I8: 1140 | J8: 1090 | K8: 1240 | L8: 1220 | M8: 1310
A9: Argyll & Bute | B9: 350 | C9: 680 | D9: 780 | E9: 770 | F9: 560 | G9: 530 | H9: 520 | I9: 360 | J9: 340 | K9: 460 | L9: 460 | M9: 570
A10: Clackmannanshire | B10: 30 | C10: 110 | D10: 160 | E10: 210 | F10: 170 | G10: 120 | H10: 100 | I10: 90 | J10: 100 | K10: 140 | L10: 90 | M10: 110
A11: Dumfries & Galloway | B11: 260 | C11: 630 | D11: 590 | E11: 800 | F11: 420 | G11: 350 | H11: 310 | I11: 310 | J11: 250 | K11: 280 | L11: 310 | M11: 340
A12: Dundee City | B12: 750 | C12: 1480 | D12: 1480 | E12: 1940 | F12: 1660 | G12: 1500 | H12: 1540 | I12: 1490 | J12: 1090 | K12: 1300 | L12: 1240 | M12: 1340
A13: East Ayrshire | B13: 100 | C13: 160 | D13: 140 | E13: 190 | F13: 130 | G13: 100 | H13: 90 | I13: 100 | J13: 100 | K13: 80 | L13: 90 | M13: 90
A14: East Dunbartonshire | B14: 130 | C14: 170 | D14: 220 | E14: 270 | F14: 150 | G14: 150 | H14: 150 | I14: 130 | J14: 90 | K14: 90 | L14: 110 | M14: 110
A15: East Lothian | B15: 160 | C15: 280 | D15: 350 | E15: 490 | F15: 490 | G15: 420 | H15: 400 | I15: 310 | J15: 280 | K15: 370 | L15: 450 | M15: 510
A16: East Renfrewshire | B16: 100 | C16: 130 | D16: 190 | E16: 230 | F16: 100 | G16: 110 | H16: 110 | I16: 100 | J16: 80 | K16: 100 | L16: 120 | M16: 140
A17: Edinburgh, City of | B17: 5090 | C17: 11060 | D17: 11950 | E17: 13630 | F17: 10330 | G17: 10450 | H17: 9820 | I17: 10590 | J17: 9710 | K17: 11360 | L17: 11340 | M17: 11930
A18: Eilean Siar | B18: 60 | C18: 130 | D18: 90 | E18: 130 | F18: 70 | G18: 50 | H18: 40 | I18: 40 | J18: 50 | K18: 30 | L18: 60 | M18: 70
A19: Falkirk | B19: 160 | C19: 390 | D19: 530 | E19: 670 | F19: 430 | G19: 320 | H19: 340 | I19: 330 | J19: 380 | K19: 380 | L19: 410 | M19: 540
A20: Fife | B20: 730 | C20: 1410 | D20: 1800 | E20: 2450 | F20: 1950 | G20: 1650 | H20: 1810 | I20: 1900 | J20: 1890 | K20: 1970 | L20: 2450 | M20: 2620
A21: Glasgow City | B21: 3290 | C21: 6250 | D21: 7840 | E21: 10700 | F21: 8820 | G21: 7650 | H21: 7940 | I21: 7650 | J21: 6600 | K21: 6820 | L21: 8400 | M21: 9310
A22: Highland | B22: 1220 | C22: 2690 | D22: 2360 | E22: 2960 | F22: 2140 | G22: 1560 | H22: 1310 | I22: 1280 | J22: 1200 | K22: 1290 | L22: 1600 | M22: 1680
A23: Inverclyde | B23: 210 | C23: 330 | D23: 230 | E23: 270 | F23: 250 | G23: 150 | H23: 160 | I23: 130 | J23: 100 | K23: 80 | L23: 90 | M23: 100
A24: Midlothian | B24: 80 | C24: 210 | D24: 250 | E24: 240 | F24: 180 | G24: 150 | H24: 200 | I24: 170 | J24: 150 | K24: 180 | L24: 260 | M24: 240
A25: Moray | B25: 240 | C25: 550 | D25: 520 | E25: 560 | F25: 380 | G25: 260 | H25: 270 | I25: 200 | J25: 220 | K25: 320 | L25: 310 | M25: 310
A26: North Ayrshire | B26: 240 | C26: 310 | D26: 280 | E26: 340 | F26: 220 | G26: 230 | H26: 170 | I26: 170 | J26: 110 | K26: 130 | L26: 130 | M26: 180
A27: North Lanarkshire | B27: 300 | C27: 720 | D27: 1100 | E27: 1650 | F27: 1170 | G27: 670 | H27: 540 | I27: 690 | J27: 560 | K27: 590 | L27: 790 | M27: 1030
A28: Orkney Islands | B28: 30 | C28: 60 | D28: 70 | E28: 110 | F28: 60 | G28: 60 | H28: 50 | I28: 50 | J28: 40 | K28: 70 | L28: 50 | M28: 60
A29: Perth & Kinross | B29: 810 | C29: 1610 | D29: 1750 | E29: 2450 | F29: 3930 | G29: 3580 | H29: 2930 | I29: 2810 | J29: 2160 | K29: 2350 | L29: 2460 | M29: 2730
A30: Renfrewshire | B30: 280 | C30: 590 | D30: 930 | E30: 1180 | F30: 780 | G30: 570 | H30: 480 | I30: 520 | J30: 450 | K30: 510 | L30: 670 | M30: 750
A31: Scottish Borders | B31: 270 | C31: 630 | D31: 760 | E31: 870 | F31: 610 | G31: 390 | H31: 380 | I31: 390 | J31: 330 | K31: 340 | L31: 360 | M31: 450
A32: Shetland Islands | B32: 90 | C32: 110 | D32: 150 | E32: 170 | F32: 160 | G32: 160 | H32: 110 | I32: 100 | J32: 100 | K32: 190 | L32: 540 | M32: 300
A33: South Ayrshire | B33: 180 | C33: 400 | D33: 410 | E33: 490 | F33: 310 | G33: 290 | H33: 300 | I33: 310 | J33: 200 | K33: 220 | L33: 240 | M33: 280
A34: South Lanarkshire | B34: 380 | C34: 710 | D34: 870 | E34: 1060 | F34: 720 | G34: 480 | H34: 480 | I34: 470 | J34: 370 | K34: 500 | L34: 640 | M34: 710
A35: Stirling | B35: 240 | C35: 690 | D35: 750 | E35: 880 | F35: 720 | G35: 680 | H35: 570 | I35: 600 | J35: 490 | K35: 590 | L35: 580 | M35: 750
A36: West Dunbartonshire | B36: 80 | C36: 160 | D36: 230 | E36: 260 | F36: 150 | G36: 180 | H36: 140 | I36: 130 | J36: 100 | K36: 140 | L36: 170 | M36: 190
A37: West Lothian | B37: 280 | C37: 820 | D37: 1490 | E37: 1850 | F37: 1110 | G37: 950 | H37: 750 | I37: 880 | J37: 830 | K37: 810 | L37: 850 | M37: 880
A39: Notes
A40: 1) Figures are rounded to the nearest ten. Some additional disclosure control has been applied. Totals may not sum due to rounding method used.
A41: 2) Registration date is derived from the date at which a NINo is maintained on the National Insurance Recording & Pay As You Earn System.
A42: 3) Improvements have been made to the allocation of migrants whose residential address is incomplete. Figures reflect the best estimate of an overseas national's locality at the time of registering for a NINo. A very small proportion of NINo registrations are to overseas nationals registering whilst abroad.
A44: 4) Source: Department for Work and Pensions (DWP), National Insurance Number Allocations to Adult Overseas Nationals - data produced using the Stat-Xplore tool.
A46: © Crown Copyright 2016

Sheet Non-UK Births
A1: Births to non-UK mothers | K1: Return to front page
B3: Births
A4: Calendar Year | B4: 2004 | C4: 2005 | D4: 2006 | E4: 2007 | F4: 2008 | G4: 2009 | H4: 2010 | I4: 2011 | J4: 2012 | K4: 2013 | L4: 2014 | M4: 2015
A5: SCOTLAND | B5: 4219 | C5: 4675 | D5: 5222 | E5: 6350 | F5: 7607 | G5: 7984 | H5: 8176 | I5: 8343 | J5: 8439 | K5: 8634 | L5: 9178 | M5: 8998
A6: Aberdeen City | B6: 299 | C6: 330 | D6: 395 | E6: 555 | F6: 726 | G6: 782 | H6: 840 | I6: 838 | J6: 911 | K6: 940 | L6: 986 | M6: 992
A7: Aberdeenshire | B7: 163 | C7: 185 | D7: 229 | E7: 270 | F7: 298 | G7: 322 | H7: 359 | I7: 379 | J7: 383 | K7: 364 | L7: 450 | M7: 434
A8: Angus | B8: 59 | C8: 61 | D8: 68 | E8: 85 | F8: 95 | G8: 116 | H8: 101 | I8: 134 | J8: 134 | K8: 133 | L8: 135 | M8: 115
A9: Argyll & Bute | B9: 43 | C9: 52 | D9: 55 | E9: 73 | F9: 83 | G9: 83 | H9: 73 | I9: 79 | J9: 78 | K9: 70 | L9: 81 | M9: 87
A10: Clackmannanshire | B10: 18 | C10: 27 | D10: 23 | E10: 53 | F10: 46 | G10: 49 | H10: 48 | I10: 43 | J10: 50 | K10: 42 | L10: 49 | M10: 40
A11: Dumfries & Galloway | B11: 59 | C11: 71 | D11: 76 | E11: 86 | F11: 81 | G11: 116 | H11: 85 | I11: 96 | J11: 90 | K11: 98 | L11: 91 | M11: 87
A12: Dundee City | B12: 135 | C12: 151 | D12: 170 | E12: 215 | F12: 288 | G12: 292 | H12: 290 | I12: 318 | J12: 265 | K12: 238 | L12: 310 | M12: 267
A13: East Ayrshire | B13: 38 | C13: 42 | D13: 38 | E13: 51 | F13: 52 | G13: 68 | H13: 61 | I13: 76 | J13: 52 | K13: 45 | L13: 44 | M13: 56
A14: East Dunbartonshire | B14: 67 | C14: 65 | D14: 69 | E14: 74 | F14: 80 | G14: 78 | H14: 75 | I14: 77 | J14: 79 | K14: 73 | L14: 87 | M14: 86
A15: East Lothian | B15: 51 | C15: 70 | D15: 69 | E15: 79 | F15: 106 | G15: 90 | H15: 112 | I15: 131 | J15: 134 | K15: 115 | L15: 126 | M15: 125
A16: East Renfrewshire | B16: 81 | C16: 73 | D16: 79 | E16: 78 | F16: 77 | G16: 82 | H16: 84 | I16: 76 | J16: 81 | K16: 87 | L16: 78 | M16: 92
A17: Edinburgh, City of | B17: 721 | C17: 836 | D17: 996 | E17: 1116 | F17: 1455 | G17: 1475 | H17: 1527 | I17: 1529 | J17: 1652 | K17: 1700 | L17: 1880 | M17: 1821
A18: Eilean Siar | B18: 11 | C18: 8 | D18: 11 | E18: 13 | F18: 14 | G18: 22 | H18: 10 | I18: 13 | J18: 13 | K18: 21 | L18: 17 | M18: 8
A19: Falkirk | B19: 78 | C19: 97 | D19: 86 | E19: 107 | F19: 144 | G19: 131 | H19: 123 | I19: 144 | J19: 160 | K19: 149 | L19: 164 | M19: 171
A20: Fife | B20: 220 | C20: 227 | D20: 285 | E20: 322 | F20: 388 | G20: 388 | H20: 406 | I20: 424 | J20: 402 | K20: 407 | L20: 408 | M20: 443
A21: Glasgow City | B21: 1037 | C21: 1206 | D21: 1195 | E21: 1449 | F21: 1733 | G21: 1827 | H21: 1922 | I21: 1881 | J21: 1873 | K21: 1986 | L21: 2037 | M21: 1952
A22: Highland | B22: 151 | C22: 163 | D22: 203 | E22: 241 | F22: 261 | G22: 301 | H22: 312 | I22: 269 | J22: 327 | K22: 316 | L22: 337 | M22: 314
A23: Inverclyde | B23: 40 | C23: 41 | D23: 32 | E23: 32 | F23: 36 | G23: 42 | H23: 33 | I23: 34 | J23: 27 | K23: 33 | L23: 28 | M23: 30
A24: Midlothian | B24: 40 | C24: 40 | D24: 53 | E24: 75 | F24: 82 | G24: 81 | H24: 71 | I24: 82 | J24: 100 | K24: 85 | L24: 99 | M24: 114
A25: Moray | B25: 64 | C25: 59 | D25: 59 | E25: 102 | F25: 84 | G25: 99 | H25: 87 | I25: 107 | J25: 78 | K25: 112 | L25: 107 | M25: 98
A26: North Ayrshire | B26: 48 | C26: 55 | D26: 49 | E26: 54 | F26: 55 | G26: 77 | H26: 60 | I26: 52 | J26: 64 | K26: 61 | L26: 56 | M26: 62
A27: North Lanarkshire | B27: 141 | C27: 104 | D27: 162 | E27: 190 | F27: 245 | G27: 253 | H27: 277 | I27: 284 | J27: 240 | K27: 265 | L27: 273 | M27: 237
A28: Orkney Islands | B28: 6 | C28: 4 | D28: 9 | E28: 6 | F28: 13 | G28: 7 | H28: 14 | I28: 8 | J28: 11 | K28: 7 | L28: 11 | M28: 9
A29: Perth & Kinross | B29: 92 | C29: 107 | D29: 111 | E29: 145 | F29: 166 | G29: 196 | H29: 204 | I29: 204 | J29: 201 | K29: 211 | L29: 233 | M29: 233
A30: Renfrewshire | B30: 91 | C30: 88 | D30: 101 | E30: 123 | F30: 155 | G30: 162 | H30: 175 | I30: 176 | J30: 183 | K30: 176 | L30: 186 | M30: 185
A31: Scottish Borders | B31: 63 | C31: 71 | D31: 84 | E31: 126 | F31: 135 | G31: 118 | H31: 124 | I31: 115 | J31: 135 | K31: 130 | L31: 121 | M31: 121
A32: Shetland Islands | B32: 14 | C32: 18 | D32: 21 | E32: 15 | F32: 24 | G32: 22 | H32: 23 | I32: 30 | J32: 21 | K32: 22 | L32: 28 | M32: 24
A33: South Ayrshire | B33: 40 | C33: 49 | D33: 44 | E33: 62 | F33: 59 | G33: 58 | H33: 63 | I33: 61 | J33: 67 | K33: 58 | L33: 59 | M33: 78
A34: South Lanarkshire | B34: 124 | C34: 138 | D34: 169 | E34: 195 | F34: 214 | G34: 206 | H34: 207 | I34: 245 | J34: 197 | K34: 227 | L34: 239 | M34: 221
A35: Stirling | B35: 80 | C35: 61 | D35: 85 | E35: 82 | F35: 85 | G35: 108 | H35: 102 | I35: 100 | J35: 80 | K35: 84 | L35: 109 | M35: 104
A36: West Dunbartonshire | B36: 26 | C36: 28 | D36: 38 | E36: 49 | F36: 49 | G36: 39 | H36: 54 | I36: 60 | J36: 44 | K36: 68 | L36: 51 | M36: 72
A37: West Lothian | B37: 119 | C37: 148 | D37: 158 | E37: 227 | F37: 278 | G37: 294 | H37: 254 | I37: 278 | J37: 307 | K37: 311 | L37: 298 | M37: 320
A39: NHS Board Areas
A40: SCOTLAND | B40: 4219 | C40: 4675 | D40: 5222 | E40: 6350 | F40: 7607 | G40: 7984 | H40: 8176 | I40: 8343 | J40: 8439 | K40: 8634 | L40: 9178 | M40: 8998
A41: Ayrshire & Arran | B41: 126 | C41: 146 | D41: 131 | E41: 167 | F41: 166 | G41: 203 | H41: 184 | I41: 189 | J41: 183 | K41: 164 | L41: 159 | M41: 196
A42: Borders | B42: 63 | C42: 71 | D42: 84 | E42: 126 | F42: 135 | G42: 118 | H42: 124 | I42: 115 | J42: 135 | K42: 130 | L42: 121 | M42: 121
A43: Dumfries & Galloway | B43: 59 | C43: 71 | D43: 76 | E43: 86 | F43: 81 | G43: 116 | H43: 85 | I43: 96 | J43: 90 | K43: 98 | L43: 91 | M43: 87
A44: Fife | B44: 220 | C44: 227 | D44: 285 | E44: 322 | F44: 388 | G44: 388 | H44: 406 | I44: 424 | J44: 402 | K44: 407 | L44: 408 | M44: 443
A45: Forth Valley | B45: 176 | C45: 185 | D45: 194 | E45: 242 | F45: 276 | G45: 288 | H45: 273 | I45: 287 | J45: 290 | K45: 275 | L45: 322 | M45: 315
A46: Grampian | B46: 526 | C46: 574 | D46: 683 | E46: 927 | F46: 1108 | G46: 1203 | H46: 1286 | I46: 1324 | J46: 1372 | K46: 1416 | L46: 1543 | M46: 1524
A47: Greater Glasgow & Clyde | B47: 1394 | C47: 1546 | D47: 1560 | E47: 1866 | F47: 2198 | G47: 2291 | H47: 2408 | I47: 2384 | J47: 2287 | K47: 2423 | L47: 2467 | M47: 2417
A48: Highland | B48: 194 | C48: 215 | D48: 258 | E48: 314 | F48: 344 | G48: 384 | H48: 385 | I48: 348 | J48: 405 | K48: 386 | L48: 418 | M48: 401
A49: Lanarkshire | B49: 213 | C49: 197 | D49: 286 | E49: 324 | F49: 392 | G49: 398 | H49: 419 | I49: 450 | J49: 437 | K49: 492 | L49: 512 | M49: 458
A50: Lothian | B50: 931 | C50: 1094 | D50: 1275 | E50: 1497 | F50: 1920 | G50: 1940 | H50: 1964 | I50: 2019 | J50: 2193 | K50: 2211 | L50: 2403 | M50: 2380
A51: Orkney | B51: 6 | C51: 4 | D51: 9 | E51: 6 | F51: 13 | G51: 7 | H51: 14 | I51: 8 | J51: 11 | K51: 7 | L51: 11 | M51: 9
A52: Shetland | B52: 14 | C52: 18 | D52: 21 | E52: 15 | F52: 24 | G52: 22 | H52: 23 | I52: 30 | J52: 21 | K52: 22 | L52: 28 | M52: 24
A53: Tayside | B53: 286 | C53: 319 | D53: 349 | E53: 445 | F53: 548 | G53: 604 | H53: 595 | I53: 656 | J53: 600 | K53: 582 | L53: 678 | M53: 615
A54: Western Isles | B54: 11 | C54: 8 | D54: 11 | E54: 13 | F54: 14 | G54: 22 | H54: 10 | I54: 13 | J54: 13 | K54: 21 | L54: 17 | M54: 8
A56: Notes
A57: 1) Births to non-UK mothers is the total of all births of mothers not born in the UK, Isle of Man, or the Channel Islands. Further breakdown of births by mother's country of birth is available in the NRS Vital Events Reference Tables, Table 3.9.
A58: 2) Source: NRS Vital Events Reference Tables, Table 3.9
A59: 3) The NHS Board areas used for estimates between 2003/04 and 2010/11 are those that existed between 2006 and 2014. The 2011/12 estimates onwards use the NHS Board areas that came into force in April 2014.
A61: © Crown Copyright 2016

Sheet Pupils ethnic group
A1: Pupils from minority ethnic groups | L1: Return to front page
B3: Minority ethnic group | O3: White other4 | AB3: Not known/not disclosed
B4: 2003 | C4: 2004 | D4: 2005 | E4: 2006 | F4: 2007 | G4: 2008 | H4: 2009 | I4: 2010 | J4: 2011 | K4: 2012 | L4: 2013 | M4: 2014 | N4: 2015 | O4: 2003 | P4: 2004 | Q4: 2005 | R4: 2006 | S4: 2007 | T4: 2008 | U4: 2009 | V4: 2010 | W4: 2011 | X4: 2012 | Y4: 2013 | Z4: 2014 | AA4: 2015 | AB4: 2003 | AC4: 2004 | AD4: 2005 | AE4: 2006 | AF4: 2007 | AG4: 2008 | AH4: 2009 | AI4: 2010 | AJ4: 2011 | AK4: 2012 | AL4: 2013 | AM4: 2014 | AN4: 2015
A5: SCOTLAND | B5: 23630 | C5: 24987 | D5: 26145 | E5: 27543 | F5: 29896 | G5: 31477 | H5: 33417 | I5: 34639 | J5: 35142 | K5: 36811 | L5: 39073 | M5: 41849 | N5: 44348 | O5: 8550 | P5: 8015 | Q5: 8917 | R5: 10349 | S5: 12146 | T5: 14393 | U5: 15927 | V5: 17548 | W5: 20238 | X5: 22404 | Y5: 25310 | Z5: 28126 | AA5: 31216 | AB5: 31633 | AC5: 27056 | AD5: 21652 | AE5: 19726 | AF5: 17151 | AG5: 16445 | AH5: 16270 | AI5: 16744 | AJ5: 11859 | AK5: 11316 | AL5: 11200 | AM5: 11254 | AN5: 12150
A6: Aberdeen City | B6: 1085 | C6: 1189 | D6: 1251 | E6: 1391 | F6: 1552 | G6: 1627 | H6: 1739 | I6: 1920 | J6: 2034 | K6: 2233 | L6: 2412 | M6: 2655 | N6: 2858 | O6: 480 | P6: 500 | Q6: 522 | R6: 647 | S6: 926 | T6: 1045 | U6: 1212 | V6: 1386 | W6: 1630 | X6: 1891 | Y6: 2304 | Z6: 2603 | AA6: 2889 | AB6: 2223 | AC6: 1507 | AD6: 1077 | AE6: 814 | AF6: 617 | AG6: 457 | AH6: 365 | AI6: 382 | AJ6: 791 | AK6: 879 | AL6: 775 | AM6: 623 | AN6: 454
A7: Aberdeenshire | B7: 386 | C7: 418 | D7: 455 | E7: 487 | F7: 563 | G7: 559 | H7: 731 | I7: 735 | J7: 711 | K7: 749 | L7: 811 | M7: 946 | N7: 994 | O7: 351 | P7: 372 | Q7: 447 | R7: 568 | S7: 712 | T7: 826 | U7: 971 | V7: 1104 | W7: 1247 | X7: 1450 | Y7: 1609 | Z7: 1807 | AA7: 2000 | AB7: 1817 | AC7: 1124 | AD7: 668 | AE7: 507 | AF7: 396 | AG7: 391 | AH7: 423 | AI7: 502 | AJ7: 365 | AK7: 416 | AL7: 346 | AM7: 303 | AN7: 269
A8: Angus | B8: 177 | C8: 177 | D8: 193 | E8: 198 | F8: 619 | G8: 570 | H8: 503 | I8: 411 | J8: 366 | K8: 306 | L8: 322 | M8: 359 | N8: 366 | O8: 132 | P8: 138 | Q8: 146 | R8: 194 | S8: 206 | T8: 254 | U8: 294 | V8: 348 | W8: 417 | X8: 459 | Y8: 519 | Z8: 578 | AA8: 639 | AB8: 3255 | AC8: 3462 | AD8: 1967 | AE8: 1738 | AF8: 825 | AG8: 651 | AH8: 522 | AI8: 442 | AJ8: 273 | AK8: 237 | AL8: 198 | AM8: 185 | AN8: 170
A9: Argyll & Bute | B9: 155 | C9: 154 | D9: 187 | E9: 180 | F9: 178 | G9: 203 | H9: 209 | I9: 209 | J9: 214 | K9: 208 | L9: 219 | M9: 233 | N9: 255 | O9: 152 | P9: 157 | Q9: 175 | R9: 183 | S9: 211 | T9: 258 | U9: 270 | V9: 298 | W9: 330 | X9: 348 | Y9: 380 | Z9: 407 | AA9: 432 | AB9: 525 | AC9: 428 | AD9: 437 | AE9: 440 | AF9: 453 | AG9: 411 | AH9: 433 | AI9: 329 | AJ9: 120 | AK9: 95 | AL9: 92 | AM9: 105 | AN9: 93
A10: Clackmannanshire | B10: 87 | C10: 115 | D10: 127 | E10: 188 | F10: 197 | G10: 188 | H10: 209 | I10: 207 | J10: 186 | K10: 201 | L10: 200 | M10: 212 | N10: 203 | O10: 45 | P10: 51 | Q10: 49 | R10: 86 | S10: 121 | T10: 135 | U10: 149 | V10: 157 | W10: 198 | X10: 218 | Y10: 209 | Z10: 210 | AA10: 220 | AB10: 320 | AC10: 177 | AD10: 100 | AE10: 81 | AF10: 40 | AG10: 38 | AH10: 57 | AI10: 48 | AJ10: 18 | AK10: 19 | AL10: 41 | AM10: 40 | AN10: 44
A11: Dumfries & Galloway | B11: 307 | C11: 302 | D11: 332 | E11: 325 | F11: 328 | G11: 341 | H11: 443 | I11: 497 | J11: 411 | K11: 409 | L11: 399 | M11: 408 | N11: 411 | O11: 118 | P11: 130 | Q11: 151 | R11: 205 | S11: 260 | T11: 286 | U11: 322 | V11: 319 | W11: 363 | X11: 400 | Y11: 435 | Z11: 499 | AA11: 579 | AB11: 668 | AC11: 627 | AD11: 524 | AE11: 492 | AF11: 451 | AG11: 446 | AH11: 338 | AI11: 321 | AJ11: 251 | AK11: 237 | AL11: 270 | AM11: 326 | AN11: 404
A12: Dundee City | B12: 809 | C12: 876 | D12: 926 | E12: 936 | F12: 1075 | G12: 1191 | H12: 1229 | I12: 1266 | J12: 1287 | K12: 1351 | L12: 1440 | M12: 1532 | N12: 1595 | O12: 155 | P12: 162 | Q12: 193 | R12: 221 | S12: 279 | T12: 340 | U12: 374 | V12: 406 | W12: 483 | X12: 528 | Y12: 611 | Z12: 714 | AA12: 819 | AB12: 1897 | AC12: 1583 | AD12: 1176 | AE12: 910 | AF12: 763 | AG12: 604 | AH12: 655 | AI12: 592 | AJ12: 384 | AK12: 351 | AL12: 369 | AM12: 436 | AN12: 419
A13: East Ayrshire | B13: 208 | C13: 209 | D13: 219 | E13: 244 | F13: 248 | G13: 258 | H13: 273 | I13: 296 | J13: 289 | K13: 303 | L13: 332 | M13: 362 | N13: 382 | O13: 131 | P13: 121 | Q13: 136 | R13: 143 | S13: 162 | T13: 216 | U13: 230 | V13: 271 | W13: 312 | X13: 328 | Y13: 318 | Z13: 312 | AA13: 313 | AB13: 241 | AC13: 288 | AD13: 376 | AE13: 180 | AF13: 189 | AG13: 268 | AH13: 235 | AI13: 227 | AJ13: 112 | AK13: 98 | AL13: 91 | AM13: 98 | AN13: 115
A14: East Dunbartonshire | B14: 1003 | C14: 1029 | D14: 958 | E14: 950 | F14: 958 | G14: 979 | H14: 992 | I14: 1015 | J14: 1033 | K14: 1075 | L14: 1148 | M14: 1241 | N14: 1293 | O14: 75 | P14: 118 | Q14: 156 | R14: 196 | S14: 223 | T14: 227 | U14: 260 | V14: 263 | W14: 294 | X14: 327 | Y14: 344 | Z14: 352 | AA14: 388 | AB14: 428 | AC14: 285 | AD14: 240 | AE14: 253 | AF14: 301 | AG14: 311 | AH14: 381 | AI14: 450 | AJ14: 339 | AK14: 300 | AL14: 333 | AM14: 325 | AN14: 344
A15: East Lothian | B15: 174 | C15: 190 | D15: 205 | E15: 211 | F15: 222 | G15: 240 | H15: 260 | I15: 306 | J15: 293 | K15: 331 | L15: 330 | M15: 375 | N15: 393 | O15: 94 | P15: 110 | Q15: 113 | R15: 137 | S15: 162 | T15: 189 | U15: 208 | V15: 236 | W15: 286 | X15: 343 | Y15: 401 | Z15: 468 | AA15: 540 | AB15: 1183 | AC15: 871 | AD15: 561 | AE15: 377 | AF15: 329 | AG15: 206 | AH15: 161 | AI15: 115 | AJ15: 91 | AK15: 68 | AL15: 94 | AM15: 161 | AN15: 132
A16: East Renfrewshire | B16: 1366 | C16: 1459 | D16: 1572 | E16: 1648 | F16: 1778 | G16: 1852 | H16: 1921 | I16: 1990 | J16: 2154 | K16: 2277 | L16: 2407 | M16: 2621 | N16: 2795 | O16: 180 | P16: 199 | Q16: 208 | R16: 213 | S16: 222 | T16: 256 | U16: 282 | V16: 312 | W16: 385 | X16: 401 | Y16: 444 | Z16: 477 | AA16: 501 | AB16: 284 | AC16: 235 | AD16: 287 | AE16: 297 | AF16: 170 | AG16: 274 | AH16: 374 | AI16: 361 | AJ16: 227 | AK16: 217 | AL16: 194 | AM16: 179 | AN16: 223
A17: Edinburgh, City of | B17: 3539 | C17: 3722 | D17: 3934 | E17: 4052 | F17: 4326 | G17: 4672 | H17: 4883 | I17: 5051 | J17: 5246 | K17: 5642 | L17: 6082 | M17: 6538 | N17: 6887 | O17: 1697 | P17: 1479 | Q17: 1440 | R17: 1581 | S17: 1867 | T17: 2049 | U17: 2232 | V17: 2470 | W17: 2842 | X17: 3228 | Y17: 3762 | Z17: 4210 | AA17: 4631 | AB17: 1383 | AC17: 994 | AD17: 737 | AE17: 598 | AF17: 823 | AG17: 746 | AH17: 757 | AI17: 826 | AJ17: 705 | AK17: 695 | AL17: 754 | AM17: 711 | AN17: 582
A18: Eilean Siar | B18: 52 | C18: 57 | D18: 54 | E18: 55 | F18: 54 | G18: 39 | H18: 51 | I18: 46 | J18: 48 | K18: 59 | L18: 57 | M18: 62 | N18: 65 | O18: 29 | P18: 34 | Q18: 38 | R18: 42 | S18: 47 | T18: 52 | U18: 52 | V18: 59 | W18: 53 | X18: 51 | Y18: 55 | Z18: 59 | AA18: 65 | AB18: 361 | AC18: 172 | AD18: 44 | AE18: 33 | AF18: 31 | AG18: 18 | AH18: 21 | AI18: 48 | AJ18: 59 | AK18: 53 | AL18: 62 | AM18: 38 | AN18: 36
A19: Falkirk | B19: 407 | C19: 461 | D19: 455 | E19: 486 | F19: 506 | G19: 544 | H19: 612 | I19: 637 | J19: 627 | K19: 641 | L19: 678 | M19: 724 | N19: 752 | O19: 117 | P19: 124 | Q19: 140 | R19: 148 | S19: 188 | T19: 221 | U19: 230 | V19: 279 | W19: 370 | X19: 461 | Y19: 528 | Z19: 605 | AA19: 750 | AB19: 1137 | AC19: 818 | AD19: 607 | AE19: 419 | AF19: 291 | AG19: 258 | AH19: 178 | AI19: 174 | AJ19: 165 | AK19: 177 | AL19: 126 | AM19: 135 | AN19: 145
A20: Fife | B20: 935 | C20: 991 | D20: 1099 | E20: 1166 | F20: 1259 | G20: 1276 | H20: 1646 | I20: 1553 | J20: 1292 | K20: 1365 | L20: 1477 | M20: 1568 | N20: 1731 | O20: 813 | P20: 546 | Q20: 487 | R20: 481 | S20: 576 | T20: 672 | U20: 736 | V20: 814 | W20: 963 | X20: 1113 | Y20: 1321 | Z20: 1454 | AA20: 1679 | AB20: 1493 | AC20: 1075 | AD20: 856 | AE20: 663 | AF20: 575 | AG20: 419 | AH20: 461 | AI20: 478 | AJ20: 1038 | AK20: 948 | AL20: 1061 | AM20: 1041 | AN20: 1114
A21: Glasgow City | B21: 7444 | C21: 7713 | D21: 7943 | E21: 8342 | F21: 8853 | G21: 9177 | H21: 9670 | I21: 10104 | J21: 10580 | K21: 11073 | L21: 11772 | M21: 12552 | N21: 13161 | O21: 1025 | P21: 1059 | Q21: 1363 | R21: 1430 | S21: 1707 | T21: 1954 | U21: 2151 | V21: 2284 | W21: 2553 | X21: 2803 | Y21: 3159 | Z21: 3406 | AA21: 3637 | AB21: 2149 | AC21: 1941 | AD21: 2074 | AE21: 2481 | AF21: 2937 | AG21: 2651 | AH21: 2671 | AI21: 3069 | AJ21: 2034 | AK21: 1563 | AL21: 1439 | AM21: 1512 | AN21: 2568
A22: Highland | B22: 417 | C22: 450 | D22: 516 | E22: 552 | F22: 631 | G22: 632 | H22: 642 | I22: 646 | J22: 648 | K22: 658 | L22: 714 | M22: 738 | N22: 829 | O22: 306 | P22: 339 | Q22: 385 | R22: 523 | S22: 637 | T22: 751 | U22: 810 | V22: 888 | W22: 1005 | X22: 1099 | Y22: 1255 | Z22: 1458 | AA22: 1617 | AB22: 918 | AC22: 661 | AD22: 551 | AE22: 380 | AF22: 397 | AG22: 379 | AH22: 346 | AI22: 421 | AJ22: 311 | AK22: 350 | AL22: 315 | AM22: 417 | AN22: 387
A23: Inverclyde | B23: 230 | C23: 238 | D23: 207 | E23: 198 | F23: 189 | G23: 185 | H23: 185 | I23: 182 | J23: 175 | K23: 176 | L23: 184 | M23: 189 | N23: 192 | O23: 628 | P23: 286 | Q23: 205 | R23: 141 | S23: 110 | T23: 126 | U23: 135 | V23: 171 | W23: 169 | X23: 145 | Y23: 141 | Z23: 133 | AA23: 149 | AB23: 103 | AC23: 334 | AD23: 262 | AE23: 229 | AF23: 301 | AG23: 279 | AH23: 217 | AI23: 227 | AJ23: 176 | AK23: 117 | AL23: 115 | AM23: 114 | AN23: 132
A24: Midlothian | B24: 193 | C24: 204 | D24: 223 | E24: 227 | F24: 226 | G24: 279 | H24: 286 | I24: 309 | J24: 307 | K24: 333 | L24: 373 | M24: 406 | N24: 462 | O24: 112 | P24: 116 | Q24: 119 | R24: 137 | S24: 150 | T24: 173 | U24: 177 | V24: 194 | W24: 240 | X24: 261 | Y24: 305 | Z24: 365 | AA24: 422 | AB24: 827 | AC24: 719 | AD24: 568 | AE24: 594 | AF24: 516 | AG24: 531 | AH24: 383 | AI24: 244 | AJ24: 151 | AK24: 178 | AL24: 208 | AM24: 117 | AN24: 116
A25: Moray | B25: 176 | C25: 183 | D25: 192 | E25: 197 | F25: 201 | G25: 230 | H25: 242 | I25: 268 | J25: 232 | K25: 251 | L25: 268 | M25: 291 | N25: 318 | O25: 129 | P25: 127 | Q25: 134 | R25: 180 | S25: 244 | T25: 264 | U25: 290 | V25: 319 | W25: 393 | X25: 399 | Y25: 437 | Z25: 506 | AA25: 531 | AB25: 237 | AC25: 188 | AD25: 138 | AE25: 103 | AF25: 114 | AG25: 111 | AH25: 141 | AI25: 187 | AJ25: 96 | AK25: 114 | AL25: 137 | AM25: 143 | AN25: 150
A26: North Ayrshire | B26: 290 | C26: 281 | D26: 294 | E26: 282 | F26: 269 | G26: 263 | H26: 256 | I26: 277 | J26: 279 | K26: 279 | L26: 296 | M26: 327 | N26: 331 | O26: 124 | P26: 126 | Q26: 144 | R26: 181 | S26: 248 | T26: 257 | U26: 256 | V26: 309 | W26: 303 | X26: 299 | Y26: 318 | Z26: 317 | AA26: 348 | AB26: 471 | AC26: 571 | AD26: 434 | AE26: 392 | AF26: 502 | AG26: 512 | AH26: 600 | AI26: 554 | AJ26: 270 | AK26: 276 | AL26: 270 | AM26: 362 | AN26: 334
A27: North Lanarkshire | B27: 1023 | C27: 1113 | D27: 1177 | E27: 1262 | F27: 1373 | G27: 1425 | H27: 1502 | I27: 1564 | J27: 1574 | K27: 1622 | L27: 1697 | M27: 1795 | N27: 1928 | O27: 346 | P27: 378 | Q27: 415 | R27: 551 | S27: 631 | T27: 780 | U27: 834 | V27: 908 | W27: 1071 | X27: 1144 | Y27: 1228 | Z27: 1445 | AA27: 1668 | AB27: 1087 | AC27: 1007 | AD27: 1303 | AE27: 1456 | AF27: 1663 | AG27: 1512 | AH27: 1266 | AI27: 1057 | AJ27: 773 | AK27: 629 | AL27: 607 | AM27: 588 | AN27: 613
A28: Orkney Islands | B28: 21 | C28: 24 | D28: 28 | E28: 30 | F28: 35 | G28: 46 | H28: 55 | I28: 49 | J28: 39 | K28: 39 | L28: 38 | M28: 42 | N28: 38 | O28: 19 | P28: 23 | Q28: 23 | R28: 24 | S28: 31 | T28: 37 | U28: 45 | V28: 49 | W28: 57 | X28: 80 | Y28: 104 | Z28: 120 | AA28: 117 | AB28: 394 | AC28: 287 | AD28: 271 | AE28: 268 | AF28: 180 | AG28: 121 | AH28: 85 | AI28: 77 | AJ28: 41 | AK28: 54 | AL28: 71 | AM28: 73 | AN28: 90
A29: Perth & Kinross | B29: 214 | C29: 233 | D29: 298 | E29: 321 | F29: 369 | G29: 438 | H29: 495 | I29: 509 | J29: 487 | K29: 523 | L29: 542 | M29: 572 | N29: 622 | O29: 124 | P29: 128 | Q29: 190 | R29: 235 | S29: 326 | T29: 431 | U29: 510 | V29: 547 | W29: 664 | X29: 788 | Y29: 903 | Z29: 970 | AA29: 1104 | AB29: 4171 | AC29: 3986 | AD29: 2645 | AE29: 2162 | AF29: 341 | AG29: 344 | AH29: 232 | AI29: 145 | AJ29: 104 | AK29: 82 | AL29: 80 | AM29: 113 | AN29: 135
A30: Renfrewshire | B30: 509 | C30: 575 | D30: 581 | E30: 606 | F30: 660 | G30: 732 | H30: 771 | I30: 781 | J30: 787 | K30: 837 | L30: 850 | M30: 891 | N30: 979 | O30: 214 | P30: 206 | Q30: 254 | R30: 276 | S30: 308 | T30: 324 | U30: 349 | V30: 369 | W30: 440 | X30: 446 | Y30: 516 | Z30: 562 | AA30: 642 | AB30: 465 | AC30: 385 | AD30: 499 | AE30: 543 | AF30: 539 | AG30: 515 | AH30: 572 | AI30: 776 | AJ30: 432 | AK30: 507 | AL30: 516 | AM30: 565 | AN30: 576
A31: Scottish Borders | B31: 162 | C31: 169 | D31: 182 | E31: 174 | F31: 200 | G31: 227 | H31: 289 | I31: 338 | J31: 332 | K31: 321 | L31: 305 | M31: 322 | N31: 330 | O31: 151 | P31: 166 | Q31: 175 | R31: 255 | S31: 328 | T31: 373 | U31: 407 | V31: 427 | W31: 465 | X31: 513 | Y31: 577 | Z31: 617 | AA31: 667 | AB31: 238 | AC31: 265 | AD31: 312 | AE31: 253 | AF31: 277 | AG31: 296 | AH31: 413 | AI31: 463 | AJ31: 339 | AK31: 339 | AL31: 310 | AM31: 306 | AN31: 303
A32: Shetland Islands | B32: 56 | C32: 40 | D32: 47 | E32: 51 | F32: 52 | G32: 55 | H32: 57 | I32: 67 | J32: 84 | K32: 88 | L32: 84 | M32: 88 | N32: 101 | O32: 13 | P32: 23 | Q32: 24 | R32: 36 | S32: 47 | T32: 59 | U32: 81 | V32: 87 | W32: 84 | X32: 96 | Y32: 106 | Z32: 116 | AA32: 128 | AB32: 134 | AC32: 80 | AD32: 75 | AE32: 66 | AF32: 53 | AG32: 36 | AH32: 39 | AI32: 36 | AJ32: 25 | AK32: 24 | AL32: 26 | AM32: 17 | AN32: 13
A33: South Ayrshire | B33: 189 | C33: 299 | D33: 279 | E33: 268 | F33: 277 | G33: 279 | H33: 291 | I33: 296 | J33: 284 | K33: 294 | L33: 295 | M33: 287 | N33: 318 | O33: 194 | P33: 141 | Q33: 228 | R33: 262 | S33: 376 | T33: 303 | U33: 287 | V33: 319 | W33: 339 | X33: 333 | Y33: 335 | Z33: 360 | AA33: 382 | AB33: 356 | AC33: 330 | AD33: 391 | AE33: 513 | AF33: 376 | AG33: 406 | AH33: 397 | AI33: 363 | AJ33: 264 | AK33: 194 | AL33: 193 | AM33: 168 | AN33: 174
A34: South Lanarkshire | B34: 1072 | C34: 1091 | D34: 1104 | E34: 1135 | F34: 1181 | G34: 1235 | H34: 1307 | I34: 1413 | J34: 1396 | K34: 1449 | L34: 1524 | M34: 1595 | N34: 1698 | O34: 103 | P34: 146 | Q34: 296 | R34: 351 | S34: 422 | T34: 501 | U34: 583 | V34: 659 | W34: 792 | X34: 825 | Y34: 893 | Z34: 928 | AA34: 1075 | AB34: 725 | AC34: 858 | AD34: 877 | AE34: 1149 | AF34: 1393 | AG34: 1629 | AH34: 1722 | AI34: 1862 | AJ34: 989 | AK34: 977 | AL34: 998 | AM34: 1043 | AN34: 1001
A35: Stirling | B35: 273 | C35: 299 | D35: 321 | E35: 334 | F35: 324 | G35: 432 | H35: 480 | I35: 481 | J35: 488 | K35: 423 | L35: 451 | M35: 443 | N35: 464 | O35: 159 | P35: 169 | Q35: 159 | R35: 187 | S35: 210 | T35: 220 | U35: 260 | V35: 304 | W35: 331 | X35: 380 | Y35: 405 | Z35: 460 | AA35: 513 | AB35: 261 | AC35: 153 | AD35: 84 | AE35: 69 | AF35: 71 | AG35: 113 | AH35: 191 | AI35: 183 | AJ35: 103 | AK35: 107 | AL35: 114 | AM35: 94 | AN35: 78
A36: West Dunbartonshire | B36: 143 | C36: 162 | D36: 172 | E36: 212 | F36: 245 | G36: 264 | H36: 282 | I36: 284 | J36: 272 | K36: 292 | L36: 290 | M36: 309 | N36: 328 | O36: 122 | P36: 126 | Q36: 160 | R36: 185 | S36: 174 | T36: 259 | U36: 296 | V36: 296 | W36: 319 | X36: 331 | Y36: 349 | Z36: 376 | AA36: 379 | AB36: 459 | AC36: 465 | AD36: 361 | AE36: 422 | AF36: 454 | AG36: 483 | AH36: 574 | AI36: 562 | AJ36: 207 | AK36: 224 | AL36: 223 | AM36: 222 | AN36: 276
A37: West Lothian | B37: 528 | C37: 564 | D37: 614 | E37: 835 | F37: 949 | G37: 939 | H37: 906 | I37: 932 | J37: 984 | K37: 1003 | L37: 1076 | M37: 1166 | N37: 1269 | O37: 212 | P37: 215 | Q37: 242 | R37: 350 | S37: 35 | T37: 555 | U37: 634 | V37: 696 | W37: 838 | X37: 916 | Y37: 1039 | Z37: 1232 | AA37: 1392 | AB37: 1423 | AC37: 1180 | AD37: 1150 | AE37: 844 | AF37: 783 | AG37: 1029 | AH37: 1060 | AI37: 1223 | AJ37: 608 | AK37: 791 | AL37: 772 | AM37: 694 | AN37: 660
A38: Grant aided | B38: 73 | C38: 79 | D38: 87 | E38: 94 | F38: 103 | G38: 103 | H38: 105 | I38: 102 | J38: 111 | K38: 99 | L38: 95 | M38: 91 | N38: 92 | O38: 5 | P38: 7 | Q38: 7 | R38: 8 | S38: 8 | T38: 8 | U38: 10 | V38: 15 | W38: 21 | X38: 19 | Y38: 24 | Z38: 28 | AA38: 29 | AB38: 5 | AC38: 10 | AD38: 11 | AE38: 22 | AF38: 23 | AG38: 22 | AH38: 23 | AI38: 23 | AJ38: 17 | AK38: 14 | AL38: 12 | AM38: 13 | AN38: 11
A40: Notes
A41: 1) The data in the table above are mainly derived from the annual pupil census which takes place in September of the relevant year.
A42: 2) Excludes grant aided special schools (shown separately at bottom of table). Council area totals have been adjusted slightly for disclosure purposes, however, the figures for 'Scotland' are correct. The figure for 'Scotland' is taken from the 'All local authorities' figure.
A44: 3) Minority ethnic group includes all categories other than white-UK and white-other or unknown/not disclosed (up to 2010) or White Scottish, White Other British and White-Other (2011 on).
A45: 4) White-Other includes White-Other, White-Irish and White-Polish
A46: 5) Ethnicity figures for 2011 - 2015 are not directly comparable to previous years due to the changes in ethnicity categories in 2011. Categories are based on those used in 2011 population census.
A47: 6) Source: Pupils Census, Scottish Government publication.
A49: © Crown Copyright 2016

Sheet Pupils with English as an add.
A1: Pupils with English as an additional language | I1: Return to front page
B3: 2006 | C3: 2007 | D3: 2008 | E3: 2009 | F3: 2010 | G3: 2011 | H3: 2012 | I3: 2013 | J3: 2014 | K3: 2015
A4: SCOTLAND | B4: 9486 | C4: 15411 | D4: 19001 | E4: 21223 | F4: 22740 | G4: 24555 | H4: 26131 | I4: 29532 | J4: 32509 | K4: 35441
A5: Aberdeen City | B5: 846 | C5: 1181 | D5: 1417 | E5: 1503 | F5: 1675 | G5: 1833 | H5: 1602 | I5: 2132 | J5: 2444 | K5: 3054
A6: Aberdeenshire | B6: 279 | C6: 443 | D6: 515 | E6: 681 | F6: 829 | G6: 925 | H6: 1054 | I6: 1216 | J6: 1356 | K6: 1566
A7: Angus | B7: 76 | C7: 100 | D7: 150 | E7: 203 | F7: 261 | G7: 299 | H7: 348 | I7: 379 | J7: 431 | K7: 476
A8: Argyll & Bute | B8: 43 | C8: 56 | D8: 102 | E8: 104 | F8: 110 | G8: 124 | H8: 135 | I8: 145 | J8: 164 | K8: 175
A9: Clackmannanshire | B9: 22 | C9: 54 | D9: 84 | E9: 89 | F9: 109 | G9: 115 | H9: 120 | I9: 139 | J9: 156 | K9: 167
A10: Dumfries & Galloway | B10: 131 | C10: 179 | D10: 232 | E10: 225 | F10: 243 | G10: 260 | H10: 298 | I10: 298 | J10: 331 | K10: 341
A11: Dundee City | B11: 435 | C11: 490 | D11: 657 | E11: 702 | F11: 765 | G11: 870 | H11: 928 | I11: 959 | J11: 1096 | K11: 1137
A12: East Ayrshire | B12: 22 | C12: 36 | D12: 77 | E12: 80 | F12: 88 | G12: 99 | H12: 121 | I12: 126 | J12: 158 | K12: 169
A13: East Dunbartonshire | B13: 255 | C13: 253 | D13: 333 | E13: 350 | F13: 295 | G13: 306 | H13: 385 | I13: 377 | J13: 400 | K13: 406
A14: East Lothian | B14: 73 | C14: 104 | D14: 117 | E14: 125 | F14: 156 | G14: 159 | H14: 184 | I14: 221 | J14: 263 | K14: 283
A15: East Renfrewshire | B15: 373 | C15: 549 | D15: 679 | E15: 771 | F15: 759 | G15: 805 | H15: 868 | I15: 818 | J15: 831 | K15: 837
A16: Edinburgh, City of | B16: 1910 | C16: 2211 | D16: 2602 | E16: 2979 | F16: 3258 | G16: 3588 | H16: 3951 | I16: 4861 | J16: 5227 | K16: 5685
A17: Eilean Siar | B17: 23 | C17: 32 | D17: 19 | E17: 27 | F17: 18 | G17: 25 | H17: 39 | I17: 47 | J17: 54 | K17: 53
A18: Falkirk | B18: 254 | C18: 298 | D18: 328 | E18: 394 | F18: 416 | G18: 461 | H18: 477 | I18: 497 | J18: 581 | K18: 648
A19: Fife | B19: 282 | C19: 432 | D19: 512 | E19: 550 | F19: 505 | G19: 611 | H19: 802 | I19: 903 | J19: 1004 | K19: 1150
A20: Glasgow City | B20: 2691 | C20: 6365 | D20: 7804 | E20: 8425 | F20: 8914 | G20: 9275 | H20: 9702 | I20: 10445 | J20: 11190 | K20: 11483
A21: Highland | B21: 254 | C21: 372 | D21: 486 | E21: 643 | F21: 570 | G21: 646 | H21: 632 | I21: 867 | J21: 976 | K21: 1225
A22: Inverclyde | B22: 16 | C22: 20 | D22: 24 | E22: 47 | F22: 54 | G22: 35 | H22: 53 | I22: 53 | J22: 44 | K22: 29
A23: Midlothian | B23: 42 | C23: 82 | D23: 99 | E23: 124 | F23: 129 | G23: 128 | H23: 184 | I23: 230 | J23: 266 | K23: 307
A24: Moray | B24: 127 | C24: 185 | D24: 193 | E24: 222 | F24: 240 | G24: 252 | H24: 266 | I24: 304 | J24: 381 | K24: 415
A25: North Ayrshire | B25: 13 | C25: 65 | D25: 66 | E25: 71 | F25: 77 | G25: 93 | H25: 101 | I25: 108 | J25: 117 | K25: 121
A26: North Lanarkshire | B26: 302 | C26: 493 | D26: 667 | E26: 740 | F26: 851 | G26: 892 | H26: 896 | I26: 1000 | J26: 1121 | K26: 1271
A27: Orkney Islands | B27: 0 | C27: 6 | D27: 6 | E27: 7 | F27: 15 | G27: 5 | H27: 16 | I27: 15 | J27: 14 | K27: 20
A28: Perth & Kinross | B28: 165 | C28: 240 | D28: 315 | E28: 379 | F28: 403 | G28: 450 | H28: 519 | I28: 578 | J28: 630 | K28: 740
A29: Renfrewshire | B29: 42 | C29: 98 | D29: 197 | E29: 265 | F29: 303 | G29: 319 | H29: 323 | I29: 416 | J29: 480 | K29: 563
A30: Scottish Borders | B30: 137 | C30: 171 | D30: 217 | E30: 242 | F30: 258 | G30: 322 | H30: 347 | I30: 357 | J30: 394 | K30: 411
A31: Shetland Islands | B31: 0 | C31: 12 | D31: 25 | E31: 49 | F31: 48 | G31: 42 | H31: 33 | I31: 29 | J31: 49 | K31: 57
A32: South Ayrshire | B32: 30 | C32: 63 | D32: 86 | E32: 74 | F32: 138 | G32: 158 | H32: 149 | I32: 148 | J32: 174 | K32: 177
A33: South Lanarkshire | B33: 268 | C33: 291 | D33: 373 | E33: 414 | F33: 456 | G33: 461 | H33: 510 | I33: 581 | J33: 660 | K33: 711
A34: Stirling | B34: 91 | C34: 106 | D34: 120 | E34: 139 | F34: 172 | G34: 184 | H34: 209 | I34: 244 | J34: 264 | K34: 304
A35: West Dunbartonshire | B35: 22 | C35: 77 | D35: 109 | E35: 120 | F35: 87 | G35: 132 | H35: 155 | I35: 169 | J35: 201 | K35: 213
A36: West Lothian | B36: 173 | C36: 289 | D36: 359 | E36: 422 | F36: 519 | G36: 630 | H36: 710 | I36: 851 | J36: 1033 | K36: 1211
A38: Notes
A39: 1) The data in the table above are mainly derived from the annual pupil census which takes place in September of the relevant year.
A40: 2) All levels of competency have been combined.
A41: 3) Source: Pupils Census, Scottish Government publication
A43: © Crown Copyright 2016

Sheet Pop born outside UK
A1: Estimate of resident population born outside the UK | K1: Return to front page
B3: Calendar year
B4: 2004 | C4: 2005 | D4: 2006 | E4: 2007 | F4: 2008 | G4: 2009 | H4: 2010 | I4: 2011 | J4: 2012 | K4: 2013 | L4: 2014 | M4: 2015
A5: SCOTLAND | B5: 204000 | C5: 222000 | D5: 228000 | E5: 255000 | F5: 289000 | G5: 321000 | H5: 326000 | I5: 340000 | J5: 375000 | K5: 353000 | L5: 381000 | M5: 393000
A6: Aberdeen City | B6: 11000 | C6: 12000 | D6: 14000 | E6: 20000 | F6: 24000 | G6: 31000 | H6: 30000 | I6: 32000 | J6: 33000 | K6: 40000 | L6: 42000 | M6: 39000
A7: Aberdeenshire | B7: * | C7: * | D7: * | E7: 9000 | F7: 14000 | G7: 14000 | H7: 13000 | I7: 16000 | J7: 14000 | K7: 10000 | L7: 13000 | M7: 13000
A8: Angus | B8: * | C8: * | D8: 3000 | E8: 4000 | F8: 5000 | G8: 5000 | H8: * | I8: * | J8: * | K8: 5000 | L8: 5000 | M8: 6000
A9: Argyll & Bute | B9: * | C9: * | D9: * | E9: 3000 | F9: 4000 | G9: 3000 | H9: 4000 | I9: 4000 | J9: 4000 | K9: 4000 | L9: 4000 | M9: 3000
A10: Clackmannanshire | B10: * | C10: * | D10: * | E10: * | F10: * | G10: * | H10: * | I10: * | J10: * | K10: 2000 | L10: 3000 | M10: 3000
A11: Dumfries and Galloway | B11: * | C11: * | D11: * | E11: * | F11: * | G11: * | H11: * | I11: * | J11: * | K11: 4000 | L11: 5000 | M11: 5000
A12: Dundee City | B12: 6000 | C12: 7000 | D12: 9000 | E12: 8000 | F12: 9000 | G12: 11000 | H12: 12000 | I12: 13000 | J12: 14000 | K12: 15000 | L12: 18000 | M12: 17000
A13: East Ayrshire | B13: * | C13: * | D13: * | E13: * | F13: * | G13: * | H13: * | I13: * | J13: * | K13: 2000 | L13: 3000 | M13: 2000
A14: East Dunbartonshire | B14: * | C14: 4000 | D14: 4000 | E14: 4000 | F14: 5000 | G14: * | H14: 4000 | I14: * | J14: 5000 | K14: 5000 | L14: 6000 | M14: 5000
A15: East Lothian | B15: * | C15: 3000 | D15: 4000 | E15: 4000 | F15: 4000 | G15: * | H15: 5000 | I15: 6000 | J15: 5000 | K15: 6000 | L15: 5000 | M15: 5000
A16: East Renfrewshire | B16: * | C16: 3000 | D16: 4000 | E16: 4000 | F16: 3000 | G16: 4000 | H16: 5000 | I16: * | J16: * | K16: 3000 | L16: 4000 | M16: 6000
A17: Edinburgh, City of | B17: 39000 | C17: 47000 | D17: 50000 | E17: 48000 | F17: 60000 | G17: 66000 | H17: 66000 | I17: 70000 | J17: 73000 | K17: 70000 | L17: 65000 | M17: 77000
A18: Eilean Siar | B18: * | C18: * | D18: * | E18: * | F18: * | G18: * | H18: * | I18: * | J18: * | K18: 1000 | L18: 1000 | M18: 0
A19: Falkirk | B19: * | C19: * | D19: * | E19: * | F19: * | G19: * | H19: * | I19: 6000 | J19: 7000 | K19: 7000 | L19: 7000 | M19: 8000
A20: Fife | B20: 13000 | C20: 16000 | D20: * | E20: * | F20: * | G20: * | H20: 21000 | I20: 16000 | J20: 20000 | K20: 20000 | L20: 18000 | M20: 20000
A21: Glasgow City | B21: 43000 | C21: 48000 | D21: 45000 | E21: 57000 | F21: 62000 | G21: 72000 | H21: 65000 | I21: 65000 | J21: 86000 | K21: 68000 | L21: 80000 | M21: 83000
A22: Highland | B22: * | C22: * | D22: * | E22: * | F22: 8000 | G22: * | H22: 8000 | I22: 10000 | J22: 11000 | K22: 11000 | L22: 15000 | M22: 10000
A23: Inverclyde | B23: * | C23: * | D23: * | E23: * | F23: * | G23: * | H23: * | I23: * | J23: * | K23: 2000 | L23: 2000 | M23: 2000
A24: Midlothian | B24: * | C24: * | D24: * | E24: * | F24: * | G24: * | H24: * | I24: * | J24: * | K24: 3000 | L24: 4000 | M24: 4000
A25: Moray | B25: * | C25: 4000 | D25: 3000 | E25: 4000 | F25: 4000 | G25: 5000 | H25: 5000 | I25: 5000 | J25: 5000 | K25: 4000 | L25: 4000 | M25: 4000
A26: North Ayrshire | B26: * | C26: * | D26: * | E26: * | F26: * | G26: * | H26: * | I26: * | J26: * | K26: 4000 | L26: 3000 | M26: 2000
A27: North Lanarkshire | B27: * | C27: * | D27: * | E27: * | F27: * | G27: * | H27: * | I27: * | J27: * | K27: 7000 | L27: 11000 | M27: 14000
A28: Orkney Islands | B28: * | C28: * | D28: * | E28: * | F28: * | G28: * | H28: * | I28: * | J28: * | K28: 0~ | L28: 0~ | M28: 0
A29: Perth and Kinross | B29: * | C29: 6000 | D29: 5000 | E29: 7000 | F29: 7000 | G29: 7000 | H29: 9000 | I29: 8000 | J29: 10000 | K29: 11000 | L29: 11000 | M29: 14000
A30: Renfrewshire | B30: * | C30: * | D30: * | E30: 7000 | F30: 9000 | G30: 7000 | H30: 7000 | I30: 11000 | J30: 9000 | K30: 9000 | L30: 11000 | M30: 9000
A31: Scottish Borders | B31: 4000 | C31: * | D31: 4000 | E31: 5000 | F31: 4000 | G31: 6000 | H31: 7000 | I31: 5000 | J31: 5000 | K31: 6000 | L31: 6000 | M31: 6000
A32: Shetland Islands | B32: * | C32: * | D32: * | E32: * | F32: * | G32: * | H32: * | I32: * | J32: * | K32: 1000 | L32: 1000 | M32: 0
A33: South Ayrshire | B33: * | C33: * | D33: * | E33: * | F33: * | G33: 4000 | H33: 4000 | I33: * | J33: * | K33: 3000 | L33: 4000 | M33: 4000
A34: South Lanarkshire | B34: * | C34: * | D34: * | E34: * | F34: * | G34: * | H34: * | I34: * | J34: * | K34: 10000 | L34: 9000 | M34: 11000
A35: Stirling | B35: 4000 | C35: 4000 | D35: 6000 | E35: 5000 | F35: * | G35: * | H35: 6000 | I35: 7000 | J35: 7000 | K35: 6000 | L35: 7000 | M35: 8000
A36: West Dunbartonshire | B36: * | C36: * | D36: * | E36: * | F36: * | G36: 4000 | H36: * | I36: * | J36: * | K36: 3000 | L36: 3000 | M36: 2000
A37: West Lothian | B37: * | C37: 6000 | D37: 7000 | E37: 9000 | F37: 8000 | G37: 8000 | H37: 8000 | I37: 11000 | J37: 11000 | K37: 11000 | L37: 10000 | M37: 10000
A39: Notes
A40: 1) Figures are rounded to the nearest thousand.
A41: 2) Source: Estimated population resident in Scotland, by council area and country of birth, 2000-2014, from the 'population by country of birth and nationality' section of the National Records of Scotland (NRS) website.
A42: 3) The data above comes from the Office for National Statistics (ONS) Annual Population Survey (APS) and Labour Force Survey (LFS).
A43: Totals may not sum due to rounding.
A44: * = suppressed as estimate unreliable.
A45: 0~ = rounded to zero.
A47: Notes
A48: 1) Estimates with a coefficient of variation of more than 20 per cent have been suppressed as they are deemed unreliable. The coefficient of variation (CV) indicates the robustness of each estimate. It is defined as:
A49: % = (standard error/ estimate) x 100
A50: where standard error is an estimate of the margin of error associated with a sample survey.
A51: 2) Estimates are based on the Annual Population Survey (APS) which is the Labour Force Survey (LFS) plus various sample boosts.
A52: 3) APS and LFS data has now been grossed to 2010-based population estimates and projections. Tables published from the year ending December 2010 have been weighted using these estimates. Tables published prior to this were weighted using the 2008 and 2006-based estimates and projections and have not been revised. Analysis shows that there is no discernable discontinuity in these tables.
A53: 4) It should be noted that the LFS :-
A54: * excludes students in halls who do not have a UK resident parent
A55: * excludes people in most other types of communal establishments (e.g. hotels, boarding houses, hostels, mobile home sites, etc.)
A56: * is grossed to population estimates of those living in private households that only include migrants staying for 12 months or more. An adjustment is made for those who live in some NHS accommodation and halls of residence whose parents live in the UK. For this reason the sum of the British and non-British nationality estimates may not agree with the published population estimate.
A57: 5) The LFS weighting does not adjust for non-response bias by the nationality or country of birth variable.
A59: © Crown Copyright 2015

Sheet WRS quarterly
A1: Worker Registration Scheme (WRS) - quarterly data | L1: Return to front page
B3: 2005 | F3: 2006 | J3: 2007 | N3: 2008 | R3: 2009 | V3: 2010 | Z3: 2011
A4: Council Area | B4: Q1 | C4: Q2 | D4: Q3 | E4: Q4 | F4: Q1 | G4: Q2 | H4: Q3 | I4: Q4 | J4: Q1 | K4: Q2 | L4: Q3 | M4: Q4 | N4: Q1 | O4: Q2 | P4: Q3 | Q4: Q4 | R4: Q1 | S4: Q2 | T4: Q3 | U4: Q4 | V4: Q1 | W4: Q2 | X4: Q3 | Y4: Q4 | Z4: Q1 | AA4: Q2 | AB4: Q3 | AC4: Q4
A5: SCOTLAND | B5: ~ | C5: ~ | D5: ~ | E5: ~ | F5: ~ | G5: 3900 | H5: 5860 | I5: 4855 | J5: 4920 | K5: 4240 | L5: 5960 | M5: 4500 | N5: 3740 | O5: 3775 | P5: 3705 | Q5: 2960 | R5: 2720 | S5: 2015 | T5: 3125 | U5: 2455 | V5: 1545 | W5: 1415 | X5: 3425 | Y5: 2505 | Z5: 1390 | AA5: ~ | AB5: ~ | AC5: ~
A6: Aberdeen City | B6: ~ | C6: ~ | D6: ~ | E6: ~ | F6: ~ | G6: 215 | H6: 300 | I6: 380 | J6: 370 | K6: 265 | L6: 325 | M6: 280 | N6: 285 | O6: 245 | P6: 150 | Q6: 210 | R6: 285 | S6: 180 | T6: 190 | U6: 225 | V6: 155 | W6: 145 | X6: 200 | Y6: 235 | Z6: 185 | AA6: ~ | AB6: ~ | AC6: ~
A7: Aberdeenshire | B7: ~ | C7: ~ | D7: ~ | E7: ~ | F7: ~ | G7: 250 | H7: 460 | I7: 330 | J7: 290 | K7: 240 | L7: 375 | M7: 370 | N7: 260 | O7: 220 | P7: 285 | Q7: 255 | R7: 260 | S7: 160 | T7: 320 | U7: 320 | V7: 200 | W7: 110 | X7: 350 | Y7: 220 | Z7: 120 | AA7: ~ | AB7: ~ | AC7: ~
A8: Angus | B8: ~ | C8: ~ | D8: ~ | E8: ~ | F8: ~ | G8: 225 | H8: 275 | I8: 170 | J8: 145 | K8: 180 | L8: 520 | M8: 165 | N8: 125 | O8: 160 | P8: 335 | Q8: 150 | R8: 55 | S8: 90 | T8: 105 | U8: 80 | V8: 35 | W8: 55 | X8: 265 | Y8: 70 | Z8: 30 | AA8: ~ | AB8: ~ | AC8: ~
A9: Argyll and Bute | B9: ~ | C9: ~ | D9: ~ | E9: ~ | F9: ~ | G9: 125 | H9: 140 | I9: 75 | J9: 80 | K9: 55 | L9: 100 | M9: 55 | N9: 65 | O9: 85 | P9: 65 | Q9: 35 | R9: 30 | S9: 45 | T9: 60 | U9: 60 | V9: 30 | W9: 70 | X9: 65 | Y9: 50 | Z9: 25 | AA9: ~ | AB9: ~ | AC9: ~
A10: Clackmannanshire | B10: ~ | C10: ~ | D10: ~ | E10: ~ | F10: ~ | G10: 5 | H10: 5 | I10: 10 | J10: 10 | K10: 5 | L10: 10 | M10: 10 | N10: 15 | O10: 5 | P10: 5 | Q10: 10 | R10: 10 | S10: 5 | T10: 20 | U10: 5 | V10: 5 | W10: 5 | X10: 5 | Y10: † | Z10: 0 | AA10: ~ | AB10: ~ | AC10: ~
A11: Dumfries and Galloway | B11: ~ | C11: ~ | D11: ~ | E11: ~ | F11: ~ | G11: 65 | H11: 110 | I11: 140 | J11: 55 | K11: 50 | L11: 60 | M11: 115 | N11: 40 | O11: 60 | P11: 40 | Q11: 45 | R11: 40 | S11: 25 | T11: 30 | U11: 35 | V11: 15 | W11: 20 | X11: 20 | Y11: 55 | Z11: 20 | AA11: ~ | AB11: ~ | AC11: ~
A12: Dundee City | B12: ~ | C12: ~ | D12: ~ | E12: ~ | F12: ~ | G12: 55 | H12: 150 | I12: 140 | J12: 120 | K12: 75 | L12: 125 | M12: 105 | N12: 70 | O12: 70 | P12: 100 | Q12: 75 | R12: 95 | S12: 40 | T12: 90 | U12: 65 | V12: 30 | W12: 35 | X12: 120 | Y12: 95 | Z12: 40 | AA12: ~ | AB12: ~ | AC12: ~
A13: East Ayrshire | B13: ~ | C13: ~ | D13: ~ | E13: ~ | F13: ~ | G13: 45 | H13: 45 | I13: 35 | J13: 80 | K13: 45 | L13: 20 | M13: 50 | N13: 35 | O13: 25 | P13: 20 | Q13: 45 | R13: 10 | S13: 20 | T13: 15 | U13: 15 | V13: 5 | W13: 10 | X13: 10 | Y13: 5 | Z13: 5 | AA13: ~ | AB13: ~ | AC13: ~
A14: East Dunbartonshire | B14: ~ | C14: ~ | D14: ~ | E14: ~ | F14: ~ | G14: 30 | H14: 30 | I14: 20 | J14: 30 | K14: 10 | L14: 20 | M14: 15 | N14: 15 | O14: 15 | P14: † | Q14: 5 | R14: 5 | S14: † | T14: 5 | U14: 5 | V14: 5 | W14: 5 | X14: 5 | Y14: 10 | Z14: 0 | AA14: ~ | AB14: ~ | AC14: ~
A15: East Lothian | B15: ~ | C15: ~ | D15: ~ | E15: ~ | F15: ~ | G15: 30 | H15: 50 | I15: 65 | J15: 40 | K15: 30 | L15: 70 | M15: 45 | N15: 50 | O15: 40 | P15: 15 | Q15: 20 | R15: 40 | S15: 20 | T15: 25 | U15: 30 | V15: 15 | W15: 10 | X15: 20 | Y15: 20 | Z15: 10 | AA15: ~ | AB15: ~ | AC15: ~
A16: East Renfrewshire | B16: ~ | C16: ~ | D16: ~ | E16: ~ | F16: ~ | G16: 20 | H16: 20 | I16: 30 | J16: 25 | K16: 20 | L16: 20 | M16: 15 | N16: 15 | O16: 10 | P16: 5 | Q16: 5 | R16: 10 | S16: 5 | T16: 5 | U16: 10 | V16: 15 | W16: † | X16: 5 | Y16: † | Z16: 15 | AA16: ~ | AB16: ~ | AC16: ~
A17: Edinburgh, City of | B17: ~ | C17: ~ | D17: ~ | E17: ~ | F17: ~ | G17: 565 | H17: 630 | I17: 685 | J17: 700 | K17: 495 | L17: 610 | M17: 520 | N17: 480 | O17: 460 | P17: 280 | Q17: 345 | R17: 410 | S17: 255 | T17: 295 | U17: 285 | V17: 220 | W17: 220 | X17: 390 | Y17: 445 | Z17: 245 | AA17: ~ | AB17: ~ | AC17: ~
A18: Eilean Siar | B18: ~ | C18: ~ | D18: ~ | E18: ~ | F18: ~ | G18: 20 | H18: 10 | I18: 15 | J18: 15 | K18: 20 | L18: 15 | M18: 10 | N18: 10 | O18: 10 | P18: 10 | Q18: 10 | R18: † | S18: 5 | T18: 10 | U18: 5 | V18: † | W18: † | X18: 5 | Y18: 5 | Z18: 5 | AA18: ~ | AB18: ~ | AC18: ~
A19: Falkirk | B19: ~ | C19: ~ | D19: ~ | E19: ~ | F19: ~ | G19: 95 | H19: 85 | I19: 100 | J19: 90 | K19: 70 | L19: 100 | M19: 35 | N19: 40 | O19: 55 | P19: 25 | Q19: 40 | R19: 35 | S19: 15 | T19: 35 | U19: 30 | V19: 15 | W19: 50 | X19: 30 | Y19: 30 | Z19: 30 | AA19: ~ | AB19: ~ | AC19: ~
A20: Fife | B20: ~ | C20: ~ | D20: ~ | E20: ~ | F20: ~ | G20: 190 | H20: 520 | I20: 290 | J20: 245 | K20: 245 | L20: 505 | M20: 290 | N20: 215 | O20: 220 | P20: 405 | Q20: 175 | R20: 110 | S20: 175 | T20: 305 | U20: 85 | V20: 75 | W20: 45 | X20: 280 | Y20: 85 | Z20: 40 | AA20: ~ | AB20: ~ | AC20: ~
A21: Glasgow City | B21: ~ | C21: ~ | D21: ~ | E21: ~ | F21: ~ | G21: 500 | H21: 560 | I21: 600 | J21: 975 | K21: 635 | L21: 525 | M21: 550 | N21: 595 | O21: 445 | P21: 250 | Q21: 400 | R21: 370 | S21: 235 | T21: 270 | U21: 255 | V21: 190 | W21: 125 | X21: 305 | Y21: 305 | Z21: 175 | AA21: ~ | AB21: ~ | AC21: ~
A22: Highland | B22: ~ | C22: ~ | D22: ~ | E22: ~ | F22: ~ | G22: 295 | H22: 535 | I22: 435 | J22: 440 | K22: 370 | L22: 395 | M22: 425 | N22: 300 | O22: 410 | P22: 270 | Q22: 280 | R22: 180 | S22: 160 | T22: 205 | U22: 165 | V22: 100 | W22: 120 | X22: 215 | Y22: 170 | Z22: 90 | AA22: ~ | AB22: ~ | AC22: ~
A23: Inverclyde | B23: ~ | C23: ~ | D23: ~ | E23: ~ | F23: ~ | G23: 5 | H23: 10 | I23: 10 | J23: 5 | K23: 10 | L23: 15 | M23: 5 | N23: 0 | O23: 5 | P23: 5 | Q23: † | R23: 5 | S23: 5 | T23: † | U23: 10 | V23: 5 | W23: - | X23: † | Y23: 0 | Z23: † | AA23: ~ | AB23: ~ | AC23: ~
A24: Midlothian | B24: ~ | C24: ~ | D24: ~ | E24: ~ | F24: ~ | G24: 50 | H24: 70 | I24: 40 | J24: 55 | K24: 30 | L24: 40 | M24: 70 | N24: 40 | O24: 20 | P24: 35 | Q24: 20 | R24: 20 | S24: 10 | T24: 15 | U24: 15 | V24: 10 | W24: 10 | X24: 15 | Y24: 15 | Z24: 10 | AA24: ~ | AB24: ~ | AC24: ~
A25: Moray | B25: ~ | C25: ~ | D25: ~ | E25: ~ | F25: ~ | G25: 70 | H25: 100 | I25: 55 | J25: 40 | K25: 85 | L25: 105 | M25: 70 | N25: 35 | O25: 60 | P25: 55 | Q25: 55 | R25: 20 | S25: 15 | T25: 35 | U25: 30 | V25: 15 | W25: 10 | X25: 40 | Y25: 25 | Z25: 10 | AA25: ~ | AB25: ~ | AC25: ~
A26: North Ayrshire | B26: ~ | C26: ~ | D26: ~ | E26: ~ | F26: ~ | G26: 20 | H26: 15 | I26: 15 | J26: 15 | K26: 25 | L26: 20 | M26: 20 | N26: 20 | O26: 20 | P26: 10 | Q26: 10 | R26: 5 | S26: 10 | T26: 5 | U26: 5 | V26: † | W26: 5 | X26: 20 | Y26: 10 | Z26: 5 | AA26: ~ | AB26: ~ | AC26: ~
A27: North Lanarkshire | B27: ~ | C27: ~ | D27: ~ | E27: ~ | F27: ~ | G27: 115 | H27: 175 | I27: 255 | J27: 220 | K27: 210 | L27: 230 | M27: 195 | N27: 175 | O27: 145 | P27: 115 | Q27: 110 | R27: 85 | S27: 35 | T27: 45 | U27: 55 | V27: 65 | W27: 45 | X27: 85 | Y27: 50 | Z27: 25 | AA27: ~ | AB27: ~ | AC27: ~
A28: Orkney Islands | B28: ~ | C28: ~ | D28: ~ | E28: ~ | F28: ~ | G28: 5 | H28: 10 | I28: 5 | J28: 10 | K28: 20 | L28: 10 | M28: 10 | N28: 5 | O28: 5 | P28: 10 | Q28: † | R28: 5 | S28: 5 | T28: † | U28: 5 | V28: † | W28: 5 | X28: 0 | Y28: 10 | Z28: 5 | AA28: ~ | AB28: ~ | AC28: ~
A29: Perth and Kinross | B29: ~ | C29: ~ | D29: ~ | E29: ~ | F29: ~ | G29: 415 | H29: 895 | I29: 250 | J29: 205 | K29: 485 | L29: 905 | M29: 255 | N29: 230 | O29: 470 | P29: 790 | Q29: 205 | R29: 165 | S29: 260 | T29: 685 | U29: 145 | V29: 120 | W29: 165 | X29: 690 | Y29: 135 | Z29: 100 | AA29: ~ | AB29: ~ | AC29: ~
A30: Renfrewshire | B30: ~ | C30: ~ | D30: ~ | E30: ~ | F30: ~ | G30: 65 | H30: 95 | I30: 95 | J30: 140 | K30: 100 | L30: 105 | M30: 95 | N30: 75 | O30: 60 | P30: 40 | Q30: 70 | R30: 60 | S30: 50 | T30: 45 | U30: 55 | V30: 35 | W30: 35 | X30: 60 | Y30: 65 | Z30: 40 | AA30: ~ | AB30: ~ | AC30: ~
A31: Scottish Borders | B31: ~ | C31: ~ | D31: ~ | E31: ~ | F31: ~ | G31: 80 | H31: 170 | I31: 145 | J31: 80 | K31: 120 | L31: 155 | M31: 120 | N31: 110 | O31: 55 | P31: 95 | Q31: 40 | R31: 60 | S31: 15 | T31: 75 | U31: 70 | V31: 25 | W31: 15 | X31: 65 | Y31: 60 | Z31: 45 | AA31: ~ | AB31: ~ | AC31: ~
A32: Shetland Islands | B32: ~ | C32: ~ | D32: ~ | E32: ~ | F32: ~ | G32: 15 | H32: 25 | I32: 25 | J32: 25 | K32: 10 | L32: 20 | M32: 30 | N32: 30 | O32: 10 | P32: 20 | Q32: 20 | R32: 20 | S32: 10 | T32: 15 | U32: 35 | V32: 10 | W32: 5 | X32: 15 | Y32: 30 | Z32: 5 | AA32: ~ | AB32: ~ | AC32: ~
A33: South Ayrshire | B33: ~ | C33: ~ | D33: ~ | E33: ~ | F33: ~ | G33: 60 | H33: 30 | I33: 30 | J33: 35 | K33: 25 | L33: 35 | M33: 15 | N33: 25 | O33: 25 | P33: 15 | Q33: 10 | R33: 10 | S33: 15 | T33: 10 | U33: 5 | V33: 5 | W33: 5 | X33: 5 | Y33: † | Z33: 5 | AA33: ~ | AB33: ~ | AC33: ~
A34: South Lanarkshire | B34: ~ | C34: ~ | D34: ~ | E34: ~ | F34: ~ | G34: 90 | H34: 135 | I34: 170 | J34: 140 | K34: 120 | L34: 145 | M34: 155 | N34: 95 | O34: 80 | P34: 80 | Q34: 70 | R34: 75 | S34: 35 | T34: 35 | U34: 30 | V34: 20 | W34: 30 | X34: 30 | Y34: 35 | Z34: 25 | AA34: ~ | AB34: ~ | AC34: ~
A35: Stirling | B35: ~ | C35: ~ | D35: ~ | E35: ~ | F35: ~ | G35: 55 | H35: 80 | I35: 80 | J35: 75 | K35: 80 | L35: 80 | M35: 60 | N35: 90 | O35: 90 | P35: 60 | Q35: 85 | R35: 70 | S35: 50 | T35: 55 | U35: 70 | V35: 45 | W35: 20 | X35: 45 | Y35: 45 | Z35: 15 | AA35: ~ | AB35: ~ | AC35: ~
A36: West Dunbartonshire | B36: ~ | C36: ~ | D36: ~ | E36: ~ | F36: ~ | G36: 10 | H36: 10 | I36: 10 | J36: 15 | K36: 5 | L36: 5 | M36: 10 | N36: 10 | O36: 5 | P36: † | Q36: 5 | R36: 5 | S36: † | T36: 5 | U36: † | V36: † | W36: † | X36: † | Y36: † | Z36: † | AA36: ~ | AB36: ~ | AC36: ~
A37: West Lothian | B37: ~ | C37: ~ | D37: ~ | E37: ~ | F37: ~ | G37: 130 | H37: 105 | I37: 145 | J37: 160 | K37: 115 | L37: 285 | M37: 340 | N37: 175 | O37: 190 | P37: 115 | Q37: 170 | R37: 180 | S37: 70 | T37: 115 | U37: 265 | V37: 85 | W37: 30 | X37: 75 | Y37: 210 | Z37: 80 | AA37: ~ | AB37: ~ | AC37: ~
A39: Notes
A40: 1) This data is based on Management Information, is provisional and may be subject to change. The data are not National Statistics. This table shows registered workers rather than the number of applications made. The figures are for initial applications only (not multiple applications, where an individual is doing more than one job simultaneously, nor re-registrations, where an individual has changed employers). Currently 99.3 per cent of approved applications have an accurate employer postcode. Figures based on Employers address and the date the application is approved. Figures are rounded to nearest 5 '†' Indicates 1 or 2 Because of rounding, figures may not add up to totals shown.
A41: 2) Source: Local Government Association, Worker Registration Scheme Data Archive (no longer available online).
A42: 3) The Worker Registration Scheme was discontinued on 1 May 2011.
A44: © Crown Copyright 2016

Sheet NHS Overseas
A1: NHS Registrations from Overseas | K1: Return to front page
B3: Registrations
B4: 2004 | C4: 2005 | D4: 2006 | E4: 2007 | F4: 2008 | G4: 2009 | H4: 2010 | I4: 2011 | J4: 2012 | K4: 2013 | L4: 2014 | M4: 2015
A5: SCOTLAND | B5: 33882 | C5: 43004 | D5: 47401 | E5: 51929 | F5: 62246 | G5: 54033 | H5: 53063 | I5: 51325 | J5: 49672 | K5: 51807 | L5: 55364 | M5: 57422
A6: Argyll and Clyde | B6: 1471 | C6: 1732 | D6: 1906 | E6: 2097 | F6: 1927 | G6: 1660 | H6: 1859 | I6: 1487 | J6: 1228 | K6: 1319 | L6: 1516 | M6: 1807
A7: Ayrshire and Arran | B7: 626 | C7: 823 | D7: 770 | E7: 875 | F7: 1132 | G7: 747 | H7: 800 | I7: 751 | J7: 705 | K7: 670 | L7: 645 | M7: 792
A8: Borders | B8: 438 | C8: 571 | D8: 672 | E8: 741 | F8: 954 | G8: 628 | H8: 442 | I8: 435 | J8: 536 | K8: 472 | L8: 419 | M8: 426
A9: Dumfries and Galloway | B9: 293 | C9: 517 | D9: 601 | E9: 571 | F9: 729 | G9: 468 | H9: 421 | I9: 418 | J9: 342 | K9: 377 | L9: 377 | M9: 463
A10: Fife | B10: 1972 | C10: 2567 | D10: 2504 | E10: 2651 | F10: 3075 | G10: 2899 | H10: 3007 | I10: 2680 | J10: 2748 | K10: 2851 | L10: 2628 | M10: 2925
A11: Forth Valley | B11: 1408 | C11: 1684 | D11: 1881 | E11: 2221 | F11: 2338 | G11: 1981 | H11: 2083 | I11: 2296 | J11: 2076 | K11: 1876 | L11: 2004 | M11: 2159
A12: Grampian | B12: 4711 | C12: 6403 | D12: 7557 | E12: 8538 | F12: 10332 | G12: 9371 | H12: 8825 | I12: 8313 | J12: 8109 | K12: 9137 | L12: 9352 | M12: 8615
A13: Greater Glasgow | B13: 8887 | C13: 9412 | D13: 9606 | E13: 10970 | F13: 13571 | G13: 12326 | H13: 11858 | I13: 12323 | J13: 11851 | K13: 12501 | L13: 15091 | M13: 15655
A14: Highland | B14: 891 | C14: 1540 | D14: 1766 | E14: 2052 | F14: 2170 | G14: 1559 | H14: 1470 | I14: 1193 | J14: 1065 | K14: 1169 | L14: 1260 | M14: 1441
A15: Lanarkshire | B15: 870 | C15: 1342 | D15: 1676 | E15: 2038 | F15: 2314 | G15: 1812 | H15: 1509 | I15: 1240 | J15: 1213 | K15: 1200 | L15: 1316 | M15: 1493
A16: Lothian | B16: 10212 | C16: 12353 | D16: 13832 | E16: 13920 | F16: 16535 | G16: 14772 | H16: 15046 | I16: 14805 | J16: 14886 | K16: 15267 | L16: 15798 | M16: 17218
A17: Orkney | B17: 47 | C17: 52 | D17: 58 | E17: 62 | F17: 67 | G17: 57 | H17: 71 | I17: 76 | J17: 53 | K17: 93 | L17: 84 | M17: 72
A18: Shetland | B18: 71 | C18: 74 | D18: 75 | E18: 88 | F18: 131 | G18: 179 | H18: 114 | I18: 118 | J18: 127 | K18: 114 | L18: 96 | M18: 135
A19: Tayside | B19: 1929 | C19: 3852 | D19: 4397 | E19: 4990 | F19: 6863 | G19: 5482 | H19: 5480 | I19: 5120 | J19: 4671 | K19: 4708 | L19: 4723 | M19: 4114
A20: Western Isles | B20: 56 | C20: 82 | D20: 100 | E20: 115 | F20: 108 | G20: 92 | H20: 78 | I20: 70 | J20: 62 | K20: 53 | L20: 55 | M20: 107
A22: Footnotes
A23: 1) The health boards used in the table above are the pre-2006 health boards, as these are what are used by the administrative system that provides the data. Argyll and Clyde Health Board no longer exists, with the area being split between Greater Glasgow (now Greater Glasgow and Clyde) and Highland Health Boards.
A24: 2) These data include short-term overseas migrants, unlike the NRS overseas migration estimates that only count migrants staying for 12 months or more.
A25: 3) These data do not show the exact time of migration as there is a difference between arrival date and the date at which the change of GP is processed.
A26: 4) The figures above give the number of registrations from overseas for the year ending at the end of June of the given year. The figures have been adjusted to allow for the difference between arrival date and the date at which the registration with a GP is processed.
A27: 5) Source: National Health Service Central Register (NHSCR).
A29: © Crown Copyright 2016

Sheet NHS Overseas quarterly
A1: NHS Registrations from Overseas - quarterly data | L1: Return to front page
B3: 2004 | F3: 2005 | J3: 2006 | N3: 2007 | R3: 2008
A4: Health Board Area | B4: Q1 | C4: Q2 | D4: Q3 | E4: Q4 | F4: Q1 | G4: Q2 | H4: Q3 | I4: Q4 | J4: Q1 | K4: Q2 | L4: Q3 | M4: Q4 | N4: Q1 | O4: Q2 | P4: Q3 | Q4: Q4 | R4: Q1 | S4: Q2 | T4: Q3 | U4: Q4
A5: SCOTLAND | B5: 7409 | C5: 7524 | D5: 6637 | E5: 12936 | F5: 9398 | G5: 8784 | H5: 11886 | I5: 16143 | J5: 10272 | K5: 10515 | L5: 10471 | M5: 17967 | N5: 7683 | O5: 13379 | P5: 12900 | Q5: 21413 | R5: 15587 | S5: 11362 | T5: 13884 | U5: 19558
A6: Argyll and Clyde | B6: 239 | C6: 474 | D6: 300 | E6: 569 | F6: 388 | G6: 324 | H6: 451 | I6: 497 | J6: 490 | K6: 456 | L6: 463 | M6: 623 | N6: 334 | O6: 680 | P6: 460 | Q6: 525 | R6: 572 | S6: 411 | T6: 419 | U6: 496
A7: Ayrshire and Arran | B7: 178 | C7: 166 | D7: 88 | E7: 182 | F7: 186 | G7: 207 | H7: 248 | I7: 197 | J7: 150 | K7: 210 | L7: 213 | M7: 212 | N7: 173 | O7: 242 | P7: 248 | Q7: 293 | R7: 344 | S7: 232 | T7: 263 | U7: 178
A8: Borders | B8: 89 | C8: 101 | D8: 138 | E8: 107 | F8: 127 | G8: 168 | H8: 169 | I8: 206 | J8: 128 | K8: 175 | L8: 163 | M8: 214 | N8: 117 | O8: 221 | P8: 189 | Q8: 324 | R8: 252 | S8: 170 | T8: 208 | U8: 205
A9: Dumfries and Galloway | B9: 75 | C9: 92 | D9: 59 | E9: 106 | F9: 125 | G9: 103 | H9: 183 | I9: 155 | J9: 136 | K9: 138 | L9: 172 | M9: 145 | N9: 75 | O9: 173 | P9: 178 | Q9: 207 | R9: 215 | S9: 150 | T9: 157 | U9: 139
A10: Fife | B10: 414 | C10: 346 | D10: 219 | E10: 955 | F10: 504 | G10: 579 | H10: 529 | I10: 1096 | J10: 543 | K10: 393 | L10: 472 | M10: 1187 | N10: 380 | O10: 526 | P10: 558 | Q10: 1376 | R10: 706 | S10: 362 | T10: 631 | U10: 1489
A11: Forth Valley | B11: 208 | C11: 263 | D11: 244 | E11: 619 | F11: 283 | G11: 287 | H11: 495 | I11: 752 | J11: 322 | K11: 388 | L11: 419 | M11: 744 | N11: 333 | O11: 543 | P11: 601 | Q11: 728 | R11: 515 | S11: 343 | T11: 752 | U11: 596
A12: Grampian | B12: 1131 | C12: 805 | D12: 1109 | E12: 1803 | F12: 1641 | G12: 1234 | H12: 1725 | I12: 2247 | J12: 1820 | K12: 1742 | L12: 1748 | M12: 2661 | N12: 1235 | O12: 2430 | P12: 2212 | Q12: 3260 | R12: 2826 | S12: 1905 | T12: 2341 | U12: 3234
A13: Greater Glasgow | B13: 1701 | C13: 2186 | D13: 1724 | E13: 3119 | F13: 2009 | G13: 1949 | H13: 2335 | I13: 3452 | J13: 2031 | K13: 2038 | L13: 2085 | M13: 4027 | N13: 1549 | O13: 2786 | P13: 2608 | Q13: 5011 | R13: 3089 | S13: 2899 | T13: 2572 | U13: 4626
A14: Highland | B14: 189 | C14: 239 | D14: 272 | E14: 289 | F14: 288 | G14: 398 | H14: 565 | I14: 382 | J14: 385 | K14: 478 | L14: 521 | M14: 450 | N14: 357 | O14: 644 | P14: 601 | Q14: 546 | R14: 561 | S14: 535 | T14: 528 | U14: 387
A15: Lanarkshire | B15: 163 | C15: 228 | D15: 292 | E15: 243 | F15: 287 | G15: 323 | H15: 489 | I15: 351 | J15: 455 | K15: 425 | L15: 445 | M15: 510 | N15: 411 | O15: 562 | P15: 555 | Q15: 546 | R15: 696 | S15: 434 | T15: 638 | U15: 463
A16: Lothian | B16: 2499 | C16: 2064 | D16: 1929 | E16: 3872 | F16: 2851 | G16: 2390 | H16: 3240 | I16: 5462 | J16: 2826 | K16: 2884 | L16: 2660 | M16: 5609 | N16: 1979 | O16: 3206 | P16: 3126 | Q16: 6777 | R16: 3676 | S16: 2872 | T16: 3210 | U16: 6259
A17: Orkney | B17: 8 | C17: 19 | D17: 8 | E17: 12 | F17: 7 | G17: 5 | H17: 28 | I17: 14 | J17: 7 | K17: 25 | L17: 12 | M17: 3 | N17: 20 | O17: 23 | P17: 16 | Q17: 26 | R17: 25 | S17: 9 | T17: 7 | U17: 15
A18: Shetland | B18: 8 | C18: 21 | D18: 15 | E18: 18 | F18: 22 | G18: 19 | H18: 15 | I18: 17 | J18: 21 | K18: 19 | L18: 18 | M18: 27 | N18: 18 | O18: 22 | P18: 21 | Q18: 29 | R18: 46 | S18: 16 | T18: 40 | U18: 40
A19: Tayside | B19: 496 | C19: 498 | D19: 223 | E19: 1035 | F19: 666 | G19: 781 | H19: 1370 | I19: 1306 | J19: 923 | K19: 1111 | L19: 1057 | M19: 1538 | N19: 673 | O19: 1293 | P19: 1486 | Q19: 1741 | R19: 2022 | S19: 996 | T19: 2104 | U19: 1394
A20: Western Isles | B20: 11 | C20: 22 | D20: 17 | E20: 7 | F20: 14 | G20: 17 | H20: 44 | I20: 9 | J20: 35 | K20: 33 | L20: 23 | M20: 17 | N20: 29 | O20: 28 | P20: 41 | Q20: 24 | R20: 42 | S20: 28 | T20: 14 | U20: 37
B22: 2009 | F22: 2010 | J22: 2011 | N22: 2012 | R22: 2013
A23: Health Board Area | B23: Q1 | C23: Q2 | D23: Q3 | E23: Q4 | F23: Q1 | G23: Q2 | H23: Q3 | I23: Q4 | J23: Q1 | K23: Q2 | L23: Q3 | M23: Q4 | N23: Q1 | O23: Q2 | P23: Q3 | Q23: Q4 | R23: Q1 | S23: Q2 | T23: Q3 | U23: Q4
A24: SCOTLAND | B24: 10697 | C24: 10975 | D24: 13805 | E24: 19583 | F24: 11923 | G24: 8536 | H24: 16961 | I24: 15518 | J24: 10305 | K24: 8527 | L24: 15681 | M24: 17023 | N24: 9585 | O24: 7574 | P24: 16553 | Q24: 16204 | R24: 10257 | S24: 8684 | T24: 14055 | U24: 19284
A25: Argyll and Clyde | B25: 409 | C25: 335 | D25: 609 | E25: 520 | F25: 385 | G25: 405 | H25: 391 | I25: 519 | J25: 335 | K25: 302 | L25: 297 | M25: 407 | N25: 294 | O25: 225 | P25: 324 | Q25: 417 | R25: 270 | S25: 316 | T25: 309 | U25: 391
A26: Ayrshire and Arran | B26: 146 | C26: 199 | D26: 233 | E26: 218 | F26: 196 | G26: 147 | H26: 228 | I26: 199 | J26: 163 | K26: 177 | L26: 207 | M26: 221 | N26: 138 | O26: 137 | P26: 192 | Q26: 178 | R26: 169 | S26: 148 | T26: 195 | U26: 203
A27: Borders | B27: 142 | C27: 111 | D27: 153 | E27: 104 | F27: 120 | G27: 73 | H27: 133 | I27: 120 | J27: 107 | K27: 101 | L27: 137 | M27: 151 | N27: 104 | O27: 117 | P27: 164 | Q27: 108 | R27: 122 | S27: 83 | T27: 145 | U27: 124
A28: Dumfries and Galloway | B28: 93 | C28: 118 | D28: 116 | E28: 110 | F28: 119 | G28: 92 | H28: 119 | I28: 135 | J28: 83 | K28: 81 | L28: 92 | M28: 99 | N28: 69 | O28: 62 | P28: 111 | Q28: 125 | R28: 90 | S28: 63 | T28: 90 | U28: 118
A29: Fife | B29: 433 | C29: 398 | D29: 676 | E29: 1496 | F29: 525 | G29: 314 | H29: 1113 | I29: 937 | J29: 354 | K29: 288 | L29: 955 | M29: 1102 | N29: 379 | O29: 301 | P29: 1515 | Q29: 624 | R29: 427 | S29: 331 | T29: 1214 | U29: 832
A30: Forth Valley | B30: 419 | C30: 318 | D30: 602 | E30: 730 | F30: 486 | G30: 234 | H30: 1012 | I30: 497 | J30: 426 | K30: 280 | L30: 905 | M30: 389 | N30: 402 | O30: 347 | P30: 1043 | Q30: 368 | R30: 359 | S30: 300 | T30: 755 | U30: 452
A31: Grampian | B31: 1940 | C31: 2015 | D31: 1896 | E31: 3400 | F31: 2210 | G31: 1440 | H31: 2351 | I31: 2816 | J31: 1765 | K31: 1446 | L31: 1841 | M31: 3181 | N31: 1822 | O31: 1335 | P31: 2226 | Q31: 2972 | R31: 2035 | S31: 1667 | T31: 2003 | U31: 3522
A32: Greater Glasgow | B32: 2487 | C32: 2648 | D32: 2713 | E32: 4833 | F32: 2878 | G32: 1854 | H32: 2839 | I32: 4619 | J32: 2576 | K32: 1946 | L32: 3072 | M32: 4934 | N32: 2341 | O32: 1622 | P32: 3572 | Q32: 4699 | R32: 2387 | S32: 1754 | T32: 2882 | U32: 6035
A33: Highland | B33: 377 | C33: 393 | D33: 413 | E33: 359 | F33: 360 | G33: 331 | H33: 378 | I33: 284 | J33: 295 | K33: 279 | L33: 290 | M33: 264 | N33: 222 | O33: 269 | P33: 342 | Q33: 303 | R33: 284 | S33: 256 | T33: 323 | U33: 295
A34: Lanarkshire | B34: 420 | C34: 441 | D34: 424 | E34: 323 | F34: 395 | G34: 317 | H34: 429 | I34: 324 | J34: 309 | K34: 260 | L34: 370 | M34: 329 | N34: 311 | O34: 227 | P34: 325 | Q34: 329 | R34: 289 | S34: 243 | T34: 305 | U34: 375
A35: Lothian | B35: 2768 | C35: 2593 | D35: 4234 | E35: 5864 | F35: 3017 | G35: 2121 | H35: 6109 | I35: 3648 | J35: 2829 | K35: 2036 | L35: 5919 | M35: 4657 | N35: 2553 | O35: 1900 | P35: 5156 | Q35: 4874 | R35: 2870 | S35: 2336 | T35: 4325 | U35: 5657
A36: Orkney | B36: 15 | C36: 13 | D36: 26 | E36: 17 | F36: 20 | G36: 11 | H36: 16 | I36: 22 | J36: 13 | K36: 25 | L36: 13 | M36: 14 | N36: 24 | O36: 7 | P36: 20 | Q36: 17 | R36: 22 | S36: 21 | T36: 22 | U36: 39
A37: Shetland | B37: 42 | C37: 37 | D37: 50 | E37: 41 | F37: 28 | G37: 16 | H37: 28 | I37: 35 | J37: 26 | K37: 25 | L37: 34 | M37: 34 | N37: 34 | O37: 22 | P37: 39 | Q37: 23 | R37: 29 | S37: 29 | T37: 30 | U37: 33
A38: Tayside | B38: 997 | C38: 1328 | D38: 1639 | E38: 1553 | F38: 1163 | G38: 1164 | H38: 1787 | I38: 1344 | J38: 1012 | K38: 1260 | L38: 1538 | M38: 1216 | N38: 877 | O38: 993 | P38: 1513 | Q38: 1154 | R38: 893 | S38: 1124 | T38: 1439 | U38: 1189
A39: Western Isles | B39: 9 | C39: 28 | D39: 21 | E39: 15 | F39: 21 | G39: 17 | H39: 28 | I39: 19 | J39: 12 | K39: 21 | L39: 11 | M39: 25 | N39: 15 | O39: 10 | P39: 11 | Q39: 13 | R39: 11 | S39: 13 | T39: 18 | U39: 19
B41: 2014 | F41: 2015
A42: Health Board Area | B42: Q1 | C42: Q2 | D42: Q3 | E42: Q4 | F42: Q1 | G42: Q2 | H42: Q3 | I42: Q4
A43: SCOTLAND | B43: 10935 | C43: 9419 | D43: 17170 | E43: 17840 | F43: 11703 | G43: 9182 | H43: 20153 | I43: 16384
A44: Argyll and Clyde | B44: 316 | C44: 337 | D44: 436 | E44: 427 | F44: 317 | G44: 308 | H44: 501 | I44: 681
A45: Ayrshire and Arran | B45: 163 | C45: 141 | D45: 143 | E45: 198 | F45: 165 | G45: 179 | H45: 245 | I45: 203
A46: Borders | B46: 99 | C46: 121 | D46: 108 | E46: 91 | F46: 88 | G46: 92 | H46: 130 | I46: 116
A47: Dumfries and Galloway | B47: 84 | C47: 72 | D47: 101 | E47: 120 | F47: 118 | G47: 76 | H47: 137 | I47: 132
A48: Fife | B48: 396 | C48: 319 | D48: 1240 | E48: 673 | F48: 466 | G48: 387 | H48: 1386 | I48: 686
A49: Forth Valley | B49: 352 | C49: 291 | D49: 616 | E49: 745 | F49: 433 | G49: 395 | H49: 853 | I49: 478
A50: Grampian | B50: 1981 | C50: 1695 | D50: 2839 | E50: 2837 | F50: 2005 | G50: 1539 | H50: 2906 | I50: 2165
A51: Greater Glasgow | B51: 3003 | C51: 2309 | D51: 3680 | E51: 6099 | F51: 3138 | G51: 2251 | H51: 5071 | I51: 5195
A52: Highland | B52: 309 | C52: 262 | D52: 312 | E52: 377 | F52: 316 | G52: 352 | H52: 393 | I52: 380
A53: Lanarkshire | B53: 273 | C53: 275 | D53: 348 | E53: 420 | F53: 326 | G53: 318 | H53: 397 | I53: 452
A54: Lothian | B54: 2993 | C54: 2376 | D54: 5935 | E54: 4494 | F54: 3469 | G54: 2477 | H54: 6618 | I54: 4654
A55: Orkney | B55: 6 | C55: 28 | D55: 23 | E55: 27 | F55: 19 | G55: 13 | H55: 23 | I55: 17
A56: Shetland | B56: 20 | C56: 12 | D56: 20 | E56: 44 | F56: 25 | G56: 31 | H56: 42 | I56: 37
A57: Tayside | B57: 929 | C57: 1169 | D57: 1358 | E57: 1267 | F57: 795 | G57: 742 | H57: 1430 | I57: 1147
A58: Western Isles | B58: 11 | C58: 12 | D58: 11 | E58: 21 | F58: 23 | G58: 22 | H58: 21 | I58: 41
A60: Notes
A61: 1) The health boards used in the table above are the pre-2006 health boards, as these are what are used by the administrative system that provides the data. Argyll and Clyde Health Board no longer exists, with the area being split between Greater Glasgow (now Greater Glasgow and Clyde) and Highland Health Boards.
A63: 2) These data include short-term overseas migrants, unlike the National Records of Scotland (NRS) overseas migration estimates that only count migrants staying for 12 months or more.
A64: 3) These data do not show the exact time of migration as there is a difference between arrival date and the date at which the registration with a General Practitioner (GP) is processed.
A65: 4) The figures above give the number of registrations from overseas recorded on National Health Service Central Register (NHSCR) during the quarter, with no allowance for the difference between arrival date and the date at which the registration with a GP is processed.
A67: 5) Source: National Health Service Central Register (NHSCR).
A69: © Crown Copyright 2016

Sheet Census country of birth
A1: 2011 Census - country of birth | I1: Return to front page
B3: All people | C3: England | D3: Northern Ireland | E3: Scotland | F3: Wales | G3: Republic of Ireland | H3: Other EU: Member countries in March 20011 | I3: Other EU: Accession countries April 2001 to March 2011 | J3: Other countries
A4: SCOTLAND | B4: 5295403 | C4: 459486 | D4: 36655 | E4: 4411884 | F4: 17381 | G4: 22952 | H4: 60596 | I4: 76689 | J4: 209760
A5: Aberdeen City | B5: 222793 | C5: 18008 | D5: 1374 | E5: 167180 | F5: 764 | G5: 1378 | H5: 4934 | I5: 9429 | J5: 19726
A6: Aberdeenshire | B6: 252973 | C6: 31561 | D6: 1366 | E6: 203656 | F6: 1285 | G6: 572 | H6: 2602 | I6: 4922 | J6: 7009
A7: Angus | B7: 115978 | C7: 10087 | D7: 649 | E7: 99596 | F7: 397 | G7: 250 | H7: 908 | I7: 1600 | J7: 2491
A8: Argyll & Bute | B8: 88166 | C8: 15613 | D8: 644 | E8: 67060 | F8: 529 | G8: 327 | H8: 923 | I8: 852 | J8: 2218
A9: Clackmannanshire | B9: 51442 | C9: 4356 | D9: 318 | E9: 44431 | F9: 192 | G9: 154 | H9: 421 | I9: 573 | J9: 997
A10: Dumfries & Galloway | B10: 151324 | C10: 27186 | D10: 1547 | E10: 116687 | F10: 642 | G10: 456 | H10: 1121 | I10: 1146 | J10: 2539
A11: Dundee City | B11: 147268 | C11: 8882 | D11: 1539 | E11: 123242 | F11: 340 | G11: 572 | H11: 2248 | I11: 2740 | J11: 7705
A12: East Ayrshire | B12: 122767 | C12: 6602 | D12: 742 | E12: 112379 | F12: 260 | G12: 251 | H12: 629 | I12: 307 | J12: 1597
A13: East Dunbartonshire | B13: 105026 | C13: 5945 | D13: 593 | E13: 93728 | F13: 236 | G13: 428 | H13: 665 | I13: 195 | J13: 3236
A14: East Lothian | B14: 99717 | C14: 9877 | D14: 645 | E14: 83463 | F14: 414 | G14: 490 | H14: 1071 | I14: 1095 | J14: 2662
A15: East Renfrewshire | B15: 90574 | C15: 4618 | D15: 481 | E15: 80890 | F15: 211 | G15: 406 | H15: 569 | I15: 241 | J15: 3158
A16: Edinburgh, City of | B16: 476626 | C16: 57725 | D16: 6363 | E16: 334626 | F16: 2118 | G16: 4743 | H16: 13663 | I16: 14601 | J16: 42787
A17: Eilean Siar | B17: 27684 | C17: 3099 | D17: 75 | E17: 23556 | F17: 141 | G17: 50 | H17: 189 | I17: 115 | J17: 459
A18: Falkirk | B18: 155990 | C18: 8317 | D18: 718 | E18: 140890 | F18: 403 | G18: 394 | H18: 916 | I18: 1427 | J18: 2925
A19: Fife | B19: 365198 | C19: 35531 | D19: 2233 | E19: 305206 | F19: 1499 | G19: 1032 | H19: 4438 | I19: 3745 | J19: 11514
A20: Glasgow City | B20: 593245 | C20: 28263 | D20: 5040 | E20: 486243 | F20: 1015 | G20: 4339 | H20: 7345 | I20: 10349 | J20: 50651
A21: Highland | B21: 232132 | C21: 37058 | D21: 1318 | E21: 179271 | F21: 1267 | G21: 681 | H21: 2613 | I21: 4292 | J21: 5632
A22: Inverclyde | B22: 81485 | C22: 3189 | D22: 338 | E22: 75679 | F22: 149 | G22: 212 | H22: 500 | I22: 151 | J22: 1267
A23: Midlothian | B23: 83187 | C23: 5560 | D23: 456 | E23: 73594 | F23: 213 | G23: 277 | H23: 785 | I23: 541 | J23: 1761
A24: Moray | B24: 93295 | C24: 16580 | D24: 632 | E24: 70332 | F24: 853 | G24: 217 | H24: 1555 | I24: 1147 | J24: 1979
A25: North Ayrshire | B25: 138146 | C25: 8562 | D25: 866 | E25: 124918 | F25: 337 | G25: 361 | H25: 879 | I25: 321 | J25: 1902
A26: North Lanarkshire | B26: 337727 | C26: 10286 | D26: 1131 | E26: 315754 | F26: 408 | G26: 746 | H26: 1232 | I26: 3090 | J26: 5080
A27: Orkney Islands | B27: 21349 | C27: 3757 | D27: 105 | E27: 16654 | F27: 111 | G27: 34 | H27: 201 | I27: 105 | J27: 382
A28: Perth & Kinross | B28: 146652 | C28: 18519 | D28: 1006 | E28: 116268 | F28: 624 | G28: 576 | H28: 1771 | I28: 3243 | J28: 4645
A29: Renfrewshire | B29: 174908 | C29: 6824 | D29: 886 | E29: 159373 | F29: 310 | G29: 685 | H29: 1166 | I29: 1391 | J29: 4273
A30: Scottish Borders | B30: 113870 | C30: 21161 | D30: 777 | E30: 85392 | F30: 560 | G30: 410 | H30: 1314 | I30: 1554 | J30: 2702
A31: Shetland Islands | B31: 23167 | C31: 3057 | D31: 72 | E31: 18691 | F31: 151 | G31: 158 | H31: 184 | I31: 354 | J31: 500
A32: South Ayrshire | B32: 112799 | C32: 8888 | D32: 1131 | E32: 98603 | F32: 334 | G32: 383 | H32: 930 | I32: 509 | J32: 2021
A33: South Lanarkshire | B33: 313830 | C33: 14274 | D33: 1323 | E33: 286940 | F33: 609 | G33: 991 | H33: 1737 | I33: 1529 | J33: 6427
A34: Stirling | B34: 90247 | C34: 10588 | D34: 872 | E34: 71994 | F34: 389 | G34: 360 | H34: 1243 | I34: 975 | J34: 3826
A35: West Dunbartonshire | B35: 90720 | C35: 3590 | D35: 426 | E35: 83699 | F35: 156 | G35: 509 | H35: 397 | I35: 429 | J35: 1514
A36: West Lothian | B36: 175118 | C36: 11923 | D36: 989 | E36: 151889 | F36: 464 | G36: 510 | H36: 1447 | I36: 3721 | J36: 4175
A38: NHS Board Areas
A39: SCOTLAND | B39: 5295403 | C39: 459486 | D39: 36655 | E39: 4411884 | F39: 17381 | G39: 22952 | H39: 60596 | I39: 76689 | J39: 209760
A40: Ayrshire & Arran | B40: 373712 | C40: 24052 | D40: 2739 | E40: 335900 | F40: 931 | G40: 995 | H40: 2438 | I40: 1137 | J40: 5520
A41: Borders | B41: 113870 | C41: 21161 | D41: 777 | E41: 85392 | F41: 560 | G41: 410 | H41: 1314 | I41: 1554 | J41: 2702
A42: Dumfries & Galloway | B42: 151324 | C42: 27186 | D42: 1547 | E42: 116687 | F42: 642 | G42: 456 | H42: 1121 | I42: 1146 | J42: 2539
A43: Fife | B43: 365198 | C43: 35531 | D43: 2233 | E43: 305206 | F43: 1499 | G43: 1032 | H43: 4438 | I43: 3745 | J43: 11514
A44: Forth Valley | B44: 297636 | C44: 23278 | D44: 1910 | E44: 257245 | F44: 986 | G44: 909 | H44: 2583 | I44: 2977 | J44: 7748
A45: Grampian | B45: 569061 | C45: 66149 | D45: 3372 | E45: 441168 | F45: 2902 | G45: 2167 | H45: 9091 | I45: 15498 | J45: 28714
A46: Greater Glasgow & Clyde | B46: 1213408 | C46: 55024 | D46: 8072 | E46: 1051125 | F46: 2181 | G46: 6938 | H46: 11020 | I46: 13081 | J46: 65967
A47: Highland | B47: 320298 | C47: 52671 | D47: 1962 | E47: 246331 | F47: 1796 | G47: 1008 | H47: 3536 | I47: 5144 | J47: 7850
A48: Lanarkshire | B48: 574637 | C48: 21997 | D48: 2148 | E48: 531661 | F48: 914 | G48: 1379 | H48: 2598 | I48: 4296 | J48: 9644
A49: Lothian | B49: 834350 | C49: 85080 | D49: 8453 | E49: 643292 | F49: 3208 | G49: 6020 | H49: 16960 | I49: 19956 | J49: 51381
A50: Orkney | B50: 21349 | C50: 3757 | D50: 105 | E50: 16654 | F50: 111 | G50: 34 | H50: 201 | I50: 105 | J50: 382
A51: Shetland | B51: 23167 | C51: 3057 | D51: 72 | E51: 18691 | F51: 151 | G51: 158 | H51: 184 | I51: 354 | J51: 500
A52: Tayside | B52: 409709 | C52: 37444 | D52: 3190 | E52: 338976 | F52: 1359 | G52: 1396 | H52: 4923 | I52: 7581 | J52: 14840
A53: Western Isles | B53: 27684 | C53: 3099 | D53: 75 | E53: 23556 | F53: 141 | G53: 50 | H53: 189 | I53: 115 | J53: 459
A55: Notes
A56: 1) Includes UK (part not specified), Channel Islands, Isle of Man and Ireland (part not specified).
A57: 2) In order to protect against disclosure of personal information, some records have been swapped between different geographic areas. Some cell values will be affected, particularly small values at the most detailed geographies.
A59: 3) Source: Scotland's Census Release 2A Downloadable Files KS204SC.
A61: © Crown Copyright 2016

Sheet Births to non-UK mothers %birth
A1: Births to non-UK mothers as percentage of total births | K1: Return to front page
B3: Births (percentage)
A4: Calendar Year | B4: 2004 | C4: 2005 | D4: 2006 | E4: 2007 | F4: 2008 | G4: 2009 | H4: 2010 | I4: 2011 | J4: 2012 | K4: 2013 | L4: 2014 | M4: 2015
A5: SCOTLAND | B5: 7.82 | C5: 8.6 | D5: 9.38 | E5: 10.99 | F5: 12.67 | G5: 13.52 | H5: 13.91 | I5: 14.24 | J5: 14.54 | K5: 15.41 | L5: 16.1798149 | M5: 16.33
A6: Aberdeen City | B6: 14.41 | C6: 16.01 | D6: 17.95 | E6: 22.96 | F6: 27.97 | G6: 30.5 | H6: 32.32 | I6: 32.13 | J6: 33.89 | K6: 37.6 | L6: 38.44054581 | M6: 38.02
A7: Aberdeenshire | B7: 6.83 | C7: 7.51 | D7: 8.85 | E7: 10.04 | F7: 10.75 | G7: 11.09 | H7: 13.16 | I7: 14.06 | J7: 13.36 | K7: 13 | L7: 15.8674189 | M7: 15.01
A8: Angus | B8: 5.51 | C8: 5.57 | D8: 6.13 | E8: 7.38 | F8: 7.96 | G8: 9.96 | H8: 9.22 | I8: 11.6 | J8: 11.59 | K8: 11.97 | L8: 11.78010471 | M8: 10.8
A9: Argyll & Bute | B9: 5.33 | C9: 6.73 | D9: 7.04 | E9: 9.85 | F9: 10.29 | G9: 10.18 | H9: 9.57 | I9: 10.6 | J9: 10.2 | K9: 9.87 | L9: 11.14167813 | M9: 12.65
A10: Clackmannanshire | B10: 3.59 | C10: 5.11 | D10: 4.21 | E10: 8.36 | F10: 7.14 | G10: 8.03 | H10: 7.74 | I10: 7.62 | J10: 7.97 | K10: 7.64 | L10: 8.797127469 | M10: 7.23
A11: Dumfries & Galloway | B11: 4.12 | C11: 5.05 | D11: 5.17 | E11: 5.71 | F11: 5.66 | G11: 7.7 | H11: 5.88 | I11: 6.88 | J11: 6.47 | K11: 7.39 | L11: 7.076205288 | M11: 6.93
A12: Dundee City | B12: 8.77 | C12: 9.77 | D12: 10.85 | E12: 12.89 | F12: 15.99 | G12: 16.52 | H12: 16.62 | I12: 18.02 | J12: 15.42 | K12: 14.97 | L12: 18.07580175 | M12: 17.17
A13: East Ayrshire | B13: 2.99 | C13: 3.34 | D13: 2.89 | E13: 3.91 | F13: 3.79 | G13: 4.99 | H13: 4.57 | I13: 5.58 | J13: 3.83 | K13: 3.35 | L13: 3.50877193 | M13: 4.22
A14: East Dunbartonshire | B14: 7.54 | C14: 6.99 | D14: 7.48 | E14: 8.3 | F14: 8.25 | G14: 8.4 | H14: 8.12 | I14: 8.33 | J14: 8.84 | K14: 7.89 | L14: 9.385113269 | M14: 8.86
A15: East Lothian | B15: 5.37 | C15: 6.64 | D15: 6.53 | E15: 7.18 | F15: 8.97 | G15: 8.47 | H15: 9.97 | I15: 11.63 | J15: 12.42 | K15: 10.88 | L15: 12.45059289 | M15: 11.78
A16: East Renfrewshire | B16: 8.61 | C16: 8.13 | D16: 9.21 | E16: 8.73 | F16: 8.87 | G16: 9.67 | H16: 9.63 | I16: 9.42 | J16: 9.19 | K16: 9.89 | L16: 9.144196952 | M16: 10.56
A17: Edinburgh, City of | B17: 15.78 | C17: 17.82 | D17: 20.35 | E17: 22.07 | F17: 26.75 | G17: 26.94 | H17: 27.5 | I17: 27.5 | J17: 29.47 | K17: 30.99 | L17: 33.84947785 | M17: 34.53
A18: Eilean Siar | B18: 4.93 | C18: 3.43 | D18: 4.01 | E18: 4.94 | F18: 5.45 | G18: 9.69 | H18: 4.26 | I18: 5.53 | J18: 5.49 | K18: 8.54 | L18: 7.522123894 | M18: 3.6
A19: Falkirk | B19: 4.5 | C19: 5.58 | D19: 4.89 | E19: 5.66 | F19: 7.39 | G19: 6.99 | H19: 6.56 | I19: 8.2 | J19: 8.86 | K19: 8.93 | L19: 9.557109557 | M19: 10.73
A20: Fife | B20: 5.89 | C20: 5.93 | D20: 7.13 | E20: 7.9 | F20: 8.92 | G20: 9.38 | H20: 9.73 | I20: 9.93 | J20: 10 | K20: 10.51 | L20: 10.49112882 | M20: 11.8
A21: Glasgow City | B21: 15.68 | C21: 17.65 | D21: 18.06 | E21: 20.25 | F21: 23.51 | G21: 24.32 | H21: 25.41 | I21: 24.65 | J21: 24.83 | K21: 27.38 | L21: 27.28734092 | M21: 27.55
A22: Highland | B22: 6.94 | C22: 7.3 | D22: 9.4 | E22: 10.33 | F22: 10.52 | G22: 12.68 | H22: 12.65 | I22: 11.47 | J22: 13.74 | K22: 14.15 | L22: 14.58874459 | M22: 14.14
A23: Inverclyde | B23: 4.45 | C23: 4.55 | D23: 3.78 | E23: 3.73 | F23: 4.19 | G23: 5.17 | H23: 4.17 | I23: 4.18 | J23: 3.52 | K23: 4.38 | L23: 3.76344086 | M23: 4.22
A24: Midlothian | B24: 4.54 | C24: 4.61 | D24: 5.98 | E24: 8 | F24: 8.74 | G24: 8.55 | H24: 7.14 | I24: 8.38 | J24: 9.43 | K24: 8.37 | L24: 9.583736689 | M24: 10.54
A25: Moray | B25: 7.49 | C25: 6.72 | D25: 6.56 | E25: 10.19 | F25: 8.79 | G25: 10.25 | H25: 9.38 | I25: 11 | J25: 8.52 | K25: 11.72 | L25: 11.49301826 | M25: 10.83
A26: North Ayrshire | B26: 3.41 | C26: 3.99 | D26: 3.26 | E26: 3.53 | F26: 3.71 | G26: 5.14 | H26: 4.14 | I26: 3.58 | J26: 4.75 | K26: 4.67 | L26: 4.361370717 | M26: 4.94
A27: North Lanarkshire | B27: 3.52 | C27: 2.71 | D27: 4.05 | E27: 4.7 | F27: 5.86 | G27: 6.22 | H27: 7.05 | I27: 7.11 | J27: 6.42 | K27: 7.09 | L27: 7.340682979 | M27: 6.38
A28: Orkney Islands | B28: 3.51 | C28: 2.22 | D28: 4.23 | E28: 3.16 | F28: 6.07 | G28: 3.52 | H28: 7.11 | I28: 3.9 | J28: 5.47 | K28: 3.48 | L28: 6.077348066 | M28: 4.71
A29: Perth & Kinross | B29: 7.16 | C29: 7.94 | D29: 8.34 | E29: 10.42 | F29: 11.5 | G29: 13.75 | H29: 13.92 | I29: 14.1 | J29: 15.74 | K29: 15.98 | L29: 17.17022845 | M29: 17.17
A30: Renfrewshire | B30: 4.83 | C30: 4.71 | D30: 5.5 | E30: 6.48 | F30: 7.7 | G30: 8.67 | H30: 8.77 | I30: 9.63 | J30: 9.34 | K30: 9.83 | L30: 10.25923883 | M30: 10.81
A31: Scottish Borders | B31: 5.99 | C31: 6.78 | D31: 7.56 | E31: 10.77 | F31: 11.86 | G31: 10.18 | H31: 10.68 | I31: 10.38 | J31: 11.84 | K31: 11.42 | L31: 11.1933395 | M31: 11.67
A32: Shetland Islands | B32: 6.09 | C32: 7.93 | D32: 7.84 | E32: 6.15 | F32: 8.63 | G32: 8.06 | H32: 8.65 | I32: 12.4 | J32: 7.61 | K32: 8.43 | L32: 11.06719368 | M32: 10.26
A33: South Ayrshire | B33: 3.88 | C33: 5.02 | D33: 4.35 | E33: 6.03 | F33: 5.53 | G33: 5.5 | H33: 6.09 | I33: 5.68 | J33: 6.72 | K33: 5.81 | L33: 5.711519845 | M33: 7.57
A34: South Lanarkshire | B34: 3.69 | C34: 4.15 | D34: 4.8 | E34: 5.65 | F34: 5.8 | G34: 5.94 | H34: 6.06 | I34: 7 | J34: 5.84 | K34: 6.94 | L34: 7.025279248 | M34: 6.94
A35: Stirling | B35: 8.57 | C35: 6.99 | D35: 9.36 | E35: 9.34 | F35: 9.86 | G35: 12.51 | H35: 12.2 | I35: 12 | J35: 9.74 | K35: 10.41 | L35: 12.960761 | M35: 13.13
A36: West Dunbartonshire | B36: 2.6 | C36: 2.8 | D36: 3.64 | E36: 4.43 | F36: 4.44 | G36: 3.6 | H36: 5.17 | I36: 5.64 | J36: 4.17 | K36: 6.95 | L36: 5.172413793 | M36: 7.79
A37: West Lothian | B37: 5.78 | C37: 7.01 | D37: 7.21 | E37: 9.94 | F37: 11.91 | G37: 13.16 | H37: 11.72 | I37: 13.03 | J37: 14.72 | K37: 15.33 | L37: 14.68703795 | M37: 16.25
A39: NHS Board Areas
A40: SCOTLAND | B40: 7.82 | C40: 8.6 | D40: 9.38 | E40: 10.99 | F40: 12.67 | G40: 13.52 | H40: 13.91 | I40: 14.24 | J40: 14.54 | K40: 15.41 | L40: 16.1798149 | M40: 16.33
A41: Ayrshire & Arran | B41: 3.4 | C41: 4.04 | D41: 3.42 | E41: 4.33 | F41: 4.24 | G41: 5.19 | H41: 4.82 | I41: 4.86 | J41: 4.94 | K41: 4.5 | L41: 4.45 | M41: 5.43
A42: Borders | B42: 5.99 | C42: 6.78 | D42: 7.57 | E42: 10.78 | F42: 11.86 | G42: 10.2 | H42: 10.68 | I42: 10.38 | J42: 11.84 | K42: 11.42 | L42: 11.19 | M42: 11.67
A43: Dumfries & Galloway | B43: 4.12 | C43: 5.05 | D43: 5.17 | E43: 5.71 | F43: 5.66 | G43: 7.7 | H43: 5.88 | I43: 6.88 | J43: 6.47 | K43: 7.39 | L43: 7.08 | M43: 6.93
A44: Fife | B44: 5.89 | C44: 5.93 | D44: 7.13 | E44: 7.9 | F44: 8.92 | G44: 9.38 | H44: 9.73 | I44: 9.93 | J44: 10 | K44: 10.51 | L44: 10.49 | M44: 11.8
A45: Forth Valley | B45: 5.55 | C45: 5.9 | D45: 6.04 | E45: 7.11 | F45: 7.99 | G45: 8.61 | H45: 8.2 | I45: 9.1 | J45: 8.91 | K45: 9.09 | L45: 10.34 | M45: 10.72
A46: Grampian | B46: 9.89 | C46: 10.62 | D46: 12.01 | E46: 15.18 | F46: 17.52 | G46: 18.7 | H46: 20.56 | I46: 21.1 | J46: 21.21 | K46: 23.01 | L46: 24.37 | M46: 23.79
A47: Greater Glasgow & Clyde | B47: 10.65 | C47: 11.62 | D47: 11.93 | E47: 13.57 | F47: 15.46 | G47: 16.35 | H47: 17.07 | I47: 16.95 | J47: 17.46 | K47: 19.26 | L47: 19.29 | M47: 19.69
A48: Highland | B48: 6.51 | C48: 7.15 | D48: 8.78 | E48: 10.22 | F48: 10.46 | G48: 12.04 | H48: 11.92 | I48: 11.26 | J48: 12.88 | K48: 13.12 | L48: 13.76 | M48: 13.79
A49: Lanarkshire | B49: 3.28 | C49: 3.14 | D49: 4.34 | E49: 4.95 | F49: 5.72 | G49: 6.05 | H49: 6.5 | I49: 6.92 | J49: 6.14 | K49: 7.02 | L49: 7.19 | M49: 6.64
A50: Lothian | B50: 11.01 | C50: 12.54 | D50: 14.12 | E50: 15.96 | F50: 19.42 | G50: 19.96 | H50: 19.99 | I50: 20.61 | J50: 22.31 | K50: 23.06 | L50: 24.96 | M50: 25.36
A51: Orkney | B51: 3.51 | C51: 2.22 | D51: 4.23 | E51: 3.16 | F51: 6.07 | G51: 3.52 | H51: 7.11 | I51: 3.9 | J51: 5.47 | K51: 3.48 | L51: 6.08 | M51: 4.71
A52: Shetland | B52: 6.09 | C52: 7.93 | D52: 7.84 | E52: 6.15 | F52: 8.63 | G52: 8.06 | H52: 8.65 | I52: 12.4 | J52: 7.61 | K52: 8.43 | L52: 11.07 | M52: 10.26
A53: Tayside | B53: 7.35 | C53: 8 | D53: 8.72 | E53: 10.57 | F53: 12.36 | G53: 13.86 | H53: 13.81 | I53: 15.03 | J53: 14.45 | K53: 14.47 | L53: 16.07 | M53: 15.46
A54: Western Isles | B54: 4.93 | C54: 3.43 | D54: 4.01 | E54: 4.94 | F54: 5.45 | G54: 9.69 | H54: 4.26 | I54: 5.53 | J54: 5.49 | K54: 8.54 | L54: 7.52 | M54: 3.6
A56: Notes
A57: 1) Births to non-UK mothers is the total of all births where the mother was not born in the UK, Isle of Man, or the Channel Islands.
A58: 2) Sources: Vital Events Reference Tables, Table 3.9
A59: and Vital Events Birth Time Series Data
A60: 3) The NHS Board areas used for estimates between 2003/04 and 2010/11 are those that existed between 2006 and 2014. The 2011/12 estimates onwards use the NHS Board areas that came into force in April 2014.
A62: © Crown Copyright 2016

Sheet NINo Top 5 nationalities
A1: Nationalities of NINo allocations to overseas nationals in 2015
C2: Return to front page
B3: Number of nationalities | C3: Top 5 most common nationalities
A4: SCOTLAND | B4: 129 | C4: Poland, Romania, Spain, Italy, Bulgaria
A5: Aberdeen City | B5: 73 | C5: Poland, Romania, Nigeria, India, Bulgaria
A6: Aberdeenshire | B6: 30 | C6: Poland, Lithuania, Romania, Portugal, Latvia
A7: Angus | B7: 19 | C7: Romania, Bulgaria, Poland, Lithuania, Latvia
A8: Argyll and Bute | B8: 27 | C8: Romania, Poland, Hungary, Spain, France
A9: Clackmannanshire | B9: 10 | C9: Poland, Romania, Italy, Slovakia, Bulgaria
A10: Dumfries and Galloway | B10: 22 | C10: Poland, Romania, Bulgaria, Ireland, Spain
A11: Dundee City | B11: 46 | C11: Poland, Romania, Bulgaria, Spain, Nigeria
A12: East Ayrshire | B12: 7 | C12: Poland, Romania, Spain, Canada, Ireland
A13: East Dunbartonshire | B13: 13 | C13: Romania, Poland, Italy, Ireland, Spain
A14: East Lothian | B14: 26 | C14: Poland, Bulgaria, Ireland, Lithuania, Italy
A15: East Renfrewshire | B15: 11 | C15: Poland, Ireland, Romania, Spain, France
A16: Edinburgh, City of | B16: 87 | C16: Poland, Spain, Italy, India, France
A17: Eilean Siar | B17: 6 | C17: Romania, Spain, Lithuania, Poland, Germany
A18: Falkirk | B18: 20 | C18: Poland, Hungary, Portugal, Romania, Italy
A19: Fife | B19: 51 | C19: Poland, Romania, Bulgaria, United States, Germany
A20: Glasgow City | B20: 94 | C20: Poland, Romania, India, Italy, Spain
A21: Highland | B21: 31 | C21: Poland, Romania, Hungary, Spain, Czech Republic
A22: Inverclyde | B22: 10 | C22: Romania, Afghanistan, Netherlands, Syria, Italy
A23: Midlothian | B23: 18 | C23: Poland, Romania, Spain, Italy, Ireland
A24: Moray | B24: 17 | C24: Poland, Romania, Lithuania, Portugal, Bulgaria
A25: North Ayrshire | B25: 16 | C25: Poland, Hungary, Afghanistan, Italy, Romania
A26: North Lanarkshire | B26: 27 | C26: Poland, Romania, Portugal, Italy, Ireland
A27: Orkney Islands | B27: 4 | C27: Poland, Ireland, Hungary, Italy
A28: Perth and Kinross | B28: 34 | C28: Romania, Poland, Bulgaria, Czech Republic, Slovakia
A29: Renfrewshire | B29: 28 | C29: Poland, Romania, Spain, France, Italy
A30: Scottish Borders | B30: 24 | C30: Poland, Romania, Ireland, Australia, Italy
A31: Shetland Islands | B31: 13 | C31: Poland, Ireland, Hungary, India, Romania
A32: South Ayrshire | B32: 23 | C32: Poland, Afghanistan, Ireland, Spain, Romania
A33: South Lanarkshire | B33: 33 | C33: Poland, Romania, Portugal, Italy, Ireland
A34: Stirling | B34: 34 | C34: Poland, Hungary, Romania, Italy, Bulgaria
A35: West Dunbartonshire | B35: 13 | C35: Poland, Syria, Italy, Romania, Ireland
A36: West Lothian | B36: 25 | C36: Poland, Romania, Hungary, Latvia, Spain
A38: Notes
A39: 1) Based on calendar year 2015.
A40: 2) Registration date is derived from the date at which a NINo is maintained on the National Insurance Recording & Pay As You Earn System, and not date of arrival.
A42: 3) A nationality is only included in the table above if at least five persons of that nationality have been allocated a National Insurance Number.
A43: 4) Where there is more than one nationality with the same number of people registered from there, the nationalities at the same level are sorted alphabetically and the top nationalities are represented in the table.
A45: 5) Source: Department for Work and Pensions (DWP), National Insurance Number Allocations to Adult Overseas Nationals entering the UK - data extracted using Stat-Xplore.
A48: © Crown Copyright 2016

Sheet Population estimates
A1: Estimated mid-year population, Scotland, council areas and NHS Board areas, 2004-2015 | K1: Return to front page
A3: Council Area | B3: 2004 | C3: 2005 | D3: 2006 | E3: 2007 | F3: 2008 | G3: 2009 | H3: 2010 | I3: 2011 | J3: 2012 | K3: 2013 | L3: 2014 | M3: 2015
A4: SCOTLAND | B4: 5084300 | C4: 5110200 | D4: 5133100 | E4: 5170000 | F4: 5202900 | G4: 5231900 | H4: 5262200 | I4: 5299900 | J4: 5313600 | K4: 5327700 | L4: 5347600 | M4: 5373000
A5: Aberdeen City | B5: 207820 | C5: 208690 | D5: 209620 | E5: 212460 | F5: 214020 | G5: 217020 | H5: 219730 | I5: 222460 | J5: 224910 | K5: 227070 | L5: 228920 | M5: 230350
A6: Aberdeenshire | B6: 234690 | C6: 237570 | D6: 241180 | E6: 244390 | F6: 246840 | G6: 249020 | H6: 251430 | I6: 253650 | J6: 255560 | K6: 257770 | L6: 260530 | M6: 261960
A7: Angus | B7: 110170 | C7: 111340 | D7: 112500 | E7: 113540 | F7: 114490 | G7: 114830 | H7: 115410 | I7: 116200 | J7: 116220 | K7: 116290 | L7: 116740 | M7: 116900
A8: Argyll & Bute | B8: 90580 | C8: 90350 | D8: 90870 | E8: 90790 | F8: 89910 | G8: 89450 | H8: 88620 | I8: 88930 | J8: 86910 | K8: 88050 | L8: 87650 | M8: 86890
A9: Clackmannanshire | B9: 48670 | C9: 49160 | D9: 49540 | E9: 50600 | F9: 51190 | G9: 51290 | H9: 51330 | I9: 51500 | J9: 51280 | K9: 51280 | L9: 51190 | M9: 51360
A10: Dumfries & Galloway | B10: 148690 | C10: 149620 | D10: 149780 | E10: 150370 | F10: 151010 | G10: 151160 | H10: 151100 | I10: 151410 | J10: 150840 | K10: 150280 | L10: 149960 | M10: 149670
A11: Dundee City | B11: 143100 | C11: 143600 | D11: 143370 | E11: 143700 | F11: 144290 | G11: 145170 | H11: 146060 | I11: 147200 | J11: 147780 | K11: 148100 | L11: 148130 | M11: 148210
A12: East Ayrshire | B12: 120210 | C12: 120280 | D12: 120450 | E12: 120950 | F12: 121590 | G12: 122110 | H12: 122410 | I12: 122690 | J12: 122730 | K12: 122430 | L12: 122130 | M12: 122060
A13: East Dunbartonshire | B13: 106540 | C13: 106040 | D13: 105590 | E13: 105050 | F13: 104940 | G13: 104960 | H13: 104920 | I13: 105000 | J13: 105880 | K13: 105840 | L13: 106710 | M13: 106960
A14: East Lothian | B14: 92170 | C14: 92730 | D14: 93850 | E14: 95560 | F14: 97470 | G14: 98340 | H14: 99140 | I14: 99920 | J14: 100860 | K14: 101390 | L14: 102090 | M14: 103050
A15: East Renfrewshire | B15: 89790 | C15: 89880 | D15: 89750 | E15: 89840 | F15: 89870 | G15: 89980 | H15: 90410 | I15: 90810 | J15: 91040 | K15: 91530 | L15: 92410 | M15: 92940
A16: Edinburgh, City of | B16: 445870 | C16: 449480 | D16: 452060 | E16: 456040 | F16: 458520 | G16: 463240 | H16: 469940 | I16: 477940 | J16: 482630 | K16: 487460 | L16: 492610 | M16: 498810
A17: Eilean Siar | B17: 26650 | C17: 26930 | D17: 27060 | E17: 27210 | F17: 27280 | G17: 27420 | H17: 27600 | I17: 27690 | J17: 27560 | K17: 27400 | L17: 27250 | M17: 27070
A18: Falkirk | B18: 148300 | C18: 150130 | D18: 151090 | E18: 152320 | F18: 153290 | G18: 154210 | H18: 155140 | I18: 156250 | J18: 156800 | K18: 157160 | L18: 157690 | M18: 158460
A19: Fife | B19: 353050 | C19: 355450 | D19: 357260 | E19: 358750 | F19: 360050 | G19: 361410 | H19: 362610 | I19: 365300 | J19: 366210 | K19: 366900 | L19: 367250 | M19: 368080
A20: Glasgow City | B20: 569560 | C20: 569240 | D20: 568480 | E20: 571760 | F20: 576200 | G20: 581620 | H20: 586500 | I20: 593060 | J20: 595070 | K20: 596520 | L20: 599640 | M20: 606340
A21: Highland | B21: 214560 | C21: 218060 | D21: 220780 | E21: 224000 | F21: 226980 | G21: 228750 | H21: 230730 | I21: 232730 | J21: 232890 | K21: 232930 | L21: 233080 | M21: 234110
A22: Inverclyde | B22: 82690 | C22: 82680 | D22: 82320 | E22: 82110 | F22: 82000 | G22: 81670 | H22: 81510 | I22: 81220 | J22: 80690 | K22: 80340 | L22: 79890 | M22: 79500
A23: Midlothian | B23: 80230 | C23: 80050 | D23: 80000 | E23: 80370 | F23: 81540 | G23: 81900 | H23: 82360 | I23: 83450 | J23: 84240 | K23: 84710 | L23: 86220 | M23: 87390
A24: Moray | B24: 89380 | C24: 90100 | D24: 90780 | E24: 91440 | F24: 92830 | G24: 93170 | H24: 93690 | I24: 93470 | J24: 92930 | K24: 94360 | L24: 94770 | M24: 95510
A25: North Ayrshire | B25: 136500 | C25: 136690 | D25: 136790 | E25: 137420 | F25: 137910 | G25: 137830 | H25: 137790 | I25: 138090 | J25: 137570 | K25: 136940 | L25: 136480 | M25: 136130
A26: North Lanarkshire | B26: 325400 | C26: 327140 | D26: 328740 | E26: 331170 | F26: 333290 | G26: 335160 | H26: 336280 | I26: 337720 | J26: 337890 | K26: 337780 | L26: 338000 | M26: 338260
A27: Orkney Islands | B27: 19830 | C27: 20070 | D27: 20340 | E27: 20580 | F27: 20740 | G27: 20940 | H27: 21220 | I27: 21420 | J27: 21530 | K27: 21560 | L27: 21580 | M27: 21670
A28: Perth & Kinross | B28: 136900 | C28: 138060 | D28: 139390 | E28: 141140 | F28: 143130 | G28: 144370 | H28: 145600 | I28: 146850 | J28: 147740 | K28: 147770 | L28: 148930 | M28: 149930
A29: Renfrewshire | B29: 171470 | C29: 171430 | D29: 171270 | E29: 171860 | F29: 172640 | G29: 173020 | H29: 173700 | I29: 174700 | J29: 174300 | K29: 173890 | L29: 174230 | M29: 174560
A30: Scottish Borders | B30: 109460 | C30: 110250 | D30: 110860 | E30: 112200 | F30: 113360 | G30: 113590 | H30: 113690 | I30: 113880 | J30: 113720 | K30: 113880 | L30: 114040 | M30: 114030
A31: Shetland Islands | B31: 22090 | C31: 22250 | D31: 22210 | E31: 22350 | F31: 22480 | G31: 22790 | H31: 23060 | I31: 23240 | J31: 23210 | K31: 23200 | L31: 23220 | M31: 23200
A32: South Ayrshire | B32: 111840 | C32: 112030 | D32: 112100 | E32: 112380 | F32: 112610 | G32: 112490 | H32: 112600 | I32: 112980 | J32: 112920 | K32: 112870 | L32: 112530 | M32: 112400
A33: South Lanarkshire | B33: 305670 | C33: 306850 | D33: 308450 | E33: 310380 | F33: 311320 | G33: 312180 | H33: 313180 | I33: 313900 | J33: 314330 | K33: 314810 | L33: 315300 | M33: 316230
A34: Stirling | B34: 86910 | C34: 87510 | D34: 88090 | E34: 88430 | F34: 88540 | G34: 88690 | H34: 89550 | I34: 90330 | J34: 91010 | K34: 91230 | L34: 91520 | M34: 92830
A35: West Dunbartonshire | B35: 91970 | C35: 91530 | D35: 91420 | E35: 91370 | F35: 91190 | G35: 91080 | H35: 90800 | I35: 90610 | J35: 90340 | K35: 89800 | L35: 89710 | M35: 89590
A36: West Lothian | B36: 163540 | C36: 165010 | D36: 167110 | E36: 169470 | F36: 171380 | G36: 173040 | H36: 174090 | I36: 175300 | J36: 176010 | K36: 176160 | L36: 177200 | M36: 178550
A38: NHS Board Areas
A39: SCOTLAND | B39: 5084300 | C39: 5110200 | D39: 5133100 | E39: 5170000 | F39: 5202900 | G39: 5231900 | H39: 5262200 | I39: 5299900 | J39: 5313600 | K39: 5327700 | L39: 5347600 | M39: 5373000
A40: Ayrshire & Arran | B40: 368530 | C40: 368990 | D40: 369300 | E40: 370720 | F40: 372080 | G40: 372380 | H40: 372800 | I40: 373758 | J40: 373220 | K40: 372240 | L40: 371140 | M40: 370590
A41: Borders | B41: 109460 | C41: 110250 | D41: 110860 | E41: 112200 | F41: 113360 | G41: 113590 | H41: 113690 | I41: 113880 | J41: 113720 | K41: 113880 | L41: 114040 | M41: 114030
A42: Dumfries & Galloway | B42: 148690 | C42: 149620 | D42: 149780 | E42: 150370 | F42: 151010 | G42: 151160 | H42: 151100 | I42: 151410 | J42: 150840 | K42: 150280 | L42: 149960 | M42: 149670
A43: Fife | B43: 353050 | C43: 355450 | D43: 357260 | E43: 358750 | F43: 360050 | G43: 361410 | H43: 362610 | I43: 365299 | J43: 366210 | K43: 366900 | L43: 367250 | M43: 368080
A44: Forth Valley | B44: 283690 | C44: 286620 | D44: 288590 | E44: 291230 | F44: 292940 | G44: 294140 | H44: 295970 | I44: 298074 | J44: 299090 | K44: 299670 | L44: 300400 | M44: 302650
A45: Grampian | B45: 531890 | C45: 536360 | D45: 541580 | E45: 548290 | F45: 553690 | G45: 559210 | H45: 564850 | I45: 569580 | J45: 573400 | K45: 579200 | L45: 584220 | M45: 587820
A46: Greater Glasgow & Clyde | B46: 1185150 | C46: 1184690 | D46: 1183560 | E46: 1187990 | F46: 1193480 | G46: 1199830 | H46: 1206480 | I46: 1214587 | J46: 1137320 | K46: 1137920 | L46: 1142590 | M46: 1149890
A47: Highland | B47: 305140 | C47: 308410 | D47: 311650 | E47: 314790 | F47: 316890 | G47: 318200 | H47: 319350 | I47: 321660 | J47: 319800 | K47: 320980 | L47: 320730 | M47: 321000
A48: Lanarkshire | B48: 558250 | C48: 560380 | D48: 562510 | E48: 565710 | F48: 567990 | G48: 569800 | H48: 570900 | I48: 572439 | J48: 652220 | K48: 652590 | L48: 653300 | M48: 654490
A49: Lothian | B49: 781740 | C49: 787200 | D49: 793120 | E49: 801430 | F49: 808990 | G49: 816640 | H49: 825490 | I49: 836608 | J49: 843740 | K49: 849720 | L49: 858120 | M49: 867800
A50: Orkney | B50: 19830 | C50: 20070 | D50: 20340 | E50: 20580 | F50: 20740 | G50: 20940 | H50: 21220 | I50: 21420 | J50: 21530 | K50: 21560 | L50: 21580 | M50: 21670
A51: Shetland | B51: 22090 | C51: 22250 | D51: 22210 | E51: 22350 | F51: 22480 | G51: 22790 | H51: 23060 | I51: 23240 | J51: 23210 | K51: 23200 | L51: 23220 | M51: 23200
A52: Tayside | B52: 390140 | C52: 392980 | D52: 395280 | E52: 398380 | F52: 401920 | G52: 404390 | H52: 407080 | I52: 410255 | J52: 411740 | K52: 412160 | L52: 413800 | M52: 415040
A53: Western Isles | B53: 26650 | C53: 26930 | D53: 27060 | E53: 27210 | F53: 27280 | G53: 27420 | H53: 27600 | I53: 27690 | J53: 27560 | K53: 27400 | L53: 27250 | M53: 27070
A55: Notes
A56: 1) The figures in the table above give the estimated population as at 30 June of the given year (for example the 2015 estimates are as at 30 June 2015).
A57: 2) The figures for 2004 to 2010 are rebased using results from the 2011 Census.
A58: 3) Source: Mid-Year Population Estimates, National Records of Scotland.
A60: © Crown Copyright 2016

Sheet Further sources of data
A1: Further sources of data informing on migration | G1: Return to front page
A3: Central Government data
A4: Electoral register (overseas registrations)
A5: Higher Education Statistics Agency (HESA)
A6: Work and Pensions Longitudinal Study (WPLS)
A7: British Household Panel Survey (BHPS)
A9: Other data
A10: Council tax
A11: New housing developments
A12: Housing in multiple occupation
A13: Crime - notifiable offences data from Home Office and British Crime Survey
A14: High pupil turnover
A15: Employment - proportion of low paid jobs
A16: Letting agents - migrants tend to obtain housing from private rented sector
A17: Citizens Advice Bureaus - report locally on issues raised by migrants
